Workbook

Sheet popis
A2: V listinach je potřeba skrýt nebo zobrazit potřebné řádky- řádky na dolním okraji listin - dle počtu závodníku.
A4: Lze tisknout karty pro rozhodčí A až E a to pro obě kole. Zase je třeba skrýt nepotrebne radky.
A5: Když je druhé kolo bez obraceneho pořadí, lze vytisknout STYL karty jako pro první kolo tak ze v listu STYL1 prepiš hodnotu buňky F1 na číslo 2.
A7: Vyplň udaje v listu "hlavicka"
A8: Vyplňuj jen modre buňky v listu "počty"
A10: nesmí se vkládat ani odstraňovat buňky, sloupce ani řádky - raději jen mazat hodnoty nebo skrýt sloupec
A11: POZOR při kopirování dat do listu "počty" z jiných tabulek ci souborů ,aby nedošlo k překopírování vzorců. Například při kopírování jmena, klub,roč… lze vlozit najednou st.číslo, jmeno, klub, stát, nar. , komb. ALE "m" jako mimo pořadí musí byt vloženo zvlašť, aby nedošlo ke překopírování vzorců.
A12: V případě tohoto kopírování dej "vložit jinak" a zadej "hodnoty"
A14: Starovka je vypis zavodníku dle startovnich čísel od nejmenšího po největší, ignoruje i chybějící startovní čísla, nesmí byt však číslo shodné.
A16: Závodník je výsl. listinach jen pokud absolvuje 1.kolo - to znamena pokud nemá napsané metry nezobrazí se ještě ve výsledcích. Nelze aby nastoupil jen do 2.kola = diskvalifikace
A17: závodnící kteří nejdou do 2.kola mají automaticky nula bodu (žádné minus body) a mohou se tak objevit před slabšími závodníky s mínusovými body, kteří však jeli obě kola.
A19: Počet postupujicich do druheho kola: přeti si pozorně řádek číslo 10 v listu "hlavicka"
A20: Seřadit list "počty" podle pořadí v 1. kole sestupně. Když se jede ve 2.kole v opačném pořadí podle výsledků, tak jdi do Data/ Seřadit a vyber z rozbalovacího menu "1.k.xxxxxx" a zadej řázení sestupně. Položky které se používají k řazení jsem označil X-kama aby se dobře hledaly v rozbalovacím menu. Takto bude řazení stejné jako ve startovce do 2. kola.
A21: Před tímto řazením měj kurzor v některé buňce se jmenem zavodníka
A23: Ve výsl. listině lze použít či nepoužít nasledující údaje:
A24: Tyto udaje skrývam protože nejsou duležité, každy vidí kolik bylo zavodníků, ale jinak jsem tam dal vzorce, které počítají následovné:
A25: skok | B25: počet přihlášených: | E25: vzorec počíta počet vepsanych jmen zavodniku do listu POČTY - sloupec "O"
B26: počet startujících: | E26: vzorec počíta počet hodnocenych zavodniku v listu pocty - sloupec "AP"
B27: počet klasifikovaných: | E27: vzorec počíta počet hodn. zavodniku v listu pocty bez mimo sotěž - sloupec "BL"
B28: počet mimo soutěž: | E28: zavodníci mimo soutěž - počet M ve vysled. listine ve sloupci "B"
A29: kombinace | B29: počet přihlášených: | E29: vzorec počíta počet "x" ( = přihlašených do kombinace)
B30: počet startujících do skoku: | E30: vzorec počíta počet startujících ve skok do kombinace
B31: dobehlo do cíle: | E31: vzorec počíta všechny co doběhli
B32: z toho mimo soutěž (M): | E32: vzorec počítá ty co doběhli, ale co jsou mimo soutěž
A34: Poharove Body | B34: pokud není potreba stačí skrýt sloupec "R" ve vysledkove listine
A36: MIMO sotěž | B36: označ zavodniky písmenem "m" v listu POČTY ve sloupci B.

Sheet CUP
M1: toto nemazat
B2: pořadí | C2: pohar body | Q2: 0.5 | R2: 0.5
B3: 1 | C3: 50 | E3: lze zmenit bodove hodnoceni poharu | M3: ř. | Q3: 1 | R3: 1
B4: 2 | C4: 42 | E4: POZOR prepiš jenom žluté bunky | M4: M | Q4: 1.5 | R4: 1.5
B5: 3 | C5: 35 | Q5: 2 | R5: 2
B6: 4 | C6: 30 | Q6: 2.5 | R6: 2.5
B7: 5 | C7: 26 | M7: toto nemazat | Q7: 3 | R7: 3
B8: 6 | C8: 22 | Q8: 3.5 | R8: 3.5
B9: 7 | C9: 19 | M9: poř. | Q9: 4 | R9: 4
B10: 8 | C10: 16 | M10: M | Q10: 4.5 | R10: 4.5
B11: 9 | C11: 14 | Q11: 5 | R11: 5
B12: 10 | C12: 12 | Q12: 5.5 | R12: 5.5
B13: 11 | C13: 10 | M13: toto nemazat | Q13: 6 | R13: 6
B14: 12 | C14: 9 | Q14: 6.5 | R14: 6.5
B15: 13 | C15: 8 | M15: kotrola psaní časů | Q15: 7 | R15: 7
B16: 14 | C16: 7 | M16: nestartuje - nepiš žádný čas | Q16: 7.5 | R16: 7.5
B17: 15 | C17: 6 | Q17: 8 | R17: 8
B18: 16 | C18: 5 | Q18: 8.5 | R18: 8.5
B19: 17 | C19: 4 | M19: toto nemazat | Q19: 9 | R19: 9
B20: 18 | C20: 3 | Q20: 9.5 | R20: 9.5
B21: 19 | C21: 2 | M21: kotrola psaní časů | Q21: 10 | R21: 10
B22: 20 | C22: 1 | M22: menší čas cíl než čas startu | Q22: 10.5 | R22: 10.5
B23: 21 | Q23: 11 | R23: 11
B24: 22 | Q24: 11.5 | R24: 11.5
B25: 23 | Q25: 12 | R25: 12
B26: 24 | Q26: 12.5 | R26: 12.5
B27: 25 | Q27: 13 | R27: 13
B28: 26 | Q28: 13.5 | R28: 13.5
B29: 27 | Q29: 14 | R29: 14
B30: 28 | Q30: 14.5 | R30: 14.5
B31: 29 | Q31: 15 | R31: 15
B32: 30 | Q32: 15.5 | R32: 15.5
B33: 31 | Q33: 16 | R33: 16
B34: 32 | Q34: 16.5 | R34: 16.5
B35: 33 | Q35: 17 | R35: 17
B36: 34 | Q36: 17.5 | R36: 17.5
B37: 35 | Q37: 18 | R37: 18
B38: 36 | Q38: 18.5 | R38: 18.5
B39: 37 | Q39: 19 | R39: 19
B40: 38 | Q40: 19.5 | R40: 19.5
B41: 39 | Q41: 20 | R41: 20
B42: 40 | Q42: 20.5
B43: 41 | Q43: 21
B44: 42 | Q44: 21.5
B45: 43 | Q45: 22
B46: 44 | Q46: 22.5
B47: 45 | Q47: 23
B48: 46 | Q48: 23.5
B49: 47 | Q49: 24
B50: 48 | Q50: 24.5
B51: 49 | Q51: 25
B52: 50 | Q52: 25.5
B53: 51 | Q53: 26
B54: 52 | Q54: 26.5
B55: 53 | Q55: 27
B56: 54 | Q56: 27.5
B57: 55 | Q57: 28
B58: 56 | Q58: 28.5
B59: 57 | Q59: 29
B60: 58 | Q60: 29.5
B61: 59 | Q61: 30
B62: 60 | Q62: 30.5
B63: 61 | Q63: 31
B64: 62 | Q64: 31.5
B65: 63 | Q65: 32
B66: 64 | Q66: 32.5
B67: 65 | Q67: 33
B68: 66 | Q68: 33.5
B69: 67 | Q69: 34
B70: 68 | Q70: 34.5
B71: 69 | Q71: 35
B72: 70 | Q72: 35.5
B73: 71 | Q73: 36
B74: 72 | Q74: 36.5
B75: 73 | Q75: 37
B76: 74 | Q76: 37.5
B77: 75 | Q77: 38
B78: 76 | Q78: 38.5
B79: 77 | Q79: 39
B80: 78 | Q80: 39.5
B81: 79 | Q81: 40
B82: 80 | Q82: 40.5
B83: 81 | Q83: 41
B84: 82 | Q84: 41.5
B85: 83 | Q85: 42
B86: 84 | Q86: 42.5
B87: 85 | Q87: 43
B88: 86 | Q88: 43.5
B89: 87 | Q89: 44
B90: 88 | Q90: 44.5
B91: 89 | Q91: 45
B92: 90 | Q92: 45.5
B93: 91 | Q93: 46
B94: 92 | Q94: 46.5
B95: 93 | Q95: 47
B96: 94 | Q96: 47.5
B97: 95 | Q97: 48
B98: 96 | Q98: 48.5
B99: 97 | Q99: 49
B100: 98 | Q100: 49.5
B101: 99 | Q101: 50
B102: 100 | Q102: 50.5
Q103: 51
Q104: 51.5
Q105: 52
Q106: 52.5
Q107: 53
Q108: 53.5
Q109: 54
Q110: 54.5
Q111: 55
Q112: 55.5
Q113: 56
Q114: 56.5
Q115: 57
Q116: 57.5
Q117: 58
Q118: 58.5
Q119: 59
Q120: 59.5
Q121: 60
Q122: 60.5
Q123: 61
Q124: 61.5
Q125: 62
Q126: 62.5
Q127: 63
Q128: 63.5
Q129: 64
Q130: 64.5
Q131: 65
Q132: 65.5
Q133: 66
Q134: 66.5
Q135: 67
Q136: 67.5
Q137: 68
Q138: 68.5
Q139: 69
Q140: 69.5
Q141: 70
Q142: 70.5
Q143: 71
Q144: 71.5
Q145: 72
Q146: 72.5
Q147: 73
Q148: 73.5
Q149: 74
Q150: 74.5
Q151: 75
Q152: 75.5
Q153: 76
Q154: 76.5
Q155: 77
Q156: 77.5
Q157: 78
Q158: 78.5
Q159: 79
Q160: 79.5
Q161: 80
Q162: 80.5
Q163: 81
Q164: 81.5
Q165: 82
Q166: 82.5
Q167: 83
Q168: 83.5
Q169: 84
Q170: 84.5
Q171: 85
Q172: 85.5
Q173: 86
Q174: 86.5
Q175: 87
Q176: 87.5
Q177: 88
Q178: 88.5
Q179: 89
Q180: 89.5
Q181: 90
Q182: 90.5
Q183: 91
Q184: 91.5
Q185: 92
Q186: 92.5
Q187: 93
Q188: 93.5
Q189: 94
Q190: 94.5
Q191: 95
Q192: 95.5
Q193: 96
Q194: 96.5
Q195: 97
Q196: 97.5
Q197: 98
Q198: 98.5
Q199: 99
Q200: 99.5
... 361 more rows

Sheet hlavicka
B1: vyplnuj žlutá políčka / přešti si list "popis" | E1: pokud neviš udaje nepis nic v hlavicce tak nic nebude (ani nula) :-)
B2: název závodu ve skoku | C2: Český pohár žactva ve skoku na lyžích
B3: evid. číslo závodu ve skoku | C3: 9/SL
B4: pořadatel, areal | C4: LSK Lomnice
B5: Datum | C5: 21.11.2015
B6: Kritický bod | C6: 13
B7: koef./1m | C7: 6
B8: certifikát mustku č.: | C8: 135/C35/SL
B9: platnost certifikatu
B10: Počet závodníků do 2.kola | C10: 125 | E10: Když není potreba omezit počet zavodníku do 2.kola, nechej v buňce "C10" počet 125. Jinak do buňky "C10" napiš požadovaný počet zavodníku do 2.kola. POZOR - pokud jsou na posledním postupovém místě dva nebo více zavodníků, budou startovat všichni - a to se objeví automaticky i ve startovce. Pokud není potřeba obraceneho pořadí ignoruj tento udaj a list "obrac" ignoruj taky.
B11: kategorie | C11: Žáci U10M 2017-2016
B14: SOUTĚŽNÍ VÝBOR
B15: ŘZ | C15: Ing. Stanislav Jirásek | D15: CZE
B16: TD | C16: Kamil Rybář | D16: CZE
B17: ATD | C17: Pavel Bernat | D17: CZE
B18: ZRS
B19: ZZ
B21: ROZHODČÍ STYLU
B22: A | C22: Čestmír Kožíšek st. | D22: CZE
B23: B | C23: Lukáš Doležal | D23: CZE
B24: C | C24: Michal Šváb | D24: CZE
B25: D | D25: CZE
B26: E | D26: CZE
B28: Údaje jenom pro kombinaci:
B29: délka tratě | C29: 1 | D29: km
B30: počet bodů za 1 minutu | C30: 50 | D30: body/min
B31: startovni číslo vitěze Sev. kombinace | C31: 20 | D31: například v kategorii ml.žáci poběží vítěz z číslem 41 a zanim další čisla dle pořadí tak napiš číslo "41"
B32: spol.časová vlna od: | C32: 00:59:59 | D32: pro urychlení závodu se pustí najednou závodníci od určitého času - ,,,, pokud není potreba spol. vlny napis nechej zapis 59:59 nebo napis vetší čas než je start posledniho závodníka
B33: nazev závodu pro kombinaci: | C33: Český pohár žactva v severské kombinaci
B34: evid. číslo závodu pro kombinaci: | C34: 2/SK
B35: JURY KOMBINACE pokud se liší od skoku přepiš
B36: ŘZ | C36: =+C15 -> Ing. Stanislav Jirásek | D36: CZE
B37: TD | C37: Pavel Bernat | D37: CZE
B38: ATD | C38: Kamil Rybář | D38: CZE
B39: ZRS | D39: 0
B40: ZZ | D40: 0

Sheet počty
B1: =SUM(C1:BO1)-85-199+2926 -> 5500 | C1: =COUNTA(C6:C65) -> 60 | D1: 60 | E1: 60 | F1: 60 | G1: 60 | H1: 60 | I1: 60 | J1: 60 | K1: 60 | L1: 60 | M1: 60 | O1: =COUNTA(A3:BK5) -> 85 | P1: =COLUMNS(A1:BP65)+ROWS(A1:BP65) -> 133 | Z1: =COUNTA(Z6:Z65) -> 60 | AA1: =COUNTA(AA6:AA65) -> 60 | AB1: =COUNTA(AB6:AB65) -> 60 | AC1: =COUNTA(AC6:AC65) -> 60 | AK1: =COUNTA(AK6:AK65) -> 60 | AL1: 60 | AM1: 60 | AN1: 60 | AO1: 60 | AP1: 60 | AQ1: 60 | AR1: 60 | AS1: 60 | AT1: 60 | AU1: 60 | AV1: 60 | AW1: 60 | AX1: 60 | AY1: 60 | AZ1: 60 | BA1: 60 | BB1: 60 | BC1: 60 | BD1: 60 | BE1: 60 | BF1: 60 | BG1: 60 | BH1: 60 | BI1: 60 | BL1: =COUNTA(BL6:BL65) -> 60 | BM1: =COUNTA(BM6:BM65) -> 60 | BN1: =COUNTA(BN6:BN65) -> 60 | BO1: =COUNTA(BO6:BO65) -> 60
A2: a | B2: a | C2: a | J2: a | L2: a | N2: a | O2: a | P2: a | Q2: a | R2: a | S2: a | T2: a | U2: a | V2: a | W2: a | X2: a | Y2: a | AC2: a | AE2: a | AF2: a | AG2: a | AH2: a | AI2: a | AJ2: a | AN2: a | BG2: a | BH2: a | BJ2: a | BK2: a
B3: mimo soutěž | C3: komb. poř. | D3: komb. poř. | E3: st.č.běh | G3: skok kombinace | I3: rankStč | J3: 1.skok poř. | K3: 1.skok | L3: skok poř. | M3: skok obě kola | N3: CHYBOVÉ HLÁŠENÍ -dej příkaz ZPĚT pří zčernání buněk | T3: 1.kolo 1.kolo 1.kolo 1.kolo | AE3: 2.kolo 2.kolo 2.kolo 2.kolo | AO3: obě kola | AR3: do 2.kola jen tito | AT3: skok do kombinace | AW3: běh do kombinace | BA3: nepouzivane | BB3: kombinace - skok jednotlivě | BG3: st.číslo na běh | BH3: =+hlavicka!C32 -> 00:59:59 | BI3: =DCOUNTA(BK5:BK65,1,CUP!M15:M16)+DCOUNTA(BK5:BK65,1,CUP!M21:M22) -> 0 | BJ3: **** CHYBNĚ NAPSANÝ ČAS **** dej ZPĚT a napiš čas znova | BL3: pořadí bez mimo | BM3: body jen legal | BN3: pořadí bez času cíl mimo | BO3: časy cíl jen legal | BP3: prezentace závodníků bude teď jenom tady
B5: mimo | C5: komb | D5: komb-st.č. | E5: Brank | F5: Bčíslo | G5: sk | H5: sk-st.č. | I5: rankStč | J5: 1.k. xxxxxxx | K5: 1.k.-st.č. | L5: obě k. | M5: obě k.-st.č. | N5: st.č.skok xxxxxx | O5: jméno | P5: klub | Q5: stát | R5: nar. | S5: komb | T5: délka | U5: A | V5: B | W5: C | X5: D | Y5: E | Z5: b.m | AA5: b.s | AB5: c 1 | AC5: 1.skok-poř. | AD5: náj.r. | AE5: délka | AF5: A | AG5: B | AH5: C | AI5: D | AJ5: E | AK5: b.m | AL5: b.s | AM5: c 2 | AN5: 2.skok-pořadí | AO5: body | AP5: poř.celk xxxxxxxxxxxx | AQ5: pomoc2.kolo | AR5: ano 2.kolo | AS5: pomoc poř. 2.kolo | AT5: SKbody | AU5: SKpoř. | AV5: SKztráta | AW5: čas cíl | AX5: čistý čas | AY5: poř.běh | AZ5: SK celk | BA5: VT body | BB5: 1skok b. | BC5: 1skok poř | BD5: 2skok b. | BE5: pomoc 2.kolo | BF5: 2skok poř | BG5: st.č.beh xxxxxxxxx | BH5: start s vlnou | BI5: dopočet | BJ5: naměř.čas cíl | BK5: kotrola psaní časů | BL5: skokMIM | BM5: skokMIM | BN5: SKmimo | BO5: SKmimo | BP5: Start. číslo | BQ5: Jméno | BR5: Příjmení | BS5: Klub | BT5: Gender | BU5: Ročník | BV5: Stát | BW5: Kod závodníka | BX5: FIS kód
A6: =+A5+1 -> 1 | C6: =IF(D6="x","x",RANK(D6,$D$6:$D$65,1)) -> 2 | D6: =IF(AZ6="x","x",AZ6-N6/1000) -> 1.987 | E6: =IF(F6="x","x",RANK(F6,$F$6:$F$65,1)) -> 2 | F6: =IF(BG6="","x",BG6) -> 21 | G6: =IF(H6="x","x",RANK(H6,$H$6:$H$65,1)) -> 2 | H6: =IF(AU6="x","x",AU6-N6/1000) -> 0.987 | I6: =IF(N6="","x",RANK(N6,$N$6:$N$65,1)) -> 1 | J6: =IF(K6="x","x",RANK(K6,$K$6:$K$163,1)) -> 2 | K6: =IF(AC6="x","x",AC6-N6/1000) -> 0.987 | L6: =IF(M6="x","x",RANK(M6,$M$6:$M$163,1)) -> 1 | M6: =IF(AP6="x","x",AP6-N6/1000) -> 0.987 | N6: =IF(BP6="","",BP6) -> 13 | O6: =CONCATENATE(BR6," ",BQ6) -> Zapadlová Sára | P6: =+BS6 -> Lyžařský sportovní klub Lomnice nad Popelkou | Q6: =+BV6 -> CZE | R6: =+BU6 -> 2016 | S6: x | T6: 11.5 | U6: 15 | V6: 15 | W6: 14.5 | X6: 1 | Y6: 20 | Z6: =60-hlavicka!$C$7*(+hlavicka!$C$6-T6) -> 51 | AA6: =SUM(U6:Y6)-MAX(U6:Y6)-MIN(U6:Y6) -> 44.5 | AB6: =+Z6+AA6 -> 95.5 | AC6: =IF(T6="","x",RANK(AB6,$AB$6:$AB$163,0)) -> 1 | AE6: 11.5 | AF6: 15 | AG6: 15 | AH6: 14.5 | AI6: 1 | AJ6: 20 | AK6: =IF(AE6="","0",60-hlavicka!$C$7*(+hlavicka!$C$6-AE6)) -> 51 | AL6: =SUM(AF6:AJ6)-MAX(AF6:AJ6)-MIN(AF6:AJ6) -> 44.5 | AM6: =+AK6+AL6 -> 95.5 | AN6: =IF(AQ6="x","x",RANK(AQ6,$AQ$6:$AQ$65,0)) -> 1 | AO6: =+AB6+AM6 -> 191 | AP6: =IF(T6="","x",IF(B6="m",RANK(AO6,$AO$6:$AO$163,0)+1000,RANK(AO6,$AO$6:$AO$163,0))) -> 1 | AQ6: =IF(AE6="","x",60-hlavicka!$C$7*(+hlavicka!$C$6-AE6)+AL6) -> 95.5 | AR6: =IF(AC6<=hlavicka!$C$10,"ano","") -> ano | AS6: =IF(AR6="ano",J6,"") -> 2 | AT6: =IF(T6="","x",IF(S6="x",AB6,"x")) -> 95.5 | AU6: =IF(AT6="x","x",RANK(AT6,$AT$6:$AT$65)) -> 1 | AV6: =IF(AT6="x","x",(MAX($AT$6:$AT$65)-AT6)/hlavicka!$C$30/60/24) -> 00:00:00 | AW6: =IF(BJ6="","x",BJ6+BI6) -> 00:05:47.200 | AX6: =IF(AW6="x","x",AW6-AV6) -> 00:05:47.200 | AY6: =IF(AX6="x","x",RANK(AX6,$AX$6:$AX$65,1)) -> 2 | AZ6: =IF(AW6="x","x",IF(B6="m",RANK(AW6,$AW$6:$AW$65,1)+1000,RANK(AW6,$AW$6:$AW$65,1))) -> 2 | BA6: =IF(AZ6="x","x",(-MAX($AT$6:$AT$65)+AT6+240)+220-hlavicka!$C$30*(-MIN($AX$6:$AX$65)+AX6)*60*24) -> 431.5 | BB6: =IF(AT6="x","x",AB6) -> 95.5 | BC6: =IF(BB6="x","x",RANK(BB6,$BB$6:$BB$65)) -> 1 | BD6: =IF(AT6="x","x",AM6) -> 95.5 | BE6: =IF(AT6="x","x",AQ6) -> 95.5 | BF6: =IF(BE6="x","x",RANK(BE6,$BE$6:$BE$65)) -> 1 | BG6: =IF(G6="x","x",(+hlavicka!$C$31+G6-1)) -> 21 | BH6: =IF(AV6="x","x",IF(AV6>=hlavicka!$C$32,hlavicka!$C$32,AV6)) -> 00:00:00 | BI6: =IF(AU6="x","x",AV6-BH6) -> 00:00:00 | BJ6: 00:05:47.200 | BK6: =IF((BG6="x")+(BJ6<>"")=2,"nestartuje - nepiš žádný čas",IF((BH6>BJ6)+(BJ6<>"")=2,"menší čas cíl než čas startu",IF(BJ6<>"","OK",""))) -> OK | BL6: =IF(BM6="x","x",RANK(BM6,$BM$6:$BM$65,0)) -> 1 | BM6: =IF(AP6="x","x",IF(B6="m","x",AO6)) -> 191 | BN6: =IF(BO6="x","x",RANK(BO6,$BO$6:$BO$65,1)) -> 2 | BO6: =IF(B6="m","x",AW6) -> 00:05:47.200 | BP6: 13 | BQ6: Sára | BR6: Zapadlová | BS6: Lyžařský sportovní klub Lomnice nad Popelkou | BT6: WOMEN | BU6: 2016 | BV6: CZE | BW6: 890332
A7: 2 | C7: 1 | D7: 0.978 | E7: 1 | F7: 20 | G7: 1 | H7: 0.978 | I7: 2 | J7: 1 | K7: 0.978 | L7: 5 | M7: 4.978 | N7: =IF(BP7="","",BP7) -> 22 | O7: =CONCATENATE(BR7," ",BQ7) -> Sankot Antonín | P7: =+BS7 -> Lyžařský sportovní klub Lomnice nad Popelkou | Q7: =+BV7 -> CZE | R7: =+BU7 -> 2017 | S7: x | T7: 12 | U7: 14.5 | V7: 14 | W7: 13 | X7: 1 | Y7: 20 | Z7: =60-hlavicka!$C$7*(+hlavicka!$C$6-T7) -> 54 | AA7: =SUM(U7:Y7)-MAX(U7:Y7)-MIN(U7:Y7) -> 41.5 | AB7: 95.5 | AC7: 1 | AE7: 12.5 | AF7: 8 | AG7: 8 | AH7: 8 | AI7: 1 | AJ7: 20 | AK7: =IF(AE7="","0",60-hlavicka!$C$7*(+hlavicka!$C$6-AE7)) -> 57 | AL7: 24 | AM7: 81 | AN7: 5 | AO7: 176.5 | AP7: 5 | AQ7: =IF(AE7="","x",60-hlavicka!$C$7*(+hlavicka!$C$6-AE7)+AL7) -> 81 | AR7: =IF(AC7<=hlavicka!$C$10,"ano","") -> ano | AS7: 1 | AT7: =IF(T7="","x",IF(S7="x",AB7,"x")) -> 95.5 | AU7: 1 | AV7: =IF(AT7="x","x",(MAX($AT$6:$AT$65)-AT7)/hlavicka!$C$30/60/24) -> 00:00:00 | AW7: 00:05:13 | AX7: 00:05:13 | AY7: 1 | AZ7: 1 | BA7: =IF(AZ7="x","x",(-MAX($AT$6:$AT$65)+AT7+240)+220-hlavicka!$C$30*(-MIN($AX$6:$AX$65)+AX7)*60*24) -> 460 | BB7: 95.5 | BC7: 1 | BD7: 81 | BE7: 81 | BF7: 5 | BG7: =IF(G7="x","x",(+hlavicka!$C$31+G7-1)) -> 20 | BH7: =IF(AV7="x","x",IF(AV7>=hlavicka!$C$32,hlavicka!$C$32,AV7)) -> 00:00:00 | BI7: 00:00:00 | BJ7: 00:05:13 | BK7: OK | BL7: 5 | BM7: 176.5 | BN7: 1 | BO7: 00:05:13 | BP7: 22 | BQ7: Antonín | BR7: Sankot | BS7: Lyžařský sportovní klub Lomnice nad Popelkou | BT7: MEN | BU7: 2017 | BV7: CZE | BW7: 777372
A8: 3 | C8: 3 | D8: 2.977 | E8: 5 | F8: 24 | G8: 5 | H8: 4.977 | I8: 3 | J8: 5 | K8: 4.977 | L8: 4 | M8: 3.977 | N8: 23 | O8: Břečka Matyáš | P8: Lyžařský sportovní klub Lomnice nad Popelkou | Q8: CZE | R8: 2014 | S8: x | T8: 11 | U8: 14.5 | V8: 14 | W8: 13 | X8: 1 | Y8: 20 | Z8: =60-hlavicka!$C$7*(+hlavicka!$C$6-T8) -> 48 | AA8: =SUM(U8:Y8)-MAX(U8:Y8)-MIN(U8:Y8) -> 41.5 | AB8: 89.5 | AC8: 5 | AE8: 11.5 | AF8: 13 | AG8: 13 | AH8: 12.5 | AI8: 1 | AJ8: 20 | AK8: =IF(AE8="","0",60-hlavicka!$C$7*(+hlavicka!$C$6-AE8)) -> 51 | AL8: 38.5 | AM8: 89.5 | AN8: 4 | AO8: 179 | AP8: 4 | AQ8: =IF(AE8="","x",60-hlavicka!$C$7*(+hlavicka!$C$6-AE8)+AL8) -> 89.5 | AR8: =IF(AC8<=hlavicka!$C$10,"ano","") -> ano | AS8: 5 | AT8: 89.5 | AU8: 5 | AV8: =IF(AT8="x","x",(MAX($AT$6:$AT$65)-AT8)/hlavicka!$C$30/60/24) -> 00:00:07.200 | AW8: 00:06:14.200 | AX8: 00:06:07 | AY8: 3 | AZ8: 3 | BA8: =IF(AZ8="x","x",(-MAX($AT$6:$AT$65)+AT8+240)+220-hlavicka!$C$30*(-MIN($AX$6:$AX$65)+AX8)*60*24) -> 409 | BB8: 89.5 | BC8: 5 | BD8: 89.5 | BE8: 89.5 | BF8: 4 | BG8: =IF(G8="x","x",(+hlavicka!$C$31+G8-1)) -> 24 | BH8: =IF(AV8="x","x",IF(AV8>=hlavicka!$C$32,hlavicka!$C$32,AV8)) -> 00:00:07.200 | BI8: 00:00:00 | BJ8: 00:06:14.200 | BK8: OK | BL8: 4 | BM8: 179 | BN8: 3 | BO8: 00:06:14.200 | BP8: 23 | BQ8: Matyáš | BR8: Břečka | BS8: Lyžařský sportovní klub Lomnice nad Popelkou | BT8: MEN | BU8: 2014 | BV8: CZE | BW8: 774426
A9: 4 | C9: 4 | D9: 3.976 | E9: 3 | F9: 22 | G9: 3 | H9: 2.976 | I9: 4 | J9: 3 | K9: 2.976 | L9: 2 | M9: 1.976 | N9: 24 | O9: Huráňová Karolína | P9: Lyžařský sportovní klub Lomnice nad Popelkou | Q9: CZE | R9: 2015 | S9: x | T9: 11.5 | U9: 14.5 | V9: 15 | W9: 13.5 | X9: 1 | Y9: 20 | Z9: =60-hlavicka!$C$7*(+hlavicka!$C$6-T9) -> 51 | AA9: =SUM(U9:Y9)-MAX(U9:Y9)-MIN(U9:Y9) -> 43 | AB9: 94 | AC9: 3 | AE9: 11.5 | AF9: 14.5 | AG9: 15 | AH9: 13.5 | AI9: 1 | AJ9: 20 | AK9: =IF(AE9="","0",60-hlavicka!$C$7*(+hlavicka!$C$6-AE9)) -> 51 | AL9: 43 | AM9: 94 | AN9: 2 | AO9: 188 | AP9: 2 | AQ9: =IF(AE9="","x",60-hlavicka!$C$7*(+hlavicka!$C$6-AE9)+AL9) -> 94 | AR9: =IF(AC9<=hlavicka!$C$10,"ano","") -> ano | AS9: 3 | AT9: 94 | AU9: 3 | AV9: =IF(AT9="x","x",(MAX($AT$6:$AT$65)-AT9)/hlavicka!$C$30/60/24) -> 00:00:01.800 | AW9: 00:06:32.800 | AX9: 00:06:31 | AY9: 4 | AZ9: 4 | BA9: =IF(AZ9="x","x",(-MAX($AT$6:$AT$65)+AT9+240)+220-hlavicka!$C$30*(-MIN($AX$6:$AX$65)+AX9)*60*24) -> 393.5 | BB9: 94 | BC9: 3 | BD9: 94 | BE9: 94 | BF9: 2 | BG9: =IF(G9="x","x",(+hlavicka!$C$31+G9-1)) -> 22 | BH9: =IF(AV9="x","x",IF(AV9>=hlavicka!$C$32,hlavicka!$C$32,AV9)) -> 00:00:01.800 | BI9: 00:00:00 | BJ9: 00:06:32.800 | BK9: OK | BL9: 2 | BM9: 188 | BN9: 4 | BO9: 00:06:32.800 | BP9: 24 | BQ9: Karolína | BR9: Huráňová | BS9: Lyžařský sportovní klub Lomnice nad Popelkou | BT9: WOMEN | BU9: 2015 | BV9: CZE | BW9: 889929
A10: 5 | C10: 5 | D10: 4.975 | E10: 4 | F10: 23 | G10: 4 | H10: 3.975 | I10: 5 | J10: 4 | K10: 3.975 | L10: 3 | M10: 2.975 | N10: 25 | O10: Ježek Jakub | P10: Lyžařský sportovní klub Lomnice nad Popelkou | Q10: CZE | R10: 2015 | S10: x | T10: 11 | U10: 14.5 | V10: 14.5 | W10: 13 | X10: 1 | Y10: 20 | Z10: =60-hlavicka!$C$7*(+hlavicka!$C$6-T10) -> 48 | AA10: =SUM(U10:Y10)-MAX(U10:Y10)-MIN(U10:Y10) -> 42 | AB10: 90 | AC10: 4 | AE10: 11 | AF10: 14.5 | AG10: 14 | AH10: 14.5 | AI10: 1 | AJ10: 20 | AK10: =IF(AE10="","0",60-hlavicka!$C$7*(+hlavicka!$C$6-AE10)) -> 48 | AL10: 43 | AM10: 91 | AN10: 3 | AO10: 181 | AP10: 3 | AQ10: =IF(AE10="","x",60-hlavicka!$C$7*(+hlavicka!$C$6-AE10)+AL10) -> 91 | AR10: =IF(AC10<=hlavicka!$C$10,"ano","") -> ano | AS10: 4 | AT10: 90 | AU10: 4 | AV10: =IF(AT10="x","x",(MAX($AT$6:$AT$65)-AT10)/hlavicka!$C$30/60/24) -> 00:00:06.600 | AW10: 00:06:56.300 | AX10: 00:06:49.700 | AY10: 5 | AZ10: 5 | BA10: =IF(AZ10="x","x",(-MAX($AT$6:$AT$65)+AT10+240)+220-hlavicka!$C$30*(-MIN($AX$6:$AX$65)+AX10)*60*24) -> 373.9 | BB10: 90 | BC10: 4 | BD10: 91 | BE10: 91 | BF10: 3 | BG10: =IF(G10="x","x",(+hlavicka!$C$31+G10-1)) -> 23 | BH10: =IF(AV10="x","x",IF(AV10>=hlavicka!$C$32,hlavicka!$C$32,AV10)) -> 00:00:06.600 | BI10: 00:00:00 | BJ10: 00:06:56.300 | BK10: OK | BL10: 3 | BM10: 181 | BN10: 5 | BO10: 00:06:56.300 | BP10: 25 | BQ10: Jakub | BR10: Ježek | BS10: Lyžařský sportovní klub Lomnice nad Popelkou | BT10: MEN | BU10: 2015 | BV10: CZE | BW10: 774424
A11: 6 | C11: x | D11: x | E11: x | F11: x | G11: x | H11: x | I11: x | J11: x | K11: x | L11: x | M11: x | P11: 0 | Q11: 0 | R11: 0 | Z11: =60-hlavicka!$C$7*(+hlavicka!$C$6-T11) -> -18 | AA11: =SUM(U11:Y11)-MAX(U11:Y11)-MIN(U11:Y11) -> 0 | AB11: -18 | AC11: x | AK11: =IF(AE11="","0",60-hlavicka!$C$7*(+hlavicka!$C$6-AE11)) -> 0 | AL11: 0 | AM11: 0 | AN11: x | AO11: -18 | AP11: x | AQ11: =IF(AE11="","x",60-hlavicka!$C$7*(+hlavicka!$C$6-AE11)+AL11) -> x | AR11: =IF(AC11<=hlavicka!$C$10,"ano","") ->  | AT11: x | AU11: x | AV11: =IF(AT11="x","x",(MAX($AT$6:$AT$65)-AT11)/hlavicka!$C$30/60/24) -> x | AW11: x | AX11: x | AY11: x | AZ11: x | BA11: =IF(AZ11="x","x",(-MAX($AT$6:$AT$65)+AT11+240)+220-hlavicka!$C$30*(-MIN($AX$6:$AX$65)+AX11)*60*24) -> x | BB11: x | BC11: x | BD11: x | BE11: x | BF11: x | BG11: =IF(G11="x","x",(+hlavicka!$C$31+G11-1)) -> x | BH11: =IF(AV11="x","x",IF(AV11>=hlavicka!$C$32,hlavicka!$C$32,AV11)) -> x | BI11: x | BL11: x | BM11: x | BN11: x | BO11: x
A12: =+A11+1 -> 7 | C12: x | D12: x | E12: x | F12: x | G12: x | H12: x | I12: x | J12: x | K12: x | L12: x | M12: x | P12: 0 | Q12: 0 | R12: 0 | Z12: =60-hlavicka!$C$7*(+hlavicka!$C$6-T12) -> -18 | AA12: 0 | AB12: -18 | AC12: x | AK12: =IF(AE12="","0",60-hlavicka!$C$7*(+hlavicka!$C$6-AE12)) -> 0 | AL12: 0 | AM12: 0 | AN12: x | AO12: -18 | AP12: x | AQ12: =IF(AE12="","x",60-hlavicka!$C$7*(+hlavicka!$C$6-AE12)+AL12) -> x | AR12: =IF(AC12<=hlavicka!$C$10,"ano","") ->  | AT12: x | AU12: x | AV12: =IF(AT12="x","x",(MAX($AT$6:$AT$65)-AT12)/hlavicka!$C$30/60/24) -> x | AW12: x | AX12: x | AY12: x | AZ12: x | BA12: =IF(AZ12="x","x",(-MAX($AT$6:$AT$65)+AT12+240)+220-hlavicka!$C$30*(-MIN($AX$6:$AX$65)+AX12)*60*24) -> x | BB12: x | BC12: x | BD12: x | BE12: x | BF12: x | BG12: =IF(G12="x","x",(+hlavicka!$C$31+G12-1)) -> x | BH12: =IF(AV12="x","x",IF(AV12>=hlavicka!$C$32,hlavicka!$C$32,AV12)) -> x | BI12: x | BL12: x | BM12: x | BN12: x | BO12: x
A13: 8 | C13: x | D13: x | E13: x | F13: x | G13: x | H13: x | I13: x | J13: x | K13: x | L13: x | M13: x | P13: 0 | Q13: 0 | R13: 0 | Z13: =60-hlavicka!$C$7*(+hlavicka!$C$6-T13) -> -18 | AA13: 0 | AB13: -18 | AC13: x | AK13: =IF(AE13="","0",60-hlavicka!$C$7*(+hlavicka!$C$6-AE13)) -> 0 | AL13: 0 | AM13: 0 | AN13: x | AO13: -18 | AP13: x | AQ13: =IF(AE13="","x",60-hlavicka!$C$7*(+hlavicka!$C$6-AE13)+AL13) -> x | AR13: =IF(AC13<=hlavicka!$C$10,"ano","") ->  | AT13: x | AU13: x | AV13: =IF(AT13="x","x",(MAX($AT$6:$AT$65)-AT13)/hlavicka!$C$30/60/24) -> x | AW13: x | AX13: x | AY13: x | AZ13: x | BA13: =IF(AZ13="x","x",(-MAX($AT$6:$AT$65)+AT13+240)+220-hlavicka!$C$30*(-MIN($AX$6:$AX$65)+AX13)*60*24) -> x | BB13: x | BC13: x | BD13: x | BE13: x | BF13: x | BG13: =IF(G13="x","x",(+hlavicka!$C$31+G13-1)) -> x | BH13: =IF(AV13="x","x",IF(AV13>=hlavicka!$C$32,hlavicka!$C$32,AV13)) -> x | BI13: x | BL13: x | BM13: x | BN13: x | BO13: x
A14: 9 | C14: x | D14: x | E14: x | F14: x | G14: x | H14: x | I14: x | J14: x | K14: x | L14: x | M14: x | P14: 0 | Q14: 0 | R14: 0 | Z14: =60-hlavicka!$C$7*(+hlavicka!$C$6-T14) -> -18 | AA14: 0 | AB14: -18 | AC14: x | AK14: =IF(AE14="","0",60-hlavicka!$C$7*(+hlavicka!$C$6-AE14)) -> 0 | AL14: 0 | AM14: 0 | AN14: x | AO14: -18 | AP14: x | AQ14: =IF(AE14="","x",60-hlavicka!$C$7*(+hlavicka!$C$6-AE14)+AL14) -> x | AR14: =IF(AC14<=hlavicka!$C$10,"ano","") ->  | AT14: x | AU14: x | AV14: =IF(AT14="x","x",(MAX($AT$6:$AT$65)-AT14)/hlavicka!$C$30/60/24) -> x | AW14: x | AX14: x | AY14: x | AZ14: x | BA14: =IF(AZ14="x","x",(-MAX($AT$6:$AT$65)+AT14+240)+220-hlavicka!$C$30*(-MIN($AX$6:$AX$65)+AX14)*60*24) -> x | BB14: x | BC14: x | BD14: x | BE14: x | BF14: x | BG14: =IF(G14="x","x",(+hlavicka!$C$31+G14-1)) -> x | BH14: =IF(AV14="x","x",IF(AV14>=hlavicka!$C$32,hlavicka!$C$32,AV14)) -> x | BI14: x | BL14: x | BM14: x | BN14: x | BO14: x
A15: 10 | C15: x | D15: x | E15: x | F15: x | G15: x | H15: x | I15: x | J15: x | K15: x | L15: x | M15: x | P15: 0 | Q15: 0 | R15: 0 | Z15: =60-hlavicka!$C$7*(+hlavicka!$C$6-T15) -> -18 | AA15: 0 | AB15: -18 | AC15: x | AK15: =IF(AE15="","0",60-hlavicka!$C$7*(+hlavicka!$C$6-AE15)) -> 0 | AL15: 0 | AM15: 0 | AN15: x | AO15: -18 | AP15: x | AQ15: =IF(AE15="","x",60-hlavicka!$C$7*(+hlavicka!$C$6-AE15)+AL15) -> x | AR15: =IF(AC15<=hlavicka!$C$10,"ano","") ->  | AT15: x | AU15: x | AV15: =IF(AT15="x","x",(MAX($AT$6:$AT$65)-AT15)/hlavicka!$C$30/60/24) -> x | AW15: x | AX15: x | AY15: x | AZ15: x | BA15: =IF(AZ15="x","x",(-MAX($AT$6:$AT$65)+AT15+240)+220-hlavicka!$C$30*(-MIN($AX$6:$AX$65)+AX15)*60*24) -> x | BB15: x | BC15: x | BD15: x | BE15: x | BF15: x | BG15: =IF(G15="x","x",(+hlavicka!$C$31+G15-1)) -> x | BH15: =IF(AV15="x","x",IF(AV15>=hlavicka!$C$32,hlavicka!$C$32,AV15)) -> x | BI15: x | BL15: x | BM15: x | BN15: x | BO15: x
A16: 11 | C16: x | D16: x | E16: x | F16: x | G16: x | H16: x | I16: x | J16: x | K16: x | L16: x | M16: x | P16: 0 | Q16: 0 | R16: 0 | Z16: =60-hlavicka!$C$7*(+hlavicka!$C$6-T16) -> -18 | AA16: 0 | AB16: -18 | AC16: x | AK16: =IF(AE16="","0",60-hlavicka!$C$7*(+hlavicka!$C$6-AE16)) -> 0 | AL16: 0 | AM16: 0 | AN16: x | AO16: -18 | AP16: x | AQ16: =IF(AE16="","x",60-hlavicka!$C$7*(+hlavicka!$C$6-AE16)+AL16) -> x | AR16: =IF(AC16<=hlavicka!$C$10,"ano","") ->  | AT16: x | AU16: x | AV16: =IF(AT16="x","x",(MAX($AT$6:$AT$65)-AT16)/hlavicka!$C$30/60/24) -> x | AW16: x | AX16: x | AY16: x | AZ16: x | BA16: =IF(AZ16="x","x",(-MAX($AT$6:$AT$65)+AT16+240)+220-hlavicka!$C$30*(-MIN($AX$6:$AX$65)+AX16)*60*24) -> x | BB16: x | BC16: x | BD16: x | BE16: x | BF16: x | BG16: =IF(G16="x","x",(+hlavicka!$C$31+G16-1)) -> x | BH16: =IF(AV16="x","x",IF(AV16>=hlavicka!$C$32,hlavicka!$C$32,AV16)) -> x | BI16: x | BL16: x | BM16: x | BN16: x | BO16: x
A17: 12 | C17: x | D17: x | E17: x | F17: x | G17: x | H17: x | I17: x | J17: x | K17: x | L17: x | M17: x | P17: 0 | Q17: 0 | R17: 0 | Z17: =60-hlavicka!$C$7*(+hlavicka!$C$6-T17) -> -18 | AA17: 0 | AB17: -18 | AC17: x | AK17: =IF(AE17="","0",60-hlavicka!$C$7*(+hlavicka!$C$6-AE17)) -> 0 | AL17: 0 | AM17: 0 | AN17: x | AO17: -18 | AP17: x | AQ17: =IF(AE17="","x",60-hlavicka!$C$7*(+hlavicka!$C$6-AE17)+AL17) -> x | AR17: =IF(AC17<=hlavicka!$C$10,"ano","") ->  | AT17: x | AU17: x | AV17: =IF(AT17="x","x",(MAX($AT$6:$AT$65)-AT17)/hlavicka!$C$30/60/24) -> x | AW17: x | AX17: x | AY17: x | AZ17: x | BA17: =IF(AZ17="x","x",(-MAX($AT$6:$AT$65)+AT17+240)+220-hlavicka!$C$30*(-MIN($AX$6:$AX$65)+AX17)*60*24) -> x | BB17: x | BC17: x | BD17: x | BE17: x | BF17: x | BG17: =IF(G17="x","x",(+hlavicka!$C$31+G17-1)) -> x | BH17: =IF(AV17="x","x",IF(AV17>=hlavicka!$C$32,hlavicka!$C$32,AV17)) -> x | BI17: x | BL17: x | BM17: x | BN17: x | BO17: x
A18: 13 | C18: x | D18: x | E18: x | F18: x | G18: x | H18: x | I18: x | J18: x | K18: x | L18: x | M18: x | P18: 0 | Q18: 0 | R18: 0 | Z18: =60-hlavicka!$C$7*(+hlavicka!$C$6-T18) -> -18 | AA18: 0 | AB18: -18 | AC18: x | AK18: =IF(AE18="","0",60-hlavicka!$C$7*(+hlavicka!$C$6-AE18)) -> 0 | AL18: 0 | AM18: 0 | AN18: x | AO18: -18 | AP18: x | AQ18: =IF(AE18="","x",60-hlavicka!$C$7*(+hlavicka!$C$6-AE18)+AL18) -> x | AR18: =IF(AC18<=hlavicka!$C$10,"ano","") ->  | AT18: x | AU18: x | AV18: =IF(AT18="x","x",(MAX($AT$6:$AT$65)-AT18)/hlavicka!$C$30/60/24) -> x | AW18: x | AX18: x | AY18: x | AZ18: x | BA18: =IF(AZ18="x","x",(-MAX($AT$6:$AT$65)+AT18+240)+220-hlavicka!$C$30*(-MIN($AX$6:$AX$65)+AX18)*60*24) -> x | BB18: x | BC18: x | BD18: x | BE18: x | BF18: x | BG18: =IF(G18="x","x",(+hlavicka!$C$31+G18-1)) -> x | BH18: =IF(AV18="x","x",IF(AV18>=hlavicka!$C$32,hlavicka!$C$32,AV18)) -> x | BI18: x | BL18: x | BM18: x | BN18: x | BO18: x
A19: 14 | C19: x | D19: x | E19: x | F19: x | G19: x | H19: x | I19: x | J19: x | K19: x | L19: x | M19: x | P19: 0 | Q19: 0 | R19: 0 | Z19: =60-hlavicka!$C$7*(+hlavicka!$C$6-T19) -> -18 | AA19: 0 | AB19: -18 | AC19: x | AK19: =IF(AE19="","0",60-hlavicka!$C$7*(+hlavicka!$C$6-AE19)) -> 0 | AL19: 0 | AM19: 0 | AN19: x | AO19: -18 | AP19: x | AQ19: =IF(AE19="","x",60-hlavicka!$C$7*(+hlavicka!$C$6-AE19)+AL19) -> x | AR19: =IF(AC19<=hlavicka!$C$10,"ano","") ->  | AT19: x | AU19: x | AV19: =IF(AT19="x","x",(MAX($AT$6:$AT$65)-AT19)/hlavicka!$C$30/60/24) -> x | AW19: x | AX19: x | AY19: x | AZ19: x | BA19: =IF(AZ19="x","x",(-MAX($AT$6:$AT$65)+AT19+240)+220-hlavicka!$C$30*(-MIN($AX$6:$AX$65)+AX19)*60*24) -> x | BB19: x | BC19: x | BD19: x | BE19: x | BF19: x | BG19: =IF(G19="x","x",(+hlavicka!$C$31+G19-1)) -> x | BH19: =IF(AV19="x","x",IF(AV19>=hlavicka!$C$32,hlavicka!$C$32,AV19)) -> x | BI19: x | BL19: x | BM19: x | BN19: x | BO19: x
A20: 15 | C20: x | D20: x | E20: x | F20: x | G20: x | H20: x | I20: x | J20: x | K20: x | L20: x | M20: x | P20: 0 | Q20: 0 | R20: 0 | Z20: =60-hlavicka!$C$7*(+hlavicka!$C$6-T20) -> -18 | AA20: 0 | AB20: -18 | AC20: x | AK20: =IF(AE20="","0",60-hlavicka!$C$7*(+hlavicka!$C$6-AE20)) -> 0 | AL20: 0 | AM20: 0 | AN20: x | AO20: -18 | AP20: x | AQ20: =IF(AE20="","x",60-hlavicka!$C$7*(+hlavicka!$C$6-AE20)+AL20) -> x | AR20: =IF(AC20<=hlavicka!$C$10,"ano","") ->  | AT20: x | AU20: x | AV20: =IF(AT20="x","x",(MAX($AT$6:$AT$65)-AT20)/hlavicka!$C$30/60/24) -> x | AW20: x | AX20: x | AY20: x | AZ20: x | BA20: =IF(AZ20="x","x",(-MAX($AT$6:$AT$65)+AT20+240)+220-hlavicka!$C$30*(-MIN($AX$6:$AX$65)+AX20)*60*24) -> x | BB20: x | BC20: x | BD20: x | BE20: x | BF20: x | BG20: =IF(G20="x","x",(+hlavicka!$C$31+G20-1)) -> x | BH20: =IF(AV20="x","x",IF(AV20>=hlavicka!$C$32,hlavicka!$C$32,AV20)) -> x | BI20: x | BL20: x | BM20: x | BN20: x | BO20: x
A21: 16 | C21: x | D21: x | E21: x | F21: x | G21: x | H21: x | I21: x | J21: x | K21: x | L21: x | M21: x | P21: 0 | Q21: 0 | R21: 0 | Z21: =60-hlavicka!$C$7*(+hlavicka!$C$6-T21) -> -18 | AA21: 0 | AB21: -18 | AC21: x | AK21: =IF(AE21="","0",60-hlavicka!$C$7*(+hlavicka!$C$6-AE21)) -> 0 | AL21: 0 | AM21: 0 | AN21: x | AO21: -18 | AP21: x | AQ21: =IF(AE21="","x",60-hlavicka!$C$7*(+hlavicka!$C$6-AE21)+AL21) -> x | AR21: =IF(AC21<=hlavicka!$C$10,"ano","") ->  | AT21: x | AU21: x | AV21: =IF(AT21="x","x",(MAX($AT$6:$AT$65)-AT21)/hlavicka!$C$30/60/24) -> x | AW21: x | AX21: x | AY21: x | AZ21: x | BA21: =IF(AZ21="x","x",(-MAX($AT$6:$AT$65)+AT21+240)+220-hlavicka!$C$30*(-MIN($AX$6:$AX$65)+AX21)*60*24) -> x | BB21: x | BC21: x | BD21: x | BE21: x | BF21: x | BG21: =IF(G21="x","x",(+hlavicka!$C$31+G21-1)) -> x | BH21: =IF(AV21="x","x",IF(AV21>=hlavicka!$C$32,hlavicka!$C$32,AV21)) -> x | BI21: x | BL21: x | BM21: x | BN21: x | BO21: x
A22: 17 | C22: x | D22: x | E22: x | F22: x | G22: x | H22: x | I22: x | J22: x | K22: x | L22: x | M22: x | P22: 0 | Q22: 0 | R22: 0 | Z22: =60-hlavicka!$C$7*(+hlavicka!$C$6-T22) -> -18 | AA22: 0 | AB22: -18 | AC22: x | AK22: =IF(AE22="","0",60-hlavicka!$C$7*(+hlavicka!$C$6-AE22)) -> 0 | AL22: 0 | AM22: 0 | AN22: x | AO22: -18 | AP22: x | AQ22: =IF(AE22="","x",60-hlavicka!$C$7*(+hlavicka!$C$6-AE22)+AL22) -> x | AR22: =IF(AC22<=hlavicka!$C$10,"ano","") ->  | AT22: x | AU22: x | AV22: =IF(AT22="x","x",(MAX($AT$6:$AT$65)-AT22)/hlavicka!$C$30/60/24) -> x | AW22: x | AX22: x | AY22: x | AZ22: x | BA22: =IF(AZ22="x","x",(-MAX($AT$6:$AT$65)+AT22+240)+220-hlavicka!$C$30*(-MIN($AX$6:$AX$65)+AX22)*60*24) -> x | BB22: x | BC22: x | BD22: x | BE22: x | BF22: x | BG22: =IF(G22="x","x",(+hlavicka!$C$31+G22-1)) -> x | BH22: =IF(AV22="x","x",IF(AV22>=hlavicka!$C$32,hlavicka!$C$32,AV22)) -> x | BI22: x | BL22: x | BM22: x | BN22: x | BO22: x
A23: 18 | C23: x | D23: x | E23: x | F23: x | G23: x | H23: x | I23: x | J23: x | K23: x | L23: x | M23: x | P23: 0 | Q23: 0 | R23: 0 | Z23: =60-hlavicka!$C$7*(+hlavicka!$C$6-T23) -> -18 | AA23: 0 | AB23: -18 | AC23: x | AK23: =IF(AE23="","0",60-hlavicka!$C$7*(+hlavicka!$C$6-AE23)) -> 0 | AL23: 0 | AM23: 0 | AN23: x | AO23: -18 | AP23: x | AQ23: =IF(AE23="","x",60-hlavicka!$C$7*(+hlavicka!$C$6-AE23)+AL23) -> x | AR23: =IF(AC23<=hlavicka!$C$10,"ano","") ->  | AT23: x | AU23: x | AV23: =IF(AT23="x","x",(MAX($AT$6:$AT$65)-AT23)/hlavicka!$C$30/60/24) -> x | AW23: x | AX23: x | AY23: x | AZ23: x | BA23: =IF(AZ23="x","x",(-MAX($AT$6:$AT$65)+AT23+240)+220-hlavicka!$C$30*(-MIN($AX$6:$AX$65)+AX23)*60*24) -> x | BB23: x | BC23: x | BD23: x | BE23: x | BF23: x | BG23: =IF(G23="x","x",(+hlavicka!$C$31+G23-1)) -> x | BH23: =IF(AV23="x","x",IF(AV23>=hlavicka!$C$32,hlavicka!$C$32,AV23)) -> x | BI23: x | BL23: x | BM23: x | BN23: x | BO23: x
A24: 19 | C24: x | D24: x | E24: x | F24: x | G24: x | H24: x | I24: x | J24: x | K24: x | L24: x | M24: x | P24: 0 | Q24: 0 | R24: 0 | Z24: =60-hlavicka!$C$7*(+hlavicka!$C$6-T24) -> -18 | AA24: 0 | AB24: -18 | AC24: x | AK24: =IF(AE24="","0",60-hlavicka!$C$7*(+hlavicka!$C$6-AE24)) -> 0 | AL24: 0 | AM24: 0 | AN24: x | AO24: -18 | AP24: x | AQ24: =IF(AE24="","x",60-hlavicka!$C$7*(+hlavicka!$C$6-AE24)+AL24) -> x | AR24: =IF(AC24<=hlavicka!$C$10,"ano","") ->  | AT24: x | AU24: x | AV24: =IF(AT24="x","x",(MAX($AT$6:$AT$65)-AT24)/hlavicka!$C$30/60/24) -> x | AW24: x | AX24: x | AY24: x | AZ24: x | BA24: =IF(AZ24="x","x",(-MAX($AT$6:$AT$65)+AT24+240)+220-hlavicka!$C$30*(-MIN($AX$6:$AX$65)+AX24)*60*24) -> x | BB24: x | BC24: x | BD24: x | BE24: x | BF24: x | BG24: =IF(G24="x","x",(+hlavicka!$C$31+G24-1)) -> x | BH24: =IF(AV24="x","x",IF(AV24>=hlavicka!$C$32,hlavicka!$C$32,AV24)) -> x | BI24: x | BL24: x | BM24: x | BN24: x | BO24: x
A25: =+A24+1 -> 20 | C25: x | D25: x | E25: x | F25: x | G25: x | H25: x | I25: x | J25: x | K25: x | L25: x | M25: x | P25: 0 | Q25: 0 | R25: 0 | Z25: =60-hlavicka!$C$7*(+hlavicka!$C$6-T25) -> -18 | AA25: 0 | AB25: -18 | AC25: x | AK25: =IF(AE25="","0",60-hlavicka!$C$7*(+hlavicka!$C$6-AE25)) -> 0 | AL25: 0 | AM25: 0 | AN25: x | AO25: -18 | AP25: x | AQ25: =IF(AE25="","x",60-hlavicka!$C$7*(+hlavicka!$C$6-AE25)+AL25) -> x | AR25: =IF(AC25<=hlavicka!$C$10,"ano","") ->  | AT25: x | AU25: x | AV25: =IF(AT25="x","x",(MAX($AT$6:$AT$65)-AT25)/hlavicka!$C$30/60/24) -> x | AW25: x | AX25: x | AY25: x | AZ25: x | BA25: =IF(AZ25="x","x",(-MAX($AT$6:$AT$65)+AT25+240)+220-hlavicka!$C$30*(-MIN($AX$6:$AX$65)+AX25)*60*24) -> x | BB25: x | BC25: x | BD25: x | BE25: x | BF25: x | BG25: =IF(G25="x","x",(+hlavicka!$C$31+G25-1)) -> x | BH25: =IF(AV25="x","x",IF(AV25>=hlavicka!$C$32,hlavicka!$C$32,AV25)) -> x | BI25: x | BL25: x | BM25: x | BN25: x | BO25: x
A26: 21 | C26: x | D26: x | E26: x | F26: x | G26: x | H26: x | I26: x | J26: x | K26: x | L26: x | M26: x | P26: 0 | Q26: 0 | R26: 0 | Z26: =60-hlavicka!$C$7*(+hlavicka!$C$6-T26) -> -18 | AA26: 0 | AB26: -18 | AC26: x | AK26: =IF(AE26="","0",60-hlavicka!$C$7*(+hlavicka!$C$6-AE26)) -> 0 | AL26: 0 | AM26: 0 | AN26: x | AO26: -18 | AP26: x | AQ26: =IF(AE26="","x",60-hlavicka!$C$7*(+hlavicka!$C$6-AE26)+AL26) -> x | AR26: =IF(AC26<=hlavicka!$C$10,"ano","") ->  | AT26: x | AU26: x | AV26: =IF(AT26="x","x",(MAX($AT$6:$AT$65)-AT26)/hlavicka!$C$30/60/24) -> x | AW26: x | AX26: x | AY26: x | AZ26: x | BA26: =IF(AZ26="x","x",(-MAX($AT$6:$AT$65)+AT26+240)+220-hlavicka!$C$30*(-MIN($AX$6:$AX$65)+AX26)*60*24) -> x | BB26: x | BC26: x | BD26: x | BE26: x | BF26: x | BG26: =IF(G26="x","x",(+hlavicka!$C$31+G26-1)) -> x | BH26: =IF(AV26="x","x",IF(AV26>=hlavicka!$C$32,hlavicka!$C$32,AV26)) -> x | BI26: x | BL26: x | BM26: x | BN26: x | BO26: x
A27: 22 | C27: x | D27: x | E27: x | F27: x | G27: x | H27: x | I27: x | J27: x | K27: x | L27: x | M27: x | P27: 0 | Q27: 0 | R27: 0 | Z27: =60-hlavicka!$C$7*(+hlavicka!$C$6-T27) -> -18 | AA27: 0 | AB27: -18 | AC27: x | AK27: =IF(AE27="","0",60-hlavicka!$C$7*(+hlavicka!$C$6-AE27)) -> 0 | AL27: 0 | AM27: 0 | AN27: x | AO27: -18 | AP27: x | AQ27: =IF(AE27="","x",60-hlavicka!$C$7*(+hlavicka!$C$6-AE27)+AL27) -> x | AR27: =IF(AC27<=hlavicka!$C$10,"ano","") ->  | AT27: x | AU27: x | AV27: =IF(AT27="x","x",(MAX($AT$6:$AT$65)-AT27)/hlavicka!$C$30/60/24) -> x | AW27: x | AX27: x | AY27: x | AZ27: x | BA27: =IF(AZ27="x","x",(-MAX($AT$6:$AT$65)+AT27+240)+220-hlavicka!$C$30*(-MIN($AX$6:$AX$65)+AX27)*60*24) -> x | BB27: x | BC27: x | BD27: x | BE27: x | BF27: x | BG27: =IF(G27="x","x",(+hlavicka!$C$31+G27-1)) -> x | BH27: =IF(AV27="x","x",IF(AV27>=hlavicka!$C$32,hlavicka!$C$32,AV27)) -> x | BI27: x | BL27: x | BM27: x | BN27: x | BO27: x
A28: 23 | C28: x | D28: x | E28: x | F28: x | G28: x | H28: x | I28: x | J28: x | K28: x | L28: x | M28: x | P28: 0 | Q28: 0 | R28: 0 | Z28: =60-hlavicka!$C$7*(+hlavicka!$C$6-T28) -> -18 | AA28: 0 | AB28: -18 | AC28: x | AK28: =IF(AE28="","0",60-hlavicka!$C$7*(+hlavicka!$C$6-AE28)) -> 0 | AL28: 0 | AM28: 0 | AN28: x | AO28: -18 | AP28: x | AQ28: =IF(AE28="","x",60-hlavicka!$C$7*(+hlavicka!$C$6-AE28)+AL28) -> x | AR28: =IF(AC28<=hlavicka!$C$10,"ano","") ->  | AT28: x | AU28: x | AV28: =IF(AT28="x","x",(MAX($AT$6:$AT$65)-AT28)/hlavicka!$C$30/60/24) -> x | AW28: x | AX28: x | AY28: x | AZ28: x | BA28: =IF(AZ28="x","x",(-MAX($AT$6:$AT$65)+AT28+240)+220-hlavicka!$C$30*(-MIN($AX$6:$AX$65)+AX28)*60*24) -> x | BB28: x | BC28: x | BD28: x | BE28: x | BF28: x | BG28: =IF(G28="x","x",(+hlavicka!$C$31+G28-1)) -> x | BH28: =IF(AV28="x","x",IF(AV28>=hlavicka!$C$32,hlavicka!$C$32,AV28)) -> x | BI28: x | BL28: x | BM28: x | BN28: x | BO28: x
A29: 24 | C29: x | D29: x | E29: x | F29: x | G29: x | H29: x | I29: x | J29: x | K29: x | L29: x | M29: x | P29: 0 | Q29: 0 | R29: 0 | Z29: =60-hlavicka!$C$7*(+hlavicka!$C$6-T29) -> -18 | AA29: 0 | AB29: -18 | AC29: x | AK29: =IF(AE29="","0",60-hlavicka!$C$7*(+hlavicka!$C$6-AE29)) -> 0 | AL29: 0 | AM29: 0 | AN29: x | AO29: -18 | AP29: x | AQ29: =IF(AE29="","x",60-hlavicka!$C$7*(+hlavicka!$C$6-AE29)+AL29) -> x | AR29: =IF(AC29<=hlavicka!$C$10,"ano","") ->  | AT29: x | AU29: x | AV29: =IF(AT29="x","x",(MAX($AT$6:$AT$65)-AT29)/hlavicka!$C$30/60/24) -> x | AW29: x | AX29: x | AY29: x | AZ29: x | BA29: =IF(AZ29="x","x",(-MAX($AT$6:$AT$65)+AT29+240)+220-hlavicka!$C$30*(-MIN($AX$6:$AX$65)+AX29)*60*24) -> x | BB29: x | BC29: x | BD29: x | BE29: x | BF29: x | BG29: =IF(G29="x","x",(+hlavicka!$C$31+G29-1)) -> x | BH29: =IF(AV29="x","x",IF(AV29>=hlavicka!$C$32,hlavicka!$C$32,AV29)) -> x | BI29: x | BL29: x | BM29: x | BN29: x | BO29: x
A30: 25 | C30: x | D30: x | E30: x | F30: x | G30: x | H30: x | I30: x | J30: x | K30: x | L30: x | M30: x | P30: 0 | Q30: 0 | R30: 0 | Z30: =60-hlavicka!$C$7*(+hlavicka!$C$6-T30) -> -18 | AA30: 0 | AB30: -18 | AC30: x | AK30: =IF(AE30="","0",60-hlavicka!$C$7*(+hlavicka!$C$6-AE30)) -> 0 | AL30: 0 | AM30: 0 | AN30: x | AO30: -18 | AP30: x | AQ30: =IF(AE30="","x",60-hlavicka!$C$7*(+hlavicka!$C$6-AE30)+AL30) -> x | AR30: =IF(AC30<=hlavicka!$C$10,"ano","") ->  | AT30: x | AU30: x | AV30: =IF(AT30="x","x",(MAX($AT$6:$AT$65)-AT30)/hlavicka!$C$30/60/24) -> x | AW30: x | AX30: x | AY30: x | AZ30: x | BA30: =IF(AZ30="x","x",(-MAX($AT$6:$AT$65)+AT30+240)+220-hlavicka!$C$30*(-MIN($AX$6:$AX$65)+AX30)*60*24) -> x | BB30: x | BC30: x | BD30: x | BE30: x | BF30: x | BG30: =IF(G30="x","x",(+hlavicka!$C$31+G30-1)) -> x | BH30: =IF(AV30="x","x",IF(AV30>=hlavicka!$C$32,hlavicka!$C$32,AV30)) -> x | BI30: x | BL30: x | BM30: x | BN30: x | BO30: x
A31: 26 | C31: x | D31: x | E31: x | F31: x | G31: x | H31: x | I31: x | J31: x | K31: x | L31: x | M31: x | P31: 0 | Q31: 0 | R31: 0 | Z31: =60-hlavicka!$C$7*(+hlavicka!$C$6-T31) -> -18 | AA31: 0 | AB31: -18 | AC31: x | AK31: =IF(AE31="","0",60-hlavicka!$C$7*(+hlavicka!$C$6-AE31)) -> 0 | AL31: 0 | AM31: 0 | AN31: x | AO31: -18 | AP31: x | AQ31: =IF(AE31="","x",60-hlavicka!$C$7*(+hlavicka!$C$6-AE31)+AL31) -> x | AR31: =IF(AC31<=hlavicka!$C$10,"ano","") ->  | AT31: x | AU31: x | AV31: =IF(AT31="x","x",(MAX($AT$6:$AT$65)-AT31)/hlavicka!$C$30/60/24) -> x | AW31: x | AX31: x | AY31: x | AZ31: x | BA31: =IF(AZ31="x","x",(-MAX($AT$6:$AT$65)+AT31+240)+220-hlavicka!$C$30*(-MIN($AX$6:$AX$65)+AX31)*60*24) -> x | BB31: x | BC31: x | BD31: x | BE31: x | BF31: x | BG31: =IF(G31="x","x",(+hlavicka!$C$31+G31-1)) -> x | BH31: =IF(AV31="x","x",IF(AV31>=hlavicka!$C$32,hlavicka!$C$32,AV31)) -> x | BI31: x | BL31: x | BM31: x | BN31: x | BO31: x
A32: 27 | C32: x | D32: x | E32: x | F32: x | G32: x | H32: x | I32: x | J32: x | K32: x | L32: x | M32: x | P32: 0 | Q32: 0 | R32: 0 | Z32: =60-hlavicka!$C$7*(+hlavicka!$C$6-T32) -> -18 | AA32: 0 | AB32: -18 | AC32: x | AK32: =IF(AE32="","0",60-hlavicka!$C$7*(+hlavicka!$C$6-AE32)) -> 0 | AL32: 0 | AM32: 0 | AN32: x | AO32: -18 | AP32: x | AQ32: =IF(AE32="","x",60-hlavicka!$C$7*(+hlavicka!$C$6-AE32)+AL32) -> x | AR32: =IF(AC32<=hlavicka!$C$10,"ano","") ->  | AT32: x | AU32: x | AV32: =IF(AT32="x","x",(MAX($AT$6:$AT$65)-AT32)/hlavicka!$C$30/60/24) -> x | AW32: x | AX32: x | AY32: x | AZ32: x | BA32: =IF(AZ32="x","x",(-MAX($AT$6:$AT$65)+AT32+240)+220-hlavicka!$C$30*(-MIN($AX$6:$AX$65)+AX32)*60*24) -> x | BB32: x | BC32: x | BD32: x | BE32: x | BF32: x | BG32: =IF(G32="x","x",(+hlavicka!$C$31+G32-1)) -> x | BH32: =IF(AV32="x","x",IF(AV32>=hlavicka!$C$32,hlavicka!$C$32,AV32)) -> x | BI32: x | BL32: x | BM32: x | BN32: x | BO32: x
A33: 28 | C33: x | D33: x | E33: x | F33: x | G33: x | H33: x | I33: x | J33: x | K33: x | L33: x | M33: x | P33: 0 | Q33: 0 | R33: 0 | Z33: =60-hlavicka!$C$7*(+hlavicka!$C$6-T33) -> -18 | AA33: 0 | AB33: -18 | AC33: x | AK33: =IF(AE33="","0",60-hlavicka!$C$7*(+hlavicka!$C$6-AE33)) -> 0 | AL33: 0 | AM33: 0 | AN33: x | AO33: -18 | AP33: x | AQ33: =IF(AE33="","x",60-hlavicka!$C$7*(+hlavicka!$C$6-AE33)+AL33) -> x | AR33: =IF(AC33<=hlavicka!$C$10,"ano","") ->  | AT33: x | AU33: x | AV33: =IF(AT33="x","x",(MAX($AT$6:$AT$65)-AT33)/hlavicka!$C$30/60/24) -> x | AW33: x | AX33: x | AY33: x | AZ33: x | BA33: =IF(AZ33="x","x",(-MAX($AT$6:$AT$65)+AT33+240)+220-hlavicka!$C$30*(-MIN($AX$6:$AX$65)+AX33)*60*24) -> x | BB33: x | BC33: x | BD33: x | BE33: x | BF33: x | BG33: =IF(G33="x","x",(+hlavicka!$C$31+G33-1)) -> x | BH33: =IF(AV33="x","x",IF(AV33>=hlavicka!$C$32,hlavicka!$C$32,AV33)) -> x | BI33: x | BL33: x | BM33: x | BN33: x | BO33: x
A34: 29 | C34: x | D34: x | E34: x | F34: x | G34: x | H34: x | I34: x | J34: x | K34: x | L34: x | M34: x | P34: 0 | Q34: 0 | R34: 0 | Z34: =60-hlavicka!$C$7*(+hlavicka!$C$6-T34) -> -18 | AA34: 0 | AB34: -18 | AC34: x | AK34: =IF(AE34="","0",60-hlavicka!$C$7*(+hlavicka!$C$6-AE34)) -> 0 | AL34: 0 | AM34: 0 | AN34: x | AO34: -18 | AP34: x | AQ34: =IF(AE34="","x",60-hlavicka!$C$7*(+hlavicka!$C$6-AE34)+AL34) -> x | AR34: =IF(AC34<=hlavicka!$C$10,"ano","") ->  | AT34: x | AU34: x | AV34: =IF(AT34="x","x",(MAX($AT$6:$AT$65)-AT34)/hlavicka!$C$30/60/24) -> x | AW34: x | AX34: x | AY34: x | AZ34: x | BA34: =IF(AZ34="x","x",(-MAX($AT$6:$AT$65)+AT34+240)+220-hlavicka!$C$30*(-MIN($AX$6:$AX$65)+AX34)*60*24) -> x | BB34: x | BC34: x | BD34: x | BE34: x | BF34: x | BG34: =IF(G34="x","x",(+hlavicka!$C$31+G34-1)) -> x | BH34: =IF(AV34="x","x",IF(AV34>=hlavicka!$C$32,hlavicka!$C$32,AV34)) -> x | BI34: x | BL34: x | BM34: x | BN34: x | BO34: x
A35: 30 | C35: x | D35: x | E35: x | F35: x | G35: x | H35: x | I35: x | J35: x | K35: x | L35: x | M35: x | P35: 0 | Q35: 0 | R35: 0 | Z35: =60-hlavicka!$C$7*(+hlavicka!$C$6-T35) -> -18 | AA35: 0 | AB35: -18 | AC35: x | AK35: =IF(AE35="","0",60-hlavicka!$C$7*(+hlavicka!$C$6-AE35)) -> 0 | AL35: 0 | AM35: 0 | AN35: x | AO35: -18 | AP35: x | AQ35: =IF(AE35="","x",60-hlavicka!$C$7*(+hlavicka!$C$6-AE35)+AL35) -> x | AR35: =IF(AC35<=hlavicka!$C$10,"ano","") ->  | AT35: x | AU35: x | AV35: =IF(AT35="x","x",(MAX($AT$6:$AT$65)-AT35)/hlavicka!$C$30/60/24) -> x | AW35: x | AX35: x | AY35: x | AZ35: x | BA35: =IF(AZ35="x","x",(-MAX($AT$6:$AT$65)+AT35+240)+220-hlavicka!$C$30*(-MIN($AX$6:$AX$65)+AX35)*60*24) -> x | BB35: x | BC35: x | BD35: x | BE35: x | BF35: x | BG35: =IF(G35="x","x",(+hlavicka!$C$31+G35-1)) -> x | BH35: =IF(AV35="x","x",IF(AV35>=hlavicka!$C$32,hlavicka!$C$32,AV35)) -> x | BI35: x | BL35: x | BM35: x | BN35: x | BO35: x
A36: 31 | C36: x | D36: x | E36: x | F36: x | G36: x | H36: x | I36: x | J36: x | K36: x | L36: x | M36: x | P36: 0 | Q36: 0 | R36: 0 | Z36: =60-hlavicka!$C$7*(+hlavicka!$C$6-T36) -> -18 | AA36: 0 | AB36: -18 | AC36: x | AK36: =IF(AE36="","0",60-hlavicka!$C$7*(+hlavicka!$C$6-AE36)) -> 0 | AL36: 0 | AM36: 0 | AN36: x | AO36: -18 | AP36: x | AQ36: =IF(AE36="","x",60-hlavicka!$C$7*(+hlavicka!$C$6-AE36)+AL36) -> x | AR36: =IF(AC36<=hlavicka!$C$10,"ano","") ->  | AT36: x | AU36: x | AV36: =IF(AT36="x","x",(MAX($AT$6:$AT$65)-AT36)/hlavicka!$C$30/60/24) -> x | AW36: x | AX36: x | AY36: x | AZ36: x | BA36: =IF(AZ36="x","x",(-MAX($AT$6:$AT$65)+AT36+240)+220-hlavicka!$C$30*(-MIN($AX$6:$AX$65)+AX36)*60*24) -> x | BB36: x | BC36: x | BD36: x | BE36: x | BF36: x | BG36: =IF(G36="x","x",(+hlavicka!$C$31+G36-1)) -> x | BH36: =IF(AV36="x","x",IF(AV36>=hlavicka!$C$32,hlavicka!$C$32,AV36)) -> x | BI36: x | BL36: x | BM36: x | BN36: x | BO36: x
A37: 32 | C37: x | D37: x | E37: x | F37: x | G37: x | H37: x | I37: x | J37: x | K37: x | L37: x | M37: x | P37: 0 | Q37: 0 | R37: 0 | Z37: =60-hlavicka!$C$7*(+hlavicka!$C$6-T37) -> -18 | AA37: 0 | AB37: -18 | AC37: x | AK37: =IF(AE37="","0",60-hlavicka!$C$7*(+hlavicka!$C$6-AE37)) -> 0 | AL37: 0 | AM37: 0 | AN37: x | AO37: -18 | AP37: x | AQ37: =IF(AE37="","x",60-hlavicka!$C$7*(+hlavicka!$C$6-AE37)+AL37) -> x | AR37: =IF(AC37<=hlavicka!$C$10,"ano","") ->  | AT37: x | AU37: x | AV37: =IF(AT37="x","x",(MAX($AT$6:$AT$65)-AT37)/hlavicka!$C$30/60/24) -> x | AW37: x | AX37: x | AY37: x | AZ37: x | BA37: =IF(AZ37="x","x",(-MAX($AT$6:$AT$65)+AT37+240)+220-hlavicka!$C$30*(-MIN($AX$6:$AX$65)+AX37)*60*24) -> x | BB37: x | BC37: x | BD37: x | BE37: x | BF37: x | BG37: =IF(G37="x","x",(+hlavicka!$C$31+G37-1)) -> x | BH37: =IF(AV37="x","x",IF(AV37>=hlavicka!$C$32,hlavicka!$C$32,AV37)) -> x | BI37: x | BL37: x | BM37: x | BN37: x | BO37: x
A38: =+A37+1 -> 33 | C38: =IF(D38="x","x",RANK(D38,$D$6:$D$65,1)) -> x | D38: =IF(AZ38="x","x",AZ38-N38/1000) -> x | E38: =IF(F38="x","x",RANK(F38,$F$6:$F$65,1)) -> x | F38: =IF(BG38="","x",BG38) -> x | G38: =IF(H38="x","x",RANK(H38,$H$6:$H$65,1)) -> x | H38: =IF(AU38="x","x",AU38-N38/1000) -> x | I38: =IF(N38="","x",RANK(N38,$N$6:$N$65,1)) -> x | J38: =IF(K38="x","x",RANK(K38,$K$6:$K$163,1)) -> x | K38: =IF(AC38="x","x",AC38-N38/1000) -> x | L38: =IF(M38="x","x",RANK(M38,$M$6:$M$163,1)) -> x | M38: =IF(AP38="x","x",AP38-N38/1000) -> x | P38: 0 | Q38: 0 | R38: 0 | Z38: =60-hlavicka!$C$7*(+hlavicka!$C$6-T38) -> -18 | AA38: =SUM(U38:Y38)-MAX(U38:Y38)-MIN(U38:Y38) -> 0 | AB38: =+Z38+AA38 -> -18 | AC38: =IF(T38="","x",RANK(AB38,$AB$6:$AB$163,0)) -> x | AK38: =IF(AE38="","0",60-hlavicka!$C$7*(+hlavicka!$C$6-AE38)) -> 0 | AL38: =SUM(AF38:AJ38)-MAX(AF38:AJ38)-MIN(AF38:AJ38) -> 0 | AM38: =+AK38+AL38 -> 0 | AN38: =IF(AQ38="x","x",RANK(AQ38,$AQ$6:$AQ$65,0)) -> x | AO38: =+AB38+AM38 -> -18 | AP38: =IF(T38="","x",IF(B38="m",RANK(AO38,$AO$6:$AO$163,0)+1000,RANK(AO38,$AO$6:$AO$163,0))) -> x | AQ38: =IF(AE38="","x",60-hlavicka!$C$7*(+hlavicka!$C$6-AE38)+AL38) -> x | AR38: =IF(AC38<=hlavicka!$C$10,"ano","") ->  | AS38: =IF(AR38="ano",J38,"") ->  | AT38: x | AU38: =IF(AT38="x","x",RANK(AT38,$AT$6:$AT$65)) -> x | AV38: =IF(AT38="x","x",(MAX($AT$6:$AT$65)-AT38)/hlavicka!$C$30/60/24) -> x | AW38: =IF(BJ38="","x",BJ38+BI38) -> x | AX38: =IF(AW38="x","x",AW38-AV38) -> x | AY38: =IF(AX38="x","x",RANK(AX38,$AX$6:$AX$65,1)) -> x | AZ38: =IF(AW38="x","x",IF(B38="m",RANK(AW38,$AW$6:$AW$65,1)+1000,RANK(AW38,$AW$6:$AW$65,1))) -> x | BA38: =IF(AZ38="x","x",(-MAX($AT$6:$AT$65)+AT38+240)+220-hlavicka!$C$30*(-MIN($AX$6:$AX$65)+AX38)*60*24) -> x | BB38: =IF(AT38="x","x",AB38) -> x | BC38: =IF(BB38="x","x",RANK(BB38,$BB$6:$BB$65)) -> x | BD38: =IF(AT38="x","x",AM38) -> x | BE38: =IF(AT38="x","x",AQ38) -> x | BF38: =IF(BE38="x","x",RANK(BE38,$BE$6:$BE$65)) -> x | BG38: =IF(G38="x","x",(+hlavicka!$C$31+G38-1)) -> x | BH38: =IF(AV38="x","x",IF(AV38>=hlavicka!$C$32,hlavicka!$C$32,AV38)) -> x | BI38: =IF(AU38="x","x",AV38-BH38) -> x | BK38: =IF((BG38="x")+(BJ38<>"")=2,"nestartuje - nepiš žádný čas",IF((BH38>BJ38)+(BJ38<>"")=2,"menší čas cíl než čas startu",IF(BJ38<>"","OK",""))) ->  | BL38: =IF(BM38="x","x",RANK(BM38,$BM$6:$BM$65,0)) -> x | BM38: =IF(AP38="x","x",IF(B38="m","x",AO38)) -> x | BN38: =IF(BO38="x","x",RANK(BO38,$BO$6:$BO$65,1)) -> x | BO38: =IF(B38="m","x",AW38) -> x
A39: 34 | C39: x | D39: x | E39: x | F39: x | G39: x | H39: x | I39: x | J39: x | K39: x | L39: x | M39: x | P39: 0 | Q39: 0 | R39: 0 | Z39: =60-hlavicka!$C$7*(+hlavicka!$C$6-T39) -> -18 | AA39: 0 | AB39: -18 | AC39: x | AK39: =IF(AE39="","0",60-hlavicka!$C$7*(+hlavicka!$C$6-AE39)) -> 0 | AL39: 0 | AM39: 0 | AN39: x | AO39: -18 | AP39: x | AQ39: =IF(AE39="","x",60-hlavicka!$C$7*(+hlavicka!$C$6-AE39)+AL39) -> x | AR39: =IF(AC39<=hlavicka!$C$10,"ano","") ->  | AT39: x | AU39: x | AV39: =IF(AT39="x","x",(MAX($AT$6:$AT$65)-AT39)/hlavicka!$C$30/60/24) -> x | AW39: x | AX39: x | AY39: x | AZ39: x | BA39: =IF(AZ39="x","x",(-MAX($AT$6:$AT$65)+AT39+240)+220-hlavicka!$C$30*(-MIN($AX$6:$AX$65)+AX39)*60*24) -> x | BB39: x | BC39: x | BD39: x | BE39: x | BF39: x | BG39: =IF(G39="x","x",(+hlavicka!$C$31+G39-1)) -> x | BH39: =IF(AV39="x","x",IF(AV39>=hlavicka!$C$32,hlavicka!$C$32,AV39)) -> x | BI39: x | BL39: x | BM39: x | BN39: x | BO39: x
A40: 35 | C40: x | D40: x | E40: x | F40: x | G40: x | H40: x | I40: x | J40: x | K40: x | L40: x | M40: x | P40: 0 | Q40: 0 | R40: 0 | Z40: =60-hlavicka!$C$7*(+hlavicka!$C$6-T40) -> -18 | AA40: 0 | AB40: -18 | AC40: x | AK40: =IF(AE40="","0",60-hlavicka!$C$7*(+hlavicka!$C$6-AE40)) -> 0 | AL40: 0 | AM40: 0 | AN40: x | AO40: -18 | AP40: x | AQ40: =IF(AE40="","x",60-hlavicka!$C$7*(+hlavicka!$C$6-AE40)+AL40) -> x | AR40: =IF(AC40<=hlavicka!$C$10,"ano","") ->  | AT40: x | AU40: x | AV40: =IF(AT40="x","x",(MAX($AT$6:$AT$65)-AT40)/hlavicka!$C$30/60/24) -> x | AW40: x | AX40: x | AY40: x | AZ40: x | BA40: =IF(AZ40="x","x",(-MAX($AT$6:$AT$65)+AT40+240)+220-hlavicka!$C$30*(-MIN($AX$6:$AX$65)+AX40)*60*24) -> x | BB40: x | BC40: x | BD40: x | BE40: x | BF40: x | BG40: =IF(G40="x","x",(+hlavicka!$C$31+G40-1)) -> x | BH40: =IF(AV40="x","x",IF(AV40>=hlavicka!$C$32,hlavicka!$C$32,AV40)) -> x | BI40: x | BL40: x | BM40: x | BN40: x | BO40: x
A41: 36 | C41: x | D41: x | E41: x | F41: x | G41: x | H41: x | I41: x | J41: x | K41: x | L41: x | M41: x | P41: 0 | Q41: 0 | R41: 0 | Z41: =60-hlavicka!$C$7*(+hlavicka!$C$6-T41) -> -18 | AA41: 0 | AB41: -18 | AC41: x | AK41: =IF(AE41="","0",60-hlavicka!$C$7*(+hlavicka!$C$6-AE41)) -> 0 | AL41: 0 | AM41: 0 | AN41: x | AO41: -18 | AP41: x | AQ41: =IF(AE41="","x",60-hlavicka!$C$7*(+hlavicka!$C$6-AE41)+AL41) -> x | AR41: =IF(AC41<=hlavicka!$C$10,"ano","") ->  | AT41: x | AU41: x | AV41: =IF(AT41="x","x",(MAX($AT$6:$AT$65)-AT41)/hlavicka!$C$30/60/24) -> x | AW41: x | AX41: x | AY41: x | AZ41: x | BA41: =IF(AZ41="x","x",(-MAX($AT$6:$AT$65)+AT41+240)+220-hlavicka!$C$30*(-MIN($AX$6:$AX$65)+AX41)*60*24) -> x | BB41: x | BC41: x | BD41: x | BE41: x | BF41: x | BG41: =IF(G41="x","x",(+hlavicka!$C$31+G41-1)) -> x | BH41: =IF(AV41="x","x",IF(AV41>=hlavicka!$C$32,hlavicka!$C$32,AV41)) -> x | BI41: x | BL41: x | BM41: x | BN41: x | BO41: x
A42: 37 | C42: x | D42: x | E42: x | F42: x | G42: x | H42: x | I42: x | J42: x | K42: x | L42: x | M42: x | P42: 0 | Q42: 0 | R42: 0 | Z42: =60-hlavicka!$C$7*(+hlavicka!$C$6-T42) -> -18 | AA42: 0 | AB42: -18 | AC42: x | AK42: =IF(AE42="","0",60-hlavicka!$C$7*(+hlavicka!$C$6-AE42)) -> 0 | AL42: 0 | AM42: 0 | AN42: x | AO42: -18 | AP42: x | AQ42: =IF(AE42="","x",60-hlavicka!$C$7*(+hlavicka!$C$6-AE42)+AL42) -> x | AR42: =IF(AC42<=hlavicka!$C$10,"ano","") ->  | AT42: x | AU42: x | AV42: =IF(AT42="x","x",(MAX($AT$6:$AT$65)-AT42)/hlavicka!$C$30/60/24) -> x | AW42: x | AX42: x | AY42: x | AZ42: x | BA42: =IF(AZ42="x","x",(-MAX($AT$6:$AT$65)+AT42+240)+220-hlavicka!$C$30*(-MIN($AX$6:$AX$65)+AX42)*60*24) -> x | BB42: x | BC42: x | BD42: x | BE42: x | BF42: x | BG42: =IF(G42="x","x",(+hlavicka!$C$31+G42-1)) -> x | BH42: =IF(AV42="x","x",IF(AV42>=hlavicka!$C$32,hlavicka!$C$32,AV42)) -> x | BI42: x | BL42: x | BM42: x | BN42: x | BO42: x
A43: 38 | C43: x | D43: x | E43: x | F43: x | G43: x | H43: x | I43: x | J43: x | K43: x | L43: x | M43: x | P43: 0 | Q43: 0 | R43: 0 | Z43: =60-hlavicka!$C$7*(+hlavicka!$C$6-T43) -> -18 | AA43: 0 | AB43: -18 | AC43: x | AK43: =IF(AE43="","0",60-hlavicka!$C$7*(+hlavicka!$C$6-AE43)) -> 0 | AL43: 0 | AM43: 0 | AN43: x | AO43: -18 | AP43: x | AQ43: =IF(AE43="","x",60-hlavicka!$C$7*(+hlavicka!$C$6-AE43)+AL43) -> x | AR43: =IF(AC43<=hlavicka!$C$10,"ano","") ->  | AT43: x | AU43: x | AV43: =IF(AT43="x","x",(MAX($AT$6:$AT$65)-AT43)/hlavicka!$C$30/60/24) -> x | AW43: x | AX43: x | AY43: x | AZ43: x | BA43: =IF(AZ43="x","x",(-MAX($AT$6:$AT$65)+AT43+240)+220-hlavicka!$C$30*(-MIN($AX$6:$AX$65)+AX43)*60*24) -> x | BB43: x | BC43: x | BD43: x | BE43: x | BF43: x | BG43: =IF(G43="x","x",(+hlavicka!$C$31+G43-1)) -> x | BH43: =IF(AV43="x","x",IF(AV43>=hlavicka!$C$32,hlavicka!$C$32,AV43)) -> x | BI43: x | BL43: x | BM43: x | BN43: x | BO43: x
A44: 39 | C44: x | D44: x | E44: x | F44: x | G44: x | H44: x | I44: x | J44: x | K44: x | L44: x | M44: x | P44: 0 | Q44: 0 | R44: 0 | Z44: =60-hlavicka!$C$7*(+hlavicka!$C$6-T44) -> -18 | AA44: 0 | AB44: -18 | AC44: x | AK44: =IF(AE44="","0",60-hlavicka!$C$7*(+hlavicka!$C$6-AE44)) -> 0 | AL44: 0 | AM44: 0 | AN44: x | AO44: -18 | AP44: x | AQ44: =IF(AE44="","x",60-hlavicka!$C$7*(+hlavicka!$C$6-AE44)+AL44) -> x | AR44: =IF(AC44<=hlavicka!$C$10,"ano","") ->  | AT44: x | AU44: x | AV44: =IF(AT44="x","x",(MAX($AT$6:$AT$65)-AT44)/hlavicka!$C$30/60/24) -> x | AW44: x | AX44: x | AY44: x | AZ44: x | BA44: =IF(AZ44="x","x",(-MAX($AT$6:$AT$65)+AT44+240)+220-hlavicka!$C$30*(-MIN($AX$6:$AX$65)+AX44)*60*24) -> x | BB44: x | BC44: x | BD44: x | BE44: x | BF44: x | BG44: =IF(G44="x","x",(+hlavicka!$C$31+G44-1)) -> x | BH44: =IF(AV44="x","x",IF(AV44>=hlavicka!$C$32,hlavicka!$C$32,AV44)) -> x | BI44: x | BL44: x | BM44: x | BN44: x | BO44: x
A45: 40 | C45: x | D45: x | E45: x | F45: x | G45: x | H45: x | I45: x | J45: x | K45: x | L45: x | M45: x | P45: 0 | Q45: 0 | R45: 0 | Z45: =60-hlavicka!$C$7*(+hlavicka!$C$6-T45) -> -18 | AA45: 0 | AB45: -18 | AC45: x | AK45: =IF(AE45="","0",60-hlavicka!$C$7*(+hlavicka!$C$6-AE45)) -> 0 | AL45: 0 | AM45: 0 | AN45: x | AO45: -18 | AP45: x | AQ45: =IF(AE45="","x",60-hlavicka!$C$7*(+hlavicka!$C$6-AE45)+AL45) -> x | AR45: =IF(AC45<=hlavicka!$C$10,"ano","") ->  | AT45: x | AU45: x | AV45: =IF(AT45="x","x",(MAX($AT$6:$AT$65)-AT45)/hlavicka!$C$30/60/24) -> x | AW45: x | AX45: x | AY45: x | AZ45: x | BA45: =IF(AZ45="x","x",(-MAX($AT$6:$AT$65)+AT45+240)+220-hlavicka!$C$30*(-MIN($AX$6:$AX$65)+AX45)*60*24) -> x | BB45: x | BC45: x | BD45: x | BE45: x | BF45: x | BG45: =IF(G45="x","x",(+hlavicka!$C$31+G45-1)) -> x | BH45: =IF(AV45="x","x",IF(AV45>=hlavicka!$C$32,hlavicka!$C$32,AV45)) -> x | BI45: x | BL45: x | BM45: x | BN45: x | BO45: x
A46: 41 | C46: x | D46: x | E46: x | F46: x | G46: x | H46: x | I46: x | J46: x | K46: x | L46: x | M46: x | P46: 0 | Q46: 0 | R46: 0 | Z46: =60-hlavicka!$C$7*(+hlavicka!$C$6-T46) -> -18 | AA46: 0 | AB46: -18 | AC46: x | AK46: =IF(AE46="","0",60-hlavicka!$C$7*(+hlavicka!$C$6-AE46)) -> 0 | AL46: 0 | AM46: 0 | AN46: x | AO46: -18 | AP46: x | AQ46: =IF(AE46="","x",60-hlavicka!$C$7*(+hlavicka!$C$6-AE46)+AL46) -> x | AR46: =IF(AC46<=hlavicka!$C$10,"ano","") ->  | AT46: x | AU46: x | AV46: =IF(AT46="x","x",(MAX($AT$6:$AT$65)-AT46)/hlavicka!$C$30/60/24) -> x | AW46: x | AX46: x | AY46: x | AZ46: x | BA46: =IF(AZ46="x","x",(-MAX($AT$6:$AT$65)+AT46+240)+220-hlavicka!$C$30*(-MIN($AX$6:$AX$65)+AX46)*60*24) -> x | BB46: x | BC46: x | BD46: x | BE46: x | BF46: x | BG46: =IF(G46="x","x",(+hlavicka!$C$31+G46-1)) -> x | BH46: =IF(AV46="x","x",IF(AV46>=hlavicka!$C$32,hlavicka!$C$32,AV46)) -> x | BI46: x | BL46: x | BM46: x | BN46: x | BO46: x
A47: 42 | C47: x | D47: x | E47: x | F47: x | G47: x | H47: x | I47: x | J47: x | K47: x | L47: x | M47: x | P47: 0 | Q47: 0 | R47: 0 | Z47: =60-hlavicka!$C$7*(+hlavicka!$C$6-T47) -> -18 | AA47: 0 | AB47: -18 | AC47: x | AK47: =IF(AE47="","0",60-hlavicka!$C$7*(+hlavicka!$C$6-AE47)) -> 0 | AL47: 0 | AM47: 0 | AN47: x | AO47: -18 | AP47: x | AQ47: =IF(AE47="","x",60-hlavicka!$C$7*(+hlavicka!$C$6-AE47)+AL47) -> x | AR47: =IF(AC47<=hlavicka!$C$10,"ano","") ->  | AT47: x | AU47: x | AV47: =IF(AT47="x","x",(MAX($AT$6:$AT$65)-AT47)/hlavicka!$C$30/60/24) -> x | AW47: x | AX47: x | AY47: x | AZ47: x | BA47: =IF(AZ47="x","x",(-MAX($AT$6:$AT$65)+AT47+240)+220-hlavicka!$C$30*(-MIN($AX$6:$AX$65)+AX47)*60*24) -> x | BB47: x | BC47: x | BD47: x | BE47: x | BF47: x | BG47: =IF(G47="x","x",(+hlavicka!$C$31+G47-1)) -> x | BH47: =IF(AV47="x","x",IF(AV47>=hlavicka!$C$32,hlavicka!$C$32,AV47)) -> x | BI47: x | BL47: x | BM47: x | BN47: x | BO47: x
A48: 43 | C48: x | D48: x | E48: x | F48: x | G48: x | H48: x | I48: x | J48: x | K48: x | L48: x | M48: x | P48: 0 | Q48: 0 | R48: 0 | Z48: =60-hlavicka!$C$7*(+hlavicka!$C$6-T48) -> -18 | AA48: 0 | AB48: -18 | AC48: x | AK48: =IF(AE48="","0",60-hlavicka!$C$7*(+hlavicka!$C$6-AE48)) -> 0 | AL48: 0 | AM48: 0 | AN48: x | AO48: -18 | AP48: x | AQ48: =IF(AE48="","x",60-hlavicka!$C$7*(+hlavicka!$C$6-AE48)+AL48) -> x | AR48: =IF(AC48<=hlavicka!$C$10,"ano","") ->  | AT48: x | AU48: x | AV48: =IF(AT48="x","x",(MAX($AT$6:$AT$65)-AT48)/hlavicka!$C$30/60/24) -> x | AW48: x | AX48: x | AY48: x | AZ48: x | BA48: =IF(AZ48="x","x",(-MAX($AT$6:$AT$65)+AT48+240)+220-hlavicka!$C$30*(-MIN($AX$6:$AX$65)+AX48)*60*24) -> x | BB48: x | BC48: x | BD48: x | BE48: x | BF48: x | BG48: =IF(G48="x","x",(+hlavicka!$C$31+G48-1)) -> x | BH48: =IF(AV48="x","x",IF(AV48>=hlavicka!$C$32,hlavicka!$C$32,AV48)) -> x | BI48: x | BL48: x | BM48: x | BN48: x | BO48: x
A49: 44 | C49: x | D49: x | E49: x | F49: x | G49: x | H49: x | I49: x | J49: x | K49: x | L49: x | M49: x | P49: 0 | Q49: 0 | R49: 0 | Z49: =60-hlavicka!$C$7*(+hlavicka!$C$6-T49) -> -18 | AA49: 0 | AB49: -18 | AC49: x | AK49: =IF(AE49="","0",60-hlavicka!$C$7*(+hlavicka!$C$6-AE49)) -> 0 | AL49: 0 | AM49: 0 | AN49: x | AO49: -18 | AP49: x | AQ49: =IF(AE49="","x",60-hlavicka!$C$7*(+hlavicka!$C$6-AE49)+AL49) -> x | AR49: =IF(AC49<=hlavicka!$C$10,"ano","") ->  | AT49: x | AU49: x | AV49: =IF(AT49="x","x",(MAX($AT$6:$AT$65)-AT49)/hlavicka!$C$30/60/24) -> x | AW49: x | AX49: x | AY49: x | AZ49: x | BA49: =IF(AZ49="x","x",(-MAX($AT$6:$AT$65)+AT49+240)+220-hlavicka!$C$30*(-MIN($AX$6:$AX$65)+AX49)*60*24) -> x | BB49: x | BC49: x | BD49: x | BE49: x | BF49: x | BG49: =IF(G49="x","x",(+hlavicka!$C$31+G49-1)) -> x | BH49: =IF(AV49="x","x",IF(AV49>=hlavicka!$C$32,hlavicka!$C$32,AV49)) -> x | BI49: x | BL49: x | BM49: x | BN49: x | BO49: x
A50: 45 | C50: x | D50: x | E50: x | F50: x | G50: x | H50: x | I50: x | J50: x | K50: x | L50: x | M50: x | P50: 0 | Q50: 0 | R50: 0 | Z50: =60-hlavicka!$C$7*(+hlavicka!$C$6-T50) -> -18 | AA50: 0 | AB50: -18 | AC50: x | AK50: =IF(AE50="","0",60-hlavicka!$C$7*(+hlavicka!$C$6-AE50)) -> 0 | AL50: 0 | AM50: 0 | AN50: x | AO50: -18 | AP50: x | AQ50: =IF(AE50="","x",60-hlavicka!$C$7*(+hlavicka!$C$6-AE50)+AL50) -> x | AR50: =IF(AC50<=hlavicka!$C$10,"ano","") ->  | AT50: x | AU50: x | AV50: =IF(AT50="x","x",(MAX($AT$6:$AT$65)-AT50)/hlavicka!$C$30/60/24) -> x | AW50: x | AX50: x | AY50: x | AZ50: x | BA50: =IF(AZ50="x","x",(-MAX($AT$6:$AT$65)+AT50+240)+220-hlavicka!$C$30*(-MIN($AX$6:$AX$65)+AX50)*60*24) -> x | BB50: x | BC50: x | BD50: x | BE50: x | BF50: x | BG50: =IF(G50="x","x",(+hlavicka!$C$31+G50-1)) -> x | BH50: =IF(AV50="x","x",IF(AV50>=hlavicka!$C$32,hlavicka!$C$32,AV50)) -> x | BI50: x | BL50: x | BM50: x | BN50: x | BO50: x
A51: 46 | C51: x | D51: x | E51: x | F51: x | G51: x | H51: x | I51: x | J51: x | K51: x | L51: x | M51: x | P51: 0 | Q51: 0 | R51: 0 | Z51: =60-hlavicka!$C$7*(+hlavicka!$C$6-T51) -> -18 | AA51: 0 | AB51: -18 | AC51: x | AK51: =IF(AE51="","0",60-hlavicka!$C$7*(+hlavicka!$C$6-AE51)) -> 0 | AL51: 0 | AM51: 0 | AN51: x | AO51: -18 | AP51: x | AQ51: =IF(AE51="","x",60-hlavicka!$C$7*(+hlavicka!$C$6-AE51)+AL51) -> x | AR51: =IF(AC51<=hlavicka!$C$10,"ano","") ->  | AT51: x | AU51: x | AV51: =IF(AT51="x","x",(MAX($AT$6:$AT$65)-AT51)/hlavicka!$C$30/60/24) -> x | AW51: x | AX51: x | AY51: x | AZ51: x | BA51: =IF(AZ51="x","x",(-MAX($AT$6:$AT$65)+AT51+240)+220-hlavicka!$C$30*(-MIN($AX$6:$AX$65)+AX51)*60*24) -> x | BB51: x | BC51: x | BD51: x | BE51: x | BF51: x | BG51: =IF(G51="x","x",(+hlavicka!$C$31+G51-1)) -> x | BH51: =IF(AV51="x","x",IF(AV51>=hlavicka!$C$32,hlavicka!$C$32,AV51)) -> x | BI51: x | BL51: x | BM51: x | BN51: x | BO51: x
A52: 47 | C52: x | D52: x | E52: x | F52: x | G52: x | H52: x | I52: x | J52: x | K52: x | L52: x | M52: x | P52: 0 | Q52: 0 | R52: 0 | Z52: =60-hlavicka!$C$7*(+hlavicka!$C$6-T52) -> -18 | AA52: 0 | AB52: -18 | AC52: x | AK52: =IF(AE52="","0",60-hlavicka!$C$7*(+hlavicka!$C$6-AE52)) -> 0 | AL52: 0 | AM52: 0 | AN52: x | AO52: -18 | AP52: x | AQ52: =IF(AE52="","x",60-hlavicka!$C$7*(+hlavicka!$C$6-AE52)+AL52) -> x | AR52: =IF(AC52<=hlavicka!$C$10,"ano","") ->  | AT52: x | AU52: x | AV52: =IF(AT52="x","x",(MAX($AT$6:$AT$65)-AT52)/hlavicka!$C$30/60/24) -> x | AW52: x | AX52: x | AY52: x | AZ52: x | BA52: =IF(AZ52="x","x",(-MAX($AT$6:$AT$65)+AT52+240)+220-hlavicka!$C$30*(-MIN($AX$6:$AX$65)+AX52)*60*24) -> x | BB52: x | BC52: x | BD52: x | BE52: x | BF52: x | BG52: =IF(G52="x","x",(+hlavicka!$C$31+G52-1)) -> x | BH52: =IF(AV52="x","x",IF(AV52>=hlavicka!$C$32,hlavicka!$C$32,AV52)) -> x | BI52: x | BL52: x | BM52: x | BN52: x | BO52: x
A53: 48 | C53: x | D53: x | E53: x | F53: x | G53: x | H53: x | I53: x | J53: x | K53: x | L53: x | M53: x | P53: 0 | Q53: 0 | R53: 0 | Z53: =60-hlavicka!$C$7*(+hlavicka!$C$6-T53) -> -18 | AA53: 0 | AB53: -18 | AC53: x | AK53: =IF(AE53="","0",60-hlavicka!$C$7*(+hlavicka!$C$6-AE53)) -> 0 | AL53: 0 | AM53: 0 | AN53: x | AO53: -18 | AP53: x | AQ53: =IF(AE53="","x",60-hlavicka!$C$7*(+hlavicka!$C$6-AE53)+AL53) -> x | AR53: =IF(AC53<=hlavicka!$C$10,"ano","") ->  | AT53: x | AU53: x | AV53: =IF(AT53="x","x",(MAX($AT$6:$AT$65)-AT53)/hlavicka!$C$30/60/24) -> x | AW53: x | AX53: x | AY53: x | AZ53: x | BA53: =IF(AZ53="x","x",(-MAX($AT$6:$AT$65)+AT53+240)+220-hlavicka!$C$30*(-MIN($AX$6:$AX$65)+AX53)*60*24) -> x | BB53: x | BC53: x | BD53: x | BE53: x | BF53: x | BG53: =IF(G53="x","x",(+hlavicka!$C$31+G53-1)) -> x | BH53: =IF(AV53="x","x",IF(AV53>=hlavicka!$C$32,hlavicka!$C$32,AV53)) -> x | BI53: x | BL53: x | BM53: x | BN53: x | BO53: x
A54: 49 | C54: x | D54: x | E54: x | F54: x | G54: x | H54: x | I54: x | J54: x | K54: x | L54: x | M54: x | P54: 0 | Q54: 0 | R54: 0 | Z54: =60-hlavicka!$C$7*(+hlavicka!$C$6-T54) -> -18 | AA54: 0 | AB54: -18 | AC54: x | AK54: =IF(AE54="","0",60-hlavicka!$C$7*(+hlavicka!$C$6-AE54)) -> 0 | AL54: 0 | AM54: 0 | AN54: x | AO54: -18 | AP54: x | AQ54: =IF(AE54="","x",60-hlavicka!$C$7*(+hlavicka!$C$6-AE54)+AL54) -> x | AR54: =IF(AC54<=hlavicka!$C$10,"ano","") ->  | AT54: x | AU54: x | AV54: =IF(AT54="x","x",(MAX($AT$6:$AT$65)-AT54)/hlavicka!$C$30/60/24) -> x | AW54: x | AX54: x | AY54: x | AZ54: x | BA54: =IF(AZ54="x","x",(-MAX($AT$6:$AT$65)+AT54+240)+220-hlavicka!$C$30*(-MIN($AX$6:$AX$65)+AX54)*60*24) -> x | BB54: x | BC54: x | BD54: x | BE54: x | BF54: x | BG54: =IF(G54="x","x",(+hlavicka!$C$31+G54-1)) -> x | BH54: =IF(AV54="x","x",IF(AV54>=hlavicka!$C$32,hlavicka!$C$32,AV54)) -> x | BI54: x | BL54: x | BM54: x | BN54: x | BO54: x
A55: 50 | C55: x | D55: x | E55: x | F55: x | G55: x | H55: x | I55: x | J55: x | K55: x | L55: x | M55: x | P55: 0 | Q55: 0 | R55: 0 | Z55: =60-hlavicka!$C$7*(+hlavicka!$C$6-T55) -> -18 | AA55: 0 | AB55: -18 | AC55: x | AK55: =IF(AE55="","0",60-hlavicka!$C$7*(+hlavicka!$C$6-AE55)) -> 0 | AL55: 0 | AM55: 0 | AN55: x | AO55: -18 | AP55: x | AQ55: =IF(AE55="","x",60-hlavicka!$C$7*(+hlavicka!$C$6-AE55)+AL55) -> x | AR55: =IF(AC55<=hlavicka!$C$10,"ano","") ->  | AT55: x | AU55: x | AV55: =IF(AT55="x","x",(MAX($AT$6:$AT$65)-AT55)/hlavicka!$C$30/60/24) -> x | AW55: x | AX55: x | AY55: x | AZ55: x | BA55: =IF(AZ55="x","x",(-MAX($AT$6:$AT$65)+AT55+240)+220-hlavicka!$C$30*(-MIN($AX$6:$AX$65)+AX55)*60*24) -> x | BB55: x | BC55: x | BD55: x | BE55: x | BF55: x | BG55: =IF(G55="x","x",(+hlavicka!$C$31+G55-1)) -> x | BH55: =IF(AV55="x","x",IF(AV55>=hlavicka!$C$32,hlavicka!$C$32,AV55)) -> x | BI55: x | BL55: x | BM55: x | BN55: x | BO55: x
A56: 51 | C56: x | D56: x | E56: x | F56: x | G56: x | H56: x | I56: x | J56: x | K56: x | L56: x | M56: x | P56: 0 | Q56: 0 | R56: 0 | Z56: =60-hlavicka!$C$7*(+hlavicka!$C$6-T56) -> -18 | AA56: 0 | AB56: -18 | AC56: x | AK56: =IF(AE56="","0",60-hlavicka!$C$7*(+hlavicka!$C$6-AE56)) -> 0 | AL56: 0 | AM56: 0 | AN56: x | AO56: -18 | AP56: x | AQ56: =IF(AE56="","x",60-hlavicka!$C$7*(+hlavicka!$C$6-AE56)+AL56) -> x | AR56: =IF(AC56<=hlavicka!$C$10,"ano","") ->  | AT56: x | AU56: x | AV56: =IF(AT56="x","x",(MAX($AT$6:$AT$65)-AT56)/hlavicka!$C$30/60/24) -> x | AW56: x | AX56: x | AY56: x | AZ56: x | BA56: =IF(AZ56="x","x",(-MAX($AT$6:$AT$65)+AT56+240)+220-hlavicka!$C$30*(-MIN($AX$6:$AX$65)+AX56)*60*24) -> x | BB56: x | BC56: x | BD56: x | BE56: x | BF56: x | BG56: =IF(G56="x","x",(+hlavicka!$C$31+G56-1)) -> x | BH56: =IF(AV56="x","x",IF(AV56>=hlavicka!$C$32,hlavicka!$C$32,AV56)) -> x | BI56: x | BL56: x | BM56: x | BN56: x | BO56: x
A57: 52 | C57: x | D57: x | E57: x | F57: x | G57: x | H57: x | I57: x | J57: x | K57: x | L57: x | M57: x | P57: 0 | Q57: 0 | R57: 0 | Z57: =60-hlavicka!$C$7*(+hlavicka!$C$6-T57) -> -18 | AA57: 0 | AB57: -18 | AC57: x | AK57: =IF(AE57="","0",60-hlavicka!$C$7*(+hlavicka!$C$6-AE57)) -> 0 | AL57: 0 | AM57: 0 | AN57: x | AO57: -18 | AP57: x | AQ57: =IF(AE57="","x",60-hlavicka!$C$7*(+hlavicka!$C$6-AE57)+AL57) -> x | AR57: =IF(AC57<=hlavicka!$C$10,"ano","") ->  | AT57: x | AU57: x | AV57: =IF(AT57="x","x",(MAX($AT$6:$AT$65)-AT57)/hlavicka!$C$30/60/24) -> x | AW57: x | AX57: x | AY57: x | AZ57: x | BA57: =IF(AZ57="x","x",(-MAX($AT$6:$AT$65)+AT57+240)+220-hlavicka!$C$30*(-MIN($AX$6:$AX$65)+AX57)*60*24) -> x | BB57: x | BC57: x | BD57: x | BE57: x | BF57: x | BG57: =IF(G57="x","x",(+hlavicka!$C$31+G57-1)) -> x | BH57: =IF(AV57="x","x",IF(AV57>=hlavicka!$C$32,hlavicka!$C$32,AV57)) -> x | BI57: x | BL57: x | BM57: x | BN57: x | BO57: x
A58: 53 | C58: x | D58: x | E58: x | F58: x | G58: x | H58: x | I58: x | J58: x | K58: x | L58: x | M58: x | P58: 0 | Q58: 0 | R58: 0 | Z58: =60-hlavicka!$C$7*(+hlavicka!$C$6-T58) -> -18 | AA58: 0 | AB58: -18 | AC58: x | AK58: =IF(AE58="","0",60-hlavicka!$C$7*(+hlavicka!$C$6-AE58)) -> 0 | AL58: 0 | AM58: 0 | AN58: x | AO58: -18 | AP58: x | AQ58: =IF(AE58="","x",60-hlavicka!$C$7*(+hlavicka!$C$6-AE58)+AL58) -> x | AR58: =IF(AC58<=hlavicka!$C$10,"ano","") ->  | AT58: x | AU58: x | AV58: =IF(AT58="x","x",(MAX($AT$6:$AT$65)-AT58)/hlavicka!$C$30/60/24) -> x | AW58: x | AX58: x | AY58: x | AZ58: x | BA58: =IF(AZ58="x","x",(-MAX($AT$6:$AT$65)+AT58+240)+220-hlavicka!$C$30*(-MIN($AX$6:$AX$65)+AX58)*60*24) -> x | BB58: x | BC58: x | BD58: x | BE58: x | BF58: x | BG58: =IF(G58="x","x",(+hlavicka!$C$31+G58-1)) -> x | BH58: =IF(AV58="x","x",IF(AV58>=hlavicka!$C$32,hlavicka!$C$32,AV58)) -> x | BI58: x | BL58: x | BM58: x | BN58: x | BO58: x
A59: 54 | C59: x | D59: x | E59: x | F59: x | G59: x | H59: x | I59: x | J59: x | K59: x | L59: x | M59: x | P59: 0 | Q59: 0 | R59: 0 | Z59: =60-hlavicka!$C$7*(+hlavicka!$C$6-T59) -> -18 | AA59: 0 | AB59: -18 | AC59: x | AK59: =IF(AE59="","0",60-hlavicka!$C$7*(+hlavicka!$C$6-AE59)) -> 0 | AL59: 0 | AM59: 0 | AN59: x | AO59: -18 | AP59: x | AQ59: =IF(AE59="","x",60-hlavicka!$C$7*(+hlavicka!$C$6-AE59)+AL59) -> x | AR59: =IF(AC59<=hlavicka!$C$10,"ano","") ->  | AT59: x | AU59: x | AV59: =IF(AT59="x","x",(MAX($AT$6:$AT$65)-AT59)/hlavicka!$C$30/60/24) -> x | AW59: x | AX59: x | AY59: x | AZ59: x | BA59: =IF(AZ59="x","x",(-MAX($AT$6:$AT$65)+AT59+240)+220-hlavicka!$C$30*(-MIN($AX$6:$AX$65)+AX59)*60*24) -> x | BB59: x | BC59: x | BD59: x | BE59: x | BF59: x | BG59: =IF(G59="x","x",(+hlavicka!$C$31+G59-1)) -> x | BH59: =IF(AV59="x","x",IF(AV59>=hlavicka!$C$32,hlavicka!$C$32,AV59)) -> x | BI59: x | BL59: x | BM59: x | BN59: x | BO59: x
A60: 55 | C60: x | D60: x | E60: x | F60: x | G60: x | H60: x | I60: x | J60: x | K60: x | L60: x | M60: x | P60: 0 | Q60: 0 | R60: 0 | Z60: =60-hlavicka!$C$7*(+hlavicka!$C$6-T60) -> -18 | AA60: 0 | AB60: -18 | AC60: x | AK60: =IF(AE60="","0",60-hlavicka!$C$7*(+hlavicka!$C$6-AE60)) -> 0 | AL60: 0 | AM60: 0 | AN60: x | AO60: -18 | AP60: x | AQ60: =IF(AE60="","x",60-hlavicka!$C$7*(+hlavicka!$C$6-AE60)+AL60) -> x | AR60: =IF(AC60<=hlavicka!$C$10,"ano","") ->  | AT60: x | AU60: x | AV60: =IF(AT60="x","x",(MAX($AT$6:$AT$65)-AT60)/hlavicka!$C$30/60/24) -> x | AW60: x | AX60: x | AY60: x | AZ60: x | BA60: =IF(AZ60="x","x",(-MAX($AT$6:$AT$65)+AT60+240)+220-hlavicka!$C$30*(-MIN($AX$6:$AX$65)+AX60)*60*24) -> x | BB60: x | BC60: x | BD60: x | BE60: x | BF60: x | BG60: =IF(G60="x","x",(+hlavicka!$C$31+G60-1)) -> x | BH60: =IF(AV60="x","x",IF(AV60>=hlavicka!$C$32,hlavicka!$C$32,AV60)) -> x | BI60: x | BL60: x | BM60: x | BN60: x | BO60: x
A61: 56 | C61: x | D61: x | E61: x | F61: x | G61: x | H61: x | I61: x | J61: x | K61: x | L61: x | M61: x | P61: 0 | Q61: 0 | R61: 0 | Z61: =60-hlavicka!$C$7*(+hlavicka!$C$6-T61) -> -18 | AA61: 0 | AB61: -18 | AC61: x | AK61: =IF(AE61="","0",60-hlavicka!$C$7*(+hlavicka!$C$6-AE61)) -> 0 | AL61: 0 | AM61: 0 | AN61: x | AO61: -18 | AP61: x | AQ61: =IF(AE61="","x",60-hlavicka!$C$7*(+hlavicka!$C$6-AE61)+AL61) -> x | AR61: =IF(AC61<=hlavicka!$C$10,"ano","") ->  | AT61: x | AU61: x | AV61: =IF(AT61="x","x",(MAX($AT$6:$AT$65)-AT61)/hlavicka!$C$30/60/24) -> x | AW61: x | AX61: x | AY61: x | AZ61: x | BA61: =IF(AZ61="x","x",(-MAX($AT$6:$AT$65)+AT61+240)+220-hlavicka!$C$30*(-MIN($AX$6:$AX$65)+AX61)*60*24) -> x | BB61: x | BC61: x | BD61: x | BE61: x | BF61: x | BG61: =IF(G61="x","x",(+hlavicka!$C$31+G61-1)) -> x | BH61: =IF(AV61="x","x",IF(AV61>=hlavicka!$C$32,hlavicka!$C$32,AV61)) -> x | BI61: x | BL61: x | BM61: x | BN61: x | BO61: x
A62: 57 | C62: x | D62: x | E62: x | F62: x | G62: x | H62: x | I62: x | J62: x | K62: x | L62: x | M62: x | P62: 0 | Q62: 0 | R62: 0 | Z62: =60-hlavicka!$C$7*(+hlavicka!$C$6-T62) -> -18 | AA62: 0 | AB62: -18 | AC62: x | AK62: =IF(AE62="","0",60-hlavicka!$C$7*(+hlavicka!$C$6-AE62)) -> 0 | AL62: 0 | AM62: 0 | AN62: x | AO62: -18 | AP62: x | AQ62: =IF(AE62="","x",60-hlavicka!$C$7*(+hlavicka!$C$6-AE62)+AL62) -> x | AR62: =IF(AC62<=hlavicka!$C$10,"ano","") ->  | AT62: x | AU62: x | AV62: =IF(AT62="x","x",(MAX($AT$6:$AT$65)-AT62)/hlavicka!$C$30/60/24) -> x | AW62: x | AX62: x | AY62: x | AZ62: x | BA62: =IF(AZ62="x","x",(-MAX($AT$6:$AT$65)+AT62+240)+220-hlavicka!$C$30*(-MIN($AX$6:$AX$65)+AX62)*60*24) -> x | BB62: x | BC62: x | BD62: x | BE62: x | BF62: x | BG62: =IF(G62="x","x",(+hlavicka!$C$31+G62-1)) -> x | BH62: =IF(AV62="x","x",IF(AV62>=hlavicka!$C$32,hlavicka!$C$32,AV62)) -> x | BI62: x | BL62: x | BM62: x | BN62: x | BO62: x
A63: 58 | C63: x | D63: x | E63: x | F63: x | G63: x | H63: x | I63: x | J63: x | K63: x | L63: x | M63: x | P63: 0 | Q63: 0 | R63: 0 | Z63: =60-hlavicka!$C$7*(+hlavicka!$C$6-T63) -> -18 | AA63: 0 | AB63: -18 | AC63: x | AK63: =IF(AE63="","0",60-hlavicka!$C$7*(+hlavicka!$C$6-AE63)) -> 0 | AL63: 0 | AM63: 0 | AN63: x | AO63: -18 | AP63: x | AQ63: =IF(AE63="","x",60-hlavicka!$C$7*(+hlavicka!$C$6-AE63)+AL63) -> x | AR63: =IF(AC63<=hlavicka!$C$10,"ano","") ->  | AT63: x | AU63: x | AV63: =IF(AT63="x","x",(MAX($AT$6:$AT$65)-AT63)/hlavicka!$C$30/60/24) -> x | AW63: x | AX63: x | AY63: x | AZ63: x | BA63: =IF(AZ63="x","x",(-MAX($AT$6:$AT$65)+AT63+240)+220-hlavicka!$C$30*(-MIN($AX$6:$AX$65)+AX63)*60*24) -> x | BB63: x | BC63: x | BD63: x | BE63: x | BF63: x | BG63: =IF(G63="x","x",(+hlavicka!$C$31+G63-1)) -> x | BH63: =IF(AV63="x","x",IF(AV63>=hlavicka!$C$32,hlavicka!$C$32,AV63)) -> x | BI63: x | BL63: x | BM63: x | BN63: x | BO63: x
A64: 59 | C64: x | D64: x | E64: x | F64: x | G64: x | H64: x | I64: x | J64: x | K64: x | L64: x | M64: x | P64: 0 | Q64: 0 | R64: 0 | Z64: =60-hlavicka!$C$7*(+hlavicka!$C$6-T64) -> -18 | AA64: 0 | AB64: -18 | AC64: x | AK64: =IF(AE64="","0",60-hlavicka!$C$7*(+hlavicka!$C$6-AE64)) -> 0 | AL64: 0 | AM64: 0 | AN64: x | AO64: -18 | AP64: x | AQ64: =IF(AE64="","x",60-hlavicka!$C$7*(+hlavicka!$C$6-AE64)+AL64) -> x | AR64: =IF(AC64<=hlavicka!$C$10,"ano","") ->  | AT64: x | AU64: x | AV64: =IF(AT64="x","x",(MAX($AT$6:$AT$65)-AT64)/hlavicka!$C$30/60/24) -> x | AW64: x | AX64: x | AY64: x | AZ64: x | BA64: =IF(AZ64="x","x",(-MAX($AT$6:$AT$65)+AT64+240)+220-hlavicka!$C$30*(-MIN($AX$6:$AX$65)+AX64)*60*24) -> x | BB64: x | BC64: x | BD64: x | BE64: x | BF64: x | BG64: =IF(G64="x","x",(+hlavicka!$C$31+G64-1)) -> x | BH64: =IF(AV64="x","x",IF(AV64>=hlavicka!$C$32,hlavicka!$C$32,AV64)) -> x | BI64: x | BL64: x | BM64: x | BN64: x | BO64: x
A65: 60 | C65: x | D65: x | E65: x | F65: x | G65: x | H65: x | I65: x | J65: x | K65: x | L65: x | M65: x | P65: 0 | Q65: 0 | R65: 0 | Z65: =60-hlavicka!$C$7*(+hlavicka!$C$6-T65) -> -18 | AA65: 0 | AB65: -18 | AC65: x | AK65: =IF(AE65="","0",60-hlavicka!$C$7*(+hlavicka!$C$6-AE65)) -> 0 | AL65: 0 | AM65: 0 | AN65: x | AO65: -18 | AP65: x | AQ65: =IF(AE65="","x",60-hlavicka!$C$7*(+hlavicka!$C$6-AE65)+AL65) -> x | AR65: =IF(AC65<=hlavicka!$C$10,"ano","") ->  | AT65: x | AU65: x | AV65: =IF(AT65="x","x",(MAX($AT$6:$AT$65)-AT65)/hlavicka!$C$30/60/24) -> x | AW65: x | AX65: x | AY65: x | AZ65: x | BA65: =IF(AZ65="x","x",(-MAX($AT$6:$AT$65)+AT65+240)+220-hlavicka!$C$30*(-MIN($AX$6:$AX$65)+AX65)*60*24) -> x | BB65: x | BC65: x | BD65: x | BE65: x | BF65: x | BG65: =IF(G65="x","x",(+hlavicka!$C$31+G65-1)) -> x | BH65: =IF(AV65="x","x",IF(AV65>=hlavicka!$C$32,hlavicka!$C$32,AV65)) -> x | BI65: x | BL65: x | BM65: x | BN65: x | BO65: x

Sheet start
B1: Startovní listina | D1: =CONCATENATE("K ",hlavicka!C6) -> K 13 | I1: =+hlavicka!C11 -> Žáci U10M 2017-2016
B2: =+vyslSL!B2 -> Český pohár žactva ve skoku na lyžích - 9/SL | I2: =+vyslSL!Q2 -> dne: 21.11.2015
B3: =+vyslSL!B3 -> skok.můstek: K 13 | I3: =+vyslSL!Q3 -> LSK Lomnice
B4: =+vyslSL!B4 -> certifikát můstku č.135/C35/SL pl. do | I4: =+vyslSL!Q4 -> K = 60 b. +/- 6 b./m
B5: st.č. | C5: jméno | D5: klub | E5: stát | F5: nar. | G5: komb. | H5: 1. skok | I5: 2. skok
A6: 1 | B6: =VLOOKUP(A6,počty!$I$6:$AP$65,6,0) -> 13 | C6: =VLOOKUP(A6,počty!$I$6:$AP$65,7,0) -> Zapadlová Sára | D6: =VLOOKUP(A6,počty!$I$6:$AP$65,8,0) -> Lyžařský sportovní klub Lomnice nad Popelkou | E6: =VLOOKUP(A6,počty!$I$6:$AP$65,9,0) -> CZE | F6: =VLOOKUP(A6,počty!$I$6:$AP$65,10,0) -> 2016 | G6: =VLOOKUP(A6,počty!$I$6:$AP$65,11,0) -> x
A7: 2 | B7: =VLOOKUP(A7,počty!$I$6:$AP$65,6,0) -> 22 | C7: =VLOOKUP(A7,počty!$I$6:$AP$65,7,0) -> Sankot Antonín | D7: =VLOOKUP(A7,počty!$I$6:$AP$65,8,0) -> Lyžařský sportovní klub Lomnice nad Popelkou | E7: =VLOOKUP(A7,počty!$I$6:$AP$65,9,0) -> CZE | F7: =VLOOKUP(A7,počty!$I$6:$AP$65,10,0) -> 2017 | G7: =VLOOKUP(A7,počty!$I$6:$AP$65,11,0) -> x
A8: 3 | B8: =VLOOKUP(A8,počty!$I$6:$AP$65,6,0) -> 23 | C8: =VLOOKUP(A8,počty!$I$6:$AP$65,7,0) -> Břečka Matyáš | D8: =VLOOKUP(A8,počty!$I$6:$AP$65,8,0) -> Lyžařský sportovní klub Lomnice nad Popelkou | E8: =VLOOKUP(A8,počty!$I$6:$AP$65,9,0) -> CZE | F8: =VLOOKUP(A8,počty!$I$6:$AP$65,10,0) -> 2014 | G8: =VLOOKUP(A8,počty!$I$6:$AP$65,11,0) -> x
A9: 4 | B9: =VLOOKUP(A9,počty!$I$6:$AP$65,6,0) -> 24 | C9: =VLOOKUP(A9,počty!$I$6:$AP$65,7,0) -> Huráňová Karolína | D9: =VLOOKUP(A9,počty!$I$6:$AP$65,8,0) -> Lyžařský sportovní klub Lomnice nad Popelkou | E9: =VLOOKUP(A9,počty!$I$6:$AP$65,9,0) -> CZE | F9: =VLOOKUP(A9,počty!$I$6:$AP$65,10,0) -> 2015 | G9: =VLOOKUP(A9,počty!$I$6:$AP$65,11,0) -> x
A10: 5 | B10: =VLOOKUP(A10,počty!$I$6:$AP$65,6,0) -> 25 | C10: =VLOOKUP(A10,počty!$I$6:$AP$65,7,0) -> Ježek Jakub | D10: =VLOOKUP(A10,počty!$I$6:$AP$65,8,0) -> Lyžařský sportovní klub Lomnice nad Popelkou | E10: =VLOOKUP(A10,počty!$I$6:$AP$65,9,0) -> CZE | F10: =VLOOKUP(A10,počty!$I$6:$AP$65,10,0) -> 2015 | G10: =VLOOKUP(A10,počty!$I$6:$AP$65,11,0) -> x
A11: 6 | B11: =VLOOKUP(A11,počty!$I$6:$AP$65,6,0) ->  | C11: =VLOOKUP(A11,počty!$I$6:$AP$65,7,0) ->  | D11: =VLOOKUP(A11,počty!$I$6:$AP$65,8,0) ->  | E11: =VLOOKUP(A11,počty!$I$6:$AP$65,9,0) ->  | F11: =VLOOKUP(A11,počty!$I$6:$AP$65,10,0) ->  | G11: =VLOOKUP(A11,počty!$I$6:$AP$65,11,0) -> 
A12: 7 | B12: =VLOOKUP(A12,počty!$I$6:$AP$65,6,0) ->  | C12: =VLOOKUP(A12,počty!$I$6:$AP$65,7,0) ->  | D12: =VLOOKUP(A12,počty!$I$6:$AP$65,8,0) ->  | E12: =VLOOKUP(A12,počty!$I$6:$AP$65,9,0) ->  | F12: =VLOOKUP(A12,počty!$I$6:$AP$65,10,0) ->  | G12: =VLOOKUP(A12,počty!$I$6:$AP$65,11,0) -> 
A13: 8 | B13: =VLOOKUP(A13,počty!$I$6:$AP$65,6,0) ->  | C13: =VLOOKUP(A13,počty!$I$6:$AP$65,7,0) ->  | D13: =VLOOKUP(A13,počty!$I$6:$AP$65,8,0) ->  | E13: =VLOOKUP(A13,počty!$I$6:$AP$65,9,0) ->  | F13: =VLOOKUP(A13,počty!$I$6:$AP$65,10,0) ->  | G13: =VLOOKUP(A13,počty!$I$6:$AP$65,11,0) -> 
A14: 9 | B14: =VLOOKUP(A14,počty!$I$6:$AP$65,6,0) ->  | C14: =VLOOKUP(A14,počty!$I$6:$AP$65,7,0) ->  | D14: =VLOOKUP(A14,počty!$I$6:$AP$65,8,0) ->  | E14: =VLOOKUP(A14,počty!$I$6:$AP$65,9,0) ->  | F14: =VLOOKUP(A14,počty!$I$6:$AP$65,10,0) ->  | G14: =VLOOKUP(A14,počty!$I$6:$AP$65,11,0) -> 
A15: 10 | B15: =VLOOKUP(A15,počty!$I$6:$AP$65,6,0) ->  | C15: =VLOOKUP(A15,počty!$I$6:$AP$65,7,0) ->  | D15: =VLOOKUP(A15,počty!$I$6:$AP$65,8,0) ->  | E15: =VLOOKUP(A15,počty!$I$6:$AP$65,9,0) ->  | F15: =VLOOKUP(A15,počty!$I$6:$AP$65,10,0) ->  | G15: =VLOOKUP(A15,počty!$I$6:$AP$65,11,0) -> 
A16: 11 | B16: =VLOOKUP(A16,počty!$I$6:$AP$65,6,0) ->  | C16: =VLOOKUP(A16,počty!$I$6:$AP$65,7,0) ->  | D16: =VLOOKUP(A16,počty!$I$6:$AP$65,8,0) ->  | E16: =VLOOKUP(A16,počty!$I$6:$AP$65,9,0) ->  | F16: =VLOOKUP(A16,počty!$I$6:$AP$65,10,0) ->  | G16: =VLOOKUP(A16,počty!$I$6:$AP$65,11,0) -> 
A17: 12 | B17: =VLOOKUP(A17,počty!$I$6:$AP$65,6,0) ->  | C17: =VLOOKUP(A17,počty!$I$6:$AP$65,7,0) ->  | D17: =VLOOKUP(A17,počty!$I$6:$AP$65,8,0) ->  | E17: =VLOOKUP(A17,počty!$I$6:$AP$65,9,0) ->  | F17: =VLOOKUP(A17,počty!$I$6:$AP$65,10,0) ->  | G17: =VLOOKUP(A17,počty!$I$6:$AP$65,11,0) -> 
A18: 13 | B18: =VLOOKUP(A18,počty!$I$6:$AP$65,6,0) ->  | C18: =VLOOKUP(A18,počty!$I$6:$AP$65,7,0) ->  | D18: =VLOOKUP(A18,počty!$I$6:$AP$65,8,0) ->  | E18: =VLOOKUP(A18,počty!$I$6:$AP$65,9,0) ->  | F18: =VLOOKUP(A18,počty!$I$6:$AP$65,10,0) ->  | G18: =VLOOKUP(A18,počty!$I$6:$AP$65,11,0) -> 
A19: 14 | B19: =VLOOKUP(A19,počty!$I$6:$AP$65,6,0) ->  | C19: =VLOOKUP(A19,počty!$I$6:$AP$65,7,0) ->  | D19: =VLOOKUP(A19,počty!$I$6:$AP$65,8,0) ->  | E19: =VLOOKUP(A19,počty!$I$6:$AP$65,9,0) ->  | F19: =VLOOKUP(A19,počty!$I$6:$AP$65,10,0) ->  | G19: =VLOOKUP(A19,počty!$I$6:$AP$65,11,0) -> 
A20: 15 | B20: =VLOOKUP(A20,počty!$I$6:$AP$65,6,0) ->  | C20: =VLOOKUP(A20,počty!$I$6:$AP$65,7,0) ->  | D20: =VLOOKUP(A20,počty!$I$6:$AP$65,8,0) ->  | E20: =VLOOKUP(A20,počty!$I$6:$AP$65,9,0) ->  | F20: =VLOOKUP(A20,počty!$I$6:$AP$65,10,0) ->  | G20: =VLOOKUP(A20,počty!$I$6:$AP$65,11,0) -> 
A21: 16 | B21: =VLOOKUP(A21,počty!$I$6:$AP$65,6,0) ->  | C21: =VLOOKUP(A21,počty!$I$6:$AP$65,7,0) ->  | D21: =VLOOKUP(A21,počty!$I$6:$AP$65,8,0) ->  | E21: =VLOOKUP(A21,počty!$I$6:$AP$65,9,0) ->  | F21: =VLOOKUP(A21,počty!$I$6:$AP$65,10,0) ->  | G21: =VLOOKUP(A21,počty!$I$6:$AP$65,11,0) -> 
A22: 17 | B22: =VLOOKUP(A22,počty!$I$6:$AP$65,6,0) ->  | C22: =VLOOKUP(A22,počty!$I$6:$AP$65,7,0) ->  | D22: =VLOOKUP(A22,počty!$I$6:$AP$65,8,0) ->  | E22: =VLOOKUP(A22,počty!$I$6:$AP$65,9,0) ->  | F22: =VLOOKUP(A22,počty!$I$6:$AP$65,10,0) ->  | G22: =VLOOKUP(A22,počty!$I$6:$AP$65,11,0) -> 
A23: 18 | B23: =VLOOKUP(A23,počty!$I$6:$AP$65,6,0) ->  | C23: =VLOOKUP(A23,počty!$I$6:$AP$65,7,0) ->  | D23: =VLOOKUP(A23,počty!$I$6:$AP$65,8,0) ->  | E23: =VLOOKUP(A23,počty!$I$6:$AP$65,9,0) ->  | F23: =VLOOKUP(A23,počty!$I$6:$AP$65,10,0) ->  | G23: =VLOOKUP(A23,počty!$I$6:$AP$65,11,0) -> 
A24: 19 | B24: =VLOOKUP(A24,počty!$I$6:$AP$65,6,0) ->  | C24: =VLOOKUP(A24,počty!$I$6:$AP$65,7,0) ->  | D24: =VLOOKUP(A24,počty!$I$6:$AP$65,8,0) ->  | E24: =VLOOKUP(A24,počty!$I$6:$AP$65,9,0) ->  | F24: =VLOOKUP(A24,počty!$I$6:$AP$65,10,0) ->  | G24: =VLOOKUP(A24,počty!$I$6:$AP$65,11,0) -> 
A25: 20 | B25: =VLOOKUP(A25,počty!$I$6:$AP$65,6,0) ->  | C25: =VLOOKUP(A25,počty!$I$6:$AP$65,7,0) ->  | D25: =VLOOKUP(A25,počty!$I$6:$AP$65,8,0) ->  | E25: =VLOOKUP(A25,počty!$I$6:$AP$65,9,0) ->  | F25: =VLOOKUP(A25,počty!$I$6:$AP$65,10,0) ->  | G25: =VLOOKUP(A25,počty!$I$6:$AP$65,11,0) -> 
A26: 21 | B26: =VLOOKUP(A26,počty!$I$6:$AP$65,6,0) ->  | C26: =VLOOKUP(A26,počty!$I$6:$AP$65,7,0) ->  | D26: =VLOOKUP(A26,počty!$I$6:$AP$65,8,0) ->  | E26: =VLOOKUP(A26,počty!$I$6:$AP$65,9,0) ->  | F26: =VLOOKUP(A26,počty!$I$6:$AP$65,10,0) ->  | G26: =VLOOKUP(A26,počty!$I$6:$AP$65,11,0) -> 
A27: 22 | B27: =VLOOKUP(A27,počty!$I$6:$AP$65,6,0) ->  | C27: =VLOOKUP(A27,počty!$I$6:$AP$65,7,0) ->  | D27: =VLOOKUP(A27,počty!$I$6:$AP$65,8,0) ->  | E27: =VLOOKUP(A27,počty!$I$6:$AP$65,9,0) ->  | F27: =VLOOKUP(A27,počty!$I$6:$AP$65,10,0) ->  | G27: =VLOOKUP(A27,počty!$I$6:$AP$65,11,0) -> 
A28: 23 | B28: =VLOOKUP(A28,počty!$I$6:$AP$65,6,0) ->  | C28: =VLOOKUP(A28,počty!$I$6:$AP$65,7,0) ->  | D28: =VLOOKUP(A28,počty!$I$6:$AP$65,8,0) ->  | E28: =VLOOKUP(A28,počty!$I$6:$AP$65,9,0) ->  | F28: =VLOOKUP(A28,počty!$I$6:$AP$65,10,0) ->  | G28: =VLOOKUP(A28,počty!$I$6:$AP$65,11,0) -> 
A29: 24 | B29: =VLOOKUP(A29,počty!$I$6:$AP$65,6,0) ->  | C29: =VLOOKUP(A29,počty!$I$6:$AP$65,7,0) ->  | D29: =VLOOKUP(A29,počty!$I$6:$AP$65,8,0) ->  | E29: =VLOOKUP(A29,počty!$I$6:$AP$65,9,0) ->  | F29: =VLOOKUP(A29,počty!$I$6:$AP$65,10,0) ->  | G29: =VLOOKUP(A29,počty!$I$6:$AP$65,11,0) -> 
A30: 25 | B30: =VLOOKUP(A30,počty!$I$6:$AP$65,6,0) ->  | C30: =VLOOKUP(A30,počty!$I$6:$AP$65,7,0) ->  | D30: =VLOOKUP(A30,počty!$I$6:$AP$65,8,0) ->  | E30: =VLOOKUP(A30,počty!$I$6:$AP$65,9,0) ->  | F30: =VLOOKUP(A30,počty!$I$6:$AP$65,10,0) ->  | G30: =VLOOKUP(A30,počty!$I$6:$AP$65,11,0) -> 
A31: 26 | B31: =VLOOKUP(A31,počty!$I$6:$AP$65,6,0) ->  | C31: =VLOOKUP(A31,počty!$I$6:$AP$65,7,0) ->  | D31: =VLOOKUP(A31,počty!$I$6:$AP$65,8,0) ->  | E31: =VLOOKUP(A31,počty!$I$6:$AP$65,9,0) ->  | F31: =VLOOKUP(A31,počty!$I$6:$AP$65,10,0) ->  | G31: =VLOOKUP(A31,počty!$I$6:$AP$65,11,0) -> 
A32: 27 | B32: =VLOOKUP(A32,počty!$I$6:$AP$65,6,0) ->  | C32: =VLOOKUP(A32,počty!$I$6:$AP$65,7,0) ->  | D32: =VLOOKUP(A32,počty!$I$6:$AP$65,8,0) ->  | E32: =VLOOKUP(A32,počty!$I$6:$AP$65,9,0) ->  | F32: =VLOOKUP(A32,počty!$I$6:$AP$65,10,0) ->  | G32: =VLOOKUP(A32,počty!$I$6:$AP$65,11,0) -> 
A33: 28 | B33: =VLOOKUP(A33,počty!$I$6:$AP$65,6,0) ->  | C33: =VLOOKUP(A33,počty!$I$6:$AP$65,7,0) ->  | D33: =VLOOKUP(A33,počty!$I$6:$AP$65,8,0) ->  | E33: =VLOOKUP(A33,počty!$I$6:$AP$65,9,0) ->  | F33: =VLOOKUP(A33,počty!$I$6:$AP$65,10,0) ->  | G33: =VLOOKUP(A33,počty!$I$6:$AP$65,11,0) -> 
A34: 29 | B34: =VLOOKUP(A34,počty!$I$6:$AP$65,6,0) ->  | C34: =VLOOKUP(A34,počty!$I$6:$AP$65,7,0) ->  | D34: =VLOOKUP(A34,počty!$I$6:$AP$65,8,0) ->  | E34: =VLOOKUP(A34,počty!$I$6:$AP$65,9,0) ->  | F34: =VLOOKUP(A34,počty!$I$6:$AP$65,10,0) ->  | G34: =VLOOKUP(A34,počty!$I$6:$AP$65,11,0) -> 
A35: 30 | B35: =VLOOKUP(A35,počty!$I$6:$AP$65,6,0) ->  | C35: =VLOOKUP(A35,počty!$I$6:$AP$65,7,0) ->  | D35: =VLOOKUP(A35,počty!$I$6:$AP$65,8,0) ->  | E35: =VLOOKUP(A35,počty!$I$6:$AP$65,9,0) ->  | F35: =VLOOKUP(A35,počty!$I$6:$AP$65,10,0) ->  | G35: =VLOOKUP(A35,počty!$I$6:$AP$65,11,0) -> 
A36: 31 | B36: =VLOOKUP(A36,počty!$I$6:$AP$65,6,0) ->  | C36: =VLOOKUP(A36,počty!$I$6:$AP$65,7,0) ->  | D36: =VLOOKUP(A36,počty!$I$6:$AP$65,8,0) ->  | E36: =VLOOKUP(A36,počty!$I$6:$AP$65,9,0) ->  | F36: =VLOOKUP(A36,počty!$I$6:$AP$65,10,0) ->  | G36: =VLOOKUP(A36,počty!$I$6:$AP$65,11,0) -> 
A37: 32 | B37: =VLOOKUP(A37,počty!$I$6:$AP$65,6,0) ->  | C37: =VLOOKUP(A37,počty!$I$6:$AP$65,7,0) ->  | D37: =VLOOKUP(A37,počty!$I$6:$AP$65,8,0) ->  | E37: =VLOOKUP(A37,počty!$I$6:$AP$65,9,0) ->  | F37: =VLOOKUP(A37,počty!$I$6:$AP$65,10,0) ->  | G37: =VLOOKUP(A37,počty!$I$6:$AP$65,11,0) -> 
A38: 33 | B38: =VLOOKUP(A38,počty!$I$6:$AP$65,6,0) ->  | C38: =VLOOKUP(A38,počty!$I$6:$AP$65,7,0) ->  | D38: =VLOOKUP(A38,počty!$I$6:$AP$65,8,0) ->  | E38: =VLOOKUP(A38,počty!$I$6:$AP$65,9,0) ->  | F38: =VLOOKUP(A38,počty!$I$6:$AP$65,10,0) ->  | G38: =VLOOKUP(A38,počty!$I$6:$AP$65,11,0) -> 
A39: 34 | B39: =VLOOKUP(A39,počty!$I$6:$AP$65,6,0) ->  | C39: =VLOOKUP(A39,počty!$I$6:$AP$65,7,0) ->  | D39: =VLOOKUP(A39,počty!$I$6:$AP$65,8,0) ->  | E39: =VLOOKUP(A39,počty!$I$6:$AP$65,9,0) ->  | F39: =VLOOKUP(A39,počty!$I$6:$AP$65,10,0) ->  | G39: =VLOOKUP(A39,počty!$I$6:$AP$65,11,0) -> 
A40: 35 | B40: =VLOOKUP(A40,počty!$I$6:$AP$65,6,0) ->  | C40: =VLOOKUP(A40,počty!$I$6:$AP$65,7,0) ->  | D40: =VLOOKUP(A40,počty!$I$6:$AP$65,8,0) ->  | E40: =VLOOKUP(A40,počty!$I$6:$AP$65,9,0) ->  | F40: =VLOOKUP(A40,počty!$I$6:$AP$65,10,0) ->  | G40: =VLOOKUP(A40,počty!$I$6:$AP$65,11,0) -> 
A41: 36 | B41: =VLOOKUP(A41,počty!$I$6:$AP$65,6,0) ->  | C41: =VLOOKUP(A41,počty!$I$6:$AP$65,7,0) ->  | D41: =VLOOKUP(A41,počty!$I$6:$AP$65,8,0) ->  | E41: =VLOOKUP(A41,počty!$I$6:$AP$65,9,0) ->  | F41: =VLOOKUP(A41,počty!$I$6:$AP$65,10,0) ->  | G41: =VLOOKUP(A41,počty!$I$6:$AP$65,11,0) -> 
A42: 37 | B42: =VLOOKUP(A42,počty!$I$6:$AP$65,6,0) ->  | C42: =VLOOKUP(A42,počty!$I$6:$AP$65,7,0) ->  | D42: =VLOOKUP(A42,počty!$I$6:$AP$65,8,0) ->  | E42: =VLOOKUP(A42,počty!$I$6:$AP$65,9,0) ->  | F42: =VLOOKUP(A42,počty!$I$6:$AP$65,10,0) ->  | G42: =VLOOKUP(A42,počty!$I$6:$AP$65,11,0) -> 
A43: 38 | B43: =VLOOKUP(A43,počty!$I$6:$AP$65,6,0) ->  | C43: =VLOOKUP(A43,počty!$I$6:$AP$65,7,0) ->  | D43: =VLOOKUP(A43,počty!$I$6:$AP$65,8,0) ->  | E43: =VLOOKUP(A43,počty!$I$6:$AP$65,9,0) ->  | F43: =VLOOKUP(A43,počty!$I$6:$AP$65,10,0) ->  | G43: =VLOOKUP(A43,počty!$I$6:$AP$65,11,0) -> 
A44: 39 | B44: =VLOOKUP(A44,počty!$I$6:$AP$65,6,0) ->  | C44: =VLOOKUP(A44,počty!$I$6:$AP$65,7,0) ->  | D44: =VLOOKUP(A44,počty!$I$6:$AP$65,8,0) ->  | E44: =VLOOKUP(A44,počty!$I$6:$AP$65,9,0) ->  | F44: =VLOOKUP(A44,počty!$I$6:$AP$65,10,0) ->  | G44: =VLOOKUP(A44,počty!$I$6:$AP$65,11,0) -> 
A45: 40 | B45: =VLOOKUP(A45,počty!$I$6:$AP$65,6,0) ->  | C45: =VLOOKUP(A45,počty!$I$6:$AP$65,7,0) ->  | D45: =VLOOKUP(A45,počty!$I$6:$AP$65,8,0) ->  | E45: =VLOOKUP(A45,počty!$I$6:$AP$65,9,0) ->  | F45: =VLOOKUP(A45,počty!$I$6:$AP$65,10,0) ->  | G45: =VLOOKUP(A45,počty!$I$6:$AP$65,11,0) -> 
A46: 41 | B46: =VLOOKUP(A46,počty!$I$6:$AP$65,6,0) ->  | C46: =VLOOKUP(A46,počty!$I$6:$AP$65,7,0) ->  | D46: =VLOOKUP(A46,počty!$I$6:$AP$65,8,0) ->  | E46: =VLOOKUP(A46,počty!$I$6:$AP$65,9,0) ->  | F46: =VLOOKUP(A46,počty!$I$6:$AP$65,10,0) ->  | G46: =VLOOKUP(A46,počty!$I$6:$AP$65,11,0) -> 
A47: 42 | B47: =VLOOKUP(A47,počty!$I$6:$AP$65,6,0) ->  | C47: =VLOOKUP(A47,počty!$I$6:$AP$65,7,0) ->  | D47: =VLOOKUP(A47,počty!$I$6:$AP$65,8,0) ->  | E47: =VLOOKUP(A47,počty!$I$6:$AP$65,9,0) ->  | F47: =VLOOKUP(A47,počty!$I$6:$AP$65,10,0) ->  | G47: =VLOOKUP(A47,počty!$I$6:$AP$65,11,0) -> 
A48: 43 | B48: =VLOOKUP(A48,počty!$I$6:$AP$65,6,0) ->  | C48: =VLOOKUP(A48,počty!$I$6:$AP$65,7,0) ->  | D48: =VLOOKUP(A48,počty!$I$6:$AP$65,8,0) ->  | E48: =VLOOKUP(A48,počty!$I$6:$AP$65,9,0) ->  | F48: =VLOOKUP(A48,počty!$I$6:$AP$65,10,0) ->  | G48: =VLOOKUP(A48,počty!$I$6:$AP$65,11,0) -> 
A49: 44 | B49: =VLOOKUP(A49,počty!$I$6:$AP$65,6,0) ->  | C49: =VLOOKUP(A49,počty!$I$6:$AP$65,7,0) ->  | D49: =VLOOKUP(A49,počty!$I$6:$AP$65,8,0) ->  | E49: =VLOOKUP(A49,počty!$I$6:$AP$65,9,0) ->  | F49: =VLOOKUP(A49,počty!$I$6:$AP$65,10,0) ->  | G49: =VLOOKUP(A49,počty!$I$6:$AP$65,11,0) -> 
A50: 45 | B50: =VLOOKUP(A50,počty!$I$6:$AP$65,6,0) ->  | C50: =VLOOKUP(A50,počty!$I$6:$AP$65,7,0) ->  | D50: =VLOOKUP(A50,počty!$I$6:$AP$65,8,0) ->  | E50: =VLOOKUP(A50,počty!$I$6:$AP$65,9,0) ->  | F50: =VLOOKUP(A50,počty!$I$6:$AP$65,10,0) ->  | G50: =VLOOKUP(A50,počty!$I$6:$AP$65,11,0) -> 
A51: 46 | B51: =VLOOKUP(A51,počty!$I$6:$AP$65,6,0) ->  | C51: =VLOOKUP(A51,počty!$I$6:$AP$65,7,0) ->  | D51: =VLOOKUP(A51,počty!$I$6:$AP$65,8,0) ->  | E51: =VLOOKUP(A51,počty!$I$6:$AP$65,9,0) ->  | F51: =VLOOKUP(A51,počty!$I$6:$AP$65,10,0) ->  | G51: =VLOOKUP(A51,počty!$I$6:$AP$65,11,0) -> 
A52: 47 | B52: =VLOOKUP(A52,počty!$I$6:$AP$65,6,0) ->  | C52: =VLOOKUP(A52,počty!$I$6:$AP$65,7,0) ->  | D52: =VLOOKUP(A52,počty!$I$6:$AP$65,8,0) ->  | E52: =VLOOKUP(A52,počty!$I$6:$AP$65,9,0) ->  | F52: =VLOOKUP(A52,počty!$I$6:$AP$65,10,0) ->  | G52: =VLOOKUP(A52,počty!$I$6:$AP$65,11,0) -> 
A53: 48 | B53: =VLOOKUP(A53,počty!$I$6:$AP$65,6,0) ->  | C53: =VLOOKUP(A53,počty!$I$6:$AP$65,7,0) ->  | D53: =VLOOKUP(A53,počty!$I$6:$AP$65,8,0) ->  | E53: =VLOOKUP(A53,počty!$I$6:$AP$65,9,0) ->  | F53: =VLOOKUP(A53,počty!$I$6:$AP$65,10,0) ->  | G53: =VLOOKUP(A53,počty!$I$6:$AP$65,11,0) -> 
A54: 49 | B54: =VLOOKUP(A54,počty!$I$6:$AP$65,6,0) ->  | C54: =VLOOKUP(A54,počty!$I$6:$AP$65,7,0) ->  | D54: =VLOOKUP(A54,počty!$I$6:$AP$65,8,0) ->  | E54: =VLOOKUP(A54,počty!$I$6:$AP$65,9,0) ->  | F54: =VLOOKUP(A54,počty!$I$6:$AP$65,10,0) ->  | G54: =VLOOKUP(A54,počty!$I$6:$AP$65,11,0) -> 
A55: 50 | B55: =VLOOKUP(A55,počty!$I$6:$AP$65,6,0) ->  | C55: =VLOOKUP(A55,počty!$I$6:$AP$65,7,0) ->  | D55: =VLOOKUP(A55,počty!$I$6:$AP$65,8,0) ->  | E55: =VLOOKUP(A55,počty!$I$6:$AP$65,9,0) ->  | F55: =VLOOKUP(A55,počty!$I$6:$AP$65,10,0) ->  | G55: =VLOOKUP(A55,počty!$I$6:$AP$65,11,0) -> 
A56: 51 | B56: =VLOOKUP(A56,počty!$I$6:$AP$65,6,0) ->  | C56: =VLOOKUP(A56,počty!$I$6:$AP$65,7,0) ->  | D56: =VLOOKUP(A56,počty!$I$6:$AP$65,8,0) ->  | E56: =VLOOKUP(A56,počty!$I$6:$AP$65,9,0) ->  | F56: =VLOOKUP(A56,počty!$I$6:$AP$65,10,0) ->  | G56: =VLOOKUP(A56,počty!$I$6:$AP$65,11,0) -> 
A57: 52 | B57: =VLOOKUP(A57,počty!$I$6:$AP$65,6,0) ->  | C57: =VLOOKUP(A57,počty!$I$6:$AP$65,7,0) ->  | D57: =VLOOKUP(A57,počty!$I$6:$AP$65,8,0) ->  | E57: =VLOOKUP(A57,počty!$I$6:$AP$65,9,0) ->  | F57: =VLOOKUP(A57,počty!$I$6:$AP$65,10,0) ->  | G57: =VLOOKUP(A57,počty!$I$6:$AP$65,11,0) -> 
A58: 53 | B58: =VLOOKUP(A58,počty!$I$6:$AP$65,6,0) ->  | C58: =VLOOKUP(A58,počty!$I$6:$AP$65,7,0) ->  | D58: =VLOOKUP(A58,počty!$I$6:$AP$65,8,0) ->  | E58: =VLOOKUP(A58,počty!$I$6:$AP$65,9,0) ->  | F58: =VLOOKUP(A58,počty!$I$6:$AP$65,10,0) ->  | G58: =VLOOKUP(A58,počty!$I$6:$AP$65,11,0) -> 
A59: 54 | B59: =VLOOKUP(A59,počty!$I$6:$AP$65,6,0) ->  | C59: =VLOOKUP(A59,počty!$I$6:$AP$65,7,0) ->  | D59: =VLOOKUP(A59,počty!$I$6:$AP$65,8,0) ->  | E59: =VLOOKUP(A59,počty!$I$6:$AP$65,9,0) ->  | F59: =VLOOKUP(A59,počty!$I$6:$AP$65,10,0) ->  | G59: =VLOOKUP(A59,počty!$I$6:$AP$65,11,0) -> 
A60: 55 | B60: =VLOOKUP(A60,počty!$I$6:$AP$65,6,0) ->  | C60: =VLOOKUP(A60,počty!$I$6:$AP$65,7,0) ->  | D60: =VLOOKUP(A60,počty!$I$6:$AP$65,8,0) ->  | E60: =VLOOKUP(A60,počty!$I$6:$AP$65,9,0) ->  | F60: =VLOOKUP(A60,počty!$I$6:$AP$65,10,0) ->  | G60: =VLOOKUP(A60,počty!$I$6:$AP$65,11,0) -> 
A61: 56 | B61: =VLOOKUP(A61,počty!$I$6:$AP$65,6,0) ->  | C61: =VLOOKUP(A61,počty!$I$6:$AP$65,7,0) ->  | D61: =VLOOKUP(A61,počty!$I$6:$AP$65,8,0) ->  | E61: =VLOOKUP(A61,počty!$I$6:$AP$65,9,0) ->  | F61: =VLOOKUP(A61,počty!$I$6:$AP$65,10,0) ->  | G61: =VLOOKUP(A61,počty!$I$6:$AP$65,11,0) -> 
A62: 57 | B62: =VLOOKUP(A62,počty!$I$6:$AP$65,6,0) ->  | C62: =VLOOKUP(A62,počty!$I$6:$AP$65,7,0) ->  | D62: =VLOOKUP(A62,počty!$I$6:$AP$65,8,0) ->  | E62: =VLOOKUP(A62,počty!$I$6:$AP$65,9,0) ->  | F62: =VLOOKUP(A62,počty!$I$6:$AP$65,10,0) ->  | G62: =VLOOKUP(A62,počty!$I$6:$AP$65,11,0) -> 
A63: 58 | B63: =VLOOKUP(A63,počty!$I$6:$AP$65,6,0) ->  | C63: =VLOOKUP(A63,počty!$I$6:$AP$65,7,0) ->  | D63: =VLOOKUP(A63,počty!$I$6:$AP$65,8,0) ->  | E63: =VLOOKUP(A63,počty!$I$6:$AP$65,9,0) ->  | F63: =VLOOKUP(A63,počty!$I$6:$AP$65,10,0) ->  | G63: =VLOOKUP(A63,počty!$I$6:$AP$65,11,0) -> 
A64: 59 | B64: =VLOOKUP(A64,počty!$I$6:$AP$65,6,0) ->  | C64: =VLOOKUP(A64,počty!$I$6:$AP$65,7,0) ->  | D64: =VLOOKUP(A64,počty!$I$6:$AP$65,8,0) ->  | E64: =VLOOKUP(A64,počty!$I$6:$AP$65,9,0) ->  | F64: =VLOOKUP(A64,počty!$I$6:$AP$65,10,0) ->  | G64: =VLOOKUP(A64,počty!$I$6:$AP$65,11,0) -> 
A65: 60 | B65: =VLOOKUP(A65,počty!$I$6:$AP$65,6,0) ->  | C65: =VLOOKUP(A65,počty!$I$6:$AP$65,7,0) ->  | D65: =VLOOKUP(A65,počty!$I$6:$AP$65,8,0) ->  | E65: =VLOOKUP(A65,počty!$I$6:$AP$65,9,0) ->  | F65: =VLOOKUP(A65,počty!$I$6:$AP$65,10,0) ->  | G65: =VLOOKUP(A65,počty!$I$6:$AP$65,11,0) -> 

Sheet vyslSL
B1: Oficiální výsledková listina | J1: =CONCATENATE("K ",hlavicka!C6) -> K 13 | Q1: =+hlavicka!C11 -> Žáci U10M 2017-2016
B2: =CONCATENATE(hlavicka!C2," - ",hlavicka!C3) -> Český pohár žactva ve skoku na lyžích - 9/SL | Q2: =CONCATENATE("dne: ",hlavicka!C5) -> dne: 21.11.2015
B3: =CONCATENATE("skok.můstek: K ",hlavicka!C6) -> skok.můstek: K 13 | Q3: =+hlavicka!C4 -> LSK Lomnice
B4: =CONCATENATE("certifikát můstku č.",hlavicka!C8," pl. do ",hlavicka!C9) -> certifikát můstku č.135/C35/SL pl. do | Q4: =CONCATENATE("K = 60 b. +/- ",hlavicka!C7," b./m") -> K = 60 b. +/- 6 b./m
B5: SOUTĚŽNÍ VÝBOR | H5: ROZHODČÍ STYLU
B6: =+hlavicka!B15 -> ŘZ | C6: =+hlavicka!C15 -> Ing. Stanislav Jirásek | F6: =+hlavicka!D15 -> CZE | H6: A | I6: =+hlavicka!C22 -> Čestmír Kožíšek st. | P6: =+hlavicka!D22 -> CZE
B7: =+hlavicka!B16 -> TD | C7: =+hlavicka!C37 -> Pavel Bernat | F7: =+hlavicka!D16 -> CZE | H7: B | I7: =+hlavicka!C23 -> Lukáš Doležal | P7: =+hlavicka!D23 -> CZE
B8: =+hlavicka!B17 -> ATD | C8: =+hlavicka!C38 -> Kamil Rybář | F8: =+hlavicka!D17 -> CZE | H8: C | I8: =+hlavicka!C24 -> Michal Šváb | P8: =+hlavicka!D24 -> CZE
B9: =+hlavicka!B18 -> ZRS | F9: =+hlavicka!D18 -> 0 | H9: D | I9: =+hlavicka!C25 -> 0 | P9: =+hlavicka!D25 -> CZE
B10: =+hlavicka!B19 -> ZZ | F10: =+hlavicka!D19 -> 0 | H10: E | I10: =+hlavicka!C26 -> 0 | P10: =+hlavicka!D26 -> CZE
B11: po | C11: st. | D11: jméno | E11: roč. | F11: skok | G11: stylové hodnocení | L11: body | O11: 1.k | P11: body | Q11: body | R11: pohar
B12: ř. | C12: č. | D12: klub | F12: m | G12: A | H12: B | I12: C | J12: D | K12: E | L12: m | M12: st. | N12: celk. | O12: 2.k | P12: celk. | Q12: žebř. | R12: body
A13: 1 | B13: =IF(VLOOKUP(A13,počty!$L$6:$AP$163,31,0)>=1000,"M",VLOOKUP(A13,počty!$L$6:$BR$163,53,0)) -> 1 | C13: =VLOOKUP(A13,počty!$L$6:$AP$163,3,0) -> 13 | D13: =VLOOKUP(A13,počty!$L$6:$AP$163,4,0) -> Zapadlová Sára | E13: =VLOOKUP(A13,počty!$L$6:$AP$163,7,0) -> 2016 | F13: =VLOOKUP(A13,počty!$L$6:$AP$163,9,0) -> 11.5 | G13: =VLOOKUP(A13,počty!$L$6:$AP$163,10,0) -> 15 | H13: =VLOOKUP(A13,počty!$L$6:$AP$163,11,0) -> 15 | I13: =VLOOKUP(A13,počty!$L$6:$AP$163,12,0) -> 14.5 | J13: =VLOOKUP(A13,počty!$L$6:$AP$163,13,0) -> 1 | K13: =VLOOKUP(A13,počty!$L$6:$AP$163,14,0) -> 20 | L13: =VLOOKUP(A13,počty!$L$6:$AP$163,15,0) -> 51 | M13: =VLOOKUP(A13,počty!$L$6:$AP$163,16,0) -> 44.5 | N13: =VLOOKUP(A13,počty!$L$6:$AP$163,17,0) -> 95.5 | O13: =VLOOKUP(A13,počty!$L$6:$AP$163,18,0) -> 1 | P13: =VLOOKUP(A13,počty!$L$6:$AP$163,30,0) -> 191 | Q13: =IF(B13="M","M",240-MAX(počty!$BM$6:$BM$39)+P13) -> 240 | R13: =IF(B13="M","M",IF(B13>MAX(CUP!$B$3:$B$102),0,VLOOKUP(B13,CUP!$B$3:$C$102,2,0))) -> 50
D14: =VLOOKUP(A13,počty!$L$6:$AP$163,5,0) -> Lyžařský sportovní klub Lomnice nad Popelkou | E14: =VLOOKUP(A13,počty!$L$6:$AP$163,6,0) -> CZE | F14: =VLOOKUP(A13,počty!$L$6:$AP$163,20,0) -> 11.5 | G14: =VLOOKUP(A13,počty!$L$6:$AP$163,21,0) -> 15 | H14: =VLOOKUP(A13,počty!$L$6:$AP$163,22,0) -> 15 | I14: =VLOOKUP(A13,počty!$L$6:$AP$163,23,0) -> 14.5 | J14: =VLOOKUP(A13,počty!$L$6:$AP$163,24,0) -> 1 | K14: =VLOOKUP(A13,počty!$L$6:$AP$163,25,0) -> 20 | L14: =VLOOKUP(A13,počty!$L$6:$AP$163,26,0) -> 51 | M14: =VLOOKUP(A13,počty!$L$6:$AP$163,27,0) -> 44.5 | N14: =VLOOKUP(A13,počty!$L$6:$AP$163,28,0) -> 95.5 | O14: =VLOOKUP(A13,počty!$L$6:$AP$163,29,0) -> 1
A15: 2 | B15: =IF(VLOOKUP(A15,počty!$L$6:$AP$163,31,0)>=1000,"M",VLOOKUP(A15,počty!$L$6:$BR$163,53,0)) -> 2 | C15: =VLOOKUP(A15,počty!$L$6:$AP$163,3,0) -> 24 | D15: =VLOOKUP(A15,počty!$L$6:$AP$163,4,0) -> Huráňová Karolína | E15: =VLOOKUP(A15,počty!$L$6:$AP$163,7,0) -> 2015 | F15: =VLOOKUP(A15,počty!$L$6:$AP$163,9,0) -> 11.5 | G15: =VLOOKUP(A15,počty!$L$6:$AP$163,10,0) -> 14.5 | H15: =VLOOKUP(A15,počty!$L$6:$AP$163,11,0) -> 15 | I15: =VLOOKUP(A15,počty!$L$6:$AP$163,12,0) -> 13.5 | J15: =VLOOKUP(A15,počty!$L$6:$AP$163,13,0) -> 1 | K15: =VLOOKUP(A15,počty!$L$6:$AP$163,14,0) -> 20 | L15: =VLOOKUP(A15,počty!$L$6:$AP$163,15,0) -> 51 | M15: =VLOOKUP(A15,počty!$L$6:$AP$163,16,0) -> 43 | N15: =VLOOKUP(A15,počty!$L$6:$AP$163,17,0) -> 94 | O15: =VLOOKUP(A15,počty!$L$6:$AP$163,18,0) -> 3 | P15: =VLOOKUP(A15,počty!$L$6:$AP$163,30,0) -> 188 | Q15: =IF(B15="M","M",240-MAX(počty!$BM$6:$BM$39)+P15) -> 237 | R15: =IF(B15="M","M",IF(B15>MAX(CUP!$B$3:$B$102),0,VLOOKUP(B15,CUP!$B$3:$C$102,2,0))) -> 42
D16: =VLOOKUP(A15,počty!$L$6:$AP$163,5,0) -> Lyžařský sportovní klub Lomnice nad Popelkou | E16: =VLOOKUP(A15,počty!$L$6:$AP$163,6,0) -> CZE | F16: =VLOOKUP(A15,počty!$L$6:$AP$163,20,0) -> 11.5 | G16: =VLOOKUP(A15,počty!$L$6:$AP$163,21,0) -> 14.5 | H16: =VLOOKUP(A15,počty!$L$6:$AP$163,22,0) -> 15 | I16: =VLOOKUP(A15,počty!$L$6:$AP$163,23,0) -> 13.5 | J16: =VLOOKUP(A15,počty!$L$6:$AP$163,24,0) -> 1 | K16: =VLOOKUP(A15,počty!$L$6:$AP$163,25,0) -> 20 | L16: =VLOOKUP(A15,počty!$L$6:$AP$163,26,0) -> 51 | M16: =VLOOKUP(A15,počty!$L$6:$AP$163,27,0) -> 43 | N16: =VLOOKUP(A15,počty!$L$6:$AP$163,28,0) -> 94 | O16: =VLOOKUP(A15,počty!$L$6:$AP$163,29,0) -> 2
A17: 3 | B17: =IF(VLOOKUP(A17,počty!$L$6:$AP$163,31,0)>=1000,"M",VLOOKUP(A17,počty!$L$6:$BR$163,53,0)) -> 3 | C17: =VLOOKUP(A17,počty!$L$6:$AP$163,3,0) -> 25 | D17: =VLOOKUP(A17,počty!$L$6:$AP$163,4,0) -> Ježek Jakub | E17: =VLOOKUP(A17,počty!$L$6:$AP$163,7,0) -> 2015 | F17: =VLOOKUP(A17,počty!$L$6:$AP$163,9,0) -> 11 | G17: =VLOOKUP(A17,počty!$L$6:$AP$163,10,0) -> 14.5 | H17: =VLOOKUP(A17,počty!$L$6:$AP$163,11,0) -> 14.5 | I17: =VLOOKUP(A17,počty!$L$6:$AP$163,12,0) -> 13 | J17: =VLOOKUP(A17,počty!$L$6:$AP$163,13,0) -> 1 | K17: =VLOOKUP(A17,počty!$L$6:$AP$163,14,0) -> 20 | L17: =VLOOKUP(A17,počty!$L$6:$AP$163,15,0) -> 48 | M17: =VLOOKUP(A17,počty!$L$6:$AP$163,16,0) -> 42 | N17: =VLOOKUP(A17,počty!$L$6:$AP$163,17,0) -> 90 | O17: =VLOOKUP(A17,počty!$L$6:$AP$163,18,0) -> 4 | P17: =VLOOKUP(A17,počty!$L$6:$AP$163,30,0) -> 181 | Q17: =IF(B17="M","M",240-MAX(počty!$BM$6:$BM$39)+P17) -> 230 | R17: =IF(B17="M","M",IF(B17>MAX(CUP!$B$3:$B$102),0,VLOOKUP(B17,CUP!$B$3:$C$102,2,0))) -> 35
D18: =VLOOKUP(A17,počty!$L$6:$AP$163,5,0) -> Lyžařský sportovní klub Lomnice nad Popelkou | E18: =VLOOKUP(A17,počty!$L$6:$AP$163,6,0) -> CZE | F18: =VLOOKUP(A17,počty!$L$6:$AP$163,20,0) -> 11 | G18: =VLOOKUP(A17,počty!$L$6:$AP$163,21,0) -> 14.5 | H18: =VLOOKUP(A17,počty!$L$6:$AP$163,22,0) -> 14 | I18: =VLOOKUP(A17,počty!$L$6:$AP$163,23,0) -> 14.5 | J18: =VLOOKUP(A17,počty!$L$6:$AP$163,24,0) -> 1 | K18: =VLOOKUP(A17,počty!$L$6:$AP$163,25,0) -> 20 | L18: =VLOOKUP(A17,počty!$L$6:$AP$163,26,0) -> 48 | M18: =VLOOKUP(A17,počty!$L$6:$AP$163,27,0) -> 43 | N18: =VLOOKUP(A17,počty!$L$6:$AP$163,28,0) -> 91 | O18: =VLOOKUP(A17,počty!$L$6:$AP$163,29,0) -> 3
A19: 4 | B19: =IF(VLOOKUP(A19,počty!$L$6:$AP$163,31,0)>=1000,"M",VLOOKUP(A19,počty!$L$6:$BR$163,53,0)) -> 4 | C19: =VLOOKUP(A19,počty!$L$6:$AP$163,3,0) -> 23 | D19: =VLOOKUP(A19,počty!$L$6:$AP$163,4,0) -> Břečka Matyáš | E19: =VLOOKUP(A19,počty!$L$6:$AP$163,7,0) -> 2014 | F19: =VLOOKUP(A19,počty!$L$6:$AP$163,9,0) -> 11 | G19: =VLOOKUP(A19,počty!$L$6:$AP$163,10,0) -> 14.5 | H19: =VLOOKUP(A19,počty!$L$6:$AP$163,11,0) -> 14 | I19: =VLOOKUP(A19,počty!$L$6:$AP$163,12,0) -> 13 | J19: =VLOOKUP(A19,počty!$L$6:$AP$163,13,0) -> 1 | K19: =VLOOKUP(A19,počty!$L$6:$AP$163,14,0) -> 20 | L19: =VLOOKUP(A19,počty!$L$6:$AP$163,15,0) -> 48 | M19: =VLOOKUP(A19,počty!$L$6:$AP$163,16,0) -> 41.5 | N19: =VLOOKUP(A19,počty!$L$6:$AP$163,17,0) -> 89.5 | O19: =VLOOKUP(A19,počty!$L$6:$AP$163,18,0) -> 5 | P19: =VLOOKUP(A19,počty!$L$6:$AP$163,30,0) -> 179 | Q19: =IF(B19="M","M",240-MAX(počty!$BM$6:$BM$39)+P19) -> 228 | R19: =IF(B19="M","M",IF(B19>MAX(CUP!$B$3:$B$102),0,VLOOKUP(B19,CUP!$B$3:$C$102,2,0))) -> 30
D20: =VLOOKUP(A19,počty!$L$6:$AP$163,5,0) -> Lyžařský sportovní klub Lomnice nad Popelkou | E20: =VLOOKUP(A19,počty!$L$6:$AP$163,6,0) -> CZE | F20: =VLOOKUP(A19,počty!$L$6:$AP$163,20,0) -> 11.5 | G20: =VLOOKUP(A19,počty!$L$6:$AP$163,21,0) -> 13 | H20: =VLOOKUP(A19,počty!$L$6:$AP$163,22,0) -> 13 | I20: =VLOOKUP(A19,počty!$L$6:$AP$163,23,0) -> 12.5 | J20: =VLOOKUP(A19,počty!$L$6:$AP$163,24,0) -> 1 | K20: =VLOOKUP(A19,počty!$L$6:$AP$163,25,0) -> 20 | L20: =VLOOKUP(A19,počty!$L$6:$AP$163,26,0) -> 51 | M20: =VLOOKUP(A19,počty!$L$6:$AP$163,27,0) -> 38.5 | N20: =VLOOKUP(A19,počty!$L$6:$AP$163,28,0) -> 89.5 | O20: =VLOOKUP(A19,počty!$L$6:$AP$163,29,0) -> 4
A21: 5 | B21: =IF(VLOOKUP(A21,počty!$L$6:$AP$163,31,0)>=1000,"M",VLOOKUP(A21,počty!$L$6:$BR$163,53,0)) -> 5 | C21: =VLOOKUP(A21,počty!$L$6:$AP$163,3,0) -> 22 | D21: =VLOOKUP(A21,počty!$L$6:$AP$163,4,0) -> Sankot Antonín | E21: =VLOOKUP(A21,počty!$L$6:$AP$163,7,0) -> 2017 | F21: =VLOOKUP(A21,počty!$L$6:$AP$163,9,0) -> 12 | G21: =VLOOKUP(A21,počty!$L$6:$AP$163,10,0) -> 14.5 | H21: =VLOOKUP(A21,počty!$L$6:$AP$163,11,0) -> 14 | I21: =VLOOKUP(A21,počty!$L$6:$AP$163,12,0) -> 13 | J21: =VLOOKUP(A21,počty!$L$6:$AP$163,13,0) -> 1 | K21: =VLOOKUP(A21,počty!$L$6:$AP$163,14,0) -> 20 | L21: =VLOOKUP(A21,počty!$L$6:$AP$163,15,0) -> 54 | M21: =VLOOKUP(A21,počty!$L$6:$AP$163,16,0) -> 41.5 | N21: =VLOOKUP(A21,počty!$L$6:$AP$163,17,0) -> 95.5 | O21: =VLOOKUP(A21,počty!$L$6:$AP$163,18,0) -> 1 | P21: =VLOOKUP(A21,počty!$L$6:$AP$163,30,0) -> 176.5 | Q21: =IF(B21="M","M",240-MAX(počty!$BM$6:$BM$39)+P21) -> 225.5 | R21: =IF(B21="M","M",IF(B21>MAX(CUP!$B$3:$B$102),0,VLOOKUP(B21,CUP!$B$3:$C$102,2,0))) -> 26
D22: =VLOOKUP(A21,počty!$L$6:$AP$163,5,0) -> Lyžařský sportovní klub Lomnice nad Popelkou | E22: =VLOOKUP(A21,počty!$L$6:$AP$163,6,0) -> CZE | F22: =VLOOKUP(A21,počty!$L$6:$AP$163,20,0) -> 12.5 | G22: =VLOOKUP(A21,počty!$L$6:$AP$163,21,0) -> 8 | H22: =VLOOKUP(A21,počty!$L$6:$AP$163,22,0) -> 8 | I22: =VLOOKUP(A21,počty!$L$6:$AP$163,23,0) -> 8 | J22: =VLOOKUP(A21,počty!$L$6:$AP$163,24,0) -> 1 | K22: =VLOOKUP(A21,počty!$L$6:$AP$163,25,0) -> 20 | L22: =VLOOKUP(A21,počty!$L$6:$AP$163,26,0) -> 57 | M22: =VLOOKUP(A21,počty!$L$6:$AP$163,27,0) -> 24 | N22: =VLOOKUP(A21,počty!$L$6:$AP$163,28,0) -> 81 | O22: =VLOOKUP(A21,počty!$L$6:$AP$163,29,0) -> 5
A23: 6 | B23: =IF(VLOOKUP(A23,počty!$L$6:$AP$163,31,0)>=1000,"M",VLOOKUP(A23,počty!$L$6:$BR$163,53,0)) ->  | C23: =VLOOKUP(A23,počty!$L$6:$AP$163,3,0) ->  | D23: =VLOOKUP(A23,počty!$L$6:$AP$163,4,0) ->  | E23: =VLOOKUP(A23,počty!$L$6:$AP$163,7,0) ->  | F23: =VLOOKUP(A23,počty!$L$6:$AP$163,9,0) ->  | G23: =VLOOKUP(A23,počty!$L$6:$AP$163,10,0) ->  | H23: =VLOOKUP(A23,počty!$L$6:$AP$163,11,0) ->  | I23: =VLOOKUP(A23,počty!$L$6:$AP$163,12,0) ->  | J23: =VLOOKUP(A23,počty!$L$6:$AP$163,13,0) ->  | K23: =VLOOKUP(A23,počty!$L$6:$AP$163,14,0) ->  | L23: =VLOOKUP(A23,počty!$L$6:$AP$163,15,0) ->  | M23: =VLOOKUP(A23,počty!$L$6:$AP$163,16,0) ->  | N23: =VLOOKUP(A23,počty!$L$6:$AP$163,17,0) ->  | O23: =VLOOKUP(A23,počty!$L$6:$AP$163,18,0) ->  | P23: =VLOOKUP(A23,počty!$L$6:$AP$163,30,0) ->  | Q23: =IF(B23="M","M",240-MAX(počty!$BM$6:$BM$39)+P23) ->  | R23: =IF(B23="M","M",IF(B23>MAX(CUP!$B$3:$B$102),0,VLOOKUP(B23,CUP!$B$3:$C$102,2,0))) -> 
D24: =VLOOKUP(A23,počty!$L$6:$AP$163,5,0) ->  | E24: =VLOOKUP(A23,počty!$L$6:$AP$163,6,0) ->  | F24: =VLOOKUP(A23,počty!$L$6:$AP$163,20,0) ->  | G24: =VLOOKUP(A23,počty!$L$6:$AP$163,21,0) ->  | H24: =VLOOKUP(A23,počty!$L$6:$AP$163,22,0) ->  | I24: =VLOOKUP(A23,počty!$L$6:$AP$163,23,0) ->  | J24: =VLOOKUP(A23,počty!$L$6:$AP$163,24,0) ->  | K24: =VLOOKUP(A23,počty!$L$6:$AP$163,25,0) ->  | L24: =VLOOKUP(A23,počty!$L$6:$AP$163,26,0) ->  | M24: =VLOOKUP(A23,počty!$L$6:$AP$163,27,0) ->  | N24: =VLOOKUP(A23,počty!$L$6:$AP$163,28,0) ->  | O24: =VLOOKUP(A23,počty!$L$6:$AP$163,29,0) -> 
A25: 7 | B25: =IF(VLOOKUP(A25,počty!$L$6:$AP$163,31,0)>=1000,"M",VLOOKUP(A25,počty!$L$6:$BR$163,53,0)) ->  | C25: =VLOOKUP(A25,počty!$L$6:$AP$163,3,0) ->  | D25: =VLOOKUP(A25,počty!$L$6:$AP$163,4,0) ->  | E25: =VLOOKUP(A25,počty!$L$6:$AP$163,7,0) ->  | F25: =VLOOKUP(A25,počty!$L$6:$AP$163,9,0) ->  | G25: =VLOOKUP(A25,počty!$L$6:$AP$163,10,0) ->  | H25: =VLOOKUP(A25,počty!$L$6:$AP$163,11,0) ->  | I25: =VLOOKUP(A25,počty!$L$6:$AP$163,12,0) ->  | J25: =VLOOKUP(A25,počty!$L$6:$AP$163,13,0) ->  | K25: =VLOOKUP(A25,počty!$L$6:$AP$163,14,0) ->  | L25: =VLOOKUP(A25,počty!$L$6:$AP$163,15,0) ->  | M25: =VLOOKUP(A25,počty!$L$6:$AP$163,16,0) ->  | N25: =VLOOKUP(A25,počty!$L$6:$AP$163,17,0) ->  | O25: =VLOOKUP(A25,počty!$L$6:$AP$163,18,0) ->  | P25: =VLOOKUP(A25,počty!$L$6:$AP$163,30,0) ->  | Q25: =IF(B25="M","M",240-MAX(počty!$BM$6:$BM$39)+P25) ->  | R25: =IF(B25="M","M",IF(B25>MAX(CUP!$B$3:$B$102),0,VLOOKUP(B25,CUP!$B$3:$C$102,2,0))) -> 
D26: =VLOOKUP(A25,počty!$L$6:$AP$163,5,0) ->  | E26: =VLOOKUP(A25,počty!$L$6:$AP$163,6,0) ->  | F26: =VLOOKUP(A25,počty!$L$6:$AP$163,20,0) ->  | G26: =VLOOKUP(A25,počty!$L$6:$AP$163,21,0) ->  | H26: =VLOOKUP(A25,počty!$L$6:$AP$163,22,0) ->  | I26: =VLOOKUP(A25,počty!$L$6:$AP$163,23,0) ->  | J26: =VLOOKUP(A25,počty!$L$6:$AP$163,24,0) ->  | K26: =VLOOKUP(A25,počty!$L$6:$AP$163,25,0) ->  | L26: =VLOOKUP(A25,počty!$L$6:$AP$163,26,0) ->  | M26: =VLOOKUP(A25,počty!$L$6:$AP$163,27,0) ->  | N26: =VLOOKUP(A25,počty!$L$6:$AP$163,28,0) ->  | O26: =VLOOKUP(A25,počty!$L$6:$AP$163,29,0) -> 
A27: 8 | B27: =IF(VLOOKUP(A27,počty!$L$6:$AP$163,31,0)>=1000,"M",VLOOKUP(A27,počty!$L$6:$BR$163,53,0)) ->  | C27: =VLOOKUP(A27,počty!$L$6:$AP$163,3,0) ->  | D27: =VLOOKUP(A27,počty!$L$6:$AP$163,4,0) ->  | E27: =VLOOKUP(A27,počty!$L$6:$AP$163,7,0) ->  | F27: =VLOOKUP(A27,počty!$L$6:$AP$163,9,0) ->  | G27: =VLOOKUP(A27,počty!$L$6:$AP$163,10,0) ->  | H27: =VLOOKUP(A27,počty!$L$6:$AP$163,11,0) ->  | I27: =VLOOKUP(A27,počty!$L$6:$AP$163,12,0) ->  | J27: =VLOOKUP(A27,počty!$L$6:$AP$163,13,0) ->  | K27: =VLOOKUP(A27,počty!$L$6:$AP$163,14,0) ->  | L27: =VLOOKUP(A27,počty!$L$6:$AP$163,15,0) ->  | M27: =VLOOKUP(A27,počty!$L$6:$AP$163,16,0) ->  | N27: =VLOOKUP(A27,počty!$L$6:$AP$163,17,0) ->  | O27: =VLOOKUP(A27,počty!$L$6:$AP$163,18,0) ->  | P27: =VLOOKUP(A27,počty!$L$6:$AP$163,30,0) ->  | Q27: =IF(B27="M","M",240-MAX(počty!$BM$6:$BM$39)+P27) ->  | R27: =IF(B27="M","M",IF(B27>MAX(CUP!$B$3:$B$102),0,VLOOKUP(B27,CUP!$B$3:$C$102,2,0))) -> 
D28: =VLOOKUP(A27,počty!$L$6:$AP$163,5,0) ->  | E28: =VLOOKUP(A27,počty!$L$6:$AP$163,6,0) ->  | F28: =VLOOKUP(A27,počty!$L$6:$AP$163,20,0) ->  | G28: =VLOOKUP(A27,počty!$L$6:$AP$163,21,0) ->  | H28: =VLOOKUP(A27,počty!$L$6:$AP$163,22,0) ->  | I28: =VLOOKUP(A27,počty!$L$6:$AP$163,23,0) ->  | J28: =VLOOKUP(A27,počty!$L$6:$AP$163,24,0) ->  | K28: =VLOOKUP(A27,počty!$L$6:$AP$163,25,0) ->  | L28: =VLOOKUP(A27,počty!$L$6:$AP$163,26,0) ->  | M28: =VLOOKUP(A27,počty!$L$6:$AP$163,27,0) ->  | N28: =VLOOKUP(A27,počty!$L$6:$AP$163,28,0) ->  | O28: =VLOOKUP(A27,počty!$L$6:$AP$163,29,0) -> 
A29: 9 | B29: =IF(VLOOKUP(A29,počty!$L$6:$AP$163,31,0)>=1000,"M",VLOOKUP(A29,počty!$L$6:$BR$163,53,0)) ->  | C29: =VLOOKUP(A29,počty!$L$6:$AP$163,3,0) ->  | D29: =VLOOKUP(A29,počty!$L$6:$AP$163,4,0) ->  | E29: =VLOOKUP(A29,počty!$L$6:$AP$163,7,0) ->  | F29: =VLOOKUP(A29,počty!$L$6:$AP$163,9,0) ->  | G29: =VLOOKUP(A29,počty!$L$6:$AP$163,10,0) ->  | H29: =VLOOKUP(A29,počty!$L$6:$AP$163,11,0) ->  | I29: =VLOOKUP(A29,počty!$L$6:$AP$163,12,0) ->  | J29: =VLOOKUP(A29,počty!$L$6:$AP$163,13,0) ->  | K29: =VLOOKUP(A29,počty!$L$6:$AP$163,14,0) ->  | L29: =VLOOKUP(A29,počty!$L$6:$AP$163,15,0) ->  | M29: =VLOOKUP(A29,počty!$L$6:$AP$163,16,0) ->  | N29: =VLOOKUP(A29,počty!$L$6:$AP$163,17,0) ->  | O29: =VLOOKUP(A29,počty!$L$6:$AP$163,18,0) ->  | P29: =VLOOKUP(A29,počty!$L$6:$AP$163,30,0) ->  | Q29: =IF(B29="M","M",240-MAX(počty!$BM$6:$BM$39)+P29) ->  | R29: =IF(B29="M","M",IF(B29>MAX(CUP!$B$3:$B$102),0,VLOOKUP(B29,CUP!$B$3:$C$102,2,0))) -> 
D30: =VLOOKUP(A29,počty!$L$6:$AP$163,5,0) ->  | E30: =VLOOKUP(A29,počty!$L$6:$AP$163,6,0) ->  | F30: =VLOOKUP(A29,počty!$L$6:$AP$163,20,0) ->  | G30: =VLOOKUP(A29,počty!$L$6:$AP$163,21,0) ->  | H30: =VLOOKUP(A29,počty!$L$6:$AP$163,22,0) ->  | I30: =VLOOKUP(A29,počty!$L$6:$AP$163,23,0) ->  | J30: =VLOOKUP(A29,počty!$L$6:$AP$163,24,0) ->  | K30: =VLOOKUP(A29,počty!$L$6:$AP$163,25,0) ->  | L30: =VLOOKUP(A29,počty!$L$6:$AP$163,26,0) ->  | M30: =VLOOKUP(A29,počty!$L$6:$AP$163,27,0) ->  | N30: =VLOOKUP(A29,počty!$L$6:$AP$163,28,0) ->  | O30: =VLOOKUP(A29,počty!$L$6:$AP$163,29,0) -> 
A31: 10 | B31: =IF(VLOOKUP(A31,počty!$L$6:$AP$163,31,0)>=1000,"M",VLOOKUP(A31,počty!$L$6:$BR$163,53,0)) ->  | C31: =VLOOKUP(A31,počty!$L$6:$AP$163,3,0) ->  | D31: =VLOOKUP(A31,počty!$L$6:$AP$163,4,0) ->  | E31: =VLOOKUP(A31,počty!$L$6:$AP$163,7,0) ->  | F31: =VLOOKUP(A31,počty!$L$6:$AP$163,9,0) ->  | G31: =VLOOKUP(A31,počty!$L$6:$AP$163,10,0) ->  | H31: =VLOOKUP(A31,počty!$L$6:$AP$163,11,0) ->  | I31: =VLOOKUP(A31,počty!$L$6:$AP$163,12,0) ->  | J31: =VLOOKUP(A31,počty!$L$6:$AP$163,13,0) ->  | K31: =VLOOKUP(A31,počty!$L$6:$AP$163,14,0) ->  | L31: =VLOOKUP(A31,počty!$L$6:$AP$163,15,0) ->  | M31: =VLOOKUP(A31,počty!$L$6:$AP$163,16,0) ->  | N31: =VLOOKUP(A31,počty!$L$6:$AP$163,17,0) ->  | O31: =VLOOKUP(A31,počty!$L$6:$AP$163,18,0) ->  | P31: =VLOOKUP(A31,počty!$L$6:$AP$163,30,0) ->  | Q31: =IF(B31="M","M",240-MAX(počty!$BM$6:$BM$39)+P31) ->  | R31: =IF(B31="M","M",IF(B31>MAX(CUP!$B$3:$B$102),0,VLOOKUP(B31,CUP!$B$3:$C$102,2,0))) -> 
D32: =VLOOKUP(A31,počty!$L$6:$AP$163,5,0) ->  | E32: =VLOOKUP(A31,počty!$L$6:$AP$163,6,0) ->  | F32: =VLOOKUP(A31,počty!$L$6:$AP$163,20,0) ->  | G32: =VLOOKUP(A31,počty!$L$6:$AP$163,21,0) ->  | H32: =VLOOKUP(A31,počty!$L$6:$AP$163,22,0) ->  | I32: =VLOOKUP(A31,počty!$L$6:$AP$163,23,0) ->  | J32: =VLOOKUP(A31,počty!$L$6:$AP$163,24,0) ->  | K32: =VLOOKUP(A31,počty!$L$6:$AP$163,25,0) ->  | L32: =VLOOKUP(A31,počty!$L$6:$AP$163,26,0) ->  | M32: =VLOOKUP(A31,počty!$L$6:$AP$163,27,0) ->  | N32: =VLOOKUP(A31,počty!$L$6:$AP$163,28,0) ->  | O32: =VLOOKUP(A31,počty!$L$6:$AP$163,29,0) -> 
A33: 11 | B33: =IF(VLOOKUP(A33,počty!$L$6:$AP$163,31,0)>=1000,"M",VLOOKUP(A33,počty!$L$6:$BR$163,53,0)) ->  | C33: =VLOOKUP(A33,počty!$L$6:$AP$163,3,0) ->  | D33: =VLOOKUP(A33,počty!$L$6:$AP$163,4,0) ->  | E33: =VLOOKUP(A33,počty!$L$6:$AP$163,7,0) ->  | F33: =VLOOKUP(A33,počty!$L$6:$AP$163,9,0) ->  | G33: =VLOOKUP(A33,počty!$L$6:$AP$163,10,0) ->  | H33: =VLOOKUP(A33,počty!$L$6:$AP$163,11,0) ->  | I33: =VLOOKUP(A33,počty!$L$6:$AP$163,12,0) ->  | J33: =VLOOKUP(A33,počty!$L$6:$AP$163,13,0) ->  | K33: =VLOOKUP(A33,počty!$L$6:$AP$163,14,0) ->  | L33: =VLOOKUP(A33,počty!$L$6:$AP$163,15,0) ->  | M33: =VLOOKUP(A33,počty!$L$6:$AP$163,16,0) ->  | N33: =VLOOKUP(A33,počty!$L$6:$AP$163,17,0) ->  | O33: =VLOOKUP(A33,počty!$L$6:$AP$163,18,0) ->  | P33: =VLOOKUP(A33,počty!$L$6:$AP$163,30,0) ->  | Q33: =IF(B33="M","M",240-MAX(počty!$BM$6:$BM$39)+P33) ->  | R33: =IF(B33="M","M",IF(B33>MAX(CUP!$B$3:$B$102),0,VLOOKUP(B33,CUP!$B$3:$C$102,2,0))) -> 
D34: =VLOOKUP(A33,počty!$L$6:$AP$163,5,0) ->  | E34: =VLOOKUP(A33,počty!$L$6:$AP$163,6,0) ->  | F34: =VLOOKUP(A33,počty!$L$6:$AP$163,20,0) ->  | G34: =VLOOKUP(A33,počty!$L$6:$AP$163,21,0) ->  | H34: =VLOOKUP(A33,počty!$L$6:$AP$163,22,0) ->  | I34: =VLOOKUP(A33,počty!$L$6:$AP$163,23,0) ->  | J34: =VLOOKUP(A33,počty!$L$6:$AP$163,24,0) ->  | K34: =VLOOKUP(A33,počty!$L$6:$AP$163,25,0) ->  | L34: =VLOOKUP(A33,počty!$L$6:$AP$163,26,0) ->  | M34: =VLOOKUP(A33,počty!$L$6:$AP$163,27,0) ->  | N34: =VLOOKUP(A33,počty!$L$6:$AP$163,28,0) ->  | O34: =VLOOKUP(A33,počty!$L$6:$AP$163,29,0) -> 
A35: 12 | B35: =IF(VLOOKUP(A35,počty!$L$6:$AP$163,31,0)>=1000,"M",VLOOKUP(A35,počty!$L$6:$BR$163,53,0)) ->  | C35: =VLOOKUP(A35,počty!$L$6:$AP$163,3,0) ->  | D35: =VLOOKUP(A35,počty!$L$6:$AP$163,4,0) ->  | E35: =VLOOKUP(A35,počty!$L$6:$AP$163,7,0) ->  | F35: =VLOOKUP(A35,počty!$L$6:$AP$163,9,0) ->  | G35: =VLOOKUP(A35,počty!$L$6:$AP$163,10,0) ->  | H35: =VLOOKUP(A35,počty!$L$6:$AP$163,11,0) ->  | I35: =VLOOKUP(A35,počty!$L$6:$AP$163,12,0) ->  | J35: =VLOOKUP(A35,počty!$L$6:$AP$163,13,0) ->  | K35: =VLOOKUP(A35,počty!$L$6:$AP$163,14,0) ->  | L35: =VLOOKUP(A35,počty!$L$6:$AP$163,15,0) ->  | M35: =VLOOKUP(A35,počty!$L$6:$AP$163,16,0) ->  | N35: =VLOOKUP(A35,počty!$L$6:$AP$163,17,0) ->  | O35: =VLOOKUP(A35,počty!$L$6:$AP$163,18,0) ->  | P35: =VLOOKUP(A35,počty!$L$6:$AP$163,30,0) ->  | Q35: =IF(B35="M","M",240-MAX(počty!$BM$6:$BM$39)+P35) ->  | R35: =IF(B35="M","M",IF(B35>MAX(CUP!$B$3:$B$102),0,VLOOKUP(B35,CUP!$B$3:$C$102,2,0))) -> 
D36: =VLOOKUP(A35,počty!$L$6:$AP$163,5,0) ->  | E36: =VLOOKUP(A35,počty!$L$6:$AP$163,6,0) ->  | F36: =VLOOKUP(A35,počty!$L$6:$AP$163,20,0) ->  | G36: =VLOOKUP(A35,počty!$L$6:$AP$163,21,0) ->  | H36: =VLOOKUP(A35,počty!$L$6:$AP$163,22,0) ->  | I36: =VLOOKUP(A35,počty!$L$6:$AP$163,23,0) ->  | J36: =VLOOKUP(A35,počty!$L$6:$AP$163,24,0) ->  | K36: =VLOOKUP(A35,počty!$L$6:$AP$163,25,0) ->  | L36: =VLOOKUP(A35,počty!$L$6:$AP$163,26,0) ->  | M36: =VLOOKUP(A35,počty!$L$6:$AP$163,27,0) ->  | N36: =VLOOKUP(A35,počty!$L$6:$AP$163,28,0) ->  | O36: =VLOOKUP(A35,počty!$L$6:$AP$163,29,0) -> 
A37: 13 | B37: =IF(VLOOKUP(A37,počty!$L$6:$AP$163,31,0)>=1000,"M",VLOOKUP(A37,počty!$L$6:$BR$163,53,0)) ->  | C37: =VLOOKUP(A37,počty!$L$6:$AP$163,3,0) ->  | D37: =VLOOKUP(A37,počty!$L$6:$AP$163,4,0) ->  | E37: =VLOOKUP(A37,počty!$L$6:$AP$163,7,0) ->  | F37: =VLOOKUP(A37,počty!$L$6:$AP$163,9,0) ->  | G37: =VLOOKUP(A37,počty!$L$6:$AP$163,10,0) ->  | H37: =VLOOKUP(A37,počty!$L$6:$AP$163,11,0) ->  | I37: =VLOOKUP(A37,počty!$L$6:$AP$163,12,0) ->  | J37: =VLOOKUP(A37,počty!$L$6:$AP$163,13,0) ->  | K37: =VLOOKUP(A37,počty!$L$6:$AP$163,14,0) ->  | L37: =VLOOKUP(A37,počty!$L$6:$AP$163,15,0) ->  | M37: =VLOOKUP(A37,počty!$L$6:$AP$163,16,0) ->  | N37: =VLOOKUP(A37,počty!$L$6:$AP$163,17,0) ->  | O37: =VLOOKUP(A37,počty!$L$6:$AP$163,18,0) ->  | P37: =VLOOKUP(A37,počty!$L$6:$AP$163,30,0) ->  | Q37: =IF(B37="M","M",240-MAX(počty!$BM$6:$BM$39)+P37) ->  | R37: =IF(B37="M","M",IF(B37>MAX(CUP!$B$3:$B$102),0,VLOOKUP(B37,CUP!$B$3:$C$102,2,0))) -> 
D38: =VLOOKUP(A37,počty!$L$6:$AP$163,5,0) ->  | E38: =VLOOKUP(A37,počty!$L$6:$AP$163,6,0) ->  | F38: =VLOOKUP(A37,počty!$L$6:$AP$163,20,0) ->  | G38: =VLOOKUP(A37,počty!$L$6:$AP$163,21,0) ->  | H38: =VLOOKUP(A37,počty!$L$6:$AP$163,22,0) ->  | I38: =VLOOKUP(A37,počty!$L$6:$AP$163,23,0) ->  | J38: =VLOOKUP(A37,počty!$L$6:$AP$163,24,0) ->  | K38: =VLOOKUP(A37,počty!$L$6:$AP$163,25,0) ->  | L38: =VLOOKUP(A37,počty!$L$6:$AP$163,26,0) ->  | M38: =VLOOKUP(A37,počty!$L$6:$AP$163,27,0) ->  | N38: =VLOOKUP(A37,počty!$L$6:$AP$163,28,0) ->  | O38: =VLOOKUP(A37,počty!$L$6:$AP$163,29,0) -> 
A39: 14 | B39: =IF(VLOOKUP(A39,počty!$L$6:$AP$163,31,0)>=1000,"M",VLOOKUP(A39,počty!$L$6:$BR$163,53,0)) ->  | C39: =VLOOKUP(A39,počty!$L$6:$AP$163,3,0) ->  | D39: =VLOOKUP(A39,počty!$L$6:$AP$163,4,0) ->  | E39: =VLOOKUP(A39,počty!$L$6:$AP$163,7,0) ->  | F39: =VLOOKUP(A39,počty!$L$6:$AP$163,9,0) ->  | G39: =VLOOKUP(A39,počty!$L$6:$AP$163,10,0) ->  | H39: =VLOOKUP(A39,počty!$L$6:$AP$163,11,0) ->  | I39: =VLOOKUP(A39,počty!$L$6:$AP$163,12,0) ->  | J39: =VLOOKUP(A39,počty!$L$6:$AP$163,13,0) ->  | K39: =VLOOKUP(A39,počty!$L$6:$AP$163,14,0) ->  | L39: =VLOOKUP(A39,počty!$L$6:$AP$163,15,0) ->  | M39: =VLOOKUP(A39,počty!$L$6:$AP$163,16,0) ->  | N39: =VLOOKUP(A39,počty!$L$6:$AP$163,17,0) ->  | O39: =VLOOKUP(A39,počty!$L$6:$AP$163,18,0) ->  | P39: =VLOOKUP(A39,počty!$L$6:$AP$163,30,0) ->  | Q39: =IF(B39="M","M",240-MAX(počty!$BM$6:$BM$39)+P39) ->  | R39: =IF(B39="M","M",IF(B39>MAX(CUP!$B$3:$B$102),0,VLOOKUP(B39,CUP!$B$3:$C$102,2,0))) -> 
D40: =VLOOKUP(A39,počty!$L$6:$AP$163,5,0) ->  | E40: =VLOOKUP(A39,počty!$L$6:$AP$163,6,0) ->  | F40: =VLOOKUP(A39,počty!$L$6:$AP$163,20,0) ->  | G40: =VLOOKUP(A39,počty!$L$6:$AP$163,21,0) ->  | H40: =VLOOKUP(A39,počty!$L$6:$AP$163,22,0) ->  | I40: =VLOOKUP(A39,počty!$L$6:$AP$163,23,0) ->  | J40: =VLOOKUP(A39,počty!$L$6:$AP$163,24,0) ->  | K40: =VLOOKUP(A39,počty!$L$6:$AP$163,25,0) ->  | L40: =VLOOKUP(A39,počty!$L$6:$AP$163,26,0) ->  | M40: =VLOOKUP(A39,počty!$L$6:$AP$163,27,0) ->  | N40: =VLOOKUP(A39,počty!$L$6:$AP$163,28,0) ->  | O40: =VLOOKUP(A39,počty!$L$6:$AP$163,29,0) -> 
A41: 15 | B41: =IF(VLOOKUP(A41,počty!$L$6:$AP$163,31,0)>=1000,"M",VLOOKUP(A41,počty!$L$6:$BR$163,53,0)) ->  | C41: =VLOOKUP(A41,počty!$L$6:$AP$163,3,0) ->  | D41: =VLOOKUP(A41,počty!$L$6:$AP$163,4,0) ->  | E41: =VLOOKUP(A41,počty!$L$6:$AP$163,7,0) ->  | F41: =VLOOKUP(A41,počty!$L$6:$AP$163,9,0) ->  | G41: =VLOOKUP(A41,počty!$L$6:$AP$163,10,0) ->  | H41: =VLOOKUP(A41,počty!$L$6:$AP$163,11,0) ->  | I41: =VLOOKUP(A41,počty!$L$6:$AP$163,12,0) ->  | J41: =VLOOKUP(A41,počty!$L$6:$AP$163,13,0) ->  | K41: =VLOOKUP(A41,počty!$L$6:$AP$163,14,0) ->  | L41: =VLOOKUP(A41,počty!$L$6:$AP$163,15,0) ->  | M41: =VLOOKUP(A41,počty!$L$6:$AP$163,16,0) ->  | N41: =VLOOKUP(A41,počty!$L$6:$AP$163,17,0) ->  | O41: =VLOOKUP(A41,počty!$L$6:$AP$163,18,0) ->  | P41: =VLOOKUP(A41,počty!$L$6:$AP$163,30,0) ->  | Q41: =IF(B41="M","M",240-MAX(počty!$BM$6:$BM$39)+P41) ->  | R41: =IF(B41="M","M",IF(B41>MAX(CUP!$B$3:$B$102),0,VLOOKUP(B41,CUP!$B$3:$C$102,2,0))) -> 
D42: =VLOOKUP(A41,počty!$L$6:$AP$163,5,0) ->  | E42: =VLOOKUP(A41,počty!$L$6:$AP$163,6,0) ->  | F42: =VLOOKUP(A41,počty!$L$6:$AP$163,20,0) ->  | G42: =VLOOKUP(A41,počty!$L$6:$AP$163,21,0) ->  | H42: =VLOOKUP(A41,počty!$L$6:$AP$163,22,0) ->  | I42: =VLOOKUP(A41,počty!$L$6:$AP$163,23,0) ->  | J42: =VLOOKUP(A41,počty!$L$6:$AP$163,24,0) ->  | K42: =VLOOKUP(A41,počty!$L$6:$AP$163,25,0) ->  | L42: =VLOOKUP(A41,počty!$L$6:$AP$163,26,0) ->  | M42: =VLOOKUP(A41,počty!$L$6:$AP$163,27,0) ->  | N42: =VLOOKUP(A41,počty!$L$6:$AP$163,28,0) ->  | O42: =VLOOKUP(A41,počty!$L$6:$AP$163,29,0) -> 
A43: 16 | B43: =IF(VLOOKUP(A43,počty!$L$6:$AP$163,31,0)>=1000,"M",VLOOKUP(A43,počty!$L$6:$BR$163,53,0)) ->  | C43: =VLOOKUP(A43,počty!$L$6:$AP$163,3,0) ->  | D43: =VLOOKUP(A43,počty!$L$6:$AP$163,4,0) ->  | E43: =VLOOKUP(A43,počty!$L$6:$AP$163,7,0) ->  | F43: =VLOOKUP(A43,počty!$L$6:$AP$163,9,0) ->  | G43: =VLOOKUP(A43,počty!$L$6:$AP$163,10,0) ->  | H43: =VLOOKUP(A43,počty!$L$6:$AP$163,11,0) ->  | I43: =VLOOKUP(A43,počty!$L$6:$AP$163,12,0) ->  | J43: =VLOOKUP(A43,počty!$L$6:$AP$163,13,0) ->  | K43: =VLOOKUP(A43,počty!$L$6:$AP$163,14,0) ->  | L43: =VLOOKUP(A43,počty!$L$6:$AP$163,15,0) ->  | M43: =VLOOKUP(A43,počty!$L$6:$AP$163,16,0) ->  | N43: =VLOOKUP(A43,počty!$L$6:$AP$163,17,0) ->  | O43: =VLOOKUP(A43,počty!$L$6:$AP$163,18,0) ->  | P43: =VLOOKUP(A43,počty!$L$6:$AP$163,30,0) ->  | Q43: =IF(B43="M","M",240-MAX(počty!$BM$6:$BM$39)+P43) ->  | R43: =IF(B43="M","M",IF(B43>MAX(CUP!$B$3:$B$102),0,VLOOKUP(B43,CUP!$B$3:$C$102,2,0))) -> 
D44: =VLOOKUP(A43,počty!$L$6:$AP$163,5,0) ->  | E44: =VLOOKUP(A43,počty!$L$6:$AP$163,6,0) ->  | F44: =VLOOKUP(A43,počty!$L$6:$AP$163,20,0) ->  | G44: =VLOOKUP(A43,počty!$L$6:$AP$163,21,0) ->  | H44: =VLOOKUP(A43,počty!$L$6:$AP$163,22,0) ->  | I44: =VLOOKUP(A43,počty!$L$6:$AP$163,23,0) ->  | J44: =VLOOKUP(A43,počty!$L$6:$AP$163,24,0) ->  | K44: =VLOOKUP(A43,počty!$L$6:$AP$163,25,0) ->  | L44: =VLOOKUP(A43,počty!$L$6:$AP$163,26,0) ->  | M44: =VLOOKUP(A43,počty!$L$6:$AP$163,27,0) ->  | N44: =VLOOKUP(A43,počty!$L$6:$AP$163,28,0) ->  | O44: =VLOOKUP(A43,počty!$L$6:$AP$163,29,0) -> 
A45: 17 | B45: =IF(VLOOKUP(A45,počty!$L$6:$AP$163,31,0)>=1000,"M",VLOOKUP(A45,počty!$L$6:$BR$163,53,0)) ->  | C45: =VLOOKUP(A45,počty!$L$6:$AP$163,3,0) ->  | D45: =VLOOKUP(A45,počty!$L$6:$AP$163,4,0) ->  | E45: =VLOOKUP(A45,počty!$L$6:$AP$163,7,0) ->  | F45: =VLOOKUP(A45,počty!$L$6:$AP$163,9,0) ->  | G45: =VLOOKUP(A45,počty!$L$6:$AP$163,10,0) ->  | H45: =VLOOKUP(A45,počty!$L$6:$AP$163,11,0) ->  | I45: =VLOOKUP(A45,počty!$L$6:$AP$163,12,0) ->  | J45: =VLOOKUP(A45,počty!$L$6:$AP$163,13,0) ->  | K45: =VLOOKUP(A45,počty!$L$6:$AP$163,14,0) ->  | L45: =VLOOKUP(A45,počty!$L$6:$AP$163,15,0) ->  | M45: =VLOOKUP(A45,počty!$L$6:$AP$163,16,0) ->  | N45: =VLOOKUP(A45,počty!$L$6:$AP$163,17,0) ->  | O45: =VLOOKUP(A45,počty!$L$6:$AP$163,18,0) ->  | P45: =VLOOKUP(A45,počty!$L$6:$AP$163,30,0) ->  | Q45: =IF(B45="M","M",240-MAX(počty!$BM$6:$BM$39)+P45) ->  | R45: =IF(B45="M","M",IF(B45>MAX(CUP!$B$3:$B$102),0,VLOOKUP(B45,CUP!$B$3:$C$102,2,0))) -> 
D46: =VLOOKUP(A45,počty!$L$6:$AP$163,5,0) ->  | E46: =VLOOKUP(A45,počty!$L$6:$AP$163,6,0) ->  | F46: =VLOOKUP(A45,počty!$L$6:$AP$163,20,0) ->  | G46: =VLOOKUP(A45,počty!$L$6:$AP$163,21,0) ->  | H46: =VLOOKUP(A45,počty!$L$6:$AP$163,22,0) ->  | I46: =VLOOKUP(A45,počty!$L$6:$AP$163,23,0) ->  | J46: =VLOOKUP(A45,počty!$L$6:$AP$163,24,0) ->  | K46: =VLOOKUP(A45,počty!$L$6:$AP$163,25,0) ->  | L46: =VLOOKUP(A45,počty!$L$6:$AP$163,26,0) ->  | M46: =VLOOKUP(A45,počty!$L$6:$AP$163,27,0) ->  | N46: =VLOOKUP(A45,počty!$L$6:$AP$163,28,0) ->  | O46: =VLOOKUP(A45,počty!$L$6:$AP$163,29,0) -> 
A47: 18 | B47: =IF(VLOOKUP(A47,počty!$L$6:$AP$163,31,0)>=1000,"M",VLOOKUP(A47,počty!$L$6:$BR$163,53,0)) ->  | C47: =VLOOKUP(A47,počty!$L$6:$AP$163,3,0) ->  | D47: =VLOOKUP(A47,počty!$L$6:$AP$163,4,0) ->  | E47: =VLOOKUP(A47,počty!$L$6:$AP$163,7,0) ->  | F47: =VLOOKUP(A47,počty!$L$6:$AP$163,9,0) ->  | G47: =VLOOKUP(A47,počty!$L$6:$AP$163,10,0) ->  | H47: =VLOOKUP(A47,počty!$L$6:$AP$163,11,0) ->  | I47: =VLOOKUP(A47,počty!$L$6:$AP$163,12,0) ->  | J47: =VLOOKUP(A47,počty!$L$6:$AP$163,13,0) ->  | K47: =VLOOKUP(A47,počty!$L$6:$AP$163,14,0) ->  | L47: =VLOOKUP(A47,počty!$L$6:$AP$163,15,0) ->  | M47: =VLOOKUP(A47,počty!$L$6:$AP$163,16,0) ->  | N47: =VLOOKUP(A47,počty!$L$6:$AP$163,17,0) ->  | O47: =VLOOKUP(A47,počty!$L$6:$AP$163,18,0) ->  | P47: =VLOOKUP(A47,počty!$L$6:$AP$163,30,0) ->  | Q47: =IF(B47="M","M",240-MAX(počty!$BM$6:$BM$39)+P47) ->  | R47: =IF(B47="M","M",IF(B47>MAX(CUP!$B$3:$B$102),0,VLOOKUP(B47,CUP!$B$3:$C$102,2,0))) -> 
D48: =VLOOKUP(A47,počty!$L$6:$AP$163,5,0) ->  | E48: =VLOOKUP(A47,počty!$L$6:$AP$163,6,0) ->  | F48: =VLOOKUP(A47,počty!$L$6:$AP$163,20,0) ->  | G48: =VLOOKUP(A47,počty!$L$6:$AP$163,21,0) ->  | H48: =VLOOKUP(A47,počty!$L$6:$AP$163,22,0) ->  | I48: =VLOOKUP(A47,počty!$L$6:$AP$163,23,0) ->  | J48: =VLOOKUP(A47,počty!$L$6:$AP$163,24,0) ->  | K48: =VLOOKUP(A47,počty!$L$6:$AP$163,25,0) ->  | L48: =VLOOKUP(A47,počty!$L$6:$AP$163,26,0) ->  | M48: =VLOOKUP(A47,počty!$L$6:$AP$163,27,0) ->  | N48: =VLOOKUP(A47,počty!$L$6:$AP$163,28,0) ->  | O48: =VLOOKUP(A47,počty!$L$6:$AP$163,29,0) -> 
A49: 19 | B49: =IF(VLOOKUP(A49,počty!$L$6:$AP$163,31,0)>=1000,"M",VLOOKUP(A49,počty!$L$6:$BR$163,53,0)) ->  | C49: =VLOOKUP(A49,počty!$L$6:$AP$163,3,0) ->  | D49: =VLOOKUP(A49,počty!$L$6:$AP$163,4,0) ->  | E49: =VLOOKUP(A49,počty!$L$6:$AP$163,7,0) ->  | F49: =VLOOKUP(A49,počty!$L$6:$AP$163,9,0) ->  | G49: =VLOOKUP(A49,počty!$L$6:$AP$163,10,0) ->  | H49: =VLOOKUP(A49,počty!$L$6:$AP$163,11,0) ->  | I49: =VLOOKUP(A49,počty!$L$6:$AP$163,12,0) ->  | J49: =VLOOKUP(A49,počty!$L$6:$AP$163,13,0) ->  | K49: =VLOOKUP(A49,počty!$L$6:$AP$163,14,0) ->  | L49: =VLOOKUP(A49,počty!$L$6:$AP$163,15,0) ->  | M49: =VLOOKUP(A49,počty!$L$6:$AP$163,16,0) ->  | N49: =VLOOKUP(A49,počty!$L$6:$AP$163,17,0) ->  | O49: =VLOOKUP(A49,počty!$L$6:$AP$163,18,0) ->  | P49: =VLOOKUP(A49,počty!$L$6:$AP$163,30,0) ->  | Q49: =IF(B49="M","M",240-MAX(počty!$BM$6:$BM$39)+P49) ->  | R49: =IF(B49="M","M",IF(B49>MAX(CUP!$B$3:$B$102),0,VLOOKUP(B49,CUP!$B$3:$C$102,2,0))) -> 
D50: =VLOOKUP(A49,počty!$L$6:$AP$163,5,0) ->  | E50: =VLOOKUP(A49,počty!$L$6:$AP$163,6,0) ->  | F50: =VLOOKUP(A49,počty!$L$6:$AP$163,20,0) ->  | G50: =VLOOKUP(A49,počty!$L$6:$AP$163,21,0) ->  | H50: =VLOOKUP(A49,počty!$L$6:$AP$163,22,0) ->  | I50: =VLOOKUP(A49,počty!$L$6:$AP$163,23,0) ->  | J50: =VLOOKUP(A49,počty!$L$6:$AP$163,24,0) ->  | K50: =VLOOKUP(A49,počty!$L$6:$AP$163,25,0) ->  | L50: =VLOOKUP(A49,počty!$L$6:$AP$163,26,0) ->  | M50: =VLOOKUP(A49,počty!$L$6:$AP$163,27,0) ->  | N50: =VLOOKUP(A49,počty!$L$6:$AP$163,28,0) ->  | O50: =VLOOKUP(A49,počty!$L$6:$AP$163,29,0) -> 
A51: 20 | B51: =IF(VLOOKUP(A51,počty!$L$6:$AP$163,31,0)>=1000,"M",VLOOKUP(A51,počty!$L$6:$BR$163,53,0)) ->  | C51: =VLOOKUP(A51,počty!$L$6:$AP$163,3,0) ->  | D51: =VLOOKUP(A51,počty!$L$6:$AP$163,4,0) ->  | E51: =VLOOKUP(A51,počty!$L$6:$AP$163,7,0) ->  | F51: =VLOOKUP(A51,počty!$L$6:$AP$163,9,0) ->  | G51: =VLOOKUP(A51,počty!$L$6:$AP$163,10,0) ->  | H51: =VLOOKUP(A51,počty!$L$6:$AP$163,11,0) ->  | I51: =VLOOKUP(A51,počty!$L$6:$AP$163,12,0) ->  | J51: =VLOOKUP(A51,počty!$L$6:$AP$163,13,0) ->  | K51: =VLOOKUP(A51,počty!$L$6:$AP$163,14,0) ->  | L51: =VLOOKUP(A51,počty!$L$6:$AP$163,15,0) ->  | M51: =VLOOKUP(A51,počty!$L$6:$AP$163,16,0) ->  | N51: =VLOOKUP(A51,počty!$L$6:$AP$163,17,0) ->  | O51: =VLOOKUP(A51,počty!$L$6:$AP$163,18,0) ->  | P51: =VLOOKUP(A51,počty!$L$6:$AP$163,30,0) ->  | Q51: =IF(B51="M","M",240-MAX(počty!$BM$6:$BM$39)+P51) ->  | R51: =IF(B51="M","M",IF(B51>MAX(CUP!$B$3:$B$102),0,VLOOKUP(B51,CUP!$B$3:$C$102,2,0))) -> 
D52: =VLOOKUP(A51,počty!$L$6:$AP$163,5,0) ->  | E52: =VLOOKUP(A51,počty!$L$6:$AP$163,6,0) ->  | F52: =VLOOKUP(A51,počty!$L$6:$AP$163,20,0) ->  | G52: =VLOOKUP(A51,počty!$L$6:$AP$163,21,0) ->  | H52: =VLOOKUP(A51,počty!$L$6:$AP$163,22,0) ->  | I52: =VLOOKUP(A51,počty!$L$6:$AP$163,23,0) ->  | J52: =VLOOKUP(A51,počty!$L$6:$AP$163,24,0) ->  | K52: =VLOOKUP(A51,počty!$L$6:$AP$163,25,0) ->  | L52: =VLOOKUP(A51,počty!$L$6:$AP$163,26,0) ->  | M52: =VLOOKUP(A51,počty!$L$6:$AP$163,27,0) ->  | N52: =VLOOKUP(A51,počty!$L$6:$AP$163,28,0) ->  | O52: =VLOOKUP(A51,počty!$L$6:$AP$163,29,0) -> 
A53: 21 | B53: =IF(VLOOKUP(A53,počty!$L$6:$AP$163,31,0)>=1000,"M",VLOOKUP(A53,počty!$L$6:$BR$163,53,0)) ->  | C53: =VLOOKUP(A53,počty!$L$6:$AP$163,3,0) ->  | D53: =VLOOKUP(A53,počty!$L$6:$AP$163,4,0) ->  | E53: =VLOOKUP(A53,počty!$L$6:$AP$163,7,0) ->  | F53: =VLOOKUP(A53,počty!$L$6:$AP$163,9,0) ->  | G53: =VLOOKUP(A53,počty!$L$6:$AP$163,10,0) ->  | H53: =VLOOKUP(A53,počty!$L$6:$AP$163,11,0) ->  | I53: =VLOOKUP(A53,počty!$L$6:$AP$163,12,0) ->  | J53: =VLOOKUP(A53,počty!$L$6:$AP$163,13,0) ->  | K53: =VLOOKUP(A53,počty!$L$6:$AP$163,14,0) ->  | L53: =VLOOKUP(A53,počty!$L$6:$AP$163,15,0) ->  | M53: =VLOOKUP(A53,počty!$L$6:$AP$163,16,0) ->  | N53: =VLOOKUP(A53,počty!$L$6:$AP$163,17,0) ->  | O53: =VLOOKUP(A53,počty!$L$6:$AP$163,18,0) ->  | P53: =VLOOKUP(A53,počty!$L$6:$AP$163,30,0) ->  | Q53: =IF(B53="M","M",240-MAX(počty!$BM$6:$BM$39)+P53) ->  | R53: =IF(B53="M","M",IF(B53>MAX(CUP!$B$3:$B$102),0,VLOOKUP(B53,CUP!$B$3:$C$102,2,0))) -> 
D54: =VLOOKUP(A53,počty!$L$6:$AP$163,5,0) ->  | E54: =VLOOKUP(A53,počty!$L$6:$AP$163,6,0) ->  | F54: =VLOOKUP(A53,počty!$L$6:$AP$163,20,0) ->  | G54: =VLOOKUP(A53,počty!$L$6:$AP$163,21,0) ->  | H54: =VLOOKUP(A53,počty!$L$6:$AP$163,22,0) ->  | I54: =VLOOKUP(A53,počty!$L$6:$AP$163,23,0) ->  | J54: =VLOOKUP(A53,počty!$L$6:$AP$163,24,0) ->  | K54: =VLOOKUP(A53,počty!$L$6:$AP$163,25,0) ->  | L54: =VLOOKUP(A53,počty!$L$6:$AP$163,26,0) ->  | M54: =VLOOKUP(A53,počty!$L$6:$AP$163,27,0) ->  | N54: =VLOOKUP(A53,počty!$L$6:$AP$163,28,0) ->  | O54: =VLOOKUP(A53,počty!$L$6:$AP$163,29,0) -> 
A55: 22 | B55: =IF(VLOOKUP(A55,počty!$L$6:$AP$163,31,0)>=1000,"M",VLOOKUP(A55,počty!$L$6:$BR$163,53,0)) ->  | C55: =VLOOKUP(A55,počty!$L$6:$AP$163,3,0) ->  | D55: =VLOOKUP(A55,počty!$L$6:$AP$163,4,0) ->  | E55: =VLOOKUP(A55,počty!$L$6:$AP$163,7,0) ->  | F55: =VLOOKUP(A55,počty!$L$6:$AP$163,9,0) ->  | G55: =VLOOKUP(A55,počty!$L$6:$AP$163,10,0) ->  | H55: =VLOOKUP(A55,počty!$L$6:$AP$163,11,0) ->  | I55: =VLOOKUP(A55,počty!$L$6:$AP$163,12,0) ->  | J55: =VLOOKUP(A55,počty!$L$6:$AP$163,13,0) ->  | K55: =VLOOKUP(A55,počty!$L$6:$AP$163,14,0) ->  | L55: =VLOOKUP(A55,počty!$L$6:$AP$163,15,0) ->  | M55: =VLOOKUP(A55,počty!$L$6:$AP$163,16,0) ->  | N55: =VLOOKUP(A55,počty!$L$6:$AP$163,17,0) ->  | O55: =VLOOKUP(A55,počty!$L$6:$AP$163,18,0) ->  | P55: =VLOOKUP(A55,počty!$L$6:$AP$163,30,0) ->  | Q55: =IF(B55="M","M",240-MAX(počty!$BM$6:$BM$39)+P55) ->  | R55: =IF(B55="M","M",IF(B55>MAX(CUP!$B$3:$B$102),0,VLOOKUP(B55,CUP!$B$3:$C$102,2,0))) -> 
D56: =VLOOKUP(A55,počty!$L$6:$AP$163,5,0) ->  | E56: =VLOOKUP(A55,počty!$L$6:$AP$163,6,0) ->  | F56: =VLOOKUP(A55,počty!$L$6:$AP$163,20,0) ->  | G56: =VLOOKUP(A55,počty!$L$6:$AP$163,21,0) ->  | H56: =VLOOKUP(A55,počty!$L$6:$AP$163,22,0) ->  | I56: =VLOOKUP(A55,počty!$L$6:$AP$163,23,0) ->  | J56: =VLOOKUP(A55,počty!$L$6:$AP$163,24,0) ->  | K56: =VLOOKUP(A55,počty!$L$6:$AP$163,25,0) ->  | L56: =VLOOKUP(A55,počty!$L$6:$AP$163,26,0) ->  | M56: =VLOOKUP(A55,počty!$L$6:$AP$163,27,0) ->  | N56: =VLOOKUP(A55,počty!$L$6:$AP$163,28,0) ->  | O56: =VLOOKUP(A55,počty!$L$6:$AP$163,29,0) -> 
A57: 23 | B57: =IF(VLOOKUP(A57,počty!$L$6:$AP$163,31,0)>=1000,"M",VLOOKUP(A57,počty!$L$6:$BR$163,53,0)) ->  | C57: =VLOOKUP(A57,počty!$L$6:$AP$163,3,0) ->  | D57: =VLOOKUP(A57,počty!$L$6:$AP$163,4,0) ->  | E57: =VLOOKUP(A57,počty!$L$6:$AP$163,7,0) ->  | F57: =VLOOKUP(A57,počty!$L$6:$AP$163,9,0) ->  | G57: =VLOOKUP(A57,počty!$L$6:$AP$163,10,0) ->  | H57: =VLOOKUP(A57,počty!$L$6:$AP$163,11,0) ->  | I57: =VLOOKUP(A57,počty!$L$6:$AP$163,12,0) ->  | J57: =VLOOKUP(A57,počty!$L$6:$AP$163,13,0) ->  | K57: =VLOOKUP(A57,počty!$L$6:$AP$163,14,0) ->  | L57: =VLOOKUP(A57,počty!$L$6:$AP$163,15,0) ->  | M57: =VLOOKUP(A57,počty!$L$6:$AP$163,16,0) ->  | N57: =VLOOKUP(A57,počty!$L$6:$AP$163,17,0) ->  | O57: =VLOOKUP(A57,počty!$L$6:$AP$163,18,0) ->  | P57: =VLOOKUP(A57,počty!$L$6:$AP$163,30,0) ->  | Q57: =IF(B57="M","M",240-MAX(počty!$BM$6:$BM$39)+P57) ->  | R57: =IF(B57="M","M",IF(B57>MAX(CUP!$B$3:$B$102),0,VLOOKUP(B57,CUP!$B$3:$C$102,2,0))) -> 
D58: =VLOOKUP(A57,počty!$L$6:$AP$163,5,0) ->  | E58: =VLOOKUP(A57,počty!$L$6:$AP$163,6,0) ->  | F58: =VLOOKUP(A57,počty!$L$6:$AP$163,20,0) ->  | G58: =VLOOKUP(A57,počty!$L$6:$AP$163,21,0) ->  | H58: =VLOOKUP(A57,počty!$L$6:$AP$163,22,0) ->  | I58: =VLOOKUP(A57,počty!$L$6:$AP$163,23,0) ->  | J58: =VLOOKUP(A57,počty!$L$6:$AP$163,24,0) ->  | K58: =VLOOKUP(A57,počty!$L$6:$AP$163,25,0) ->  | L58: =VLOOKUP(A57,počty!$L$6:$AP$163,26,0) ->  | M58: =VLOOKUP(A57,počty!$L$6:$AP$163,27,0) ->  | N58: =VLOOKUP(A57,počty!$L$6:$AP$163,28,0) ->  | O58: =VLOOKUP(A57,počty!$L$6:$AP$163,29,0) -> 
A59: 24 | B59: =IF(VLOOKUP(A59,počty!$L$6:$AP$163,31,0)>=1000,"M",VLOOKUP(A59,počty!$L$6:$BR$163,53,0)) ->  | C59: =VLOOKUP(A59,počty!$L$6:$AP$163,3,0) ->  | D59: =VLOOKUP(A59,počty!$L$6:$AP$163,4,0) ->  | E59: =VLOOKUP(A59,počty!$L$6:$AP$163,7,0) ->  | F59: =VLOOKUP(A59,počty!$L$6:$AP$163,9,0) ->  | G59: =VLOOKUP(A59,počty!$L$6:$AP$163,10,0) ->  | H59: =VLOOKUP(A59,počty!$L$6:$AP$163,11,0) ->  | I59: =VLOOKUP(A59,počty!$L$6:$AP$163,12,0) ->  | J59: =VLOOKUP(A59,počty!$L$6:$AP$163,13,0) ->  | K59: =VLOOKUP(A59,počty!$L$6:$AP$163,14,0) ->  | L59: =VLOOKUP(A59,počty!$L$6:$AP$163,15,0) ->  | M59: =VLOOKUP(A59,počty!$L$6:$AP$163,16,0) ->  | N59: =VLOOKUP(A59,počty!$L$6:$AP$163,17,0) ->  | O59: =VLOOKUP(A59,počty!$L$6:$AP$163,18,0) ->  | P59: =VLOOKUP(A59,počty!$L$6:$AP$163,30,0) ->  | Q59: =IF(B59="M","M",240-MAX(počty!$BM$6:$BM$39)+P59) ->  | R59: =IF(B59="M","M",IF(B59>MAX(CUP!$B$3:$B$102),0,VLOOKUP(B59,CUP!$B$3:$C$102,2,0))) -> 
D60: =VLOOKUP(A59,počty!$L$6:$AP$163,5,0) ->  | E60: =VLOOKUP(A59,počty!$L$6:$AP$163,6,0) ->  | F60: =VLOOKUP(A59,počty!$L$6:$AP$163,20,0) ->  | G60: =VLOOKUP(A59,počty!$L$6:$AP$163,21,0) ->  | H60: =VLOOKUP(A59,počty!$L$6:$AP$163,22,0) ->  | I60: =VLOOKUP(A59,počty!$L$6:$AP$163,23,0) ->  | J60: =VLOOKUP(A59,počty!$L$6:$AP$163,24,0) ->  | K60: =VLOOKUP(A59,počty!$L$6:$AP$163,25,0) ->  | L60: =VLOOKUP(A59,počty!$L$6:$AP$163,26,0) ->  | M60: =VLOOKUP(A59,počty!$L$6:$AP$163,27,0) ->  | N60: =VLOOKUP(A59,počty!$L$6:$AP$163,28,0) ->  | O60: =VLOOKUP(A59,počty!$L$6:$AP$163,29,0) -> 
A61: 25 | B61: =IF(VLOOKUP(A61,počty!$L$6:$AP$163,31,0)>=1000,"M",VLOOKUP(A61,počty!$L$6:$BR$163,53,0)) ->  | C61: =VLOOKUP(A61,počty!$L$6:$AP$163,3,0) ->  | D61: =VLOOKUP(A61,počty!$L$6:$AP$163,4,0) ->  | E61: =VLOOKUP(A61,počty!$L$6:$AP$163,7,0) ->  | F61: =VLOOKUP(A61,počty!$L$6:$AP$163,9,0) ->  | G61: =VLOOKUP(A61,počty!$L$6:$AP$163,10,0) ->  | H61: =VLOOKUP(A61,počty!$L$6:$AP$163,11,0) ->  | I61: =VLOOKUP(A61,počty!$L$6:$AP$163,12,0) ->  | J61: =VLOOKUP(A61,počty!$L$6:$AP$163,13,0) ->  | K61: =VLOOKUP(A61,počty!$L$6:$AP$163,14,0) ->  | L61: =VLOOKUP(A61,počty!$L$6:$AP$163,15,0) ->  | M61: =VLOOKUP(A61,počty!$L$6:$AP$163,16,0) ->  | N61: =VLOOKUP(A61,počty!$L$6:$AP$163,17,0) ->  | O61: =VLOOKUP(A61,počty!$L$6:$AP$163,18,0) ->  | P61: =VLOOKUP(A61,počty!$L$6:$AP$163,30,0) ->  | Q61: =IF(B61="M","M",240-MAX(počty!$BM$6:$BM$39)+P61) ->  | R61: =IF(B61="M","M",IF(B61>MAX(CUP!$B$3:$B$102),0,VLOOKUP(B61,CUP!$B$3:$C$102,2,0))) -> 
D62: =VLOOKUP(A61,počty!$L$6:$AP$163,5,0) ->  | E62: =VLOOKUP(A61,počty!$L$6:$AP$163,6,0) ->  | F62: =VLOOKUP(A61,počty!$L$6:$AP$163,20,0) ->  | G62: =VLOOKUP(A61,počty!$L$6:$AP$163,21,0) ->  | H62: =VLOOKUP(A61,počty!$L$6:$AP$163,22,0) ->  | I62: =VLOOKUP(A61,počty!$L$6:$AP$163,23,0) ->  | J62: =VLOOKUP(A61,počty!$L$6:$AP$163,24,0) ->  | K62: =VLOOKUP(A61,počty!$L$6:$AP$163,25,0) ->  | L62: =VLOOKUP(A61,počty!$L$6:$AP$163,26,0) ->  | M62: =VLOOKUP(A61,počty!$L$6:$AP$163,27,0) ->  | N62: =VLOOKUP(A61,počty!$L$6:$AP$163,28,0) ->  | O62: =VLOOKUP(A61,počty!$L$6:$AP$163,29,0) -> 
A63: 26 | B63: =IF(VLOOKUP(A63,počty!$L$6:$AP$163,31,0)>=1000,"M",VLOOKUP(A63,počty!$L$6:$BR$163,53,0)) ->  | C63: =VLOOKUP(A63,počty!$L$6:$AP$163,3,0) ->  | D63: =VLOOKUP(A63,počty!$L$6:$AP$163,4,0) ->  | E63: =VLOOKUP(A63,počty!$L$6:$AP$163,7,0) ->  | F63: =VLOOKUP(A63,počty!$L$6:$AP$163,9,0) ->  | G63: =VLOOKUP(A63,počty!$L$6:$AP$163,10,0) ->  | H63: =VLOOKUP(A63,počty!$L$6:$AP$163,11,0) ->  | I63: =VLOOKUP(A63,počty!$L$6:$AP$163,12,0) ->  | J63: =VLOOKUP(A63,počty!$L$6:$AP$163,13,0) ->  | K63: =VLOOKUP(A63,počty!$L$6:$AP$163,14,0) ->  | L63: =VLOOKUP(A63,počty!$L$6:$AP$163,15,0) ->  | M63: =VLOOKUP(A63,počty!$L$6:$AP$163,16,0) ->  | N63: =VLOOKUP(A63,počty!$L$6:$AP$163,17,0) ->  | O63: =VLOOKUP(A63,počty!$L$6:$AP$163,18,0) ->  | P63: =VLOOKUP(A63,počty!$L$6:$AP$163,30,0) ->  | Q63: =IF(B63="M","M",240-MAX(počty!$BM$6:$BM$39)+P63) ->  | R63: =IF(B63="M","M",IF(B63>MAX(CUP!$B$3:$B$102),0,VLOOKUP(B63,CUP!$B$3:$C$102,2,0))) -> 
D64: =VLOOKUP(A63,počty!$L$6:$AP$163,5,0) ->  | E64: =VLOOKUP(A63,počty!$L$6:$AP$163,6,0) ->  | F64: =VLOOKUP(A63,počty!$L$6:$AP$163,20,0) ->  | G64: =VLOOKUP(A63,počty!$L$6:$AP$163,21,0) ->  | H64: =VLOOKUP(A63,počty!$L$6:$AP$163,22,0) ->  | I64: =VLOOKUP(A63,počty!$L$6:$AP$163,23,0) ->  | J64: =VLOOKUP(A63,počty!$L$6:$AP$163,24,0) ->  | K64: =VLOOKUP(A63,počty!$L$6:$AP$163,25,0) ->  | L64: =VLOOKUP(A63,počty!$L$6:$AP$163,26,0) ->  | M64: =VLOOKUP(A63,počty!$L$6:$AP$163,27,0) ->  | N64: =VLOOKUP(A63,počty!$L$6:$AP$163,28,0) ->  | O64: =VLOOKUP(A63,počty!$L$6:$AP$163,29,0) -> 
A65: 27 | B65: =IF(VLOOKUP(A65,počty!$L$6:$AP$163,31,0)>=1000,"M",VLOOKUP(A65,počty!$L$6:$BR$163,53,0)) ->  | C65: =VLOOKUP(A65,počty!$L$6:$AP$163,3,0) ->  | D65: =VLOOKUP(A65,počty!$L$6:$AP$163,4,0) ->  | E65: =VLOOKUP(A65,počty!$L$6:$AP$163,7,0) ->  | F65: =VLOOKUP(A65,počty!$L$6:$AP$163,9,0) ->  | G65: =VLOOKUP(A65,počty!$L$6:$AP$163,10,0) ->  | H65: =VLOOKUP(A65,počty!$L$6:$AP$163,11,0) ->  | I65: =VLOOKUP(A65,počty!$L$6:$AP$163,12,0) ->  | J65: =VLOOKUP(A65,počty!$L$6:$AP$163,13,0) ->  | K65: =VLOOKUP(A65,počty!$L$6:$AP$163,14,0) ->  | L65: =VLOOKUP(A65,počty!$L$6:$AP$163,15,0) ->  | M65: =VLOOKUP(A65,počty!$L$6:$AP$163,16,0) ->  | N65: =VLOOKUP(A65,počty!$L$6:$AP$163,17,0) ->  | O65: =VLOOKUP(A65,počty!$L$6:$AP$163,18,0) ->  | P65: =VLOOKUP(A65,počty!$L$6:$AP$163,30,0) ->  | Q65: =IF(B65="M","M",240-MAX(počty!$BM$6:$BM$39)+P65) ->  | R65: =IF(B65="M","M",IF(B65>MAX(CUP!$B$3:$B$102),0,VLOOKUP(B65,CUP!$B$3:$C$102,2,0))) -> 
D66: =VLOOKUP(A65,počty!$L$6:$AP$163,5,0) ->  | E66: =VLOOKUP(A65,počty!$L$6:$AP$163,6,0) ->  | F66: =VLOOKUP(A65,počty!$L$6:$AP$163,20,0) ->  | G66: =VLOOKUP(A65,počty!$L$6:$AP$163,21,0) ->  | H66: =VLOOKUP(A65,počty!$L$6:$AP$163,22,0) ->  | I66: =VLOOKUP(A65,počty!$L$6:$AP$163,23,0) ->  | J66: =VLOOKUP(A65,počty!$L$6:$AP$163,24,0) ->  | K66: =VLOOKUP(A65,počty!$L$6:$AP$163,25,0) ->  | L66: =VLOOKUP(A65,počty!$L$6:$AP$163,26,0) ->  | M66: =VLOOKUP(A65,počty!$L$6:$AP$163,27,0) ->  | N66: =VLOOKUP(A65,počty!$L$6:$AP$163,28,0) ->  | O66: =VLOOKUP(A65,počty!$L$6:$AP$163,29,0) -> 
A67: 28 | B67: =IF(VLOOKUP(A67,počty!$L$6:$AP$163,31,0)>=1000,"M",VLOOKUP(A67,počty!$L$6:$BR$163,53,0)) ->  | C67: =VLOOKUP(A67,počty!$L$6:$AP$163,3,0) ->  | D67: =VLOOKUP(A67,počty!$L$6:$AP$163,4,0) ->  | E67: =VLOOKUP(A67,počty!$L$6:$AP$163,7,0) ->  | F67: =VLOOKUP(A67,počty!$L$6:$AP$163,9,0) ->  | G67: =VLOOKUP(A67,počty!$L$6:$AP$163,10,0) ->  | H67: =VLOOKUP(A67,počty!$L$6:$AP$163,11,0) ->  | I67: =VLOOKUP(A67,počty!$L$6:$AP$163,12,0) ->  | J67: =VLOOKUP(A67,počty!$L$6:$AP$163,13,0) ->  | K67: =VLOOKUP(A67,počty!$L$6:$AP$163,14,0) ->  | L67: =VLOOKUP(A67,počty!$L$6:$AP$163,15,0) ->  | M67: =VLOOKUP(A67,počty!$L$6:$AP$163,16,0) ->  | N67: =VLOOKUP(A67,počty!$L$6:$AP$163,17,0) ->  | O67: =VLOOKUP(A67,počty!$L$6:$AP$163,18,0) ->  | P67: =VLOOKUP(A67,počty!$L$6:$AP$163,30,0) ->  | Q67: =IF(B67="M","M",240-MAX(počty!$BM$6:$BM$39)+P67) ->  | R67: =IF(B67="M","M",IF(B67>MAX(CUP!$B$3:$B$102),0,VLOOKUP(B67,CUP!$B$3:$C$102,2,0))) -> 
D68: =VLOOKUP(A67,počty!$L$6:$AP$163,5,0) ->  | E68: =VLOOKUP(A67,počty!$L$6:$AP$163,6,0) ->  | F68: =VLOOKUP(A67,počty!$L$6:$AP$163,20,0) ->  | G68: =VLOOKUP(A67,počty!$L$6:$AP$163,21,0) ->  | H68: =VLOOKUP(A67,počty!$L$6:$AP$163,22,0) ->  | I68: =VLOOKUP(A67,počty!$L$6:$AP$163,23,0) ->  | J68: =VLOOKUP(A67,počty!$L$6:$AP$163,24,0) ->  | K68: =VLOOKUP(A67,počty!$L$6:$AP$163,25,0) ->  | L68: =VLOOKUP(A67,počty!$L$6:$AP$163,26,0) ->  | M68: =VLOOKUP(A67,počty!$L$6:$AP$163,27,0) ->  | N68: =VLOOKUP(A67,počty!$L$6:$AP$163,28,0) ->  | O68: =VLOOKUP(A67,počty!$L$6:$AP$163,29,0) -> 
A69: 29 | B69: =IF(VLOOKUP(A69,počty!$L$6:$AP$163,31,0)>=1000,"M",VLOOKUP(A69,počty!$L$6:$BR$163,53,0)) ->  | C69: =VLOOKUP(A69,počty!$L$6:$AP$163,3,0) ->  | D69: =VLOOKUP(A69,počty!$L$6:$AP$163,4,0) ->  | E69: =VLOOKUP(A69,počty!$L$6:$AP$163,7,0) ->  | F69: =VLOOKUP(A69,počty!$L$6:$AP$163,9,0) ->  | G69: =VLOOKUP(A69,počty!$L$6:$AP$163,10,0) ->  | H69: =VLOOKUP(A69,počty!$L$6:$AP$163,11,0) ->  | I69: =VLOOKUP(A69,počty!$L$6:$AP$163,12,0) ->  | J69: =VLOOKUP(A69,počty!$L$6:$AP$163,13,0) ->  | K69: =VLOOKUP(A69,počty!$L$6:$AP$163,14,0) ->  | L69: =VLOOKUP(A69,počty!$L$6:$AP$163,15,0) ->  | M69: =VLOOKUP(A69,počty!$L$6:$AP$163,16,0) ->  | N69: =VLOOKUP(A69,počty!$L$6:$AP$163,17,0) ->  | O69: =VLOOKUP(A69,počty!$L$6:$AP$163,18,0) ->  | P69: =VLOOKUP(A69,počty!$L$6:$AP$163,30,0) ->  | Q69: =IF(B69="M","M",240-MAX(počty!$BM$6:$BM$39)+P69) ->  | R69: =IF(B69="M","M",IF(B69>MAX(CUP!$B$3:$B$102),0,VLOOKUP(B69,CUP!$B$3:$C$102,2,0))) -> 
D70: =VLOOKUP(A69,počty!$L$6:$AP$163,5,0) ->  | E70: =VLOOKUP(A69,počty!$L$6:$AP$163,6,0) ->  | F70: =VLOOKUP(A69,počty!$L$6:$AP$163,20,0) ->  | G70: =VLOOKUP(A69,počty!$L$6:$AP$163,21,0) ->  | H70: =VLOOKUP(A69,počty!$L$6:$AP$163,22,0) ->  | I70: =VLOOKUP(A69,počty!$L$6:$AP$163,23,0) ->  | J70: =VLOOKUP(A69,počty!$L$6:$AP$163,24,0) ->  | K70: =VLOOKUP(A69,počty!$L$6:$AP$163,25,0) ->  | L70: =VLOOKUP(A69,počty!$L$6:$AP$163,26,0) ->  | M70: =VLOOKUP(A69,počty!$L$6:$AP$163,27,0) ->  | N70: =VLOOKUP(A69,počty!$L$6:$AP$163,28,0) ->  | O70: =VLOOKUP(A69,počty!$L$6:$AP$163,29,0) -> 
A71: 30 | B71: =IF(VLOOKUP(A71,počty!$L$6:$AP$163,31,0)>=1000,"M",VLOOKUP(A71,počty!$L$6:$BR$163,53,0)) ->  | C71: =VLOOKUP(A71,počty!$L$6:$AP$163,3,0) ->  | D71: =VLOOKUP(A71,počty!$L$6:$AP$163,4,0) ->  | E71: =VLOOKUP(A71,počty!$L$6:$AP$163,7,0) ->  | F71: =VLOOKUP(A71,počty!$L$6:$AP$163,9,0) ->  | G71: =VLOOKUP(A71,počty!$L$6:$AP$163,10,0) ->  | H71: =VLOOKUP(A71,počty!$L$6:$AP$163,11,0) ->  | I71: =VLOOKUP(A71,počty!$L$6:$AP$163,12,0) ->  | J71: =VLOOKUP(A71,počty!$L$6:$AP$163,13,0) ->  | K71: =VLOOKUP(A71,počty!$L$6:$AP$163,14,0) ->  | L71: =VLOOKUP(A71,počty!$L$6:$AP$163,15,0) ->  | M71: =VLOOKUP(A71,počty!$L$6:$AP$163,16,0) ->  | N71: =VLOOKUP(A71,počty!$L$6:$AP$163,17,0) ->  | O71: =VLOOKUP(A71,počty!$L$6:$AP$163,18,0) ->  | P71: =VLOOKUP(A71,počty!$L$6:$AP$163,30,0) ->  | Q71: =IF(B71="M","M",240-MAX(počty!$BM$6:$BM$39)+P71) ->  | R71: =IF(B71="M","M",IF(B71>MAX(CUP!$B$3:$B$102),0,VLOOKUP(B71,CUP!$B$3:$C$102,2,0))) -> 
D72: =VLOOKUP(A71,počty!$L$6:$AP$163,5,0) ->  | E72: =VLOOKUP(A71,počty!$L$6:$AP$163,6,0) ->  | F72: =VLOOKUP(A71,počty!$L$6:$AP$163,20,0) ->  | G72: =VLOOKUP(A71,počty!$L$6:$AP$163,21,0) ->  | H72: =VLOOKUP(A71,počty!$L$6:$AP$163,22,0) ->  | I72: =VLOOKUP(A71,počty!$L$6:$AP$163,23,0) ->  | J72: =VLOOKUP(A71,počty!$L$6:$AP$163,24,0) ->  | K72: =VLOOKUP(A71,počty!$L$6:$AP$163,25,0) ->  | L72: =VLOOKUP(A71,počty!$L$6:$AP$163,26,0) ->  | M72: =VLOOKUP(A71,počty!$L$6:$AP$163,27,0) ->  | N72: =VLOOKUP(A71,počty!$L$6:$AP$163,28,0) ->  | O72: =VLOOKUP(A71,počty!$L$6:$AP$163,29,0) -> 
A73: 31 | B73: =IF(VLOOKUP(A73,počty!$L$6:$AP$163,31,0)>=1000,"M",VLOOKUP(A73,počty!$L$6:$BR$163,53,0)) ->  | C73: =VLOOKUP(A73,počty!$L$6:$AP$163,3,0) ->  | D73: =VLOOKUP(A73,počty!$L$6:$AP$163,4,0) ->  | E73: =VLOOKUP(A73,počty!$L$6:$AP$163,7,0) ->  | F73: =VLOOKUP(A73,počty!$L$6:$AP$163,9,0) ->  | G73: =VLOOKUP(A73,počty!$L$6:$AP$163,10,0) ->  | H73: =VLOOKUP(A73,počty!$L$6:$AP$163,11,0) ->  | I73: =VLOOKUP(A73,počty!$L$6:$AP$163,12,0) ->  | J73: =VLOOKUP(A73,počty!$L$6:$AP$163,13,0) ->  | K73: =VLOOKUP(A73,počty!$L$6:$AP$163,14,0) ->  | L73: =VLOOKUP(A73,počty!$L$6:$AP$163,15,0) ->  | M73: =VLOOKUP(A73,počty!$L$6:$AP$163,16,0) ->  | N73: =VLOOKUP(A73,počty!$L$6:$AP$163,17,0) ->  | O73: =VLOOKUP(A73,počty!$L$6:$AP$163,18,0) ->  | P73: =VLOOKUP(A73,počty!$L$6:$AP$163,30,0) ->  | Q73: =IF(B73="M","M",240-MAX(počty!$BM$6:$BM$39)+P73) ->  | R73: =IF(B73="M","M",IF(B73>MAX(CUP!$B$3:$B$102),0,VLOOKUP(B73,CUP!$B$3:$C$102,2,0))) -> 
D74: =VLOOKUP(A73,počty!$L$6:$AP$163,5,0) ->  | E74: =VLOOKUP(A73,počty!$L$6:$AP$163,6,0) ->  | F74: =VLOOKUP(A73,počty!$L$6:$AP$163,20,0) ->  | G74: =VLOOKUP(A73,počty!$L$6:$AP$163,21,0) ->  | H74: =VLOOKUP(A73,počty!$L$6:$AP$163,22,0) ->  | I74: =VLOOKUP(A73,počty!$L$6:$AP$163,23,0) ->  | J74: =VLOOKUP(A73,počty!$L$6:$AP$163,24,0) ->  | K74: =VLOOKUP(A73,počty!$L$6:$AP$163,25,0) ->  | L74: =VLOOKUP(A73,počty!$L$6:$AP$163,26,0) ->  | M74: =VLOOKUP(A73,počty!$L$6:$AP$163,27,0) ->  | N74: =VLOOKUP(A73,počty!$L$6:$AP$163,28,0) ->  | O74: =VLOOKUP(A73,počty!$L$6:$AP$163,29,0) -> 
A75: 32 | B75: =IF(VLOOKUP(A75,počty!$L$6:$AP$163,31,0)>=1000,"M",VLOOKUP(A75,počty!$L$6:$BR$163,53,0)) ->  | C75: =VLOOKUP(A75,počty!$L$6:$AP$163,3,0) ->  | D75: =VLOOKUP(A75,počty!$L$6:$AP$163,4,0) ->  | E75: =VLOOKUP(A75,počty!$L$6:$AP$163,7,0) ->  | F75: =VLOOKUP(A75,počty!$L$6:$AP$163,9,0) ->  | G75: =VLOOKUP(A75,počty!$L$6:$AP$163,10,0) ->  | H75: =VLOOKUP(A75,počty!$L$6:$AP$163,11,0) ->  | I75: =VLOOKUP(A75,počty!$L$6:$AP$163,12,0) ->  | J75: =VLOOKUP(A75,počty!$L$6:$AP$163,13,0) ->  | K75: =VLOOKUP(A75,počty!$L$6:$AP$163,14,0) ->  | L75: =VLOOKUP(A75,počty!$L$6:$AP$163,15,0) ->  | M75: =VLOOKUP(A75,počty!$L$6:$AP$163,16,0) ->  | N75: =VLOOKUP(A75,počty!$L$6:$AP$163,17,0) ->  | O75: =VLOOKUP(A75,počty!$L$6:$AP$163,18,0) ->  | P75: =VLOOKUP(A75,počty!$L$6:$AP$163,30,0) ->  | Q75: =IF(B75="M","M",240-MAX(počty!$BM$6:$BM$39)+P75) ->  | R75: =IF(B75="M","M",IF(B75>MAX(CUP!$B$3:$B$102),0,VLOOKUP(B75,CUP!$B$3:$C$102,2,0))) -> 
D76: =VLOOKUP(A75,počty!$L$6:$AP$163,5,0) ->  | E76: =VLOOKUP(A75,počty!$L$6:$AP$163,6,0) ->  | F76: =VLOOKUP(A75,počty!$L$6:$AP$163,20,0) ->  | G76: =VLOOKUP(A75,počty!$L$6:$AP$163,21,0) ->  | H76: =VLOOKUP(A75,počty!$L$6:$AP$163,22,0) ->  | I76: =VLOOKUP(A75,počty!$L$6:$AP$163,23,0) ->  | J76: =VLOOKUP(A75,počty!$L$6:$AP$163,24,0) ->  | K76: =VLOOKUP(A75,počty!$L$6:$AP$163,25,0) ->  | L76: =VLOOKUP(A75,počty!$L$6:$AP$163,26,0) ->  | M76: =VLOOKUP(A75,počty!$L$6:$AP$163,27,0) ->  | N76: =VLOOKUP(A75,počty!$L$6:$AP$163,28,0) ->  | O76: =VLOOKUP(A75,počty!$L$6:$AP$163,29,0) -> 
A77: 33 | B77: =IF(VLOOKUP(A77,počty!$L$6:$AP$163,31,0)>=1000,"M",VLOOKUP(A77,počty!$L$6:$BR$163,53,0)) ->  | C77: =VLOOKUP(A77,počty!$L$6:$AP$163,3,0) ->  | D77: =VLOOKUP(A77,počty!$L$6:$AP$163,4,0) ->  | E77: =VLOOKUP(A77,počty!$L$6:$AP$163,7,0) ->  | F77: =VLOOKUP(A77,počty!$L$6:$AP$163,9,0) ->  | G77: =VLOOKUP(A77,počty!$L$6:$AP$163,10,0) ->  | H77: =VLOOKUP(A77,počty!$L$6:$AP$163,11,0) ->  | I77: =VLOOKUP(A77,počty!$L$6:$AP$163,12,0) ->  | J77: =VLOOKUP(A77,počty!$L$6:$AP$163,13,0) ->  | K77: =VLOOKUP(A77,počty!$L$6:$AP$163,14,0) ->  | L77: =VLOOKUP(A77,počty!$L$6:$AP$163,15,0) ->  | M77: =VLOOKUP(A77,počty!$L$6:$AP$163,16,0) ->  | N77: =VLOOKUP(A77,počty!$L$6:$AP$163,17,0) ->  | O77: =VLOOKUP(A77,počty!$L$6:$AP$163,18,0) ->  | P77: =VLOOKUP(A77,počty!$L$6:$AP$163,30,0) ->  | Q77: =IF(B77="M","M",240-MAX(počty!$BM$6:$BM$39)+P77) ->  | R77: =IF(B77="M","M",IF(B77>MAX(CUP!$B$3:$B$102),0,VLOOKUP(B77,CUP!$B$3:$C$102,2,0))) -> 
D78: =VLOOKUP(A77,počty!$L$6:$AP$163,5,0) ->  | E78: =VLOOKUP(A77,počty!$L$6:$AP$163,6,0) ->  | F78: =VLOOKUP(A77,počty!$L$6:$AP$163,20,0) ->  | G78: =VLOOKUP(A77,počty!$L$6:$AP$163,21,0) ->  | H78: =VLOOKUP(A77,počty!$L$6:$AP$163,22,0) ->  | I78: =VLOOKUP(A77,počty!$L$6:$AP$163,23,0) ->  | J78: =VLOOKUP(A77,počty!$L$6:$AP$163,24,0) ->  | K78: =VLOOKUP(A77,počty!$L$6:$AP$163,25,0) ->  | L78: =VLOOKUP(A77,počty!$L$6:$AP$163,26,0) ->  | M78: =VLOOKUP(A77,počty!$L$6:$AP$163,27,0) ->  | N78: =VLOOKUP(A77,počty!$L$6:$AP$163,28,0) ->  | O78: =VLOOKUP(A77,počty!$L$6:$AP$163,29,0) -> 
A79: 34 | B79: =IF(VLOOKUP(A79,počty!$L$6:$AP$163,31,0)>=1000,"M",VLOOKUP(A79,počty!$L$6:$BR$163,53,0)) ->  | C79: =VLOOKUP(A79,počty!$L$6:$AP$163,3,0) ->  | D79: =VLOOKUP(A79,počty!$L$6:$AP$163,4,0) ->  | E79: =VLOOKUP(A79,počty!$L$6:$AP$163,7,0) ->  | F79: =VLOOKUP(A79,počty!$L$6:$AP$163,9,0) ->  | G79: =VLOOKUP(A79,počty!$L$6:$AP$163,10,0) ->  | H79: =VLOOKUP(A79,počty!$L$6:$AP$163,11,0) ->  | I79: =VLOOKUP(A79,počty!$L$6:$AP$163,12,0) ->  | J79: =VLOOKUP(A79,počty!$L$6:$AP$163,13,0) ->  | K79: =VLOOKUP(A79,počty!$L$6:$AP$163,14,0) ->  | L79: =VLOOKUP(A79,počty!$L$6:$AP$163,15,0) ->  | M79: =VLOOKUP(A79,počty!$L$6:$AP$163,16,0) ->  | N79: =VLOOKUP(A79,počty!$L$6:$AP$163,17,0) ->  | O79: =VLOOKUP(A79,počty!$L$6:$AP$163,18,0) ->  | P79: =VLOOKUP(A79,počty!$L$6:$AP$163,30,0) ->  | Q79: =IF(B79="M","M",240-MAX(počty!$BM$6:$BM$39)+P79) ->  | R79: =IF(B79="M","M",IF(B79>MAX(CUP!$B$3:$B$102),0,VLOOKUP(B79,CUP!$B$3:$C$102,2,0))) -> 
D80: =VLOOKUP(A79,počty!$L$6:$AP$163,5,0) ->  | E80: =VLOOKUP(A79,počty!$L$6:$AP$163,6,0) ->  | F80: =VLOOKUP(A79,počty!$L$6:$AP$163,20,0) ->  | G80: =VLOOKUP(A79,počty!$L$6:$AP$163,21,0) ->  | H80: =VLOOKUP(A79,počty!$L$6:$AP$163,22,0) ->  | I80: =VLOOKUP(A79,počty!$L$6:$AP$163,23,0) ->  | J80: =VLOOKUP(A79,počty!$L$6:$AP$163,24,0) ->  | K80: =VLOOKUP(A79,počty!$L$6:$AP$163,25,0) ->  | L80: =VLOOKUP(A79,počty!$L$6:$AP$163,26,0) ->  | M80: =VLOOKUP(A79,počty!$L$6:$AP$163,27,0) ->  | N80: =VLOOKUP(A79,počty!$L$6:$AP$163,28,0) ->  | O80: =VLOOKUP(A79,počty!$L$6:$AP$163,29,0) -> 
A81: 35 | B81: =IF(VLOOKUP(A81,počty!$L$6:$AP$163,31,0)>=1000,"M",VLOOKUP(A81,počty!$L$6:$BR$163,53,0)) ->  | C81: =VLOOKUP(A81,počty!$L$6:$AP$163,3,0) ->  | D81: =VLOOKUP(A81,počty!$L$6:$AP$163,4,0) ->  | E81: =VLOOKUP(A81,počty!$L$6:$AP$163,7,0) ->  | F81: =VLOOKUP(A81,počty!$L$6:$AP$163,9,0) ->  | G81: =VLOOKUP(A81,počty!$L$6:$AP$163,10,0) ->  | H81: =VLOOKUP(A81,počty!$L$6:$AP$163,11,0) ->  | I81: =VLOOKUP(A81,počty!$L$6:$AP$163,12,0) ->  | J81: =VLOOKUP(A81,počty!$L$6:$AP$163,13,0) ->  | K81: =VLOOKUP(A81,počty!$L$6:$AP$163,14,0) ->  | L81: =VLOOKUP(A81,počty!$L$6:$AP$163,15,0) ->  | M81: =VLOOKUP(A81,počty!$L$6:$AP$163,16,0) ->  | N81: =VLOOKUP(A81,počty!$L$6:$AP$163,17,0) ->  | O81: =VLOOKUP(A81,počty!$L$6:$AP$163,18,0) ->  | P81: =VLOOKUP(A81,počty!$L$6:$AP$163,30,0) ->  | Q81: =IF(B81="M","M",240-MAX(počty!$BM$6:$BM$39)+P81) ->  | R81: =IF(B81="M","M",IF(B81>MAX(CUP!$B$3:$B$102),0,VLOOKUP(B81,CUP!$B$3:$C$102,2,0))) -> 
D82: =VLOOKUP(A81,počty!$L$6:$AP$163,5,0) ->  | E82: =VLOOKUP(A81,počty!$L$6:$AP$163,6,0) ->  | F82: =VLOOKUP(A81,počty!$L$6:$AP$163,20,0) ->  | G82: =VLOOKUP(A81,počty!$L$6:$AP$163,21,0) ->  | H82: =VLOOKUP(A81,počty!$L$6:$AP$163,22,0) ->  | I82: =VLOOKUP(A81,počty!$L$6:$AP$163,23,0) ->  | J82: =VLOOKUP(A81,počty!$L$6:$AP$163,24,0) ->  | K82: =VLOOKUP(A81,počty!$L$6:$AP$163,25,0) ->  | L82: =VLOOKUP(A81,počty!$L$6:$AP$163,26,0) ->  | M82: =VLOOKUP(A81,počty!$L$6:$AP$163,27,0) ->  | N82: =VLOOKUP(A81,počty!$L$6:$AP$163,28,0) ->  | O82: =VLOOKUP(A81,počty!$L$6:$AP$163,29,0) -> 
A83: 36 | B83: =IF(VLOOKUP(A83,počty!$L$6:$AP$163,31,0)>=1000,"M",VLOOKUP(A83,počty!$L$6:$BR$163,53,0)) ->  | C83: =VLOOKUP(A83,počty!$L$6:$AP$163,3,0) ->  | D83: =VLOOKUP(A83,počty!$L$6:$AP$163,4,0) ->  | E83: =VLOOKUP(A83,počty!$L$6:$AP$163,7,0) ->  | F83: =VLOOKUP(A83,počty!$L$6:$AP$163,9,0) ->  | G83: =VLOOKUP(A83,počty!$L$6:$AP$163,10,0) ->  | H83: =VLOOKUP(A83,počty!$L$6:$AP$163,11,0) ->  | I83: =VLOOKUP(A83,počty!$L$6:$AP$163,12,0) ->  | J83: =VLOOKUP(A83,počty!$L$6:$AP$163,13,0) ->  | K83: =VLOOKUP(A83,počty!$L$6:$AP$163,14,0) ->  | L83: =VLOOKUP(A83,počty!$L$6:$AP$163,15,0) ->  | M83: =VLOOKUP(A83,počty!$L$6:$AP$163,16,0) ->  | N83: =VLOOKUP(A83,počty!$L$6:$AP$163,17,0) ->  | O83: =VLOOKUP(A83,počty!$L$6:$AP$163,18,0) ->  | P83: =VLOOKUP(A83,počty!$L$6:$AP$163,30,0) ->  | Q83: =IF(B83="M","M",240-MAX(počty!$BM$6:$BM$39)+P83) ->  | R83: =IF(B83="M","M",IF(B83>MAX(CUP!$B$3:$B$102),0,VLOOKUP(B83,CUP!$B$3:$C$102,2,0))) -> 
D84: =VLOOKUP(A83,počty!$L$6:$AP$163,5,0) ->  | E84: =VLOOKUP(A83,počty!$L$6:$AP$163,6,0) ->  | F84: =VLOOKUP(A83,počty!$L$6:$AP$163,20,0) ->  | G84: =VLOOKUP(A83,počty!$L$6:$AP$163,21,0) ->  | H84: =VLOOKUP(A83,počty!$L$6:$AP$163,22,0) ->  | I84: =VLOOKUP(A83,počty!$L$6:$AP$163,23,0) ->  | J84: =VLOOKUP(A83,počty!$L$6:$AP$163,24,0) ->  | K84: =VLOOKUP(A83,počty!$L$6:$AP$163,25,0) ->  | L84: =VLOOKUP(A83,počty!$L$6:$AP$163,26,0) ->  | M84: =VLOOKUP(A83,počty!$L$6:$AP$163,27,0) ->  | N84: =VLOOKUP(A83,počty!$L$6:$AP$163,28,0) ->  | O84: =VLOOKUP(A83,počty!$L$6:$AP$163,29,0) -> 
A85: 37 | B85: =IF(VLOOKUP(A85,počty!$L$6:$AP$163,31,0)>=1000,"M",VLOOKUP(A85,počty!$L$6:$BR$163,53,0)) ->  | C85: =VLOOKUP(A85,počty!$L$6:$AP$163,3,0) ->  | D85: =VLOOKUP(A85,počty!$L$6:$AP$163,4,0) ->  | E85: =VLOOKUP(A85,počty!$L$6:$AP$163,7,0) ->  | F85: =VLOOKUP(A85,počty!$L$6:$AP$163,9,0) ->  | G85: =VLOOKUP(A85,počty!$L$6:$AP$163,10,0) ->  | H85: =VLOOKUP(A85,počty!$L$6:$AP$163,11,0) ->  | I85: =VLOOKUP(A85,počty!$L$6:$AP$163,12,0) ->  | J85: =VLOOKUP(A85,počty!$L$6:$AP$163,13,0) ->  | K85: =VLOOKUP(A85,počty!$L$6:$AP$163,14,0) ->  | L85: =VLOOKUP(A85,počty!$L$6:$AP$163,15,0) ->  | M85: =VLOOKUP(A85,počty!$L$6:$AP$163,16,0) ->  | N85: =VLOOKUP(A85,počty!$L$6:$AP$163,17,0) ->  | O85: =VLOOKUP(A85,počty!$L$6:$AP$163,18,0) ->  | P85: =VLOOKUP(A85,počty!$L$6:$AP$163,30,0) ->  | Q85: =IF(B85="M","M",240-MAX(počty!$BM$6:$BM$39)+P85) ->  | R85: =IF(B85="M","M",IF(B85>MAX(CUP!$B$3:$B$102),0,VLOOKUP(B85,CUP!$B$3:$C$102,2,0))) -> 
D86: =VLOOKUP(A85,počty!$L$6:$AP$163,5,0) ->  | E86: =VLOOKUP(A85,počty!$L$6:$AP$163,6,0) ->  | F86: =VLOOKUP(A85,počty!$L$6:$AP$163,20,0) ->  | G86: =VLOOKUP(A85,počty!$L$6:$AP$163,21,0) ->  | H86: =VLOOKUP(A85,počty!$L$6:$AP$163,22,0) ->  | I86: =VLOOKUP(A85,počty!$L$6:$AP$163,23,0) ->  | J86: =VLOOKUP(A85,počty!$L$6:$AP$163,24,0) ->  | K86: =VLOOKUP(A85,počty!$L$6:$AP$163,25,0) ->  | L86: =VLOOKUP(A85,počty!$L$6:$AP$163,26,0) ->  | M86: =VLOOKUP(A85,počty!$L$6:$AP$163,27,0) ->  | N86: =VLOOKUP(A85,počty!$L$6:$AP$163,28,0) ->  | O86: =VLOOKUP(A85,počty!$L$6:$AP$163,29,0) -> 
A87: 38 | B87: =IF(VLOOKUP(A87,počty!$L$6:$AP$163,31,0)>=1000,"M",VLOOKUP(A87,počty!$L$6:$BR$163,53,0)) ->  | C87: =VLOOKUP(A87,počty!$L$6:$AP$163,3,0) ->  | D87: =VLOOKUP(A87,počty!$L$6:$AP$163,4,0) ->  | E87: =VLOOKUP(A87,počty!$L$6:$AP$163,7,0) ->  | F87: =VLOOKUP(A87,počty!$L$6:$AP$163,9,0) ->  | G87: =VLOOKUP(A87,počty!$L$6:$AP$163,10,0) ->  | H87: =VLOOKUP(A87,počty!$L$6:$AP$163,11,0) ->  | I87: =VLOOKUP(A87,počty!$L$6:$AP$163,12,0) ->  | J87: =VLOOKUP(A87,počty!$L$6:$AP$163,13,0) ->  | K87: =VLOOKUP(A87,počty!$L$6:$AP$163,14,0) ->  | L87: =VLOOKUP(A87,počty!$L$6:$AP$163,15,0) ->  | M87: =VLOOKUP(A87,počty!$L$6:$AP$163,16,0) ->  | N87: =VLOOKUP(A87,počty!$L$6:$AP$163,17,0) ->  | O87: =VLOOKUP(A87,počty!$L$6:$AP$163,18,0) ->  | P87: =VLOOKUP(A87,počty!$L$6:$AP$163,30,0) ->  | Q87: =IF(B87="M","M",240-MAX(počty!$BM$6:$BM$39)+P87) ->  | R87: =IF(B87="M","M",IF(B87>MAX(CUP!$B$3:$B$102),0,VLOOKUP(B87,CUP!$B$3:$C$102,2,0))) -> 
D88: =VLOOKUP(A87,počty!$L$6:$AP$163,5,0) ->  | E88: =VLOOKUP(A87,počty!$L$6:$AP$163,6,0) ->  | F88: =VLOOKUP(A87,počty!$L$6:$AP$163,20,0) ->  | G88: =VLOOKUP(A87,počty!$L$6:$AP$163,21,0) ->  | H88: =VLOOKUP(A87,počty!$L$6:$AP$163,22,0) ->  | I88: =VLOOKUP(A87,počty!$L$6:$AP$163,23,0) ->  | J88: =VLOOKUP(A87,počty!$L$6:$AP$163,24,0) ->  | K88: =VLOOKUP(A87,počty!$L$6:$AP$163,25,0) ->  | L88: =VLOOKUP(A87,počty!$L$6:$AP$163,26,0) ->  | M88: =VLOOKUP(A87,počty!$L$6:$AP$163,27,0) ->  | N88: =VLOOKUP(A87,počty!$L$6:$AP$163,28,0) ->  | O88: =VLOOKUP(A87,počty!$L$6:$AP$163,29,0) -> 
A89: 39 | B89: =IF(VLOOKUP(A89,počty!$L$6:$AP$163,31,0)>=1000,"M",VLOOKUP(A89,počty!$L$6:$BR$163,53,0)) ->  | C89: =VLOOKUP(A89,počty!$L$6:$AP$163,3,0) ->  | D89: =VLOOKUP(A89,počty!$L$6:$AP$163,4,0) ->  | E89: =VLOOKUP(A89,počty!$L$6:$AP$163,7,0) ->  | F89: =VLOOKUP(A89,počty!$L$6:$AP$163,9,0) ->  | G89: =VLOOKUP(A89,počty!$L$6:$AP$163,10,0) ->  | H89: =VLOOKUP(A89,počty!$L$6:$AP$163,11,0) ->  | I89: =VLOOKUP(A89,počty!$L$6:$AP$163,12,0) ->  | J89: =VLOOKUP(A89,počty!$L$6:$AP$163,13,0) ->  | K89: =VLOOKUP(A89,počty!$L$6:$AP$163,14,0) ->  | L89: =VLOOKUP(A89,počty!$L$6:$AP$163,15,0) ->  | M89: =VLOOKUP(A89,počty!$L$6:$AP$163,16,0) ->  | N89: =VLOOKUP(A89,počty!$L$6:$AP$163,17,0) ->  | O89: =VLOOKUP(A89,počty!$L$6:$AP$163,18,0) ->  | P89: =VLOOKUP(A89,počty!$L$6:$AP$163,30,0) ->  | Q89: =IF(B89="M","M",240-MAX(počty!$BM$6:$BM$39)+P89) ->  | R89: =IF(B89="M","M",IF(B89>MAX(CUP!$B$3:$B$102),0,VLOOKUP(B89,CUP!$B$3:$C$102,2,0))) -> 
D90: =VLOOKUP(A89,počty!$L$6:$AP$163,5,0) ->  | E90: =VLOOKUP(A89,počty!$L$6:$AP$163,6,0) ->  | F90: =VLOOKUP(A89,počty!$L$6:$AP$163,20,0) ->  | G90: =VLOOKUP(A89,počty!$L$6:$AP$163,21,0) ->  | H90: =VLOOKUP(A89,počty!$L$6:$AP$163,22,0) ->  | I90: =VLOOKUP(A89,počty!$L$6:$AP$163,23,0) ->  | J90: =VLOOKUP(A89,počty!$L$6:$AP$163,24,0) ->  | K90: =VLOOKUP(A89,počty!$L$6:$AP$163,25,0) ->  | L90: =VLOOKUP(A89,počty!$L$6:$AP$163,26,0) ->  | M90: =VLOOKUP(A89,počty!$L$6:$AP$163,27,0) ->  | N90: =VLOOKUP(A89,počty!$L$6:$AP$163,28,0) ->  | O90: =VLOOKUP(A89,počty!$L$6:$AP$163,29,0) -> 
A91: 40 | B91: =IF(VLOOKUP(A91,počty!$L$6:$AP$163,31,0)>=1000,"M",VLOOKUP(A91,počty!$L$6:$BR$163,53,0)) ->  | C91: =VLOOKUP(A91,počty!$L$6:$AP$163,3,0) ->  | D91: =VLOOKUP(A91,počty!$L$6:$AP$163,4,0) ->  | E91: =VLOOKUP(A91,počty!$L$6:$AP$163,7,0) ->  | F91: =VLOOKUP(A91,počty!$L$6:$AP$163,9,0) ->  | G91: =VLOOKUP(A91,počty!$L$6:$AP$163,10,0) ->  | H91: =VLOOKUP(A91,počty!$L$6:$AP$163,11,0) ->  | I91: =VLOOKUP(A91,počty!$L$6:$AP$163,12,0) ->  | J91: =VLOOKUP(A91,počty!$L$6:$AP$163,13,0) ->  | K91: =VLOOKUP(A91,počty!$L$6:$AP$163,14,0) ->  | L91: =VLOOKUP(A91,počty!$L$6:$AP$163,15,0) ->  | M91: =VLOOKUP(A91,počty!$L$6:$AP$163,16,0) ->  | N91: =VLOOKUP(A91,počty!$L$6:$AP$163,17,0) ->  | O91: =VLOOKUP(A91,počty!$L$6:$AP$163,18,0) ->  | P91: =VLOOKUP(A91,počty!$L$6:$AP$163,30,0) ->  | Q91: =IF(B91="M","M",240-MAX(počty!$BM$6:$BM$39)+P91) ->  | R91: =IF(B91="M","M",IF(B91>MAX(CUP!$B$3:$B$102),0,VLOOKUP(B91,CUP!$B$3:$C$102,2,0))) -> 
D92: =VLOOKUP(A91,počty!$L$6:$AP$163,5,0) ->  | E92: =VLOOKUP(A91,počty!$L$6:$AP$163,6,0) ->  | F92: =VLOOKUP(A91,počty!$L$6:$AP$163,20,0) ->  | G92: =VLOOKUP(A91,počty!$L$6:$AP$163,21,0) ->  | H92: =VLOOKUP(A91,počty!$L$6:$AP$163,22,0) ->  | I92: =VLOOKUP(A91,počty!$L$6:$AP$163,23,0) ->  | J92: =VLOOKUP(A91,počty!$L$6:$AP$163,24,0) ->  | K92: =VLOOKUP(A91,počty!$L$6:$AP$163,25,0) ->  | L92: =VLOOKUP(A91,počty!$L$6:$AP$163,26,0) ->  | M92: =VLOOKUP(A91,počty!$L$6:$AP$163,27,0) ->  | N92: =VLOOKUP(A91,počty!$L$6:$AP$163,28,0) ->  | O92: =VLOOKUP(A91,počty!$L$6:$AP$163,29,0) -> 
A93: 41 | B93: =IF(VLOOKUP(A93,počty!$L$6:$AP$163,31,0)>=1000,"M",VLOOKUP(A93,počty!$L$6:$BR$163,53,0)) ->  | C93: =VLOOKUP(A93,počty!$L$6:$AP$163,3,0) ->  | D93: =VLOOKUP(A93,počty!$L$6:$AP$163,4,0) ->  | E93: =VLOOKUP(A93,počty!$L$6:$AP$163,7,0) ->  | F93: =VLOOKUP(A93,počty!$L$6:$AP$163,9,0) ->  | G93: =VLOOKUP(A93,počty!$L$6:$AP$163,10,0) ->  | H93: =VLOOKUP(A93,počty!$L$6:$AP$163,11,0) ->  | I93: =VLOOKUP(A93,počty!$L$6:$AP$163,12,0) ->  | J93: =VLOOKUP(A93,počty!$L$6:$AP$163,13,0) ->  | K93: =VLOOKUP(A93,počty!$L$6:$AP$163,14,0) ->  | L93: =VLOOKUP(A93,počty!$L$6:$AP$163,15,0) ->  | M93: =VLOOKUP(A93,počty!$L$6:$AP$163,16,0) ->  | N93: =VLOOKUP(A93,počty!$L$6:$AP$163,17,0) ->  | O93: =VLOOKUP(A93,počty!$L$6:$AP$163,18,0) ->  | P93: =VLOOKUP(A93,počty!$L$6:$AP$163,30,0) ->  | Q93: =IF(B93="M","M",240-MAX(počty!$BM$6:$BM$39)+P93) ->  | R93: =IF(B93="M","M",IF(B93>MAX(CUP!$B$3:$B$102),0,VLOOKUP(B93,CUP!$B$3:$C$102,2,0))) -> 
D94: =VLOOKUP(A93,počty!$L$6:$AP$163,5,0) ->  | E94: =VLOOKUP(A93,počty!$L$6:$AP$163,6,0) ->  | F94: =VLOOKUP(A93,počty!$L$6:$AP$163,20,0) ->  | G94: =VLOOKUP(A93,počty!$L$6:$AP$163,21,0) ->  | H94: =VLOOKUP(A93,počty!$L$6:$AP$163,22,0) ->  | I94: =VLOOKUP(A93,počty!$L$6:$AP$163,23,0) ->  | J94: =VLOOKUP(A93,počty!$L$6:$AP$163,24,0) ->  | K94: =VLOOKUP(A93,počty!$L$6:$AP$163,25,0) ->  | L94: =VLOOKUP(A93,počty!$L$6:$AP$163,26,0) ->  | M94: =VLOOKUP(A93,počty!$L$6:$AP$163,27,0) ->  | N94: =VLOOKUP(A93,počty!$L$6:$AP$163,28,0) ->  | O94: =VLOOKUP(A93,počty!$L$6:$AP$163,29,0) -> 
A95: 42 | B95: =IF(VLOOKUP(A95,počty!$L$6:$AP$163,31,0)>=1000,"M",VLOOKUP(A95,počty!$L$6:$BR$163,53,0)) ->  | C95: =VLOOKUP(A95,počty!$L$6:$AP$163,3,0) ->  | D95: =VLOOKUP(A95,počty!$L$6:$AP$163,4,0) ->  | E95: =VLOOKUP(A95,počty!$L$6:$AP$163,7,0) ->  | F95: =VLOOKUP(A95,počty!$L$6:$AP$163,9,0) ->  | G95: =VLOOKUP(A95,počty!$L$6:$AP$163,10,0) ->  | H95: =VLOOKUP(A95,počty!$L$6:$AP$163,11,0) ->  | I95: =VLOOKUP(A95,počty!$L$6:$AP$163,12,0) ->  | J95: =VLOOKUP(A95,počty!$L$6:$AP$163,13,0) ->  | K95: =VLOOKUP(A95,počty!$L$6:$AP$163,14,0) ->  | L95: =VLOOKUP(A95,počty!$L$6:$AP$163,15,0) ->  | M95: =VLOOKUP(A95,počty!$L$6:$AP$163,16,0) ->  | N95: =VLOOKUP(A95,počty!$L$6:$AP$163,17,0) ->  | O95: =VLOOKUP(A95,počty!$L$6:$AP$163,18,0) ->  | P95: =VLOOKUP(A95,počty!$L$6:$AP$163,30,0) ->  | Q95: =IF(B95="M","M",240-MAX(počty!$BM$6:$BM$39)+P95) ->  | R95: =IF(B95="M","M",IF(B95>MAX(CUP!$B$3:$B$102),0,VLOOKUP(B95,CUP!$B$3:$C$102,2,0))) -> 
D96: =VLOOKUP(A95,počty!$L$6:$AP$163,5,0) ->  | E96: =VLOOKUP(A95,počty!$L$6:$AP$163,6,0) ->  | F96: =VLOOKUP(A95,počty!$L$6:$AP$163,20,0) ->  | G96: =VLOOKUP(A95,počty!$L$6:$AP$163,21,0) ->  | H96: =VLOOKUP(A95,počty!$L$6:$AP$163,22,0) ->  | I96: =VLOOKUP(A95,počty!$L$6:$AP$163,23,0) ->  | J96: =VLOOKUP(A95,počty!$L$6:$AP$163,24,0) ->  | K96: =VLOOKUP(A95,počty!$L$6:$AP$163,25,0) ->  | L96: =VLOOKUP(A95,počty!$L$6:$AP$163,26,0) ->  | M96: =VLOOKUP(A95,počty!$L$6:$AP$163,27,0) ->  | N96: =VLOOKUP(A95,počty!$L$6:$AP$163,28,0) ->  | O96: =VLOOKUP(A95,počty!$L$6:$AP$163,29,0) -> 
A97: 43 | B97: =IF(VLOOKUP(A97,počty!$L$6:$AP$163,31,0)>=1000,"M",VLOOKUP(A97,počty!$L$6:$BR$163,53,0)) ->  | C97: =VLOOKUP(A97,počty!$L$6:$AP$163,3,0) ->  | D97: =VLOOKUP(A97,počty!$L$6:$AP$163,4,0) ->  | E97: =VLOOKUP(A97,počty!$L$6:$AP$163,7,0) ->  | F97: =VLOOKUP(A97,počty!$L$6:$AP$163,9,0) ->  | G97: =VLOOKUP(A97,počty!$L$6:$AP$163,10,0) ->  | H97: =VLOOKUP(A97,počty!$L$6:$AP$163,11,0) ->  | I97: =VLOOKUP(A97,počty!$L$6:$AP$163,12,0) ->  | J97: =VLOOKUP(A97,počty!$L$6:$AP$163,13,0) ->  | K97: =VLOOKUP(A97,počty!$L$6:$AP$163,14,0) ->  | L97: =VLOOKUP(A97,počty!$L$6:$AP$163,15,0) ->  | M97: =VLOOKUP(A97,počty!$L$6:$AP$163,16,0) ->  | N97: =VLOOKUP(A97,počty!$L$6:$AP$163,17,0) ->  | O97: =VLOOKUP(A97,počty!$L$6:$AP$163,18,0) ->  | P97: =VLOOKUP(A97,počty!$L$6:$AP$163,30,0) ->  | Q97: =IF(B97="M","M",240-MAX(počty!$BM$6:$BM$39)+P97) ->  | R97: =IF(B97="M","M",IF(B97>MAX(CUP!$B$3:$B$102),0,VLOOKUP(B97,CUP!$B$3:$C$102,2,0))) -> 
D98: =VLOOKUP(A97,počty!$L$6:$AP$163,5,0) ->  | E98: =VLOOKUP(A97,počty!$L$6:$AP$163,6,0) ->  | F98: =VLOOKUP(A97,počty!$L$6:$AP$163,20,0) ->  | G98: =VLOOKUP(A97,počty!$L$6:$AP$163,21,0) ->  | H98: =VLOOKUP(A97,počty!$L$6:$AP$163,22,0) ->  | I98: =VLOOKUP(A97,počty!$L$6:$AP$163,23,0) ->  | J98: =VLOOKUP(A97,počty!$L$6:$AP$163,24,0) ->  | K98: =VLOOKUP(A97,počty!$L$6:$AP$163,25,0) ->  | L98: =VLOOKUP(A97,počty!$L$6:$AP$163,26,0) ->  | M98: =VLOOKUP(A97,počty!$L$6:$AP$163,27,0) ->  | N98: =VLOOKUP(A97,počty!$L$6:$AP$163,28,0) ->  | O98: =VLOOKUP(A97,počty!$L$6:$AP$163,29,0) -> 
A99: 44 | B99: =IF(VLOOKUP(A99,počty!$L$6:$AP$163,31,0)>=1000,"M",VLOOKUP(A99,počty!$L$6:$BR$163,53,0)) ->  | C99: =VLOOKUP(A99,počty!$L$6:$AP$163,3,0) ->  | D99: =VLOOKUP(A99,počty!$L$6:$AP$163,4,0) ->  | E99: =VLOOKUP(A99,počty!$L$6:$AP$163,7,0) ->  | F99: =VLOOKUP(A99,počty!$L$6:$AP$163,9,0) ->  | G99: =VLOOKUP(A99,počty!$L$6:$AP$163,10,0) ->  | H99: =VLOOKUP(A99,počty!$L$6:$AP$163,11,0) ->  | I99: =VLOOKUP(A99,počty!$L$6:$AP$163,12,0) ->  | J99: =VLOOKUP(A99,počty!$L$6:$AP$163,13,0) ->  | K99: =VLOOKUP(A99,počty!$L$6:$AP$163,14,0) ->  | L99: =VLOOKUP(A99,počty!$L$6:$AP$163,15,0) ->  | M99: =VLOOKUP(A99,počty!$L$6:$AP$163,16,0) ->  | N99: =VLOOKUP(A99,počty!$L$6:$AP$163,17,0) ->  | O99: =VLOOKUP(A99,počty!$L$6:$AP$163,18,0) ->  | P99: =VLOOKUP(A99,počty!$L$6:$AP$163,30,0) ->  | Q99: =IF(B99="M","M",240-MAX(počty!$BM$6:$BM$39)+P99) ->  | R99: =IF(B99="M","M",IF(B99>MAX(CUP!$B$3:$B$102),0,VLOOKUP(B99,CUP!$B$3:$C$102,2,0))) -> 
D100: =VLOOKUP(A99,počty!$L$6:$AP$163,5,0) ->  | E100: =VLOOKUP(A99,počty!$L$6:$AP$163,6,0) ->  | F100: =VLOOKUP(A99,počty!$L$6:$AP$163,20,0) ->  | G100: =VLOOKUP(A99,počty!$L$6:$AP$163,21,0) ->  | H100: =VLOOKUP(A99,počty!$L$6:$AP$163,22,0) ->  | I100: =VLOOKUP(A99,počty!$L$6:$AP$163,23,0) ->  | J100: =VLOOKUP(A99,počty!$L$6:$AP$163,24,0) ->  | K100: =VLOOKUP(A99,počty!$L$6:$AP$163,25,0) ->  | L100: =VLOOKUP(A99,počty!$L$6:$AP$163,26,0) ->  | M100: =VLOOKUP(A99,počty!$L$6:$AP$163,27,0) ->  | N100: =VLOOKUP(A99,počty!$L$6:$AP$163,28,0) ->  | O100: =VLOOKUP(A99,počty!$L$6:$AP$163,29,0) -> 
A101: 45 | B101: =IF(VLOOKUP(A101,počty!$L$6:$AP$163,31,0)>=1000,"M",VLOOKUP(A101,počty!$L$6:$BR$163,53,0)) ->  | C101: =VLOOKUP(A101,počty!$L$6:$AP$163,3,0) ->  | D101: =VLOOKUP(A101,počty!$L$6:$AP$163,4,0) ->  | E101: =VLOOKUP(A101,počty!$L$6:$AP$163,7,0) ->  | F101: =VLOOKUP(A101,počty!$L$6:$AP$163,9,0) ->  | G101: =VLOOKUP(A101,počty!$L$6:$AP$163,10,0) ->  | H101: =VLOOKUP(A101,počty!$L$6:$AP$163,11,0) ->  | I101: =VLOOKUP(A101,počty!$L$6:$AP$163,12,0) ->  | J101: =VLOOKUP(A101,počty!$L$6:$AP$163,13,0) ->  | K101: =VLOOKUP(A101,počty!$L$6:$AP$163,14,0) ->  | L101: =VLOOKUP(A101,počty!$L$6:$AP$163,15,0) ->  | M101: =VLOOKUP(A101,počty!$L$6:$AP$163,16,0) ->  | N101: =VLOOKUP(A101,počty!$L$6:$AP$163,17,0) ->  | O101: =VLOOKUP(A101,počty!$L$6:$AP$163,18,0) ->  | P101: =VLOOKUP(A101,počty!$L$6:$AP$163,30,0) ->  | Q101: =IF(B101="M","M",240-MAX(počty!$BM$6:$BM$39)+P101) ->  | R101: =IF(B101="M","M",IF(B101>MAX(CUP!$B$3:$B$102),0,VLOOKUP(B101,CUP!$B$3:$C$102,2,0))) -> 
D102: =VLOOKUP(A101,počty!$L$6:$AP$163,5,0) ->  | E102: =VLOOKUP(A101,počty!$L$6:$AP$163,6,0) ->  | F102: =VLOOKUP(A101,počty!$L$6:$AP$163,20,0) ->  | G102: =VLOOKUP(A101,počty!$L$6:$AP$163,21,0) ->  | H102: =VLOOKUP(A101,počty!$L$6:$AP$163,22,0) ->  | I102: =VLOOKUP(A101,počty!$L$6:$AP$163,23,0) ->  | J102: =VLOOKUP(A101,počty!$L$6:$AP$163,24,0) ->  | K102: =VLOOKUP(A101,počty!$L$6:$AP$163,25,0) ->  | L102: =VLOOKUP(A101,počty!$L$6:$AP$163,26,0) ->  | M102: =VLOOKUP(A101,počty!$L$6:$AP$163,27,0) ->  | N102: =VLOOKUP(A101,počty!$L$6:$AP$163,28,0) ->  | O102: =VLOOKUP(A101,počty!$L$6:$AP$163,29,0) -> 
A103: 46 | B103: =IF(VLOOKUP(A103,počty!$L$6:$AP$163,31,0)>=1000,"M",VLOOKUP(A103,počty!$L$6:$BR$163,53,0)) ->  | C103: =VLOOKUP(A103,počty!$L$6:$AP$163,3,0) ->  | D103: =VLOOKUP(A103,počty!$L$6:$AP$163,4,0) ->  | E103: =VLOOKUP(A103,počty!$L$6:$AP$163,7,0) ->  | F103: =VLOOKUP(A103,počty!$L$6:$AP$163,9,0) ->  | G103: =VLOOKUP(A103,počty!$L$6:$AP$163,10,0) ->  | H103: =VLOOKUP(A103,počty!$L$6:$AP$163,11,0) ->  | I103: =VLOOKUP(A103,počty!$L$6:$AP$163,12,0) ->  | J103: =VLOOKUP(A103,počty!$L$6:$AP$163,13,0) ->  | K103: =VLOOKUP(A103,počty!$L$6:$AP$163,14,0) ->  | L103: =VLOOKUP(A103,počty!$L$6:$AP$163,15,0) ->  | M103: =VLOOKUP(A103,počty!$L$6:$AP$163,16,0) ->  | N103: =VLOOKUP(A103,počty!$L$6:$AP$163,17,0) ->  | O103: =VLOOKUP(A103,počty!$L$6:$AP$163,18,0) ->  | P103: =VLOOKUP(A103,počty!$L$6:$AP$163,30,0) ->  | Q103: =IF(B103="M","M",240-MAX(počty!$BM$6:$BM$39)+P103) ->  | R103: =IF(B103="M","M",IF(B103>MAX(CUP!$B$3:$B$102),0,VLOOKUP(B103,CUP!$B$3:$C$102,2,0))) -> 
D104: =VLOOKUP(A103,počty!$L$6:$AP$163,5,0) ->  | E104: =VLOOKUP(A103,počty!$L$6:$AP$163,6,0) ->  | F104: =VLOOKUP(A103,počty!$L$6:$AP$163,20,0) ->  | G104: =VLOOKUP(A103,počty!$L$6:$AP$163,21,0) ->  | H104: =VLOOKUP(A103,počty!$L$6:$AP$163,22,0) ->  | I104: =VLOOKUP(A103,počty!$L$6:$AP$163,23,0) ->  | J104: =VLOOKUP(A103,počty!$L$6:$AP$163,24,0) ->  | K104: =VLOOKUP(A103,počty!$L$6:$AP$163,25,0) ->  | L104: =VLOOKUP(A103,počty!$L$6:$AP$163,26,0) ->  | M104: =VLOOKUP(A103,počty!$L$6:$AP$163,27,0) ->  | N104: =VLOOKUP(A103,počty!$L$6:$AP$163,28,0) ->  | O104: =VLOOKUP(A103,počty!$L$6:$AP$163,29,0) -> 
A105: 47 | B105: =IF(VLOOKUP(A105,počty!$L$6:$AP$163,31,0)>=1000,"M",VLOOKUP(A105,počty!$L$6:$BR$163,53,0)) ->  | C105: =VLOOKUP(A105,počty!$L$6:$AP$163,3,0) ->  | D105: =VLOOKUP(A105,počty!$L$6:$AP$163,4,0) ->  | E105: =VLOOKUP(A105,počty!$L$6:$AP$163,7,0) ->  | F105: =VLOOKUP(A105,počty!$L$6:$AP$163,9,0) ->  | G105: =VLOOKUP(A105,počty!$L$6:$AP$163,10,0) ->  | H105: =VLOOKUP(A105,počty!$L$6:$AP$163,11,0) ->  | I105: =VLOOKUP(A105,počty!$L$6:$AP$163,12,0) ->  | J105: =VLOOKUP(A105,počty!$L$6:$AP$163,13,0) ->  | K105: =VLOOKUP(A105,počty!$L$6:$AP$163,14,0) ->  | L105: =VLOOKUP(A105,počty!$L$6:$AP$163,15,0) ->  | M105: =VLOOKUP(A105,počty!$L$6:$AP$163,16,0) ->  | N105: =VLOOKUP(A105,počty!$L$6:$AP$163,17,0) ->  | O105: =VLOOKUP(A105,počty!$L$6:$AP$163,18,0) ->  | P105: =VLOOKUP(A105,počty!$L$6:$AP$163,30,0) ->  | Q105: =IF(B105="M","M",240-MAX(počty!$BM$6:$BM$39)+P105) ->  | R105: =IF(B105="M","M",IF(B105>MAX(CUP!$B$3:$B$102),0,VLOOKUP(B105,CUP!$B$3:$C$102,2,0))) -> 
D106: =VLOOKUP(A105,počty!$L$6:$AP$163,5,0) ->  | E106: =VLOOKUP(A105,počty!$L$6:$AP$163,6,0) ->  | F106: =VLOOKUP(A105,počty!$L$6:$AP$163,20,0) ->  | G106: =VLOOKUP(A105,počty!$L$6:$AP$163,21,0) ->  | H106: =VLOOKUP(A105,počty!$L$6:$AP$163,22,0) ->  | I106: =VLOOKUP(A105,počty!$L$6:$AP$163,23,0) ->  | J106: =VLOOKUP(A105,počty!$L$6:$AP$163,24,0) ->  | K106: =VLOOKUP(A105,počty!$L$6:$AP$163,25,0) ->  | L106: =VLOOKUP(A105,počty!$L$6:$AP$163,26,0) ->  | M106: =VLOOKUP(A105,počty!$L$6:$AP$163,27,0) ->  | N106: =VLOOKUP(A105,počty!$L$6:$AP$163,28,0) ->  | O106: =VLOOKUP(A105,počty!$L$6:$AP$163,29,0) -> 
A107: 48 | B107: =IF(VLOOKUP(A107,počty!$L$6:$AP$163,31,0)>=1000,"M",VLOOKUP(A107,počty!$L$6:$BR$163,53,0)) ->  | C107: =VLOOKUP(A107,počty!$L$6:$AP$163,3,0) ->  | D107: =VLOOKUP(A107,počty!$L$6:$AP$163,4,0) ->  | E107: =VLOOKUP(A107,počty!$L$6:$AP$163,7,0) ->  | F107: =VLOOKUP(A107,počty!$L$6:$AP$163,9,0) ->  | G107: =VLOOKUP(A107,počty!$L$6:$AP$163,10,0) ->  | H107: =VLOOKUP(A107,počty!$L$6:$AP$163,11,0) ->  | I107: =VLOOKUP(A107,počty!$L$6:$AP$163,12,0) ->  | J107: =VLOOKUP(A107,počty!$L$6:$AP$163,13,0) ->  | K107: =VLOOKUP(A107,počty!$L$6:$AP$163,14,0) ->  | L107: =VLOOKUP(A107,počty!$L$6:$AP$163,15,0) ->  | M107: =VLOOKUP(A107,počty!$L$6:$AP$163,16,0) ->  | N107: =VLOOKUP(A107,počty!$L$6:$AP$163,17,0) ->  | O107: =VLOOKUP(A107,počty!$L$6:$AP$163,18,0) ->  | P107: =VLOOKUP(A107,počty!$L$6:$AP$163,30,0) ->  | Q107: =IF(B107="M","M",240-MAX(počty!$BM$6:$BM$39)+P107) ->  | R107: =IF(B107="M","M",IF(B107>MAX(CUP!$B$3:$B$102),0,VLOOKUP(B107,CUP!$B$3:$C$102,2,0))) -> 
D108: =VLOOKUP(A107,počty!$L$6:$AP$163,5,0) ->  | E108: =VLOOKUP(A107,počty!$L$6:$AP$163,6,0) ->  | F108: =VLOOKUP(A107,počty!$L$6:$AP$163,20,0) ->  | G108: =VLOOKUP(A107,počty!$L$6:$AP$163,21,0) ->  | H108: =VLOOKUP(A107,počty!$L$6:$AP$163,22,0) ->  | I108: =VLOOKUP(A107,počty!$L$6:$AP$163,23,0) ->  | J108: =VLOOKUP(A107,počty!$L$6:$AP$163,24,0) ->  | K108: =VLOOKUP(A107,počty!$L$6:$AP$163,25,0) ->  | L108: =VLOOKUP(A107,počty!$L$6:$AP$163,26,0) ->  | M108: =VLOOKUP(A107,počty!$L$6:$AP$163,27,0) ->  | N108: =VLOOKUP(A107,počty!$L$6:$AP$163,28,0) ->  | O108: =VLOOKUP(A107,počty!$L$6:$AP$163,29,0) -> 
A109: 49 | B109: =IF(VLOOKUP(A109,počty!$L$6:$AP$163,31,0)>=1000,"M",VLOOKUP(A109,počty!$L$6:$BR$163,53,0)) ->  | C109: =VLOOKUP(A109,počty!$L$6:$AP$163,3,0) ->  | D109: =VLOOKUP(A109,počty!$L$6:$AP$163,4,0) ->  | E109: =VLOOKUP(A109,počty!$L$6:$AP$163,7,0) ->  | F109: =VLOOKUP(A109,počty!$L$6:$AP$163,9,0) ->  | G109: =VLOOKUP(A109,počty!$L$6:$AP$163,10,0) ->  | H109: =VLOOKUP(A109,počty!$L$6:$AP$163,11,0) ->  | I109: =VLOOKUP(A109,počty!$L$6:$AP$163,12,0) ->  | J109: =VLOOKUP(A109,počty!$L$6:$AP$163,13,0) ->  | K109: =VLOOKUP(A109,počty!$L$6:$AP$163,14,0) ->  | L109: =VLOOKUP(A109,počty!$L$6:$AP$163,15,0) ->  | M109: =VLOOKUP(A109,počty!$L$6:$AP$163,16,0) ->  | N109: =VLOOKUP(A109,počty!$L$6:$AP$163,17,0) ->  | O109: =VLOOKUP(A109,počty!$L$6:$AP$163,18,0) ->  | P109: =VLOOKUP(A109,počty!$L$6:$AP$163,30,0) ->  | Q109: =IF(B109="M","M",240-MAX(počty!$BM$6:$BM$39)+P109) ->  | R109: =IF(B109="M","M",IF(B109>MAX(CUP!$B$3:$B$102),0,VLOOKUP(B109,CUP!$B$3:$C$102,2,0))) -> 
D110: =VLOOKUP(A109,počty!$L$6:$AP$163,5,0) ->  | E110: =VLOOKUP(A109,počty!$L$6:$AP$163,6,0) ->  | F110: =VLOOKUP(A109,počty!$L$6:$AP$163,20,0) ->  | G110: =VLOOKUP(A109,počty!$L$6:$AP$163,21,0) ->  | H110: =VLOOKUP(A109,počty!$L$6:$AP$163,22,0) ->  | I110: =VLOOKUP(A109,počty!$L$6:$AP$163,23,0) ->  | J110: =VLOOKUP(A109,počty!$L$6:$AP$163,24,0) ->  | K110: =VLOOKUP(A109,počty!$L$6:$AP$163,25,0) ->  | L110: =VLOOKUP(A109,počty!$L$6:$AP$163,26,0) ->  | M110: =VLOOKUP(A109,počty!$L$6:$AP$163,27,0) ->  | N110: =VLOOKUP(A109,počty!$L$6:$AP$163,28,0) ->  | O110: =VLOOKUP(A109,počty!$L$6:$AP$163,29,0) -> 
A111: 50 | B111: =IF(VLOOKUP(A111,počty!$L$6:$AP$163,31,0)>=1000,"M",VLOOKUP(A111,počty!$L$6:$BR$163,53,0)) ->  | C111: =VLOOKUP(A111,počty!$L$6:$AP$163,3,0) ->  | D111: =VLOOKUP(A111,počty!$L$6:$AP$163,4,0) ->  | E111: =VLOOKUP(A111,počty!$L$6:$AP$163,7,0) ->  | F111: =VLOOKUP(A111,počty!$L$6:$AP$163,9,0) ->  | G111: =VLOOKUP(A111,počty!$L$6:$AP$163,10,0) ->  | H111: =VLOOKUP(A111,počty!$L$6:$AP$163,11,0) ->  | I111: =VLOOKUP(A111,počty!$L$6:$AP$163,12,0) ->  | J111: =VLOOKUP(A111,počty!$L$6:$AP$163,13,0) ->  | K111: =VLOOKUP(A111,počty!$L$6:$AP$163,14,0) ->  | L111: =VLOOKUP(A111,počty!$L$6:$AP$163,15,0) ->  | M111: =VLOOKUP(A111,počty!$L$6:$AP$163,16,0) ->  | N111: =VLOOKUP(A111,počty!$L$6:$AP$163,17,0) ->  | O111: =VLOOKUP(A111,počty!$L$6:$AP$163,18,0) ->  | P111: =VLOOKUP(A111,počty!$L$6:$AP$163,30,0) ->  | Q111: =IF(B111="M","M",240-MAX(počty!$BM$6:$BM$39)+P111) ->  | R111: =IF(B111="M","M",IF(B111>MAX(CUP!$B$3:$B$102),0,VLOOKUP(B111,CUP!$B$3:$C$102,2,0))) -> 
D112: =VLOOKUP(A111,počty!$L$6:$AP$163,5,0) ->  | E112: =VLOOKUP(A111,počty!$L$6:$AP$163,6,0) ->  | F112: =VLOOKUP(A111,počty!$L$6:$AP$163,20,0) ->  | G112: =VLOOKUP(A111,počty!$L$6:$AP$163,21,0) ->  | H112: =VLOOKUP(A111,počty!$L$6:$AP$163,22,0) ->  | I112: =VLOOKUP(A111,počty!$L$6:$AP$163,23,0) ->  | J112: =VLOOKUP(A111,počty!$L$6:$AP$163,24,0) ->  | K112: =VLOOKUP(A111,počty!$L$6:$AP$163,25,0) ->  | L112: =VLOOKUP(A111,počty!$L$6:$AP$163,26,0) ->  | M112: =VLOOKUP(A111,počty!$L$6:$AP$163,27,0) ->  | N112: =VLOOKUP(A111,počty!$L$6:$AP$163,28,0) ->  | O112: =VLOOKUP(A111,počty!$L$6:$AP$163,29,0) -> 
A113: 51 | B113: =IF(VLOOKUP(A113,počty!$L$6:$AP$163,31,0)>=1000,"M",VLOOKUP(A113,počty!$L$6:$BR$163,53,0)) ->  | C113: =VLOOKUP(A113,počty!$L$6:$AP$163,3,0) ->  | D113: =VLOOKUP(A113,počty!$L$6:$AP$163,4,0) ->  | E113: =VLOOKUP(A113,počty!$L$6:$AP$163,7,0) ->  | F113: =VLOOKUP(A113,počty!$L$6:$AP$163,9,0) ->  | G113: =VLOOKUP(A113,počty!$L$6:$AP$163,10,0) ->  | H113: =VLOOKUP(A113,počty!$L$6:$AP$163,11,0) ->  | I113: =VLOOKUP(A113,počty!$L$6:$AP$163,12,0) ->  | J113: =VLOOKUP(A113,počty!$L$6:$AP$163,13,0) ->  | K113: =VLOOKUP(A113,počty!$L$6:$AP$163,14,0) ->  | L113: =VLOOKUP(A113,počty!$L$6:$AP$163,15,0) ->  | M113: =VLOOKUP(A113,počty!$L$6:$AP$163,16,0) ->  | N113: =VLOOKUP(A113,počty!$L$6:$AP$163,17,0) ->  | O113: =VLOOKUP(A113,počty!$L$6:$AP$163,18,0) ->  | P113: =VLOOKUP(A113,počty!$L$6:$AP$163,30,0) ->  | Q113: =IF(B113="M","M",240-MAX(počty!$BM$6:$BM$39)+P113) ->  | R113: =IF(B113="M","M",IF(B113>MAX(CUP!$B$3:$B$102),0,VLOOKUP(B113,CUP!$B$3:$C$102,2,0))) -> 
D114: =VLOOKUP(A113,počty!$L$6:$AP$163,5,0) ->  | E114: =VLOOKUP(A113,počty!$L$6:$AP$163,6,0) ->  | F114: =VLOOKUP(A113,počty!$L$6:$AP$163,20,0) ->  | G114: =VLOOKUP(A113,počty!$L$6:$AP$163,21,0) ->  | H114: =VLOOKUP(A113,počty!$L$6:$AP$163,22,0) ->  | I114: =VLOOKUP(A113,počty!$L$6:$AP$163,23,0) ->  | J114: =VLOOKUP(A113,počty!$L$6:$AP$163,24,0) ->  | K114: =VLOOKUP(A113,počty!$L$6:$AP$163,25,0) ->  | L114: =VLOOKUP(A113,počty!$L$6:$AP$163,26,0) ->  | M114: =VLOOKUP(A113,počty!$L$6:$AP$163,27,0) ->  | N114: =VLOOKUP(A113,počty!$L$6:$AP$163,28,0) ->  | O114: =VLOOKUP(A113,počty!$L$6:$AP$163,29,0) -> 
A115: 52 | B115: =IF(VLOOKUP(A115,počty!$L$6:$AP$163,31,0)>=1000,"M",VLOOKUP(A115,počty!$L$6:$BR$163,53,0)) ->  | C115: =VLOOKUP(A115,počty!$L$6:$AP$163,3,0) ->  | D115: =VLOOKUP(A115,počty!$L$6:$AP$163,4,0) ->  | E115: =VLOOKUP(A115,počty!$L$6:$AP$163,7,0) ->  | F115: =VLOOKUP(A115,počty!$L$6:$AP$163,9,0) ->  | G115: =VLOOKUP(A115,počty!$L$6:$AP$163,10,0) ->  | H115: =VLOOKUP(A115,počty!$L$6:$AP$163,11,0) ->  | I115: =VLOOKUP(A115,počty!$L$6:$AP$163,12,0) ->  | J115: =VLOOKUP(A115,počty!$L$6:$AP$163,13,0) ->  | K115: =VLOOKUP(A115,počty!$L$6:$AP$163,14,0) ->  | L115: =VLOOKUP(A115,počty!$L$6:$AP$163,15,0) ->  | M115: =VLOOKUP(A115,počty!$L$6:$AP$163,16,0) ->  | N115: =VLOOKUP(A115,počty!$L$6:$AP$163,17,0) ->  | O115: =VLOOKUP(A115,počty!$L$6:$AP$163,18,0) ->  | P115: =VLOOKUP(A115,počty!$L$6:$AP$163,30,0) ->  | Q115: =IF(B115="M","M",240-MAX(počty!$BM$6:$BM$39)+P115) ->  | R115: =IF(B115="M","M",IF(B115>MAX(CUP!$B$3:$B$102),0,VLOOKUP(B115,CUP!$B$3:$C$102,2,0))) -> 
D116: =VLOOKUP(A115,počty!$L$6:$AP$163,5,0) ->  | E116: =VLOOKUP(A115,počty!$L$6:$AP$163,6,0) ->  | F116: =VLOOKUP(A115,počty!$L$6:$AP$163,20,0) ->  | G116: =VLOOKUP(A115,počty!$L$6:$AP$163,21,0) ->  | H116: =VLOOKUP(A115,počty!$L$6:$AP$163,22,0) ->  | I116: =VLOOKUP(A115,počty!$L$6:$AP$163,23,0) ->  | J116: =VLOOKUP(A115,počty!$L$6:$AP$163,24,0) ->  | K116: =VLOOKUP(A115,počty!$L$6:$AP$163,25,0) ->  | L116: =VLOOKUP(A115,počty!$L$6:$AP$163,26,0) ->  | M116: =VLOOKUP(A115,počty!$L$6:$AP$163,27,0) ->  | N116: =VLOOKUP(A115,počty!$L$6:$AP$163,28,0) ->  | O116: =VLOOKUP(A115,počty!$L$6:$AP$163,29,0) -> 
A117: 53 | B117: =IF(VLOOKUP(A117,počty!$L$6:$AP$163,31,0)>=1000,"M",VLOOKUP(A117,počty!$L$6:$BR$163,53,0)) ->  | C117: =VLOOKUP(A117,počty!$L$6:$AP$163,3,0) ->  | D117: =VLOOKUP(A117,počty!$L$6:$AP$163,4,0) ->  | E117: =VLOOKUP(A117,počty!$L$6:$AP$163,7,0) ->  | F117: =VLOOKUP(A117,počty!$L$6:$AP$163,9,0) ->  | G117: =VLOOKUP(A117,počty!$L$6:$AP$163,10,0) ->  | H117: =VLOOKUP(A117,počty!$L$6:$AP$163,11,0) ->  | I117: =VLOOKUP(A117,počty!$L$6:$AP$163,12,0) ->  | J117: =VLOOKUP(A117,počty!$L$6:$AP$163,13,0) ->  | K117: =VLOOKUP(A117,počty!$L$6:$AP$163,14,0) ->  | L117: =VLOOKUP(A117,počty!$L$6:$AP$163,15,0) ->  | M117: =VLOOKUP(A117,počty!$L$6:$AP$163,16,0) ->  | N117: =VLOOKUP(A117,počty!$L$6:$AP$163,17,0) ->  | O117: =VLOOKUP(A117,počty!$L$6:$AP$163,18,0) ->  | P117: =VLOOKUP(A117,počty!$L$6:$AP$163,30,0) ->  | Q117: =IF(B117="M","M",240-MAX(počty!$BM$6:$BM$39)+P117) ->  | R117: =IF(B117="M","M",IF(B117>MAX(CUP!$B$3:$B$102),0,VLOOKUP(B117,CUP!$B$3:$C$102,2,0))) -> 
D118: =VLOOKUP(A117,počty!$L$6:$AP$163,5,0) ->  | E118: =VLOOKUP(A117,počty!$L$6:$AP$163,6,0) ->  | F118: =VLOOKUP(A117,počty!$L$6:$AP$163,20,0) ->  | G118: =VLOOKUP(A117,počty!$L$6:$AP$163,21,0) ->  | H118: =VLOOKUP(A117,počty!$L$6:$AP$163,22,0) ->  | I118: =VLOOKUP(A117,počty!$L$6:$AP$163,23,0) ->  | J118: =VLOOKUP(A117,počty!$L$6:$AP$163,24,0) ->  | K118: =VLOOKUP(A117,počty!$L$6:$AP$163,25,0) ->  | L118: =VLOOKUP(A117,počty!$L$6:$AP$163,26,0) ->  | M118: =VLOOKUP(A117,počty!$L$6:$AP$163,27,0) ->  | N118: =VLOOKUP(A117,počty!$L$6:$AP$163,28,0) ->  | O118: =VLOOKUP(A117,počty!$L$6:$AP$163,29,0) -> 
A119: 54 | B119: =IF(VLOOKUP(A119,počty!$L$6:$AP$163,31,0)>=1000,"M",VLOOKUP(A119,počty!$L$6:$BR$163,53,0)) ->  | C119: =VLOOKUP(A119,počty!$L$6:$AP$163,3,0) ->  | D119: =VLOOKUP(A119,počty!$L$6:$AP$163,4,0) ->  | E119: =VLOOKUP(A119,počty!$L$6:$AP$163,7,0) ->  | F119: =VLOOKUP(A119,počty!$L$6:$AP$163,9,0) ->  | G119: =VLOOKUP(A119,počty!$L$6:$AP$163,10,0) ->  | H119: =VLOOKUP(A119,počty!$L$6:$AP$163,11,0) ->  | I119: =VLOOKUP(A119,počty!$L$6:$AP$163,12,0) ->  | J119: =VLOOKUP(A119,počty!$L$6:$AP$163,13,0) ->  | K119: =VLOOKUP(A119,počty!$L$6:$AP$163,14,0) ->  | L119: =VLOOKUP(A119,počty!$L$6:$AP$163,15,0) ->  | M119: =VLOOKUP(A119,počty!$L$6:$AP$163,16,0) ->  | N119: =VLOOKUP(A119,počty!$L$6:$AP$163,17,0) ->  | O119: =VLOOKUP(A119,počty!$L$6:$AP$163,18,0) ->  | P119: =VLOOKUP(A119,počty!$L$6:$AP$163,30,0) ->  | Q119: =IF(B119="M","M",240-MAX(počty!$BM$6:$BM$39)+P119) ->  | R119: =IF(B119="M","M",IF(B119>MAX(CUP!$B$3:$B$102),0,VLOOKUP(B119,CUP!$B$3:$C$102,2,0))) -> 
D120: =VLOOKUP(A119,počty!$L$6:$AP$163,5,0) ->  | E120: =VLOOKUP(A119,počty!$L$6:$AP$163,6,0) ->  | F120: =VLOOKUP(A119,počty!$L$6:$AP$163,20,0) ->  | G120: =VLOOKUP(A119,počty!$L$6:$AP$163,21,0) ->  | H120: =VLOOKUP(A119,počty!$L$6:$AP$163,22,0) ->  | I120: =VLOOKUP(A119,počty!$L$6:$AP$163,23,0) ->  | J120: =VLOOKUP(A119,počty!$L$6:$AP$163,24,0) ->  | K120: =VLOOKUP(A119,počty!$L$6:$AP$163,25,0) ->  | L120: =VLOOKUP(A119,počty!$L$6:$AP$163,26,0) ->  | M120: =VLOOKUP(A119,počty!$L$6:$AP$163,27,0) ->  | N120: =VLOOKUP(A119,počty!$L$6:$AP$163,28,0) ->  | O120: =VLOOKUP(A119,počty!$L$6:$AP$163,29,0) -> 
A121: 55 | B121: =IF(VLOOKUP(A121,počty!$L$6:$AP$163,31,0)>=1000,"M",VLOOKUP(A121,počty!$L$6:$BR$163,53,0)) ->  | C121: =VLOOKUP(A121,počty!$L$6:$AP$163,3,0) ->  | D121: =VLOOKUP(A121,počty!$L$6:$AP$163,4,0) ->  | E121: =VLOOKUP(A121,počty!$L$6:$AP$163,7,0) ->  | F121: =VLOOKUP(A121,počty!$L$6:$AP$163,9,0) ->  | G121: =VLOOKUP(A121,počty!$L$6:$AP$163,10,0) ->  | H121: =VLOOKUP(A121,počty!$L$6:$AP$163,11,0) ->  | I121: =VLOOKUP(A121,počty!$L$6:$AP$163,12,0) ->  | J121: =VLOOKUP(A121,počty!$L$6:$AP$163,13,0) ->  | K121: =VLOOKUP(A121,počty!$L$6:$AP$163,14,0) ->  | L121: =VLOOKUP(A121,počty!$L$6:$AP$163,15,0) ->  | M121: =VLOOKUP(A121,počty!$L$6:$AP$163,16,0) ->  | N121: =VLOOKUP(A121,počty!$L$6:$AP$163,17,0) ->  | O121: =VLOOKUP(A121,počty!$L$6:$AP$163,18,0) ->  | P121: =VLOOKUP(A121,počty!$L$6:$AP$163,30,0) ->  | Q121: =IF(B121="M","M",240-MAX(počty!$BM$6:$BM$39)+P121) ->  | R121: =IF(B121="M","M",IF(B121>MAX(CUP!$B$3:$B$102),0,VLOOKUP(B121,CUP!$B$3:$C$102,2,0))) -> 
D122: =VLOOKUP(A121,počty!$L$6:$AP$163,5,0) ->  | E122: =VLOOKUP(A121,počty!$L$6:$AP$163,6,0) ->  | F122: =VLOOKUP(A121,počty!$L$6:$AP$163,20,0) ->  | G122: =VLOOKUP(A121,počty!$L$6:$AP$163,21,0) ->  | H122: =VLOOKUP(A121,počty!$L$6:$AP$163,22,0) ->  | I122: =VLOOKUP(A121,počty!$L$6:$AP$163,23,0) ->  | J122: =VLOOKUP(A121,počty!$L$6:$AP$163,24,0) ->  | K122: =VLOOKUP(A121,počty!$L$6:$AP$163,25,0) ->  | L122: =VLOOKUP(A121,počty!$L$6:$AP$163,26,0) ->  | M122: =VLOOKUP(A121,počty!$L$6:$AP$163,27,0) ->  | N122: =VLOOKUP(A121,počty!$L$6:$AP$163,28,0) ->  | O122: =VLOOKUP(A121,počty!$L$6:$AP$163,29,0) -> 
A123: 56 | B123: =IF(VLOOKUP(A123,počty!$L$6:$AP$163,31,0)>=1000,"M",VLOOKUP(A123,počty!$L$6:$BR$163,53,0)) ->  | C123: =VLOOKUP(A123,počty!$L$6:$AP$163,3,0) ->  | D123: =VLOOKUP(A123,počty!$L$6:$AP$163,4,0) ->  | E123: =VLOOKUP(A123,počty!$L$6:$AP$163,7,0) ->  | F123: =VLOOKUP(A123,počty!$L$6:$AP$163,9,0) ->  | G123: =VLOOKUP(A123,počty!$L$6:$AP$163,10,0) ->  | H123: =VLOOKUP(A123,počty!$L$6:$AP$163,11,0) ->  | I123: =VLOOKUP(A123,počty!$L$6:$AP$163,12,0) ->  | J123: =VLOOKUP(A123,počty!$L$6:$AP$163,13,0) ->  | K123: =VLOOKUP(A123,počty!$L$6:$AP$163,14,0) ->  | L123: =VLOOKUP(A123,počty!$L$6:$AP$163,15,0) ->  | M123: =VLOOKUP(A123,počty!$L$6:$AP$163,16,0) ->  | N123: =VLOOKUP(A123,počty!$L$6:$AP$163,17,0) ->  | O123: =VLOOKUP(A123,počty!$L$6:$AP$163,18,0) ->  | P123: =VLOOKUP(A123,počty!$L$6:$AP$163,30,0) ->  | Q123: =IF(B123="M","M",240-MAX(počty!$BM$6:$BM$39)+P123) ->  | R123: =IF(B123="M","M",IF(B123>MAX(CUP!$B$3:$B$102),0,VLOOKUP(B123,CUP!$B$3:$C$102,2,0))) -> 
D124: =VLOOKUP(A123,počty!$L$6:$AP$163,5,0) ->  | E124: =VLOOKUP(A123,počty!$L$6:$AP$163,6,0) ->  | F124: =VLOOKUP(A123,počty!$L$6:$AP$163,20,0) ->  | G124: =VLOOKUP(A123,počty!$L$6:$AP$163,21,0) ->  | H124: =VLOOKUP(A123,počty!$L$6:$AP$163,22,0) ->  | I124: =VLOOKUP(A123,počty!$L$6:$AP$163,23,0) ->  | J124: =VLOOKUP(A123,počty!$L$6:$AP$163,24,0) ->  | K124: =VLOOKUP(A123,počty!$L$6:$AP$163,25,0) ->  | L124: =VLOOKUP(A123,počty!$L$6:$AP$163,26,0) ->  | M124: =VLOOKUP(A123,počty!$L$6:$AP$163,27,0) ->  | N124: =VLOOKUP(A123,počty!$L$6:$AP$163,28,0) ->  | O124: =VLOOKUP(A123,počty!$L$6:$AP$163,29,0) -> 
A125: 57 | B125: =IF(VLOOKUP(A125,počty!$L$6:$AP$163,31,0)>=1000,"M",VLOOKUP(A125,počty!$L$6:$BR$163,53,0)) ->  | C125: =VLOOKUP(A125,počty!$L$6:$AP$163,3,0) ->  | D125: =VLOOKUP(A125,počty!$L$6:$AP$163,4,0) ->  | E125: =VLOOKUP(A125,počty!$L$6:$AP$163,7,0) ->  | F125: =VLOOKUP(A125,počty!$L$6:$AP$163,9,0) ->  | G125: =VLOOKUP(A125,počty!$L$6:$AP$163,10,0) ->  | H125: =VLOOKUP(A125,počty!$L$6:$AP$163,11,0) ->  | I125: =VLOOKUP(A125,počty!$L$6:$AP$163,12,0) ->  | J125: =VLOOKUP(A125,počty!$L$6:$AP$163,13,0) ->  | K125: =VLOOKUP(A125,počty!$L$6:$AP$163,14,0) ->  | L125: =VLOOKUP(A125,počty!$L$6:$AP$163,15,0) ->  | M125: =VLOOKUP(A125,počty!$L$6:$AP$163,16,0) ->  | N125: =VLOOKUP(A125,počty!$L$6:$AP$163,17,0) ->  | O125: =VLOOKUP(A125,počty!$L$6:$AP$163,18,0) ->  | P125: =VLOOKUP(A125,počty!$L$6:$AP$163,30,0) ->  | Q125: =IF(B125="M","M",240-MAX(počty!$BM$6:$BM$39)+P125) ->  | R125: =IF(B125="M","M",IF(B125>MAX(CUP!$B$3:$B$102),0,VLOOKUP(B125,CUP!$B$3:$C$102,2,0))) -> 
D126: =VLOOKUP(A125,počty!$L$6:$AP$163,5,0) ->  | E126: =VLOOKUP(A125,počty!$L$6:$AP$163,6,0) ->  | F126: =VLOOKUP(A125,počty!$L$6:$AP$163,20,0) ->  | G126: =VLOOKUP(A125,počty!$L$6:$AP$163,21,0) ->  | H126: =VLOOKUP(A125,počty!$L$6:$AP$163,22,0) ->  | I126: =VLOOKUP(A125,počty!$L$6:$AP$163,23,0) ->  | J126: =VLOOKUP(A125,počty!$L$6:$AP$163,24,0) ->  | K126: =VLOOKUP(A125,počty!$L$6:$AP$163,25,0) ->  | L126: =VLOOKUP(A125,počty!$L$6:$AP$163,26,0) ->  | M126: =VLOOKUP(A125,počty!$L$6:$AP$163,27,0) ->  | N126: =VLOOKUP(A125,počty!$L$6:$AP$163,28,0) ->  | O126: =VLOOKUP(A125,počty!$L$6:$AP$163,29,0) -> 
A127: 58 | B127: =IF(VLOOKUP(A127,počty!$L$6:$AP$163,31,0)>=1000,"M",VLOOKUP(A127,počty!$L$6:$BR$163,53,0)) ->  | C127: =VLOOKUP(A127,počty!$L$6:$AP$163,3,0) ->  | D127: =VLOOKUP(A127,počty!$L$6:$AP$163,4,0) ->  | E127: =VLOOKUP(A127,počty!$L$6:$AP$163,7,0) ->  | F127: =VLOOKUP(A127,počty!$L$6:$AP$163,9,0) ->  | G127: =VLOOKUP(A127,počty!$L$6:$AP$163,10,0) ->  | H127: =VLOOKUP(A127,počty!$L$6:$AP$163,11,0) ->  | I127: =VLOOKUP(A127,počty!$L$6:$AP$163,12,0) ->  | J127: =VLOOKUP(A127,počty!$L$6:$AP$163,13,0) ->  | K127: =VLOOKUP(A127,počty!$L$6:$AP$163,14,0) ->  | L127: =VLOOKUP(A127,počty!$L$6:$AP$163,15,0) ->  | M127: =VLOOKUP(A127,počty!$L$6:$AP$163,16,0) ->  | N127: =VLOOKUP(A127,počty!$L$6:$AP$163,17,0) ->  | O127: =VLOOKUP(A127,počty!$L$6:$AP$163,18,0) ->  | P127: =VLOOKUP(A127,počty!$L$6:$AP$163,30,0) ->  | Q127: =IF(B127="M","M",240-MAX(počty!$BM$6:$BM$39)+P127) ->  | R127: =IF(B127="M","M",IF(B127>MAX(CUP!$B$3:$B$102),0,VLOOKUP(B127,CUP!$B$3:$C$102,2,0))) -> 
D128: =VLOOKUP(A127,počty!$L$6:$AP$163,5,0) ->  | E128: =VLOOKUP(A127,počty!$L$6:$AP$163,6,0) ->  | F128: =VLOOKUP(A127,počty!$L$6:$AP$163,20,0) ->  | G128: =VLOOKUP(A127,počty!$L$6:$AP$163,21,0) ->  | H128: =VLOOKUP(A127,počty!$L$6:$AP$163,22,0) ->  | I128: =VLOOKUP(A127,počty!$L$6:$AP$163,23,0) ->  | J128: =VLOOKUP(A127,počty!$L$6:$AP$163,24,0) ->  | K128: =VLOOKUP(A127,počty!$L$6:$AP$163,25,0) ->  | L128: =VLOOKUP(A127,počty!$L$6:$AP$163,26,0) ->  | M128: =VLOOKUP(A127,počty!$L$6:$AP$163,27,0) ->  | N128: =VLOOKUP(A127,počty!$L$6:$AP$163,28,0) ->  | O128: =VLOOKUP(A127,počty!$L$6:$AP$163,29,0) -> 
A129: 59 | B129: =IF(VLOOKUP(A129,počty!$L$6:$AP$163,31,0)>=1000,"M",VLOOKUP(A129,počty!$L$6:$BR$163,53,0)) ->  | C129: =VLOOKUP(A129,počty!$L$6:$AP$163,3,0) ->  | D129: =VLOOKUP(A129,počty!$L$6:$AP$163,4,0) ->  | E129: =VLOOKUP(A129,počty!$L$6:$AP$163,7,0) ->  | F129: =VLOOKUP(A129,počty!$L$6:$AP$163,9,0) ->  | G129: =VLOOKUP(A129,počty!$L$6:$AP$163,10,0) ->  | H129: =VLOOKUP(A129,počty!$L$6:$AP$163,11,0) ->  | I129: =VLOOKUP(A129,počty!$L$6:$AP$163,12,0) ->  | J129: =VLOOKUP(A129,počty!$L$6:$AP$163,13,0) ->  | K129: =VLOOKUP(A129,počty!$L$6:$AP$163,14,0) ->  | L129: =VLOOKUP(A129,počty!$L$6:$AP$163,15,0) ->  | M129: =VLOOKUP(A129,počty!$L$6:$AP$163,16,0) ->  | N129: =VLOOKUP(A129,počty!$L$6:$AP$163,17,0) ->  | O129: =VLOOKUP(A129,počty!$L$6:$AP$163,18,0) ->  | P129: =VLOOKUP(A129,počty!$L$6:$AP$163,30,0) ->  | Q129: =IF(B129="M","M",240-MAX(počty!$BM$6:$BM$39)+P129) ->  | R129: =IF(B129="M","M",IF(B129>MAX(CUP!$B$3:$B$102),0,VLOOKUP(B129,CUP!$B$3:$C$102,2,0))) -> 
D130: =VLOOKUP(A129,počty!$L$6:$AP$163,5,0) ->  | E130: =VLOOKUP(A129,počty!$L$6:$AP$163,6,0) ->  | F130: =VLOOKUP(A129,počty!$L$6:$AP$163,20,0) ->  | G130: =VLOOKUP(A129,počty!$L$6:$AP$163,21,0) ->  | H130: =VLOOKUP(A129,počty!$L$6:$AP$163,22,0) ->  | I130: =VLOOKUP(A129,počty!$L$6:$AP$163,23,0) ->  | J130: =VLOOKUP(A129,počty!$L$6:$AP$163,24,0) ->  | K130: =VLOOKUP(A129,počty!$L$6:$AP$163,25,0) ->  | L130: =VLOOKUP(A129,počty!$L$6:$AP$163,26,0) ->  | M130: =VLOOKUP(A129,počty!$L$6:$AP$163,27,0) ->  | N130: =VLOOKUP(A129,počty!$L$6:$AP$163,28,0) ->  | O130: =VLOOKUP(A129,počty!$L$6:$AP$163,29,0) -> 
A131: 60 | B131: =IF(VLOOKUP(A131,počty!$L$6:$AP$163,31,0)>=1000,"M",VLOOKUP(A131,počty!$L$6:$BR$163,53,0)) ->  | C131: =VLOOKUP(A131,počty!$L$6:$AP$163,3,0) ->  | D131: =VLOOKUP(A131,počty!$L$6:$AP$163,4,0) ->  | E131: =VLOOKUP(A131,počty!$L$6:$AP$163,7,0) ->  | F131: =VLOOKUP(A131,počty!$L$6:$AP$163,9,0) ->  | G131: =VLOOKUP(A131,počty!$L$6:$AP$163,10,0) ->  | H131: =VLOOKUP(A131,počty!$L$6:$AP$163,11,0) ->  | I131: =VLOOKUP(A131,počty!$L$6:$AP$163,12,0) ->  | J131: =VLOOKUP(A131,počty!$L$6:$AP$163,13,0) ->  | K131: =VLOOKUP(A131,počty!$L$6:$AP$163,14,0) ->  | L131: =VLOOKUP(A131,počty!$L$6:$AP$163,15,0) ->  | M131: =VLOOKUP(A131,počty!$L$6:$AP$163,16,0) ->  | N131: =VLOOKUP(A131,počty!$L$6:$AP$163,17,0) ->  | O131: =VLOOKUP(A131,počty!$L$6:$AP$163,18,0) ->  | P131: =VLOOKUP(A131,počty!$L$6:$AP$163,30,0) ->  | Q131: =IF(B131="M","M",240-MAX(počty!$BM$6:$BM$39)+P131) ->  | R131: =IF(B131="M","M",IF(B131>MAX(CUP!$B$3:$B$102),0,VLOOKUP(B131,CUP!$B$3:$C$102,2,0))) -> 
D132: =VLOOKUP(A131,počty!$L$6:$AP$163,5,0) ->  | E132: =VLOOKUP(A131,počty!$L$6:$AP$163,6,0) ->  | F132: =VLOOKUP(A131,počty!$L$6:$AP$163,20,0) ->  | G132: =VLOOKUP(A131,počty!$L$6:$AP$163,21,0) ->  | H132: =VLOOKUP(A131,počty!$L$6:$AP$163,22,0) ->  | I132: =VLOOKUP(A131,počty!$L$6:$AP$163,23,0) ->  | J132: =VLOOKUP(A131,počty!$L$6:$AP$163,24,0) ->  | K132: =VLOOKUP(A131,počty!$L$6:$AP$163,25,0) ->  | L132: =VLOOKUP(A131,počty!$L$6:$AP$163,26,0) ->  | M132: =VLOOKUP(A131,počty!$L$6:$AP$163,27,0) ->  | N132: =VLOOKUP(A131,počty!$L$6:$AP$163,28,0) ->  | O132: =VLOOKUP(A131,počty!$L$6:$AP$163,29,0) -> 
B134: počet přihlášených: | E134: =COUNTA(počty!O6:O65) -> 60
B135: počet startujících: | E135: =COUNT(počty!AP6:AP72) -> 5
B136: počet klasifikovaných: | E136: =COUNT(počty!BL6:BL72) -> 5
B137: počet mimo soutěž (M): | E137: =DCOUNTA(B12:B133,1,CUP!M3:M4) -> 0
D139: ředitel závodu | L139: technický delegát
D140: =+C6 -> Ing. Stanislav Jirásek | L140: =+C7 -> Pavel Bernat

Sheet 1.ko
B1: výsledková listina 1. kolo | I1: =CONCATENATE("K ",hlavicka!C6) -> K 13 | P1: =+hlavicka!C11 -> Žáci U10M 2017-2016
B2: =+vyslSL!B2 -> Český pohár žactva ve skoku na lyžích - 9/SL | P2: =+vyslSL!Q2 -> dne: 21.11.2015
B3: =+vyslSL!B3 -> skok.můstek: K 13 | P3: =+vyslSL!Q3 -> LSK Lomnice
B4: =+vyslSL!B4 -> certifikát můstku č.135/C35/SL pl. do | P4: =+vyslSL!Q4 -> K = 60 b. +/- 6 b./m
B5: poř. | C5: st.č. | D5: jméno | E5: klub | F5: stát | G5: rok | H5: m | I5: A | J5: B | K5: C | L5: D | M5: E | N5: body
N6: metry | O6: styl | P6: celk.
A7: 1 | B7: =VLOOKUP(A7,počty!$J$6:$AP$163,20,0) -> 1 | C7: =VLOOKUP(A7,počty!$J$6:$AP$163,5,0) -> 22 | D7: =VLOOKUP(A7,počty!$J$6:$AP$163,6,0) -> Sankot Antonín | E7: =VLOOKUP(A7,počty!$J$6:$AP$163,7,0) -> Lyžařský sportovní klub Lomnice nad Popelkou | F7: =VLOOKUP(A7,počty!$J$6:$AP$163,8,0) -> CZE | G7: =VLOOKUP(A7,počty!$J$6:$AP$163,9,0) -> 2017 | H7: =VLOOKUP(A7,počty!$J$6:$AP$163,11,0) -> 12 | I7: =VLOOKUP(A7,počty!$J$6:$AP$163,12,0) -> 14.5 | J7: =VLOOKUP(A7,počty!$J$6:$AP$163,13,0) -> 14 | K7: =VLOOKUP(A7,počty!$J$6:$AP$163,14,0) -> 13 | L7: =VLOOKUP(A7,počty!$J$6:$AP$163,15,0) -> 1 | M7: =VLOOKUP(A7,počty!$J$6:$AP$163,16,0) -> 20 | N7: =VLOOKUP(A7,počty!$J$6:$AP$163,17,0) -> 54 | O7: =VLOOKUP(A7,počty!$J$6:$AP$163,18,0) -> 41.5 | P7: =VLOOKUP(A7,počty!$J$6:$AP$163,19,0) -> 95.5
A8: 2 | B8: =VLOOKUP(A8,počty!$J$6:$AP$163,20,0) -> 1 | C8: =VLOOKUP(A8,počty!$J$6:$AP$163,5,0) -> 13 | D8: =VLOOKUP(A8,počty!$J$6:$AP$163,6,0) -> Zapadlová Sára | E8: =VLOOKUP(A8,počty!$J$6:$AP$163,7,0) -> Lyžařský sportovní klub Lomnice nad Popelkou | F8: =VLOOKUP(A8,počty!$J$6:$AP$163,8,0) -> CZE | G8: =VLOOKUP(A8,počty!$J$6:$AP$163,9,0) -> 2016 | H8: =VLOOKUP(A8,počty!$J$6:$AP$163,11,0) -> 11.5 | I8: =VLOOKUP(A8,počty!$J$6:$AP$163,12,0) -> 15 | J8: =VLOOKUP(A8,počty!$J$6:$AP$163,13,0) -> 15 | K8: =VLOOKUP(A8,počty!$J$6:$AP$163,14,0) -> 14.5 | L8: =VLOOKUP(A8,počty!$J$6:$AP$163,15,0) -> 1 | M8: =VLOOKUP(A8,počty!$J$6:$AP$163,16,0) -> 20 | N8: =VLOOKUP(A8,počty!$J$6:$AP$163,17,0) -> 51 | O8: =VLOOKUP(A8,počty!$J$6:$AP$163,18,0) -> 44.5 | P8: =VLOOKUP(A8,počty!$J$6:$AP$163,19,0) -> 95.5
A9: 3 | B9: =VLOOKUP(A9,počty!$J$6:$AP$163,20,0) -> 3 | C9: =VLOOKUP(A9,počty!$J$6:$AP$163,5,0) -> 24 | D9: =VLOOKUP(A9,počty!$J$6:$AP$163,6,0) -> Huráňová Karolína | E9: =VLOOKUP(A9,počty!$J$6:$AP$163,7,0) -> Lyžařský sportovní klub Lomnice nad Popelkou | F9: =VLOOKUP(A9,počty!$J$6:$AP$163,8,0) -> CZE | G9: =VLOOKUP(A9,počty!$J$6:$AP$163,9,0) -> 2015 | H9: =VLOOKUP(A9,počty!$J$6:$AP$163,11,0) -> 11.5 | I9: =VLOOKUP(A9,počty!$J$6:$AP$163,12,0) -> 14.5 | J9: =VLOOKUP(A9,počty!$J$6:$AP$163,13,0) -> 15 | K9: =VLOOKUP(A9,počty!$J$6:$AP$163,14,0) -> 13.5 | L9: =VLOOKUP(A9,počty!$J$6:$AP$163,15,0) -> 1 | M9: =VLOOKUP(A9,počty!$J$6:$AP$163,16,0) -> 20 | N9: =VLOOKUP(A9,počty!$J$6:$AP$163,17,0) -> 51 | O9: =VLOOKUP(A9,počty!$J$6:$AP$163,18,0) -> 43 | P9: =VLOOKUP(A9,počty!$J$6:$AP$163,19,0) -> 94
A10: 4 | B10: =VLOOKUP(A10,počty!$J$6:$AP$163,20,0) -> 4 | C10: =VLOOKUP(A10,počty!$J$6:$AP$163,5,0) -> 25 | D10: =VLOOKUP(A10,počty!$J$6:$AP$163,6,0) -> Ježek Jakub | E10: =VLOOKUP(A10,počty!$J$6:$AP$163,7,0) -> Lyžařský sportovní klub Lomnice nad Popelkou | F10: =VLOOKUP(A10,počty!$J$6:$AP$163,8,0) -> CZE | G10: =VLOOKUP(A10,počty!$J$6:$AP$163,9,0) -> 2015 | H10: =VLOOKUP(A10,počty!$J$6:$AP$163,11,0) -> 11 | I10: =VLOOKUP(A10,počty!$J$6:$AP$163,12,0) -> 14.5 | J10: =VLOOKUP(A10,počty!$J$6:$AP$163,13,0) -> 14.5 | K10: =VLOOKUP(A10,počty!$J$6:$AP$163,14,0) -> 13 | L10: =VLOOKUP(A10,počty!$J$6:$AP$163,15,0) -> 1 | M10: =VLOOKUP(A10,počty!$J$6:$AP$163,16,0) -> 20 | N10: =VLOOKUP(A10,počty!$J$6:$AP$163,17,0) -> 48 | O10: =VLOOKUP(A10,počty!$J$6:$AP$163,18,0) -> 42 | P10: =VLOOKUP(A10,počty!$J$6:$AP$163,19,0) -> 90
A11: 5 | B11: =VLOOKUP(A11,počty!$J$6:$AP$163,20,0) -> 5 | C11: =VLOOKUP(A11,počty!$J$6:$AP$163,5,0) -> 23 | D11: =VLOOKUP(A11,počty!$J$6:$AP$163,6,0) -> Břečka Matyáš | E11: =VLOOKUP(A11,počty!$J$6:$AP$163,7,0) -> Lyžařský sportovní klub Lomnice nad Popelkou | F11: =VLOOKUP(A11,počty!$J$6:$AP$163,8,0) -> CZE | G11: =VLOOKUP(A11,počty!$J$6:$AP$163,9,0) -> 2014 | H11: =VLOOKUP(A11,počty!$J$6:$AP$163,11,0) -> 11 | I11: =VLOOKUP(A11,počty!$J$6:$AP$163,12,0) -> 14.5 | J11: =VLOOKUP(A11,počty!$J$6:$AP$163,13,0) -> 14 | K11: =VLOOKUP(A11,počty!$J$6:$AP$163,14,0) -> 13 | L11: =VLOOKUP(A11,počty!$J$6:$AP$163,15,0) -> 1 | M11: =VLOOKUP(A11,počty!$J$6:$AP$163,16,0) -> 20 | N11: =VLOOKUP(A11,počty!$J$6:$AP$163,17,0) -> 48 | O11: =VLOOKUP(A11,počty!$J$6:$AP$163,18,0) -> 41.5 | P11: =VLOOKUP(A11,počty!$J$6:$AP$163,19,0) -> 89.5
A12: 6 | B12: =VLOOKUP(A12,počty!$J$6:$AP$163,20,0) ->  | C12: =VLOOKUP(A12,počty!$J$6:$AP$163,5,0) ->  | D12: =VLOOKUP(A12,počty!$J$6:$AP$163,6,0) ->  | E12: =VLOOKUP(A12,počty!$J$6:$AP$163,7,0) ->  | F12: =VLOOKUP(A12,počty!$J$6:$AP$163,8,0) ->  | G12: =VLOOKUP(A12,počty!$J$6:$AP$163,9,0) ->  | H12: =VLOOKUP(A12,počty!$J$6:$AP$163,11,0) ->  | I12: =VLOOKUP(A12,počty!$J$6:$AP$163,12,0) ->  | J12: =VLOOKUP(A12,počty!$J$6:$AP$163,13,0) ->  | K12: =VLOOKUP(A12,počty!$J$6:$AP$163,14,0) ->  | L12: =VLOOKUP(A12,počty!$J$6:$AP$163,15,0) ->  | M12: =VLOOKUP(A12,počty!$J$6:$AP$163,16,0) ->  | N12: =VLOOKUP(A12,počty!$J$6:$AP$163,17,0) ->  | O12: =VLOOKUP(A12,počty!$J$6:$AP$163,18,0) ->  | P12: =VLOOKUP(A12,počty!$J$6:$AP$163,19,0) -> 
A13: 7 | B13: =VLOOKUP(A13,počty!$J$6:$AP$163,20,0) ->  | C13: =VLOOKUP(A13,počty!$J$6:$AP$163,5,0) ->  | D13: =VLOOKUP(A13,počty!$J$6:$AP$163,6,0) ->  | E13: =VLOOKUP(A13,počty!$J$6:$AP$163,7,0) ->  | F13: =VLOOKUP(A13,počty!$J$6:$AP$163,8,0) ->  | G13: =VLOOKUP(A13,počty!$J$6:$AP$163,9,0) ->  | H13: =VLOOKUP(A13,počty!$J$6:$AP$163,11,0) ->  | I13: =VLOOKUP(A13,počty!$J$6:$AP$163,12,0) ->  | J13: =VLOOKUP(A13,počty!$J$6:$AP$163,13,0) ->  | K13: =VLOOKUP(A13,počty!$J$6:$AP$163,14,0) ->  | L13: =VLOOKUP(A13,počty!$J$6:$AP$163,15,0) ->  | M13: =VLOOKUP(A13,počty!$J$6:$AP$163,16,0) ->  | N13: =VLOOKUP(A13,počty!$J$6:$AP$163,17,0) ->  | O13: =VLOOKUP(A13,počty!$J$6:$AP$163,18,0) ->  | P13: =VLOOKUP(A13,počty!$J$6:$AP$163,19,0) -> 
A14: 8 | B14: =VLOOKUP(A14,počty!$J$6:$AP$163,20,0) ->  | C14: =VLOOKUP(A14,počty!$J$6:$AP$163,5,0) ->  | D14: =VLOOKUP(A14,počty!$J$6:$AP$163,6,0) ->  | E14: =VLOOKUP(A14,počty!$J$6:$AP$163,7,0) ->  | F14: =VLOOKUP(A14,počty!$J$6:$AP$163,8,0) ->  | G14: =VLOOKUP(A14,počty!$J$6:$AP$163,9,0) ->  | H14: =VLOOKUP(A14,počty!$J$6:$AP$163,11,0) ->  | I14: =VLOOKUP(A14,počty!$J$6:$AP$163,12,0) ->  | J14: =VLOOKUP(A14,počty!$J$6:$AP$163,13,0) ->  | K14: =VLOOKUP(A14,počty!$J$6:$AP$163,14,0) ->  | L14: =VLOOKUP(A14,počty!$J$6:$AP$163,15,0) ->  | M14: =VLOOKUP(A14,počty!$J$6:$AP$163,16,0) ->  | N14: =VLOOKUP(A14,počty!$J$6:$AP$163,17,0) ->  | O14: =VLOOKUP(A14,počty!$J$6:$AP$163,18,0) ->  | P14: =VLOOKUP(A14,počty!$J$6:$AP$163,19,0) -> 
A15: 9 | B15: =VLOOKUP(A15,počty!$J$6:$AP$163,20,0) ->  | C15: =VLOOKUP(A15,počty!$J$6:$AP$163,5,0) ->  | D15: =VLOOKUP(A15,počty!$J$6:$AP$163,6,0) ->  | E15: =VLOOKUP(A15,počty!$J$6:$AP$163,7,0) ->  | F15: =VLOOKUP(A15,počty!$J$6:$AP$163,8,0) ->  | G15: =VLOOKUP(A15,počty!$J$6:$AP$163,9,0) ->  | H15: =VLOOKUP(A15,počty!$J$6:$AP$163,11,0) ->  | I15: =VLOOKUP(A15,počty!$J$6:$AP$163,12,0) ->  | J15: =VLOOKUP(A15,počty!$J$6:$AP$163,13,0) ->  | K15: =VLOOKUP(A15,počty!$J$6:$AP$163,14,0) ->  | L15: =VLOOKUP(A15,počty!$J$6:$AP$163,15,0) ->  | M15: =VLOOKUP(A15,počty!$J$6:$AP$163,16,0) ->  | N15: =VLOOKUP(A15,počty!$J$6:$AP$163,17,0) ->  | O15: =VLOOKUP(A15,počty!$J$6:$AP$163,18,0) ->  | P15: =VLOOKUP(A15,počty!$J$6:$AP$163,19,0) -> 
A16: 10 | B16: =VLOOKUP(A16,počty!$J$6:$AP$163,20,0) ->  | C16: =VLOOKUP(A16,počty!$J$6:$AP$163,5,0) ->  | D16: =VLOOKUP(A16,počty!$J$6:$AP$163,6,0) ->  | E16: =VLOOKUP(A16,počty!$J$6:$AP$163,7,0) ->  | F16: =VLOOKUP(A16,počty!$J$6:$AP$163,8,0) ->  | G16: =VLOOKUP(A16,počty!$J$6:$AP$163,9,0) ->  | H16: =VLOOKUP(A16,počty!$J$6:$AP$163,11,0) ->  | I16: =VLOOKUP(A16,počty!$J$6:$AP$163,12,0) ->  | J16: =VLOOKUP(A16,počty!$J$6:$AP$163,13,0) ->  | K16: =VLOOKUP(A16,počty!$J$6:$AP$163,14,0) ->  | L16: =VLOOKUP(A16,počty!$J$6:$AP$163,15,0) ->  | M16: =VLOOKUP(A16,počty!$J$6:$AP$163,16,0) ->  | N16: =VLOOKUP(A16,počty!$J$6:$AP$163,17,0) ->  | O16: =VLOOKUP(A16,počty!$J$6:$AP$163,18,0) ->  | P16: =VLOOKUP(A16,počty!$J$6:$AP$163,19,0) -> 
A17: 11 | B17: =VLOOKUP(A17,počty!$J$6:$AP$163,20,0) ->  | C17: =VLOOKUP(A17,počty!$J$6:$AP$163,5,0) ->  | D17: =VLOOKUP(A17,počty!$J$6:$AP$163,6,0) ->  | E17: =VLOOKUP(A17,počty!$J$6:$AP$163,7,0) ->  | F17: =VLOOKUP(A17,počty!$J$6:$AP$163,8,0) ->  | G17: =VLOOKUP(A17,počty!$J$6:$AP$163,9,0) ->  | H17: =VLOOKUP(A17,počty!$J$6:$AP$163,11,0) ->  | I17: =VLOOKUP(A17,počty!$J$6:$AP$163,12,0) ->  | J17: =VLOOKUP(A17,počty!$J$6:$AP$163,13,0) ->  | K17: =VLOOKUP(A17,počty!$J$6:$AP$163,14,0) ->  | L17: =VLOOKUP(A17,počty!$J$6:$AP$163,15,0) ->  | M17: =VLOOKUP(A17,počty!$J$6:$AP$163,16,0) ->  | N17: =VLOOKUP(A17,počty!$J$6:$AP$163,17,0) ->  | O17: =VLOOKUP(A17,počty!$J$6:$AP$163,18,0) ->  | P17: =VLOOKUP(A17,počty!$J$6:$AP$163,19,0) -> 
A18: 12 | B18: =VLOOKUP(A18,počty!$J$6:$AP$163,20,0) ->  | C18: =VLOOKUP(A18,počty!$J$6:$AP$163,5,0) ->  | D18: =VLOOKUP(A18,počty!$J$6:$AP$163,6,0) ->  | E18: =VLOOKUP(A18,počty!$J$6:$AP$163,7,0) ->  | F18: =VLOOKUP(A18,počty!$J$6:$AP$163,8,0) ->  | G18: =VLOOKUP(A18,počty!$J$6:$AP$163,9,0) ->  | H18: =VLOOKUP(A18,počty!$J$6:$AP$163,11,0) ->  | I18: =VLOOKUP(A18,počty!$J$6:$AP$163,12,0) ->  | J18: =VLOOKUP(A18,počty!$J$6:$AP$163,13,0) ->  | K18: =VLOOKUP(A18,počty!$J$6:$AP$163,14,0) ->  | L18: =VLOOKUP(A18,počty!$J$6:$AP$163,15,0) ->  | M18: =VLOOKUP(A18,počty!$J$6:$AP$163,16,0) ->  | N18: =VLOOKUP(A18,počty!$J$6:$AP$163,17,0) ->  | O18: =VLOOKUP(A18,počty!$J$6:$AP$163,18,0) ->  | P18: =VLOOKUP(A18,počty!$J$6:$AP$163,19,0) -> 
A19: 13 | B19: =VLOOKUP(A19,počty!$J$6:$AP$163,20,0) ->  | C19: =VLOOKUP(A19,počty!$J$6:$AP$163,5,0) ->  | D19: =VLOOKUP(A19,počty!$J$6:$AP$163,6,0) ->  | E19: =VLOOKUP(A19,počty!$J$6:$AP$163,7,0) ->  | F19: =VLOOKUP(A19,počty!$J$6:$AP$163,8,0) ->  | G19: =VLOOKUP(A19,počty!$J$6:$AP$163,9,0) ->  | H19: =VLOOKUP(A19,počty!$J$6:$AP$163,11,0) ->  | I19: =VLOOKUP(A19,počty!$J$6:$AP$163,12,0) ->  | J19: =VLOOKUP(A19,počty!$J$6:$AP$163,13,0) ->  | K19: =VLOOKUP(A19,počty!$J$6:$AP$163,14,0) ->  | L19: =VLOOKUP(A19,počty!$J$6:$AP$163,15,0) ->  | M19: =VLOOKUP(A19,počty!$J$6:$AP$163,16,0) ->  | N19: =VLOOKUP(A19,počty!$J$6:$AP$163,17,0) ->  | O19: =VLOOKUP(A19,počty!$J$6:$AP$163,18,0) ->  | P19: =VLOOKUP(A19,počty!$J$6:$AP$163,19,0) -> 
A20: 14 | B20: =VLOOKUP(A20,počty!$J$6:$AP$163,20,0) ->  | C20: =VLOOKUP(A20,počty!$J$6:$AP$163,5,0) ->  | D20: =VLOOKUP(A20,počty!$J$6:$AP$163,6,0) ->  | E20: =VLOOKUP(A20,počty!$J$6:$AP$163,7,0) ->  | F20: =VLOOKUP(A20,počty!$J$6:$AP$163,8,0) ->  | G20: =VLOOKUP(A20,počty!$J$6:$AP$163,9,0) ->  | H20: =VLOOKUP(A20,počty!$J$6:$AP$163,11,0) ->  | I20: =VLOOKUP(A20,počty!$J$6:$AP$163,12,0) ->  | J20: =VLOOKUP(A20,počty!$J$6:$AP$163,13,0) ->  | K20: =VLOOKUP(A20,počty!$J$6:$AP$163,14,0) ->  | L20: =VLOOKUP(A20,počty!$J$6:$AP$163,15,0) ->  | M20: =VLOOKUP(A20,počty!$J$6:$AP$163,16,0) ->  | N20: =VLOOKUP(A20,počty!$J$6:$AP$163,17,0) ->  | O20: =VLOOKUP(A20,počty!$J$6:$AP$163,18,0) ->  | P20: =VLOOKUP(A20,počty!$J$6:$AP$163,19,0) -> 
A21: 15 | B21: =VLOOKUP(A21,počty!$J$6:$AP$163,20,0) ->  | C21: =VLOOKUP(A21,počty!$J$6:$AP$163,5,0) ->  | D21: =VLOOKUP(A21,počty!$J$6:$AP$163,6,0) ->  | E21: =VLOOKUP(A21,počty!$J$6:$AP$163,7,0) ->  | F21: =VLOOKUP(A21,počty!$J$6:$AP$163,8,0) ->  | G21: =VLOOKUP(A21,počty!$J$6:$AP$163,9,0) ->  | H21: =VLOOKUP(A21,počty!$J$6:$AP$163,11,0) ->  | I21: =VLOOKUP(A21,počty!$J$6:$AP$163,12,0) ->  | J21: =VLOOKUP(A21,počty!$J$6:$AP$163,13,0) ->  | K21: =VLOOKUP(A21,počty!$J$6:$AP$163,14,0) ->  | L21: =VLOOKUP(A21,počty!$J$6:$AP$163,15,0) ->  | M21: =VLOOKUP(A21,počty!$J$6:$AP$163,16,0) ->  | N21: =VLOOKUP(A21,počty!$J$6:$AP$163,17,0) ->  | O21: =VLOOKUP(A21,počty!$J$6:$AP$163,18,0) ->  | P21: =VLOOKUP(A21,počty!$J$6:$AP$163,19,0) -> 
A22: 16 | B22: =VLOOKUP(A22,počty!$J$6:$AP$163,20,0) ->  | C22: =VLOOKUP(A22,počty!$J$6:$AP$163,5,0) ->  | D22: =VLOOKUP(A22,počty!$J$6:$AP$163,6,0) ->  | E22: =VLOOKUP(A22,počty!$J$6:$AP$163,7,0) ->  | F22: =VLOOKUP(A22,počty!$J$6:$AP$163,8,0) ->  | G22: =VLOOKUP(A22,počty!$J$6:$AP$163,9,0) ->  | H22: =VLOOKUP(A22,počty!$J$6:$AP$163,11,0) ->  | I22: =VLOOKUP(A22,počty!$J$6:$AP$163,12,0) ->  | J22: =VLOOKUP(A22,počty!$J$6:$AP$163,13,0) ->  | K22: =VLOOKUP(A22,počty!$J$6:$AP$163,14,0) ->  | L22: =VLOOKUP(A22,počty!$J$6:$AP$163,15,0) ->  | M22: =VLOOKUP(A22,počty!$J$6:$AP$163,16,0) ->  | N22: =VLOOKUP(A22,počty!$J$6:$AP$163,17,0) ->  | O22: =VLOOKUP(A22,počty!$J$6:$AP$163,18,0) ->  | P22: =VLOOKUP(A22,počty!$J$6:$AP$163,19,0) -> 
A23: 17 | B23: =VLOOKUP(A23,počty!$J$6:$AP$163,20,0) ->  | C23: =VLOOKUP(A23,počty!$J$6:$AP$163,5,0) ->  | D23: =VLOOKUP(A23,počty!$J$6:$AP$163,6,0) ->  | E23: =VLOOKUP(A23,počty!$J$6:$AP$163,7,0) ->  | F23: =VLOOKUP(A23,počty!$J$6:$AP$163,8,0) ->  | G23: =VLOOKUP(A23,počty!$J$6:$AP$163,9,0) ->  | H23: =VLOOKUP(A23,počty!$J$6:$AP$163,11,0) ->  | I23: =VLOOKUP(A23,počty!$J$6:$AP$163,12,0) ->  | J23: =VLOOKUP(A23,počty!$J$6:$AP$163,13,0) ->  | K23: =VLOOKUP(A23,počty!$J$6:$AP$163,14,0) ->  | L23: =VLOOKUP(A23,počty!$J$6:$AP$163,15,0) ->  | M23: =VLOOKUP(A23,počty!$J$6:$AP$163,16,0) ->  | N23: =VLOOKUP(A23,počty!$J$6:$AP$163,17,0) ->  | O23: =VLOOKUP(A23,počty!$J$6:$AP$163,18,0) ->  | P23: =VLOOKUP(A23,počty!$J$6:$AP$163,19,0) -> 
A24: 18 | B24: =VLOOKUP(A24,počty!$J$6:$AP$163,20,0) ->  | C24: =VLOOKUP(A24,počty!$J$6:$AP$163,5,0) ->  | D24: =VLOOKUP(A24,počty!$J$6:$AP$163,6,0) ->  | E24: =VLOOKUP(A24,počty!$J$6:$AP$163,7,0) ->  | F24: =VLOOKUP(A24,počty!$J$6:$AP$163,8,0) ->  | G24: =VLOOKUP(A24,počty!$J$6:$AP$163,9,0) ->  | H24: =VLOOKUP(A24,počty!$J$6:$AP$163,11,0) ->  | I24: =VLOOKUP(A24,počty!$J$6:$AP$163,12,0) ->  | J24: =VLOOKUP(A24,počty!$J$6:$AP$163,13,0) ->  | K24: =VLOOKUP(A24,počty!$J$6:$AP$163,14,0) ->  | L24: =VLOOKUP(A24,počty!$J$6:$AP$163,15,0) ->  | M24: =VLOOKUP(A24,počty!$J$6:$AP$163,16,0) ->  | N24: =VLOOKUP(A24,počty!$J$6:$AP$163,17,0) ->  | O24: =VLOOKUP(A24,počty!$J$6:$AP$163,18,0) ->  | P24: =VLOOKUP(A24,počty!$J$6:$AP$163,19,0) -> 
A25: 19 | B25: =VLOOKUP(A25,počty!$J$6:$AP$163,20,0) ->  | C25: =VLOOKUP(A25,počty!$J$6:$AP$163,5,0) ->  | D25: =VLOOKUP(A25,počty!$J$6:$AP$163,6,0) ->  | E25: =VLOOKUP(A25,počty!$J$6:$AP$163,7,0) ->  | F25: =VLOOKUP(A25,počty!$J$6:$AP$163,8,0) ->  | G25: =VLOOKUP(A25,počty!$J$6:$AP$163,9,0) ->  | H25: =VLOOKUP(A25,počty!$J$6:$AP$163,11,0) ->  | I25: =VLOOKUP(A25,počty!$J$6:$AP$163,12,0) ->  | J25: =VLOOKUP(A25,počty!$J$6:$AP$163,13,0) ->  | K25: =VLOOKUP(A25,počty!$J$6:$AP$163,14,0) ->  | L25: =VLOOKUP(A25,počty!$J$6:$AP$163,15,0) ->  | M25: =VLOOKUP(A25,počty!$J$6:$AP$163,16,0) ->  | N25: =VLOOKUP(A25,počty!$J$6:$AP$163,17,0) ->  | O25: =VLOOKUP(A25,počty!$J$6:$AP$163,18,0) ->  | P25: =VLOOKUP(A25,počty!$J$6:$AP$163,19,0) -> 
A26: 20 | B26: =VLOOKUP(A26,počty!$J$6:$AP$163,20,0) ->  | C26: =VLOOKUP(A26,počty!$J$6:$AP$163,5,0) ->  | D26: =VLOOKUP(A26,počty!$J$6:$AP$163,6,0) ->  | E26: =VLOOKUP(A26,počty!$J$6:$AP$163,7,0) ->  | F26: =VLOOKUP(A26,počty!$J$6:$AP$163,8,0) ->  | G26: =VLOOKUP(A26,počty!$J$6:$AP$163,9,0) ->  | H26: =VLOOKUP(A26,počty!$J$6:$AP$163,11,0) ->  | I26: =VLOOKUP(A26,počty!$J$6:$AP$163,12,0) ->  | J26: =VLOOKUP(A26,počty!$J$6:$AP$163,13,0) ->  | K26: =VLOOKUP(A26,počty!$J$6:$AP$163,14,0) ->  | L26: =VLOOKUP(A26,počty!$J$6:$AP$163,15,0) ->  | M26: =VLOOKUP(A26,počty!$J$6:$AP$163,16,0) ->  | N26: =VLOOKUP(A26,počty!$J$6:$AP$163,17,0) ->  | O26: =VLOOKUP(A26,počty!$J$6:$AP$163,18,0) ->  | P26: =VLOOKUP(A26,počty!$J$6:$AP$163,19,0) -> 
A27: 21 | B27: =VLOOKUP(A27,počty!$J$6:$AP$163,20,0) ->  | C27: =VLOOKUP(A27,počty!$J$6:$AP$163,5,0) ->  | D27: =VLOOKUP(A27,počty!$J$6:$AP$163,6,0) ->  | E27: =VLOOKUP(A27,počty!$J$6:$AP$163,7,0) ->  | F27: =VLOOKUP(A27,počty!$J$6:$AP$163,8,0) ->  | G27: =VLOOKUP(A27,počty!$J$6:$AP$163,9,0) ->  | H27: =VLOOKUP(A27,počty!$J$6:$AP$163,11,0) ->  | I27: =VLOOKUP(A27,počty!$J$6:$AP$163,12,0) ->  | J27: =VLOOKUP(A27,počty!$J$6:$AP$163,13,0) ->  | K27: =VLOOKUP(A27,počty!$J$6:$AP$163,14,0) ->  | L27: =VLOOKUP(A27,počty!$J$6:$AP$163,15,0) ->  | M27: =VLOOKUP(A27,počty!$J$6:$AP$163,16,0) ->  | N27: =VLOOKUP(A27,počty!$J$6:$AP$163,17,0) ->  | O27: =VLOOKUP(A27,počty!$J$6:$AP$163,18,0) ->  | P27: =VLOOKUP(A27,počty!$J$6:$AP$163,19,0) -> 
A28: 22 | B28: =VLOOKUP(A28,počty!$J$6:$AP$163,20,0) ->  | C28: =VLOOKUP(A28,počty!$J$6:$AP$163,5,0) ->  | D28: =VLOOKUP(A28,počty!$J$6:$AP$163,6,0) ->  | E28: =VLOOKUP(A28,počty!$J$6:$AP$163,7,0) ->  | F28: =VLOOKUP(A28,počty!$J$6:$AP$163,8,0) ->  | G28: =VLOOKUP(A28,počty!$J$6:$AP$163,9,0) ->  | H28: =VLOOKUP(A28,počty!$J$6:$AP$163,11,0) ->  | I28: =VLOOKUP(A28,počty!$J$6:$AP$163,12,0) ->  | J28: =VLOOKUP(A28,počty!$J$6:$AP$163,13,0) ->  | K28: =VLOOKUP(A28,počty!$J$6:$AP$163,14,0) ->  | L28: =VLOOKUP(A28,počty!$J$6:$AP$163,15,0) ->  | M28: =VLOOKUP(A28,počty!$J$6:$AP$163,16,0) ->  | N28: =VLOOKUP(A28,počty!$J$6:$AP$163,17,0) ->  | O28: =VLOOKUP(A28,počty!$J$6:$AP$163,18,0) ->  | P28: =VLOOKUP(A28,počty!$J$6:$AP$163,19,0) -> 
A29: 23 | B29: =VLOOKUP(A29,počty!$J$6:$AP$163,20,0) ->  | C29: =VLOOKUP(A29,počty!$J$6:$AP$163,5,0) ->  | D29: =VLOOKUP(A29,počty!$J$6:$AP$163,6,0) ->  | E29: =VLOOKUP(A29,počty!$J$6:$AP$163,7,0) ->  | F29: =VLOOKUP(A29,počty!$J$6:$AP$163,8,0) ->  | G29: =VLOOKUP(A29,počty!$J$6:$AP$163,9,0) ->  | H29: =VLOOKUP(A29,počty!$J$6:$AP$163,11,0) ->  | I29: =VLOOKUP(A29,počty!$J$6:$AP$163,12,0) ->  | J29: =VLOOKUP(A29,počty!$J$6:$AP$163,13,0) ->  | K29: =VLOOKUP(A29,počty!$J$6:$AP$163,14,0) ->  | L29: =VLOOKUP(A29,počty!$J$6:$AP$163,15,0) ->  | M29: =VLOOKUP(A29,počty!$J$6:$AP$163,16,0) ->  | N29: =VLOOKUP(A29,počty!$J$6:$AP$163,17,0) ->  | O29: =VLOOKUP(A29,počty!$J$6:$AP$163,18,0) ->  | P29: =VLOOKUP(A29,počty!$J$6:$AP$163,19,0) -> 
A30: 24 | B30: =VLOOKUP(A30,počty!$J$6:$AP$163,20,0) ->  | C30: =VLOOKUP(A30,počty!$J$6:$AP$163,5,0) ->  | D30: =VLOOKUP(A30,počty!$J$6:$AP$163,6,0) ->  | E30: =VLOOKUP(A30,počty!$J$6:$AP$163,7,0) ->  | F30: =VLOOKUP(A30,počty!$J$6:$AP$163,8,0) ->  | G30: =VLOOKUP(A30,počty!$J$6:$AP$163,9,0) ->  | H30: =VLOOKUP(A30,počty!$J$6:$AP$163,11,0) ->  | I30: =VLOOKUP(A30,počty!$J$6:$AP$163,12,0) ->  | J30: =VLOOKUP(A30,počty!$J$6:$AP$163,13,0) ->  | K30: =VLOOKUP(A30,počty!$J$6:$AP$163,14,0) ->  | L30: =VLOOKUP(A30,počty!$J$6:$AP$163,15,0) ->  | M30: =VLOOKUP(A30,počty!$J$6:$AP$163,16,0) ->  | N30: =VLOOKUP(A30,počty!$J$6:$AP$163,17,0) ->  | O30: =VLOOKUP(A30,počty!$J$6:$AP$163,18,0) ->  | P30: =VLOOKUP(A30,počty!$J$6:$AP$163,19,0) -> 
A31: 25 | B31: =VLOOKUP(A31,počty!$J$6:$AP$163,20,0) ->  | C31: =VLOOKUP(A31,počty!$J$6:$AP$163,5,0) ->  | D31: =VLOOKUP(A31,počty!$J$6:$AP$163,6,0) ->  | E31: =VLOOKUP(A31,počty!$J$6:$AP$163,7,0) ->  | F31: =VLOOKUP(A31,počty!$J$6:$AP$163,8,0) ->  | G31: =VLOOKUP(A31,počty!$J$6:$AP$163,9,0) ->  | H31: =VLOOKUP(A31,počty!$J$6:$AP$163,11,0) ->  | I31: =VLOOKUP(A31,počty!$J$6:$AP$163,12,0) ->  | J31: =VLOOKUP(A31,počty!$J$6:$AP$163,13,0) ->  | K31: =VLOOKUP(A31,počty!$J$6:$AP$163,14,0) ->  | L31: =VLOOKUP(A31,počty!$J$6:$AP$163,15,0) ->  | M31: =VLOOKUP(A31,počty!$J$6:$AP$163,16,0) ->  | N31: =VLOOKUP(A31,počty!$J$6:$AP$163,17,0) ->  | O31: =VLOOKUP(A31,počty!$J$6:$AP$163,18,0) ->  | P31: =VLOOKUP(A31,počty!$J$6:$AP$163,19,0) -> 
A32: 26 | B32: =VLOOKUP(A32,počty!$J$6:$AP$163,20,0) ->  | C32: =VLOOKUP(A32,počty!$J$6:$AP$163,5,0) ->  | D32: =VLOOKUP(A32,počty!$J$6:$AP$163,6,0) ->  | E32: =VLOOKUP(A32,počty!$J$6:$AP$163,7,0) ->  | F32: =VLOOKUP(A32,počty!$J$6:$AP$163,8,0) ->  | G32: =VLOOKUP(A32,počty!$J$6:$AP$163,9,0) ->  | H32: =VLOOKUP(A32,počty!$J$6:$AP$163,11,0) ->  | I32: =VLOOKUP(A32,počty!$J$6:$AP$163,12,0) ->  | J32: =VLOOKUP(A32,počty!$J$6:$AP$163,13,0) ->  | K32: =VLOOKUP(A32,počty!$J$6:$AP$163,14,0) ->  | L32: =VLOOKUP(A32,počty!$J$6:$AP$163,15,0) ->  | M32: =VLOOKUP(A32,počty!$J$6:$AP$163,16,0) ->  | N32: =VLOOKUP(A32,počty!$J$6:$AP$163,17,0) ->  | O32: =VLOOKUP(A32,počty!$J$6:$AP$163,18,0) ->  | P32: =VLOOKUP(A32,počty!$J$6:$AP$163,19,0) -> 
A33: 27 | B33: =VLOOKUP(A33,počty!$J$6:$AP$163,20,0) ->  | C33: =VLOOKUP(A33,počty!$J$6:$AP$163,5,0) ->  | D33: =VLOOKUP(A33,počty!$J$6:$AP$163,6,0) ->  | E33: =VLOOKUP(A33,počty!$J$6:$AP$163,7,0) ->  | F33: =VLOOKUP(A33,počty!$J$6:$AP$163,8,0) ->  | G33: =VLOOKUP(A33,počty!$J$6:$AP$163,9,0) ->  | H33: =VLOOKUP(A33,počty!$J$6:$AP$163,11,0) ->  | I33: =VLOOKUP(A33,počty!$J$6:$AP$163,12,0) ->  | J33: =VLOOKUP(A33,počty!$J$6:$AP$163,13,0) ->  | K33: =VLOOKUP(A33,počty!$J$6:$AP$163,14,0) ->  | L33: =VLOOKUP(A33,počty!$J$6:$AP$163,15,0) ->  | M33: =VLOOKUP(A33,počty!$J$6:$AP$163,16,0) ->  | N33: =VLOOKUP(A33,počty!$J$6:$AP$163,17,0) ->  | O33: =VLOOKUP(A33,počty!$J$6:$AP$163,18,0) ->  | P33: =VLOOKUP(A33,počty!$J$6:$AP$163,19,0) -> 
A34: 28 | B34: =VLOOKUP(A34,počty!$J$6:$AP$163,20,0) ->  | C34: =VLOOKUP(A34,počty!$J$6:$AP$163,5,0) ->  | D34: =VLOOKUP(A34,počty!$J$6:$AP$163,6,0) ->  | E34: =VLOOKUP(A34,počty!$J$6:$AP$163,7,0) ->  | F34: =VLOOKUP(A34,počty!$J$6:$AP$163,8,0) ->  | G34: =VLOOKUP(A34,počty!$J$6:$AP$163,9,0) ->  | H34: =VLOOKUP(A34,počty!$J$6:$AP$163,11,0) ->  | I34: =VLOOKUP(A34,počty!$J$6:$AP$163,12,0) ->  | J34: =VLOOKUP(A34,počty!$J$6:$AP$163,13,0) ->  | K34: =VLOOKUP(A34,počty!$J$6:$AP$163,14,0) ->  | L34: =VLOOKUP(A34,počty!$J$6:$AP$163,15,0) ->  | M34: =VLOOKUP(A34,počty!$J$6:$AP$163,16,0) ->  | N34: =VLOOKUP(A34,počty!$J$6:$AP$163,17,0) ->  | O34: =VLOOKUP(A34,počty!$J$6:$AP$163,18,0) ->  | P34: =VLOOKUP(A34,počty!$J$6:$AP$163,19,0) -> 
A35: 29 | B35: =VLOOKUP(A35,počty!$J$6:$AP$163,20,0) ->  | C35: =VLOOKUP(A35,počty!$J$6:$AP$163,5,0) ->  | D35: =VLOOKUP(A35,počty!$J$6:$AP$163,6,0) ->  | E35: =VLOOKUP(A35,počty!$J$6:$AP$163,7,0) ->  | F35: =VLOOKUP(A35,počty!$J$6:$AP$163,8,0) ->  | G35: =VLOOKUP(A35,počty!$J$6:$AP$163,9,0) ->  | H35: =VLOOKUP(A35,počty!$J$6:$AP$163,11,0) ->  | I35: =VLOOKUP(A35,počty!$J$6:$AP$163,12,0) ->  | J35: =VLOOKUP(A35,počty!$J$6:$AP$163,13,0) ->  | K35: =VLOOKUP(A35,počty!$J$6:$AP$163,14,0) ->  | L35: =VLOOKUP(A35,počty!$J$6:$AP$163,15,0) ->  | M35: =VLOOKUP(A35,počty!$J$6:$AP$163,16,0) ->  | N35: =VLOOKUP(A35,počty!$J$6:$AP$163,17,0) ->  | O35: =VLOOKUP(A35,počty!$J$6:$AP$163,18,0) ->  | P35: =VLOOKUP(A35,počty!$J$6:$AP$163,19,0) -> 
A36: 30 | B36: =VLOOKUP(A36,počty!$J$6:$AP$163,20,0) ->  | C36: =VLOOKUP(A36,počty!$J$6:$AP$163,5,0) ->  | D36: =VLOOKUP(A36,počty!$J$6:$AP$163,6,0) ->  | E36: =VLOOKUP(A36,počty!$J$6:$AP$163,7,0) ->  | F36: =VLOOKUP(A36,počty!$J$6:$AP$163,8,0) ->  | G36: =VLOOKUP(A36,počty!$J$6:$AP$163,9,0) ->  | H36: =VLOOKUP(A36,počty!$J$6:$AP$163,11,0) ->  | I36: =VLOOKUP(A36,počty!$J$6:$AP$163,12,0) ->  | J36: =VLOOKUP(A36,počty!$J$6:$AP$163,13,0) ->  | K36: =VLOOKUP(A36,počty!$J$6:$AP$163,14,0) ->  | L36: =VLOOKUP(A36,počty!$J$6:$AP$163,15,0) ->  | M36: =VLOOKUP(A36,počty!$J$6:$AP$163,16,0) ->  | N36: =VLOOKUP(A36,počty!$J$6:$AP$163,17,0) ->  | O36: =VLOOKUP(A36,počty!$J$6:$AP$163,18,0) ->  | P36: =VLOOKUP(A36,počty!$J$6:$AP$163,19,0) -> 
A37: 31 | B37: =VLOOKUP(A37,počty!$J$6:$AP$163,20,0) ->  | C37: =VLOOKUP(A37,počty!$J$6:$AP$163,5,0) ->  | D37: =VLOOKUP(A37,počty!$J$6:$AP$163,6,0) ->  | E37: =VLOOKUP(A37,počty!$J$6:$AP$163,7,0) ->  | F37: =VLOOKUP(A37,počty!$J$6:$AP$163,8,0) ->  | G37: =VLOOKUP(A37,počty!$J$6:$AP$163,9,0) ->  | H37: =VLOOKUP(A37,počty!$J$6:$AP$163,11,0) ->  | I37: =VLOOKUP(A37,počty!$J$6:$AP$163,12,0) ->  | J37: =VLOOKUP(A37,počty!$J$6:$AP$163,13,0) ->  | K37: =VLOOKUP(A37,počty!$J$6:$AP$163,14,0) ->  | L37: =VLOOKUP(A37,počty!$J$6:$AP$163,15,0) ->  | M37: =VLOOKUP(A37,počty!$J$6:$AP$163,16,0) ->  | N37: =VLOOKUP(A37,počty!$J$6:$AP$163,17,0) ->  | O37: =VLOOKUP(A37,počty!$J$6:$AP$163,18,0) ->  | P37: =VLOOKUP(A37,počty!$J$6:$AP$163,19,0) -> 
A38: 32 | B38: =VLOOKUP(A38,počty!$J$6:$AP$163,20,0) ->  | C38: =VLOOKUP(A38,počty!$J$6:$AP$163,5,0) ->  | D38: =VLOOKUP(A38,počty!$J$6:$AP$163,6,0) ->  | E38: =VLOOKUP(A38,počty!$J$6:$AP$163,7,0) ->  | F38: =VLOOKUP(A38,počty!$J$6:$AP$163,8,0) ->  | G38: =VLOOKUP(A38,počty!$J$6:$AP$163,9,0) ->  | H38: =VLOOKUP(A38,počty!$J$6:$AP$163,11,0) ->  | I38: =VLOOKUP(A38,počty!$J$6:$AP$163,12,0) ->  | J38: =VLOOKUP(A38,počty!$J$6:$AP$163,13,0) ->  | K38: =VLOOKUP(A38,počty!$J$6:$AP$163,14,0) ->  | L38: =VLOOKUP(A38,počty!$J$6:$AP$163,15,0) ->  | M38: =VLOOKUP(A38,počty!$J$6:$AP$163,16,0) ->  | N38: =VLOOKUP(A38,počty!$J$6:$AP$163,17,0) ->  | O38: =VLOOKUP(A38,počty!$J$6:$AP$163,18,0) ->  | P38: =VLOOKUP(A38,počty!$J$6:$AP$163,19,0) -> 
A39: 33 | B39: =VLOOKUP(A39,počty!$J$6:$AP$163,20,0) ->  | C39: =VLOOKUP(A39,počty!$J$6:$AP$163,5,0) ->  | D39: =VLOOKUP(A39,počty!$J$6:$AP$163,6,0) ->  | E39: =VLOOKUP(A39,počty!$J$6:$AP$163,7,0) ->  | F39: =VLOOKUP(A39,počty!$J$6:$AP$163,8,0) ->  | G39: =VLOOKUP(A39,počty!$J$6:$AP$163,9,0) ->  | H39: =VLOOKUP(A39,počty!$J$6:$AP$163,11,0) ->  | I39: =VLOOKUP(A39,počty!$J$6:$AP$163,12,0) ->  | J39: =VLOOKUP(A39,počty!$J$6:$AP$163,13,0) ->  | K39: =VLOOKUP(A39,počty!$J$6:$AP$163,14,0) ->  | L39: =VLOOKUP(A39,počty!$J$6:$AP$163,15,0) ->  | M39: =VLOOKUP(A39,počty!$J$6:$AP$163,16,0) ->  | N39: =VLOOKUP(A39,počty!$J$6:$AP$163,17,0) ->  | O39: =VLOOKUP(A39,počty!$J$6:$AP$163,18,0) ->  | P39: =VLOOKUP(A39,počty!$J$6:$AP$163,19,0) -> 
A40: 34 | B40: =VLOOKUP(A40,počty!$J$6:$AP$163,20,0) ->  | C40: =VLOOKUP(A40,počty!$J$6:$AP$163,5,0) ->  | D40: =VLOOKUP(A40,počty!$J$6:$AP$163,6,0) ->  | E40: =VLOOKUP(A40,počty!$J$6:$AP$163,7,0) ->  | F40: =VLOOKUP(A40,počty!$J$6:$AP$163,8,0) ->  | G40: =VLOOKUP(A40,počty!$J$6:$AP$163,9,0) ->  | H40: =VLOOKUP(A40,počty!$J$6:$AP$163,11,0) ->  | I40: =VLOOKUP(A40,počty!$J$6:$AP$163,12,0) ->  | J40: =VLOOKUP(A40,počty!$J$6:$AP$163,13,0) ->  | K40: =VLOOKUP(A40,počty!$J$6:$AP$163,14,0) ->  | L40: =VLOOKUP(A40,počty!$J$6:$AP$163,15,0) ->  | M40: =VLOOKUP(A40,počty!$J$6:$AP$163,16,0) ->  | N40: =VLOOKUP(A40,počty!$J$6:$AP$163,17,0) ->  | O40: =VLOOKUP(A40,počty!$J$6:$AP$163,18,0) ->  | P40: =VLOOKUP(A40,počty!$J$6:$AP$163,19,0) -> 
A41: 35 | B41: =VLOOKUP(A41,počty!$J$6:$AP$163,20,0) ->  | C41: =VLOOKUP(A41,počty!$J$6:$AP$163,5,0) ->  | D41: =VLOOKUP(A41,počty!$J$6:$AP$163,6,0) ->  | E41: =VLOOKUP(A41,počty!$J$6:$AP$163,7,0) ->  | F41: =VLOOKUP(A41,počty!$J$6:$AP$163,8,0) ->  | G41: =VLOOKUP(A41,počty!$J$6:$AP$163,9,0) ->  | H41: =VLOOKUP(A41,počty!$J$6:$AP$163,11,0) ->  | I41: =VLOOKUP(A41,počty!$J$6:$AP$163,12,0) ->  | J41: =VLOOKUP(A41,počty!$J$6:$AP$163,13,0) ->  | K41: =VLOOKUP(A41,počty!$J$6:$AP$163,14,0) ->  | L41: =VLOOKUP(A41,počty!$J$6:$AP$163,15,0) ->  | M41: =VLOOKUP(A41,počty!$J$6:$AP$163,16,0) ->  | N41: =VLOOKUP(A41,počty!$J$6:$AP$163,17,0) ->  | O41: =VLOOKUP(A41,počty!$J$6:$AP$163,18,0) ->  | P41: =VLOOKUP(A41,počty!$J$6:$AP$163,19,0) -> 
A42: 36 | B42: =VLOOKUP(A42,počty!$J$6:$AP$163,20,0) ->  | C42: =VLOOKUP(A42,počty!$J$6:$AP$163,5,0) ->  | D42: =VLOOKUP(A42,počty!$J$6:$AP$163,6,0) ->  | E42: =VLOOKUP(A42,počty!$J$6:$AP$163,7,0) ->  | F42: =VLOOKUP(A42,počty!$J$6:$AP$163,8,0) ->  | G42: =VLOOKUP(A42,počty!$J$6:$AP$163,9,0) ->  | H42: =VLOOKUP(A42,počty!$J$6:$AP$163,11,0) ->  | I42: =VLOOKUP(A42,počty!$J$6:$AP$163,12,0) ->  | J42: =VLOOKUP(A42,počty!$J$6:$AP$163,13,0) ->  | K42: =VLOOKUP(A42,počty!$J$6:$AP$163,14,0) ->  | L42: =VLOOKUP(A42,počty!$J$6:$AP$163,15,0) ->  | M42: =VLOOKUP(A42,počty!$J$6:$AP$163,16,0) ->  | N42: =VLOOKUP(A42,počty!$J$6:$AP$163,17,0) ->  | O42: =VLOOKUP(A42,počty!$J$6:$AP$163,18,0) ->  | P42: =VLOOKUP(A42,počty!$J$6:$AP$163,19,0) -> 
A43: 37 | B43: =VLOOKUP(A43,počty!$J$6:$AP$163,20,0) ->  | C43: =VLOOKUP(A43,počty!$J$6:$AP$163,5,0) ->  | D43: =VLOOKUP(A43,počty!$J$6:$AP$163,6,0) ->  | E43: =VLOOKUP(A43,počty!$J$6:$AP$163,7,0) ->  | F43: =VLOOKUP(A43,počty!$J$6:$AP$163,8,0) ->  | G43: =VLOOKUP(A43,počty!$J$6:$AP$163,9,0) ->  | H43: =VLOOKUP(A43,počty!$J$6:$AP$163,11,0) ->  | I43: =VLOOKUP(A43,počty!$J$6:$AP$163,12,0) ->  | J43: =VLOOKUP(A43,počty!$J$6:$AP$163,13,0) ->  | K43: =VLOOKUP(A43,počty!$J$6:$AP$163,14,0) ->  | L43: =VLOOKUP(A43,počty!$J$6:$AP$163,15,0) ->  | M43: =VLOOKUP(A43,počty!$J$6:$AP$163,16,0) ->  | N43: =VLOOKUP(A43,počty!$J$6:$AP$163,17,0) ->  | O43: =VLOOKUP(A43,počty!$J$6:$AP$163,18,0) ->  | P43: =VLOOKUP(A43,počty!$J$6:$AP$163,19,0) -> 
A44: 38 | B44: =VLOOKUP(A44,počty!$J$6:$AP$163,20,0) ->  | C44: =VLOOKUP(A44,počty!$J$6:$AP$163,5,0) ->  | D44: =VLOOKUP(A44,počty!$J$6:$AP$163,6,0) ->  | E44: =VLOOKUP(A44,počty!$J$6:$AP$163,7,0) ->  | F44: =VLOOKUP(A44,počty!$J$6:$AP$163,8,0) ->  | G44: =VLOOKUP(A44,počty!$J$6:$AP$163,9,0) ->  | H44: =VLOOKUP(A44,počty!$J$6:$AP$163,11,0) ->  | I44: =VLOOKUP(A44,počty!$J$6:$AP$163,12,0) ->  | J44: =VLOOKUP(A44,počty!$J$6:$AP$163,13,0) ->  | K44: =VLOOKUP(A44,počty!$J$6:$AP$163,14,0) ->  | L44: =VLOOKUP(A44,počty!$J$6:$AP$163,15,0) ->  | M44: =VLOOKUP(A44,počty!$J$6:$AP$163,16,0) ->  | N44: =VLOOKUP(A44,počty!$J$6:$AP$163,17,0) ->  | O44: =VLOOKUP(A44,počty!$J$6:$AP$163,18,0) ->  | P44: =VLOOKUP(A44,počty!$J$6:$AP$163,19,0) -> 
A45: 39 | B45: =VLOOKUP(A45,počty!$J$6:$AP$163,20,0) ->  | C45: =VLOOKUP(A45,počty!$J$6:$AP$163,5,0) ->  | D45: =VLOOKUP(A45,počty!$J$6:$AP$163,6,0) ->  | E45: =VLOOKUP(A45,počty!$J$6:$AP$163,7,0) ->  | F45: =VLOOKUP(A45,počty!$J$6:$AP$163,8,0) ->  | G45: =VLOOKUP(A45,počty!$J$6:$AP$163,9,0) ->  | H45: =VLOOKUP(A45,počty!$J$6:$AP$163,11,0) ->  | I45: =VLOOKUP(A45,počty!$J$6:$AP$163,12,0) ->  | J45: =VLOOKUP(A45,počty!$J$6:$AP$163,13,0) ->  | K45: =VLOOKUP(A45,počty!$J$6:$AP$163,14,0) ->  | L45: =VLOOKUP(A45,počty!$J$6:$AP$163,15,0) ->  | M45: =VLOOKUP(A45,počty!$J$6:$AP$163,16,0) ->  | N45: =VLOOKUP(A45,počty!$J$6:$AP$163,17,0) ->  | O45: =VLOOKUP(A45,počty!$J$6:$AP$163,18,0) ->  | P45: =VLOOKUP(A45,počty!$J$6:$AP$163,19,0) -> 
A46: 40 | B46: =VLOOKUP(A46,počty!$J$6:$AP$163,20,0) ->  | C46: =VLOOKUP(A46,počty!$J$6:$AP$163,5,0) ->  | D46: =VLOOKUP(A46,počty!$J$6:$AP$163,6,0) ->  | E46: =VLOOKUP(A46,počty!$J$6:$AP$163,7,0) ->  | F46: =VLOOKUP(A46,počty!$J$6:$AP$163,8,0) ->  | G46: =VLOOKUP(A46,počty!$J$6:$AP$163,9,0) ->  | H46: =VLOOKUP(A46,počty!$J$6:$AP$163,11,0) ->  | I46: =VLOOKUP(A46,počty!$J$6:$AP$163,12,0) ->  | J46: =VLOOKUP(A46,počty!$J$6:$AP$163,13,0) ->  | K46: =VLOOKUP(A46,počty!$J$6:$AP$163,14,0) ->  | L46: =VLOOKUP(A46,počty!$J$6:$AP$163,15,0) ->  | M46: =VLOOKUP(A46,počty!$J$6:$AP$163,16,0) ->  | N46: =VLOOKUP(A46,počty!$J$6:$AP$163,17,0) ->  | O46: =VLOOKUP(A46,počty!$J$6:$AP$163,18,0) ->  | P46: =VLOOKUP(A46,počty!$J$6:$AP$163,19,0) -> 
A47: 41 | B47: =VLOOKUP(A47,počty!$J$6:$AP$163,20,0) ->  | C47: =VLOOKUP(A47,počty!$J$6:$AP$163,5,0) ->  | D47: =VLOOKUP(A47,počty!$J$6:$AP$163,6,0) ->  | E47: =VLOOKUP(A47,počty!$J$6:$AP$163,7,0) ->  | F47: =VLOOKUP(A47,počty!$J$6:$AP$163,8,0) ->  | G47: =VLOOKUP(A47,počty!$J$6:$AP$163,9,0) ->  | H47: =VLOOKUP(A47,počty!$J$6:$AP$163,11,0) ->  | I47: =VLOOKUP(A47,počty!$J$6:$AP$163,12,0) ->  | J47: =VLOOKUP(A47,počty!$J$6:$AP$163,13,0) ->  | K47: =VLOOKUP(A47,počty!$J$6:$AP$163,14,0) ->  | L47: =VLOOKUP(A47,počty!$J$6:$AP$163,15,0) ->  | M47: =VLOOKUP(A47,počty!$J$6:$AP$163,16,0) ->  | N47: =VLOOKUP(A47,počty!$J$6:$AP$163,17,0) ->  | O47: =VLOOKUP(A47,počty!$J$6:$AP$163,18,0) ->  | P47: =VLOOKUP(A47,počty!$J$6:$AP$163,19,0) -> 
A48: 42 | B48: =VLOOKUP(A48,počty!$J$6:$AP$163,20,0) ->  | C48: =VLOOKUP(A48,počty!$J$6:$AP$163,5,0) ->  | D48: =VLOOKUP(A48,počty!$J$6:$AP$163,6,0) ->  | E48: =VLOOKUP(A48,počty!$J$6:$AP$163,7,0) ->  | F48: =VLOOKUP(A48,počty!$J$6:$AP$163,8,0) ->  | G48: =VLOOKUP(A48,počty!$J$6:$AP$163,9,0) ->  | H48: =VLOOKUP(A48,počty!$J$6:$AP$163,11,0) ->  | I48: =VLOOKUP(A48,počty!$J$6:$AP$163,12,0) ->  | J48: =VLOOKUP(A48,počty!$J$6:$AP$163,13,0) ->  | K48: =VLOOKUP(A48,počty!$J$6:$AP$163,14,0) ->  | L48: =VLOOKUP(A48,počty!$J$6:$AP$163,15,0) ->  | M48: =VLOOKUP(A48,počty!$J$6:$AP$163,16,0) ->  | N48: =VLOOKUP(A48,počty!$J$6:$AP$163,17,0) ->  | O48: =VLOOKUP(A48,počty!$J$6:$AP$163,18,0) ->  | P48: =VLOOKUP(A48,počty!$J$6:$AP$163,19,0) -> 
A49: 43 | B49: =VLOOKUP(A49,počty!$J$6:$AP$163,20,0) ->  | C49: =VLOOKUP(A49,počty!$J$6:$AP$163,5,0) ->  | D49: =VLOOKUP(A49,počty!$J$6:$AP$163,6,0) ->  | E49: =VLOOKUP(A49,počty!$J$6:$AP$163,7,0) ->  | F49: =VLOOKUP(A49,počty!$J$6:$AP$163,8,0) ->  | G49: =VLOOKUP(A49,počty!$J$6:$AP$163,9,0) ->  | H49: =VLOOKUP(A49,počty!$J$6:$AP$163,11,0) ->  | I49: =VLOOKUP(A49,počty!$J$6:$AP$163,12,0) ->  | J49: =VLOOKUP(A49,počty!$J$6:$AP$163,13,0) ->  | K49: =VLOOKUP(A49,počty!$J$6:$AP$163,14,0) ->  | L49: =VLOOKUP(A49,počty!$J$6:$AP$163,15,0) ->  | M49: =VLOOKUP(A49,počty!$J$6:$AP$163,16,0) ->  | N49: =VLOOKUP(A49,počty!$J$6:$AP$163,17,0) ->  | O49: =VLOOKUP(A49,počty!$J$6:$AP$163,18,0) ->  | P49: =VLOOKUP(A49,počty!$J$6:$AP$163,19,0) -> 
A50: 44 | B50: =VLOOKUP(A50,počty!$J$6:$AP$163,20,0) ->  | C50: =VLOOKUP(A50,počty!$J$6:$AP$163,5,0) ->  | D50: =VLOOKUP(A50,počty!$J$6:$AP$163,6,0) ->  | E50: =VLOOKUP(A50,počty!$J$6:$AP$163,7,0) ->  | F50: =VLOOKUP(A50,počty!$J$6:$AP$163,8,0) ->  | G50: =VLOOKUP(A50,počty!$J$6:$AP$163,9,0) ->  | H50: =VLOOKUP(A50,počty!$J$6:$AP$163,11,0) ->  | I50: =VLOOKUP(A50,počty!$J$6:$AP$163,12,0) ->  | J50: =VLOOKUP(A50,počty!$J$6:$AP$163,13,0) ->  | K50: =VLOOKUP(A50,počty!$J$6:$AP$163,14,0) ->  | L50: =VLOOKUP(A50,počty!$J$6:$AP$163,15,0) ->  | M50: =VLOOKUP(A50,počty!$J$6:$AP$163,16,0) ->  | N50: =VLOOKUP(A50,počty!$J$6:$AP$163,17,0) ->  | O50: =VLOOKUP(A50,počty!$J$6:$AP$163,18,0) ->  | P50: =VLOOKUP(A50,počty!$J$6:$AP$163,19,0) -> 
A51: 45 | B51: =VLOOKUP(A51,počty!$J$6:$AP$163,20,0) ->  | C51: =VLOOKUP(A51,počty!$J$6:$AP$163,5,0) ->  | D51: =VLOOKUP(A51,počty!$J$6:$AP$163,6,0) ->  | E51: =VLOOKUP(A51,počty!$J$6:$AP$163,7,0) ->  | F51: =VLOOKUP(A51,počty!$J$6:$AP$163,8,0) ->  | G51: =VLOOKUP(A51,počty!$J$6:$AP$163,9,0) ->  | H51: =VLOOKUP(A51,počty!$J$6:$AP$163,11,0) ->  | I51: =VLOOKUP(A51,počty!$J$6:$AP$163,12,0) ->  | J51: =VLOOKUP(A51,počty!$J$6:$AP$163,13,0) ->  | K51: =VLOOKUP(A51,počty!$J$6:$AP$163,14,0) ->  | L51: =VLOOKUP(A51,počty!$J$6:$AP$163,15,0) ->  | M51: =VLOOKUP(A51,počty!$J$6:$AP$163,16,0) ->  | N51: =VLOOKUP(A51,počty!$J$6:$AP$163,17,0) ->  | O51: =VLOOKUP(A51,počty!$J$6:$AP$163,18,0) ->  | P51: =VLOOKUP(A51,počty!$J$6:$AP$163,19,0) -> 
A52: 46 | B52: =VLOOKUP(A52,počty!$J$6:$AP$163,20,0) ->  | C52: =VLOOKUP(A52,počty!$J$6:$AP$163,5,0) ->  | D52: =VLOOKUP(A52,počty!$J$6:$AP$163,6,0) ->  | E52: =VLOOKUP(A52,počty!$J$6:$AP$163,7,0) ->  | F52: =VLOOKUP(A52,počty!$J$6:$AP$163,8,0) ->  | G52: =VLOOKUP(A52,počty!$J$6:$AP$163,9,0) ->  | H52: =VLOOKUP(A52,počty!$J$6:$AP$163,11,0) ->  | I52: =VLOOKUP(A52,počty!$J$6:$AP$163,12,0) ->  | J52: =VLOOKUP(A52,počty!$J$6:$AP$163,13,0) ->  | K52: =VLOOKUP(A52,počty!$J$6:$AP$163,14,0) ->  | L52: =VLOOKUP(A52,počty!$J$6:$AP$163,15,0) ->  | M52: =VLOOKUP(A52,počty!$J$6:$AP$163,16,0) ->  | N52: =VLOOKUP(A52,počty!$J$6:$AP$163,17,0) ->  | O52: =VLOOKUP(A52,počty!$J$6:$AP$163,18,0) ->  | P52: =VLOOKUP(A52,počty!$J$6:$AP$163,19,0) -> 
A53: 47 | B53: =VLOOKUP(A53,počty!$J$6:$AP$163,20,0) ->  | C53: =VLOOKUP(A53,počty!$J$6:$AP$163,5,0) ->  | D53: =VLOOKUP(A53,počty!$J$6:$AP$163,6,0) ->  | E53: =VLOOKUP(A53,počty!$J$6:$AP$163,7,0) ->  | F53: =VLOOKUP(A53,počty!$J$6:$AP$163,8,0) ->  | G53: =VLOOKUP(A53,počty!$J$6:$AP$163,9,0) ->  | H53: =VLOOKUP(A53,počty!$J$6:$AP$163,11,0) ->  | I53: =VLOOKUP(A53,počty!$J$6:$AP$163,12,0) ->  | J53: =VLOOKUP(A53,počty!$J$6:$AP$163,13,0) ->  | K53: =VLOOKUP(A53,počty!$J$6:$AP$163,14,0) ->  | L53: =VLOOKUP(A53,počty!$J$6:$AP$163,15,0) ->  | M53: =VLOOKUP(A53,počty!$J$6:$AP$163,16,0) ->  | N53: =VLOOKUP(A53,počty!$J$6:$AP$163,17,0) ->  | O53: =VLOOKUP(A53,počty!$J$6:$AP$163,18,0) ->  | P53: =VLOOKUP(A53,počty!$J$6:$AP$163,19,0) -> 
A54: 48 | B54: =VLOOKUP(A54,počty!$J$6:$AP$163,20,0) ->  | C54: =VLOOKUP(A54,počty!$J$6:$AP$163,5,0) ->  | D54: =VLOOKUP(A54,počty!$J$6:$AP$163,6,0) ->  | E54: =VLOOKUP(A54,počty!$J$6:$AP$163,7,0) ->  | F54: =VLOOKUP(A54,počty!$J$6:$AP$163,8,0) ->  | G54: =VLOOKUP(A54,počty!$J$6:$AP$163,9,0) ->  | H54: =VLOOKUP(A54,počty!$J$6:$AP$163,11,0) ->  | I54: =VLOOKUP(A54,počty!$J$6:$AP$163,12,0) ->  | J54: =VLOOKUP(A54,počty!$J$6:$AP$163,13,0) ->  | K54: =VLOOKUP(A54,počty!$J$6:$AP$163,14,0) ->  | L54: =VLOOKUP(A54,počty!$J$6:$AP$163,15,0) ->  | M54: =VLOOKUP(A54,počty!$J$6:$AP$163,16,0) ->  | N54: =VLOOKUP(A54,počty!$J$6:$AP$163,17,0) ->  | O54: =VLOOKUP(A54,počty!$J$6:$AP$163,18,0) ->  | P54: =VLOOKUP(A54,počty!$J$6:$AP$163,19,0) -> 
A55: 49 | B55: =VLOOKUP(A55,počty!$J$6:$AP$163,20,0) ->  | C55: =VLOOKUP(A55,počty!$J$6:$AP$163,5,0) ->  | D55: =VLOOKUP(A55,počty!$J$6:$AP$163,6,0) ->  | E55: =VLOOKUP(A55,počty!$J$6:$AP$163,7,0) ->  | F55: =VLOOKUP(A55,počty!$J$6:$AP$163,8,0) ->  | G55: =VLOOKUP(A55,počty!$J$6:$AP$163,9,0) ->  | H55: =VLOOKUP(A55,počty!$J$6:$AP$163,11,0) ->  | I55: =VLOOKUP(A55,počty!$J$6:$AP$163,12,0) ->  | J55: =VLOOKUP(A55,počty!$J$6:$AP$163,13,0) ->  | K55: =VLOOKUP(A55,počty!$J$6:$AP$163,14,0) ->  | L55: =VLOOKUP(A55,počty!$J$6:$AP$163,15,0) ->  | M55: =VLOOKUP(A55,počty!$J$6:$AP$163,16,0) ->  | N55: =VLOOKUP(A55,počty!$J$6:$AP$163,17,0) ->  | O55: =VLOOKUP(A55,počty!$J$6:$AP$163,18,0) ->  | P55: =VLOOKUP(A55,počty!$J$6:$AP$163,19,0) -> 
A56: 50 | B56: =VLOOKUP(A56,počty!$J$6:$AP$163,20,0) ->  | C56: =VLOOKUP(A56,počty!$J$6:$AP$163,5,0) ->  | D56: =VLOOKUP(A56,počty!$J$6:$AP$163,6,0) ->  | E56: =VLOOKUP(A56,počty!$J$6:$AP$163,7,0) ->  | F56: =VLOOKUP(A56,počty!$J$6:$AP$163,8,0) ->  | G56: =VLOOKUP(A56,počty!$J$6:$AP$163,9,0) ->  | H56: =VLOOKUP(A56,počty!$J$6:$AP$163,11,0) ->  | I56: =VLOOKUP(A56,počty!$J$6:$AP$163,12,0) ->  | J56: =VLOOKUP(A56,počty!$J$6:$AP$163,13,0) ->  | K56: =VLOOKUP(A56,počty!$J$6:$AP$163,14,0) ->  | L56: =VLOOKUP(A56,počty!$J$6:$AP$163,15,0) ->  | M56: =VLOOKUP(A56,počty!$J$6:$AP$163,16,0) ->  | N56: =VLOOKUP(A56,počty!$J$6:$AP$163,17,0) ->  | O56: =VLOOKUP(A56,počty!$J$6:$AP$163,18,0) ->  | P56: =VLOOKUP(A56,počty!$J$6:$AP$163,19,0) -> 
A57: 51 | B57: =VLOOKUP(A57,počty!$J$6:$AP$163,20,0) ->  | C57: =VLOOKUP(A57,počty!$J$6:$AP$163,5,0) ->  | D57: =VLOOKUP(A57,počty!$J$6:$AP$163,6,0) ->  | E57: =VLOOKUP(A57,počty!$J$6:$AP$163,7,0) ->  | F57: =VLOOKUP(A57,počty!$J$6:$AP$163,8,0) ->  | G57: =VLOOKUP(A57,počty!$J$6:$AP$163,9,0) ->  | H57: =VLOOKUP(A57,počty!$J$6:$AP$163,11,0) ->  | I57: =VLOOKUP(A57,počty!$J$6:$AP$163,12,0) ->  | J57: =VLOOKUP(A57,počty!$J$6:$AP$163,13,0) ->  | K57: =VLOOKUP(A57,počty!$J$6:$AP$163,14,0) ->  | L57: =VLOOKUP(A57,počty!$J$6:$AP$163,15,0) ->  | M57: =VLOOKUP(A57,počty!$J$6:$AP$163,16,0) ->  | N57: =VLOOKUP(A57,počty!$J$6:$AP$163,17,0) ->  | O57: =VLOOKUP(A57,počty!$J$6:$AP$163,18,0) ->  | P57: =VLOOKUP(A57,počty!$J$6:$AP$163,19,0) -> 
A58: 52 | B58: =VLOOKUP(A58,počty!$J$6:$AP$163,20,0) ->  | C58: =VLOOKUP(A58,počty!$J$6:$AP$163,5,0) ->  | D58: =VLOOKUP(A58,počty!$J$6:$AP$163,6,0) ->  | E58: =VLOOKUP(A58,počty!$J$6:$AP$163,7,0) ->  | F58: =VLOOKUP(A58,počty!$J$6:$AP$163,8,0) ->  | G58: =VLOOKUP(A58,počty!$J$6:$AP$163,9,0) ->  | H58: =VLOOKUP(A58,počty!$J$6:$AP$163,11,0) ->  | I58: =VLOOKUP(A58,počty!$J$6:$AP$163,12,0) ->  | J58: =VLOOKUP(A58,počty!$J$6:$AP$163,13,0) ->  | K58: =VLOOKUP(A58,počty!$J$6:$AP$163,14,0) ->  | L58: =VLOOKUP(A58,počty!$J$6:$AP$163,15,0) ->  | M58: =VLOOKUP(A58,počty!$J$6:$AP$163,16,0) ->  | N58: =VLOOKUP(A58,počty!$J$6:$AP$163,17,0) ->  | O58: =VLOOKUP(A58,počty!$J$6:$AP$163,18,0) ->  | P58: =VLOOKUP(A58,počty!$J$6:$AP$163,19,0) -> 
A59: 53 | B59: =VLOOKUP(A59,počty!$J$6:$AP$163,20,0) ->  | C59: =VLOOKUP(A59,počty!$J$6:$AP$163,5,0) ->  | D59: =VLOOKUP(A59,počty!$J$6:$AP$163,6,0) ->  | E59: =VLOOKUP(A59,počty!$J$6:$AP$163,7,0) ->  | F59: =VLOOKUP(A59,počty!$J$6:$AP$163,8,0) ->  | G59: =VLOOKUP(A59,počty!$J$6:$AP$163,9,0) ->  | H59: =VLOOKUP(A59,počty!$J$6:$AP$163,11,0) ->  | I59: =VLOOKUP(A59,počty!$J$6:$AP$163,12,0) ->  | J59: =VLOOKUP(A59,počty!$J$6:$AP$163,13,0) ->  | K59: =VLOOKUP(A59,počty!$J$6:$AP$163,14,0) ->  | L59: =VLOOKUP(A59,počty!$J$6:$AP$163,15,0) ->  | M59: =VLOOKUP(A59,počty!$J$6:$AP$163,16,0) ->  | N59: =VLOOKUP(A59,počty!$J$6:$AP$163,17,0) ->  | O59: =VLOOKUP(A59,počty!$J$6:$AP$163,18,0) ->  | P59: =VLOOKUP(A59,počty!$J$6:$AP$163,19,0) -> 
A60: 54 | B60: =VLOOKUP(A60,počty!$J$6:$AP$163,20,0) ->  | C60: =VLOOKUP(A60,počty!$J$6:$AP$163,5,0) ->  | D60: =VLOOKUP(A60,počty!$J$6:$AP$163,6,0) ->  | E60: =VLOOKUP(A60,počty!$J$6:$AP$163,7,0) ->  | F60: =VLOOKUP(A60,počty!$J$6:$AP$163,8,0) ->  | G60: =VLOOKUP(A60,počty!$J$6:$AP$163,9,0) ->  | H60: =VLOOKUP(A60,počty!$J$6:$AP$163,11,0) ->  | I60: =VLOOKUP(A60,počty!$J$6:$AP$163,12,0) ->  | J60: =VLOOKUP(A60,počty!$J$6:$AP$163,13,0) ->  | K60: =VLOOKUP(A60,počty!$J$6:$AP$163,14,0) ->  | L60: =VLOOKUP(A60,počty!$J$6:$AP$163,15,0) ->  | M60: =VLOOKUP(A60,počty!$J$6:$AP$163,16,0) ->  | N60: =VLOOKUP(A60,počty!$J$6:$AP$163,17,0) ->  | O60: =VLOOKUP(A60,počty!$J$6:$AP$163,18,0) ->  | P60: =VLOOKUP(A60,počty!$J$6:$AP$163,19,0) -> 
A61: 55 | B61: =VLOOKUP(A61,počty!$J$6:$AP$163,20,0) ->  | C61: =VLOOKUP(A61,počty!$J$6:$AP$163,5,0) ->  | D61: =VLOOKUP(A61,počty!$J$6:$AP$163,6,0) ->  | E61: =VLOOKUP(A61,počty!$J$6:$AP$163,7,0) ->  | F61: =VLOOKUP(A61,počty!$J$6:$AP$163,8,0) ->  | G61: =VLOOKUP(A61,počty!$J$6:$AP$163,9,0) ->  | H61: =VLOOKUP(A61,počty!$J$6:$AP$163,11,0) ->  | I61: =VLOOKUP(A61,počty!$J$6:$AP$163,12,0) ->  | J61: =VLOOKUP(A61,počty!$J$6:$AP$163,13,0) ->  | K61: =VLOOKUP(A61,počty!$J$6:$AP$163,14,0) ->  | L61: =VLOOKUP(A61,počty!$J$6:$AP$163,15,0) ->  | M61: =VLOOKUP(A61,počty!$J$6:$AP$163,16,0) ->  | N61: =VLOOKUP(A61,počty!$J$6:$AP$163,17,0) ->  | O61: =VLOOKUP(A61,počty!$J$6:$AP$163,18,0) ->  | P61: =VLOOKUP(A61,počty!$J$6:$AP$163,19,0) -> 
A62: 56 | B62: =VLOOKUP(A62,počty!$J$6:$AP$163,20,0) ->  | C62: =VLOOKUP(A62,počty!$J$6:$AP$163,5,0) ->  | D62: =VLOOKUP(A62,počty!$J$6:$AP$163,6,0) ->  | E62: =VLOOKUP(A62,počty!$J$6:$AP$163,7,0) ->  | F62: =VLOOKUP(A62,počty!$J$6:$AP$163,8,0) ->  | G62: =VLOOKUP(A62,počty!$J$6:$AP$163,9,0) ->  | H62: =VLOOKUP(A62,počty!$J$6:$AP$163,11,0) ->  | I62: =VLOOKUP(A62,počty!$J$6:$AP$163,12,0) ->  | J62: =VLOOKUP(A62,počty!$J$6:$AP$163,13,0) ->  | K62: =VLOOKUP(A62,počty!$J$6:$AP$163,14,0) ->  | L62: =VLOOKUP(A62,počty!$J$6:$AP$163,15,0) ->  | M62: =VLOOKUP(A62,počty!$J$6:$AP$163,16,0) ->  | N62: =VLOOKUP(A62,počty!$J$6:$AP$163,17,0) ->  | O62: =VLOOKUP(A62,počty!$J$6:$AP$163,18,0) ->  | P62: =VLOOKUP(A62,počty!$J$6:$AP$163,19,0) -> 
A63: 57 | B63: =VLOOKUP(A63,počty!$J$6:$AP$163,20,0) ->  | C63: =VLOOKUP(A63,počty!$J$6:$AP$163,5,0) ->  | D63: =VLOOKUP(A63,počty!$J$6:$AP$163,6,0) ->  | E63: =VLOOKUP(A63,počty!$J$6:$AP$163,7,0) ->  | F63: =VLOOKUP(A63,počty!$J$6:$AP$163,8,0) ->  | G63: =VLOOKUP(A63,počty!$J$6:$AP$163,9,0) ->  | H63: =VLOOKUP(A63,počty!$J$6:$AP$163,11,0) ->  | I63: =VLOOKUP(A63,počty!$J$6:$AP$163,12,0) ->  | J63: =VLOOKUP(A63,počty!$J$6:$AP$163,13,0) ->  | K63: =VLOOKUP(A63,počty!$J$6:$AP$163,14,0) ->  | L63: =VLOOKUP(A63,počty!$J$6:$AP$163,15,0) ->  | M63: =VLOOKUP(A63,počty!$J$6:$AP$163,16,0) ->  | N63: =VLOOKUP(A63,počty!$J$6:$AP$163,17,0) ->  | O63: =VLOOKUP(A63,počty!$J$6:$AP$163,18,0) ->  | P63: =VLOOKUP(A63,počty!$J$6:$AP$163,19,0) -> 
A64: 58 | B64: =VLOOKUP(A64,počty!$J$6:$AP$163,20,0) ->  | C64: =VLOOKUP(A64,počty!$J$6:$AP$163,5,0) ->  | D64: =VLOOKUP(A64,počty!$J$6:$AP$163,6,0) ->  | E64: =VLOOKUP(A64,počty!$J$6:$AP$163,7,0) ->  | F64: =VLOOKUP(A64,počty!$J$6:$AP$163,8,0) ->  | G64: =VLOOKUP(A64,počty!$J$6:$AP$163,9,0) ->  | H64: =VLOOKUP(A64,počty!$J$6:$AP$163,11,0) ->  | I64: =VLOOKUP(A64,počty!$J$6:$AP$163,12,0) ->  | J64: =VLOOKUP(A64,počty!$J$6:$AP$163,13,0) ->  | K64: =VLOOKUP(A64,počty!$J$6:$AP$163,14,0) ->  | L64: =VLOOKUP(A64,počty!$J$6:$AP$163,15,0) ->  | M64: =VLOOKUP(A64,počty!$J$6:$AP$163,16,0) ->  | N64: =VLOOKUP(A64,počty!$J$6:$AP$163,17,0) ->  | O64: =VLOOKUP(A64,počty!$J$6:$AP$163,18,0) ->  | P64: =VLOOKUP(A64,počty!$J$6:$AP$163,19,0) -> 
A65: 59 | B65: =VLOOKUP(A65,počty!$J$6:$AP$163,20,0) ->  | C65: =VLOOKUP(A65,počty!$J$6:$AP$163,5,0) ->  | D65: =VLOOKUP(A65,počty!$J$6:$AP$163,6,0) ->  | E65: =VLOOKUP(A65,počty!$J$6:$AP$163,7,0) ->  | F65: =VLOOKUP(A65,počty!$J$6:$AP$163,8,0) ->  | G65: =VLOOKUP(A65,počty!$J$6:$AP$163,9,0) ->  | H65: =VLOOKUP(A65,počty!$J$6:$AP$163,11,0) ->  | I65: =VLOOKUP(A65,počty!$J$6:$AP$163,12,0) ->  | J65: =VLOOKUP(A65,počty!$J$6:$AP$163,13,0) ->  | K65: =VLOOKUP(A65,počty!$J$6:$AP$163,14,0) ->  | L65: =VLOOKUP(A65,počty!$J$6:$AP$163,15,0) ->  | M65: =VLOOKUP(A65,počty!$J$6:$AP$163,16,0) ->  | N65: =VLOOKUP(A65,počty!$J$6:$AP$163,17,0) ->  | O65: =VLOOKUP(A65,počty!$J$6:$AP$163,18,0) ->  | P65: =VLOOKUP(A65,počty!$J$6:$AP$163,19,0) -> 
A66: 60 | B66: =VLOOKUP(A66,počty!$J$6:$AP$163,20,0) ->  | C66: =VLOOKUP(A66,počty!$J$6:$AP$163,5,0) ->  | D66: =VLOOKUP(A66,počty!$J$6:$AP$163,6,0) ->  | E66: =VLOOKUP(A66,počty!$J$6:$AP$163,7,0) ->  | F66: =VLOOKUP(A66,počty!$J$6:$AP$163,8,0) ->  | G66: =VLOOKUP(A66,počty!$J$6:$AP$163,9,0) ->  | H66: =VLOOKUP(A66,počty!$J$6:$AP$163,11,0) ->  | I66: =VLOOKUP(A66,počty!$J$6:$AP$163,12,0) ->  | J66: =VLOOKUP(A66,počty!$J$6:$AP$163,13,0) ->  | K66: =VLOOKUP(A66,počty!$J$6:$AP$163,14,0) ->  | L66: =VLOOKUP(A66,počty!$J$6:$AP$163,15,0) ->  | M66: =VLOOKUP(A66,počty!$J$6:$AP$163,16,0) ->  | N66: =VLOOKUP(A66,počty!$J$6:$AP$163,17,0) ->  | O66: =VLOOKUP(A66,počty!$J$6:$AP$163,18,0) ->  | P66: =VLOOKUP(A66,počty!$J$6:$AP$163,19,0) -> 

Sheet obrac
C1: Startovní listina pro 2. kolo | G1: =CONCATENATE("K ",hlavicka!C6) -> K 13 | M1: =+hlavicka!C11 -> Žáci U10M 2017-2016
C2: =+vyslSL!B2 -> Český pohár žactva ve skoku na lyžích - 9/SL | M2: =+vyslSL!Q2 -> dne: 21.11.2015
C3: =+vyslSL!B3 -> skok.můstek: K 13 | M3: =+vyslSL!Q3 -> LSK Lomnice
C4: =+vyslSL!B4 -> certifikát můstku č.135/C35/SL pl. do | M4: =+vyslSL!Q4 -> K = 60 b. +/- 6 b./m
B5: st. | C5: st.č. | D5: jméno | E5: klub | F5: stát | G5: rok | H5: m | I5: body | L5: poř. | M5: 2.skok
B6: poř. | I6: metry | J6: styl | K6: celk.
A7: =MAX(počty!AS6:AS65) -> 5 | B7: =1+$A$7-A7 -> 1 | C7: =VLOOKUP(A7,počty!$J$6:$AP$163,5,0) -> 23 | D7: =VLOOKUP(A7,počty!$J$6:$AP$163,6,0) -> Břečka Matyáš | E7: =VLOOKUP(A7,počty!$J$6:$AP$163,7,0) -> Lyžařský sportovní klub Lomnice nad Popelkou | F7: =VLOOKUP(A7,počty!$J$6:$AP$163,8,0) -> CZE | G7: =VLOOKUP(A7,počty!$J$6:$AP$163,9,0) -> 2014 | H7: =VLOOKUP(A7,počty!$J$6:$AP$163,11,0) -> 11 | I7: =VLOOKUP(A7,počty!$J$6:$AP$163,17,0) -> 48 | J7: =VLOOKUP(A7,počty!$J$6:$AP$163,18,0) -> 41.5 | K7: =VLOOKUP(A7,počty!$J$6:$AP$163,19,0) -> 89.5 | L7: =VLOOKUP(A7,počty!$J$6:$AP$163,20,0) -> 5
A8: =+A7-1 -> 4 | B8: =1+$A$7-A8 -> 2 | C8: =VLOOKUP(A8,počty!$J$6:$AP$163,5,0) -> 25 | D8: =VLOOKUP(A8,počty!$J$6:$AP$163,6,0) -> Ježek Jakub | E8: =VLOOKUP(A8,počty!$J$6:$AP$163,7,0) -> Lyžařský sportovní klub Lomnice nad Popelkou | F8: =VLOOKUP(A8,počty!$J$6:$AP$163,8,0) -> CZE | G8: =VLOOKUP(A8,počty!$J$6:$AP$163,9,0) -> 2015 | H8: =VLOOKUP(A8,počty!$J$6:$AP$163,11,0) -> 11 | I8: =VLOOKUP(A8,počty!$J$6:$AP$163,17,0) -> 48 | J8: =VLOOKUP(A8,počty!$J$6:$AP$163,18,0) -> 42 | K8: =VLOOKUP(A8,počty!$J$6:$AP$163,19,0) -> 90 | L8: =VLOOKUP(A8,počty!$J$6:$AP$163,20,0) -> 4
A9: =+A8-1 -> 3 | B9: 3 | C9: =VLOOKUP(A9,počty!$J$6:$AP$163,5,0) -> 24 | D9: =VLOOKUP(A9,počty!$J$6:$AP$163,6,0) -> Huráňová Karolína | E9: =VLOOKUP(A9,počty!$J$6:$AP$163,7,0) -> Lyžařský sportovní klub Lomnice nad Popelkou | F9: =VLOOKUP(A9,počty!$J$6:$AP$163,8,0) -> CZE | G9: =VLOOKUP(A9,počty!$J$6:$AP$163,9,0) -> 2015 | H9: =VLOOKUP(A9,počty!$J$6:$AP$163,11,0) -> 11.5 | I9: =VLOOKUP(A9,počty!$J$6:$AP$163,17,0) -> 51 | J9: =VLOOKUP(A9,počty!$J$6:$AP$163,18,0) -> 43 | K9: =VLOOKUP(A9,počty!$J$6:$AP$163,19,0) -> 94 | L9: =VLOOKUP(A9,počty!$J$6:$AP$163,20,0) -> 3
A10: 2 | B10: 4 | C10: =VLOOKUP(A10,počty!$J$6:$AP$163,5,0) -> 13 | D10: =VLOOKUP(A10,počty!$J$6:$AP$163,6,0) -> Zapadlová Sára | E10: =VLOOKUP(A10,počty!$J$6:$AP$163,7,0) -> Lyžařský sportovní klub Lomnice nad Popelkou | F10: =VLOOKUP(A10,počty!$J$6:$AP$163,8,0) -> CZE | G10: =VLOOKUP(A10,počty!$J$6:$AP$163,9,0) -> 2016 | H10: =VLOOKUP(A10,počty!$J$6:$AP$163,11,0) -> 11.5 | I10: =VLOOKUP(A10,počty!$J$6:$AP$163,17,0) -> 51 | J10: =VLOOKUP(A10,počty!$J$6:$AP$163,18,0) -> 44.5 | K10: =VLOOKUP(A10,počty!$J$6:$AP$163,19,0) -> 95.5 | L10: =VLOOKUP(A10,počty!$J$6:$AP$163,20,0) -> 1
A11: 1 | B11: 5 | C11: =VLOOKUP(A11,počty!$J$6:$AP$163,5,0) -> 22 | D11: =VLOOKUP(A11,počty!$J$6:$AP$163,6,0) -> Sankot Antonín | E11: =VLOOKUP(A11,počty!$J$6:$AP$163,7,0) -> Lyžařský sportovní klub Lomnice nad Popelkou | F11: =VLOOKUP(A11,počty!$J$6:$AP$163,8,0) -> CZE | G11: =VLOOKUP(A11,počty!$J$6:$AP$163,9,0) -> 2017 | H11: =VLOOKUP(A11,počty!$J$6:$AP$163,11,0) -> 12 | I11: =VLOOKUP(A11,počty!$J$6:$AP$163,17,0) -> 54 | J11: =VLOOKUP(A11,počty!$J$6:$AP$163,18,0) -> 41.5 | K11: =VLOOKUP(A11,počty!$J$6:$AP$163,19,0) -> 95.5 | L11: =VLOOKUP(A11,počty!$J$6:$AP$163,20,0) -> 1
A12: 0 | B12: 6 | C12: =VLOOKUP(A12,počty!$J$6:$AP$163,5,0) ->  | D12: =VLOOKUP(A12,počty!$J$6:$AP$163,6,0) ->  | E12: =VLOOKUP(A12,počty!$J$6:$AP$163,7,0) ->  | F12: =VLOOKUP(A12,počty!$J$6:$AP$163,8,0) ->  | G12: =VLOOKUP(A12,počty!$J$6:$AP$163,9,0) ->  | H12: =VLOOKUP(A12,počty!$J$6:$AP$163,11,0) ->  | I12: =VLOOKUP(A12,počty!$J$6:$AP$163,17,0) ->  | J12: =VLOOKUP(A12,počty!$J$6:$AP$163,18,0) ->  | K12: =VLOOKUP(A12,počty!$J$6:$AP$163,19,0) ->  | L12: =VLOOKUP(A12,počty!$J$6:$AP$163,20,0) -> 
A13: -1 | B13: 7 | C13: =VLOOKUP(A13,počty!$J$6:$AP$163,5,0) ->  | D13: =VLOOKUP(A13,počty!$J$6:$AP$163,6,0) ->  | E13: =VLOOKUP(A13,počty!$J$6:$AP$163,7,0) ->  | F13: =VLOOKUP(A13,počty!$J$6:$AP$163,8,0) ->  | G13: =VLOOKUP(A13,počty!$J$6:$AP$163,9,0) ->  | H13: =VLOOKUP(A13,počty!$J$6:$AP$163,11,0) ->  | I13: =VLOOKUP(A13,počty!$J$6:$AP$163,17,0) ->  | J13: =VLOOKUP(A13,počty!$J$6:$AP$163,18,0) ->  | K13: =VLOOKUP(A13,počty!$J$6:$AP$163,19,0) ->  | L13: =VLOOKUP(A13,počty!$J$6:$AP$163,20,0) -> 
A14: -2 | B14: 8 | C14: =VLOOKUP(A14,počty!$J$6:$AP$163,5,0) ->  | D14: =VLOOKUP(A14,počty!$J$6:$AP$163,6,0) ->  | E14: =VLOOKUP(A14,počty!$J$6:$AP$163,7,0) ->  | F14: =VLOOKUP(A14,počty!$J$6:$AP$163,8,0) ->  | G14: =VLOOKUP(A14,počty!$J$6:$AP$163,9,0) ->  | H14: =VLOOKUP(A14,počty!$J$6:$AP$163,11,0) ->  | I14: =VLOOKUP(A14,počty!$J$6:$AP$163,17,0) ->  | J14: =VLOOKUP(A14,počty!$J$6:$AP$163,18,0) ->  | K14: =VLOOKUP(A14,počty!$J$6:$AP$163,19,0) ->  | L14: =VLOOKUP(A14,počty!$J$6:$AP$163,20,0) -> 
A15: -3 | B15: 9 | C15: =VLOOKUP(A15,počty!$J$6:$AP$163,5,0) ->  | D15: =VLOOKUP(A15,počty!$J$6:$AP$163,6,0) ->  | E15: =VLOOKUP(A15,počty!$J$6:$AP$163,7,0) ->  | F15: =VLOOKUP(A15,počty!$J$6:$AP$163,8,0) ->  | G15: =VLOOKUP(A15,počty!$J$6:$AP$163,9,0) ->  | H15: =VLOOKUP(A15,počty!$J$6:$AP$163,11,0) ->  | I15: =VLOOKUP(A15,počty!$J$6:$AP$163,17,0) ->  | J15: =VLOOKUP(A15,počty!$J$6:$AP$163,18,0) ->  | K15: =VLOOKUP(A15,počty!$J$6:$AP$163,19,0) ->  | L15: =VLOOKUP(A15,počty!$J$6:$AP$163,20,0) -> 
A16: -4 | B16: 10 | C16: =VLOOKUP(A16,počty!$J$6:$AP$163,5,0) ->  | D16: =VLOOKUP(A16,počty!$J$6:$AP$163,6,0) ->  | E16: =VLOOKUP(A16,počty!$J$6:$AP$163,7,0) ->  | F16: =VLOOKUP(A16,počty!$J$6:$AP$163,8,0) ->  | G16: =VLOOKUP(A16,počty!$J$6:$AP$163,9,0) ->  | H16: =VLOOKUP(A16,počty!$J$6:$AP$163,11,0) ->  | I16: =VLOOKUP(A16,počty!$J$6:$AP$163,17,0) ->  | J16: =VLOOKUP(A16,počty!$J$6:$AP$163,18,0) ->  | K16: =VLOOKUP(A16,počty!$J$6:$AP$163,19,0) ->  | L16: =VLOOKUP(A16,počty!$J$6:$AP$163,20,0) -> 
A17: -5 | B17: 11 | C17: =VLOOKUP(A17,počty!$J$6:$AP$163,5,0) ->  | D17: =VLOOKUP(A17,počty!$J$6:$AP$163,6,0) ->  | E17: =VLOOKUP(A17,počty!$J$6:$AP$163,7,0) ->  | F17: =VLOOKUP(A17,počty!$J$6:$AP$163,8,0) ->  | G17: =VLOOKUP(A17,počty!$J$6:$AP$163,9,0) ->  | H17: =VLOOKUP(A17,počty!$J$6:$AP$163,11,0) ->  | I17: =VLOOKUP(A17,počty!$J$6:$AP$163,17,0) ->  | J17: =VLOOKUP(A17,počty!$J$6:$AP$163,18,0) ->  | K17: =VLOOKUP(A17,počty!$J$6:$AP$163,19,0) ->  | L17: =VLOOKUP(A17,počty!$J$6:$AP$163,20,0) -> 
A18: -6 | B18: 12 | C18: =VLOOKUP(A18,počty!$J$6:$AP$163,5,0) ->  | D18: =VLOOKUP(A18,počty!$J$6:$AP$163,6,0) ->  | E18: =VLOOKUP(A18,počty!$J$6:$AP$163,7,0) ->  | F18: =VLOOKUP(A18,počty!$J$6:$AP$163,8,0) ->  | G18: =VLOOKUP(A18,počty!$J$6:$AP$163,9,0) ->  | H18: =VLOOKUP(A18,počty!$J$6:$AP$163,11,0) ->  | I18: =VLOOKUP(A18,počty!$J$6:$AP$163,17,0) ->  | J18: =VLOOKUP(A18,počty!$J$6:$AP$163,18,0) ->  | K18: =VLOOKUP(A18,počty!$J$6:$AP$163,19,0) ->  | L18: =VLOOKUP(A18,počty!$J$6:$AP$163,20,0) -> 
A19: -7 | B19: 13 | C19: =VLOOKUP(A19,počty!$J$6:$AP$163,5,0) ->  | D19: =VLOOKUP(A19,počty!$J$6:$AP$163,6,0) ->  | E19: =VLOOKUP(A19,počty!$J$6:$AP$163,7,0) ->  | F19: =VLOOKUP(A19,počty!$J$6:$AP$163,8,0) ->  | G19: =VLOOKUP(A19,počty!$J$6:$AP$163,9,0) ->  | H19: =VLOOKUP(A19,počty!$J$6:$AP$163,11,0) ->  | I19: =VLOOKUP(A19,počty!$J$6:$AP$163,17,0) ->  | J19: =VLOOKUP(A19,počty!$J$6:$AP$163,18,0) ->  | K19: =VLOOKUP(A19,počty!$J$6:$AP$163,19,0) ->  | L19: =VLOOKUP(A19,počty!$J$6:$AP$163,20,0) -> 
A20: -8 | B20: 14 | C20: =VLOOKUP(A20,počty!$J$6:$AP$163,5,0) ->  | D20: =VLOOKUP(A20,počty!$J$6:$AP$163,6,0) ->  | E20: =VLOOKUP(A20,počty!$J$6:$AP$163,7,0) ->  | F20: =VLOOKUP(A20,počty!$J$6:$AP$163,8,0) ->  | G20: =VLOOKUP(A20,počty!$J$6:$AP$163,9,0) ->  | H20: =VLOOKUP(A20,počty!$J$6:$AP$163,11,0) ->  | I20: =VLOOKUP(A20,počty!$J$6:$AP$163,17,0) ->  | J20: =VLOOKUP(A20,počty!$J$6:$AP$163,18,0) ->  | K20: =VLOOKUP(A20,počty!$J$6:$AP$163,19,0) ->  | L20: =VLOOKUP(A20,počty!$J$6:$AP$163,20,0) -> 
A21: -9 | B21: 15 | C21: =VLOOKUP(A21,počty!$J$6:$AP$163,5,0) ->  | D21: =VLOOKUP(A21,počty!$J$6:$AP$163,6,0) ->  | E21: =VLOOKUP(A21,počty!$J$6:$AP$163,7,0) ->  | F21: =VLOOKUP(A21,počty!$J$6:$AP$163,8,0) ->  | G21: =VLOOKUP(A21,počty!$J$6:$AP$163,9,0) ->  | H21: =VLOOKUP(A21,počty!$J$6:$AP$163,11,0) ->  | I21: =VLOOKUP(A21,počty!$J$6:$AP$163,17,0) ->  | J21: =VLOOKUP(A21,počty!$J$6:$AP$163,18,0) ->  | K21: =VLOOKUP(A21,počty!$J$6:$AP$163,19,0) ->  | L21: =VLOOKUP(A21,počty!$J$6:$AP$163,20,0) -> 
A22: -10 | B22: 16 | C22: =VLOOKUP(A22,počty!$J$6:$AP$163,5,0) ->  | D22: =VLOOKUP(A22,počty!$J$6:$AP$163,6,0) ->  | E22: =VLOOKUP(A22,počty!$J$6:$AP$163,7,0) ->  | F22: =VLOOKUP(A22,počty!$J$6:$AP$163,8,0) ->  | G22: =VLOOKUP(A22,počty!$J$6:$AP$163,9,0) ->  | H22: =VLOOKUP(A22,počty!$J$6:$AP$163,11,0) ->  | I22: =VLOOKUP(A22,počty!$J$6:$AP$163,17,0) ->  | J22: =VLOOKUP(A22,počty!$J$6:$AP$163,18,0) ->  | K22: =VLOOKUP(A22,počty!$J$6:$AP$163,19,0) ->  | L22: =VLOOKUP(A22,počty!$J$6:$AP$163,20,0) -> 
A23: -11 | B23: 17 | C23: =VLOOKUP(A23,počty!$J$6:$AP$163,5,0) ->  | D23: =VLOOKUP(A23,počty!$J$6:$AP$163,6,0) ->  | E23: =VLOOKUP(A23,počty!$J$6:$AP$163,7,0) ->  | F23: =VLOOKUP(A23,počty!$J$6:$AP$163,8,0) ->  | G23: =VLOOKUP(A23,počty!$J$6:$AP$163,9,0) ->  | H23: =VLOOKUP(A23,počty!$J$6:$AP$163,11,0) ->  | I23: =VLOOKUP(A23,počty!$J$6:$AP$163,17,0) ->  | J23: =VLOOKUP(A23,počty!$J$6:$AP$163,18,0) ->  | K23: =VLOOKUP(A23,počty!$J$6:$AP$163,19,0) ->  | L23: =VLOOKUP(A23,počty!$J$6:$AP$163,20,0) -> 
A24: -12 | B24: 18 | C24: =VLOOKUP(A24,počty!$J$6:$AP$163,5,0) ->  | D24: =VLOOKUP(A24,počty!$J$6:$AP$163,6,0) ->  | E24: =VLOOKUP(A24,počty!$J$6:$AP$163,7,0) ->  | F24: =VLOOKUP(A24,počty!$J$6:$AP$163,8,0) ->  | G24: =VLOOKUP(A24,počty!$J$6:$AP$163,9,0) ->  | H24: =VLOOKUP(A24,počty!$J$6:$AP$163,11,0) ->  | I24: =VLOOKUP(A24,počty!$J$6:$AP$163,17,0) ->  | J24: =VLOOKUP(A24,počty!$J$6:$AP$163,18,0) ->  | K24: =VLOOKUP(A24,počty!$J$6:$AP$163,19,0) ->  | L24: =VLOOKUP(A24,počty!$J$6:$AP$163,20,0) -> 
A25: -13 | B25: 19 | C25: =VLOOKUP(A25,počty!$J$6:$AP$163,5,0) ->  | D25: =VLOOKUP(A25,počty!$J$6:$AP$163,6,0) ->  | E25: =VLOOKUP(A25,počty!$J$6:$AP$163,7,0) ->  | F25: =VLOOKUP(A25,počty!$J$6:$AP$163,8,0) ->  | G25: =VLOOKUP(A25,počty!$J$6:$AP$163,9,0) ->  | H25: =VLOOKUP(A25,počty!$J$6:$AP$163,11,0) ->  | I25: =VLOOKUP(A25,počty!$J$6:$AP$163,17,0) ->  | J25: =VLOOKUP(A25,počty!$J$6:$AP$163,18,0) ->  | K25: =VLOOKUP(A25,počty!$J$6:$AP$163,19,0) ->  | L25: =VLOOKUP(A25,počty!$J$6:$AP$163,20,0) -> 
A26: -14 | B26: 20 | C26: =VLOOKUP(A26,počty!$J$6:$AP$163,5,0) ->  | D26: =VLOOKUP(A26,počty!$J$6:$AP$163,6,0) ->  | E26: =VLOOKUP(A26,počty!$J$6:$AP$163,7,0) ->  | F26: =VLOOKUP(A26,počty!$J$6:$AP$163,8,0) ->  | G26: =VLOOKUP(A26,počty!$J$6:$AP$163,9,0) ->  | H26: =VLOOKUP(A26,počty!$J$6:$AP$163,11,0) ->  | I26: =VLOOKUP(A26,počty!$J$6:$AP$163,17,0) ->  | J26: =VLOOKUP(A26,počty!$J$6:$AP$163,18,0) ->  | K26: =VLOOKUP(A26,počty!$J$6:$AP$163,19,0) ->  | L26: =VLOOKUP(A26,počty!$J$6:$AP$163,20,0) -> 
A27: -15 | B27: 21 | C27: =VLOOKUP(A27,počty!$J$6:$AP$163,5,0) ->  | D27: =VLOOKUP(A27,počty!$J$6:$AP$163,6,0) ->  | E27: =VLOOKUP(A27,počty!$J$6:$AP$163,7,0) ->  | F27: =VLOOKUP(A27,počty!$J$6:$AP$163,8,0) ->  | G27: =VLOOKUP(A27,počty!$J$6:$AP$163,9,0) ->  | H27: =VLOOKUP(A27,počty!$J$6:$AP$163,11,0) ->  | I27: =VLOOKUP(A27,počty!$J$6:$AP$163,17,0) ->  | J27: =VLOOKUP(A27,počty!$J$6:$AP$163,18,0) ->  | K27: =VLOOKUP(A27,počty!$J$6:$AP$163,19,0) ->  | L27: =VLOOKUP(A27,počty!$J$6:$AP$163,20,0) -> 
A28: -16 | B28: 22 | C28: =VLOOKUP(A28,počty!$J$6:$AP$163,5,0) ->  | D28: =VLOOKUP(A28,počty!$J$6:$AP$163,6,0) ->  | E28: =VLOOKUP(A28,počty!$J$6:$AP$163,7,0) ->  | F28: =VLOOKUP(A28,počty!$J$6:$AP$163,8,0) ->  | G28: =VLOOKUP(A28,počty!$J$6:$AP$163,9,0) ->  | H28: =VLOOKUP(A28,počty!$J$6:$AP$163,11,0) ->  | I28: =VLOOKUP(A28,počty!$J$6:$AP$163,17,0) ->  | J28: =VLOOKUP(A28,počty!$J$6:$AP$163,18,0) ->  | K28: =VLOOKUP(A28,počty!$J$6:$AP$163,19,0) ->  | L28: =VLOOKUP(A28,počty!$J$6:$AP$163,20,0) -> 
A29: -17 | B29: 23 | C29: =VLOOKUP(A29,počty!$J$6:$AP$163,5,0) ->  | D29: =VLOOKUP(A29,počty!$J$6:$AP$163,6,0) ->  | E29: =VLOOKUP(A29,počty!$J$6:$AP$163,7,0) ->  | F29: =VLOOKUP(A29,počty!$J$6:$AP$163,8,0) ->  | G29: =VLOOKUP(A29,počty!$J$6:$AP$163,9,0) ->  | H29: =VLOOKUP(A29,počty!$J$6:$AP$163,11,0) ->  | I29: =VLOOKUP(A29,počty!$J$6:$AP$163,17,0) ->  | J29: =VLOOKUP(A29,počty!$J$6:$AP$163,18,0) ->  | K29: =VLOOKUP(A29,počty!$J$6:$AP$163,19,0) ->  | L29: =VLOOKUP(A29,počty!$J$6:$AP$163,20,0) -> 
A30: =+A29-1 -> -18 | B30: 24 | C30: =VLOOKUP(A30,počty!$J$6:$AP$163,5,0) ->  | D30: =VLOOKUP(A30,počty!$J$6:$AP$163,6,0) ->  | E30: =VLOOKUP(A30,počty!$J$6:$AP$163,7,0) ->  | F30: =VLOOKUP(A30,počty!$J$6:$AP$163,8,0) ->  | G30: =VLOOKUP(A30,počty!$J$6:$AP$163,9,0) ->  | H30: =VLOOKUP(A30,počty!$J$6:$AP$163,11,0) ->  | I30: =VLOOKUP(A30,počty!$J$6:$AP$163,17,0) ->  | J30: =VLOOKUP(A30,počty!$J$6:$AP$163,18,0) ->  | K30: =VLOOKUP(A30,počty!$J$6:$AP$163,19,0) ->  | L30: =VLOOKUP(A30,počty!$J$6:$AP$163,20,0) -> 
A31: -19 | B31: 25 | C31: =VLOOKUP(A31,počty!$J$6:$AP$163,5,0) ->  | D31: =VLOOKUP(A31,počty!$J$6:$AP$163,6,0) ->  | E31: =VLOOKUP(A31,počty!$J$6:$AP$163,7,0) ->  | F31: =VLOOKUP(A31,počty!$J$6:$AP$163,8,0) ->  | G31: =VLOOKUP(A31,počty!$J$6:$AP$163,9,0) ->  | H31: =VLOOKUP(A31,počty!$J$6:$AP$163,11,0) ->  | I31: =VLOOKUP(A31,počty!$J$6:$AP$163,17,0) ->  | J31: =VLOOKUP(A31,počty!$J$6:$AP$163,18,0) ->  | K31: =VLOOKUP(A31,počty!$J$6:$AP$163,19,0) ->  | L31: =VLOOKUP(A31,počty!$J$6:$AP$163,20,0) -> 
A32: -20 | B32: 26 | C32: =VLOOKUP(A32,počty!$J$6:$AP$163,5,0) ->  | D32: =VLOOKUP(A32,počty!$J$6:$AP$163,6,0) ->  | E32: =VLOOKUP(A32,počty!$J$6:$AP$163,7,0) ->  | F32: =VLOOKUP(A32,počty!$J$6:$AP$163,8,0) ->  | G32: =VLOOKUP(A32,počty!$J$6:$AP$163,9,0) ->  | H32: =VLOOKUP(A32,počty!$J$6:$AP$163,11,0) ->  | I32: =VLOOKUP(A32,počty!$J$6:$AP$163,17,0) ->  | J32: =VLOOKUP(A32,počty!$J$6:$AP$163,18,0) ->  | K32: =VLOOKUP(A32,počty!$J$6:$AP$163,19,0) ->  | L32: =VLOOKUP(A32,počty!$J$6:$AP$163,20,0) -> 
A33: -21 | B33: 27 | C33: =VLOOKUP(A33,počty!$J$6:$AP$163,5,0) ->  | D33: =VLOOKUP(A33,počty!$J$6:$AP$163,6,0) ->  | E33: =VLOOKUP(A33,počty!$J$6:$AP$163,7,0) ->  | F33: =VLOOKUP(A33,počty!$J$6:$AP$163,8,0) ->  | G33: =VLOOKUP(A33,počty!$J$6:$AP$163,9,0) ->  | H33: =VLOOKUP(A33,počty!$J$6:$AP$163,11,0) ->  | I33: =VLOOKUP(A33,počty!$J$6:$AP$163,17,0) ->  | J33: =VLOOKUP(A33,počty!$J$6:$AP$163,18,0) ->  | K33: =VLOOKUP(A33,počty!$J$6:$AP$163,19,0) ->  | L33: =VLOOKUP(A33,počty!$J$6:$AP$163,20,0) -> 
A34: -22 | B34: 28 | C34: =VLOOKUP(A34,počty!$J$6:$AP$163,5,0) ->  | D34: =VLOOKUP(A34,počty!$J$6:$AP$163,6,0) ->  | E34: =VLOOKUP(A34,počty!$J$6:$AP$163,7,0) ->  | F34: =VLOOKUP(A34,počty!$J$6:$AP$163,8,0) ->  | G34: =VLOOKUP(A34,počty!$J$6:$AP$163,9,0) ->  | H34: =VLOOKUP(A34,počty!$J$6:$AP$163,11,0) ->  | I34: =VLOOKUP(A34,počty!$J$6:$AP$163,17,0) ->  | J34: =VLOOKUP(A34,počty!$J$6:$AP$163,18,0) ->  | K34: =VLOOKUP(A34,počty!$J$6:$AP$163,19,0) ->  | L34: =VLOOKUP(A34,počty!$J$6:$AP$163,20,0) -> 
A35: -23 | B35: 29 | C35: =VLOOKUP(A35,počty!$J$6:$AP$163,5,0) ->  | D35: =VLOOKUP(A35,počty!$J$6:$AP$163,6,0) ->  | E35: =VLOOKUP(A35,počty!$J$6:$AP$163,7,0) ->  | F35: =VLOOKUP(A35,počty!$J$6:$AP$163,8,0) ->  | G35: =VLOOKUP(A35,počty!$J$6:$AP$163,9,0) ->  | H35: =VLOOKUP(A35,počty!$J$6:$AP$163,11,0) ->  | I35: =VLOOKUP(A35,počty!$J$6:$AP$163,17,0) ->  | J35: =VLOOKUP(A35,počty!$J$6:$AP$163,18,0) ->  | K35: =VLOOKUP(A35,počty!$J$6:$AP$163,19,0) ->  | L35: =VLOOKUP(A35,počty!$J$6:$AP$163,20,0) -> 
A36: -24 | B36: 30 | C36: =VLOOKUP(A36,počty!$J$6:$AP$163,5,0) ->  | D36: =VLOOKUP(A36,počty!$J$6:$AP$163,6,0) ->  | E36: =VLOOKUP(A36,počty!$J$6:$AP$163,7,0) ->  | F36: =VLOOKUP(A36,počty!$J$6:$AP$163,8,0) ->  | G36: =VLOOKUP(A36,počty!$J$6:$AP$163,9,0) ->  | H36: =VLOOKUP(A36,počty!$J$6:$AP$163,11,0) ->  | I36: =VLOOKUP(A36,počty!$J$6:$AP$163,17,0) ->  | J36: =VLOOKUP(A36,počty!$J$6:$AP$163,18,0) ->  | K36: =VLOOKUP(A36,počty!$J$6:$AP$163,19,0) ->  | L36: =VLOOKUP(A36,počty!$J$6:$AP$163,20,0) -> 
A37: -25 | B37: 31 | C37: =VLOOKUP(A37,počty!$J$6:$AP$163,5,0) ->  | D37: =VLOOKUP(A37,počty!$J$6:$AP$163,6,0) ->  | E37: =VLOOKUP(A37,počty!$J$6:$AP$163,7,0) ->  | F37: =VLOOKUP(A37,počty!$J$6:$AP$163,8,0) ->  | G37: =VLOOKUP(A37,počty!$J$6:$AP$163,9,0) ->  | H37: =VLOOKUP(A37,počty!$J$6:$AP$163,11,0) ->  | I37: =VLOOKUP(A37,počty!$J$6:$AP$163,17,0) ->  | J37: =VLOOKUP(A37,počty!$J$6:$AP$163,18,0) ->  | K37: =VLOOKUP(A37,počty!$J$6:$AP$163,19,0) ->  | L37: =VLOOKUP(A37,počty!$J$6:$AP$163,20,0) -> 
A38: -26 | B38: 32 | C38: =VLOOKUP(A38,počty!$J$6:$AP$163,5,0) ->  | D38: =VLOOKUP(A38,počty!$J$6:$AP$163,6,0) ->  | E38: =VLOOKUP(A38,počty!$J$6:$AP$163,7,0) ->  | F38: =VLOOKUP(A38,počty!$J$6:$AP$163,8,0) ->  | G38: =VLOOKUP(A38,počty!$J$6:$AP$163,9,0) ->  | H38: =VLOOKUP(A38,počty!$J$6:$AP$163,11,0) ->  | I38: =VLOOKUP(A38,počty!$J$6:$AP$163,17,0) ->  | J38: =VLOOKUP(A38,počty!$J$6:$AP$163,18,0) ->  | K38: =VLOOKUP(A38,počty!$J$6:$AP$163,19,0) ->  | L38: =VLOOKUP(A38,počty!$J$6:$AP$163,20,0) -> 
A39: -27 | B39: 33 | C39: =VLOOKUP(A39,počty!$J$6:$AP$163,5,0) ->  | D39: =VLOOKUP(A39,počty!$J$6:$AP$163,6,0) ->  | E39: =VLOOKUP(A39,počty!$J$6:$AP$163,7,0) ->  | F39: =VLOOKUP(A39,počty!$J$6:$AP$163,8,0) ->  | G39: =VLOOKUP(A39,počty!$J$6:$AP$163,9,0) ->  | H39: =VLOOKUP(A39,počty!$J$6:$AP$163,11,0) ->  | I39: =VLOOKUP(A39,počty!$J$6:$AP$163,17,0) ->  | J39: =VLOOKUP(A39,počty!$J$6:$AP$163,18,0) ->  | K39: =VLOOKUP(A39,počty!$J$6:$AP$163,19,0) ->  | L39: =VLOOKUP(A39,počty!$J$6:$AP$163,20,0) -> 
A40: -28 | B40: 34 | C40: =VLOOKUP(A40,počty!$J$6:$AP$163,5,0) ->  | D40: =VLOOKUP(A40,počty!$J$6:$AP$163,6,0) ->  | E40: =VLOOKUP(A40,počty!$J$6:$AP$163,7,0) ->  | F40: =VLOOKUP(A40,počty!$J$6:$AP$163,8,0) ->  | G40: =VLOOKUP(A40,počty!$J$6:$AP$163,9,0) ->  | H40: =VLOOKUP(A40,počty!$J$6:$AP$163,11,0) ->  | I40: =VLOOKUP(A40,počty!$J$6:$AP$163,17,0) ->  | J40: =VLOOKUP(A40,počty!$J$6:$AP$163,18,0) ->  | K40: =VLOOKUP(A40,počty!$J$6:$AP$163,19,0) ->  | L40: =VLOOKUP(A40,počty!$J$6:$AP$163,20,0) -> 
A41: -29 | B41: 35 | C41: =VLOOKUP(A41,počty!$J$6:$AP$163,5,0) ->  | D41: =VLOOKUP(A41,počty!$J$6:$AP$163,6,0) ->  | E41: =VLOOKUP(A41,počty!$J$6:$AP$163,7,0) ->  | F41: =VLOOKUP(A41,počty!$J$6:$AP$163,8,0) ->  | G41: =VLOOKUP(A41,počty!$J$6:$AP$163,9,0) ->  | H41: =VLOOKUP(A41,počty!$J$6:$AP$163,11,0) ->  | I41: =VLOOKUP(A41,počty!$J$6:$AP$163,17,0) ->  | J41: =VLOOKUP(A41,počty!$J$6:$AP$163,18,0) ->  | K41: =VLOOKUP(A41,počty!$J$6:$AP$163,19,0) ->  | L41: =VLOOKUP(A41,počty!$J$6:$AP$163,20,0) -> 
A42: -30 | B42: 36 | C42: =VLOOKUP(A42,počty!$J$6:$AP$163,5,0) ->  | D42: =VLOOKUP(A42,počty!$J$6:$AP$163,6,0) ->  | E42: =VLOOKUP(A42,počty!$J$6:$AP$163,7,0) ->  | F42: =VLOOKUP(A42,počty!$J$6:$AP$163,8,0) ->  | G42: =VLOOKUP(A42,počty!$J$6:$AP$163,9,0) ->  | H42: =VLOOKUP(A42,počty!$J$6:$AP$163,11,0) ->  | I42: =VLOOKUP(A42,počty!$J$6:$AP$163,17,0) ->  | J42: =VLOOKUP(A42,počty!$J$6:$AP$163,18,0) ->  | K42: =VLOOKUP(A42,počty!$J$6:$AP$163,19,0) ->  | L42: =VLOOKUP(A42,počty!$J$6:$AP$163,20,0) -> 
A43: -31 | B43: 37 | C43: =VLOOKUP(A43,počty!$J$6:$AP$163,5,0) ->  | D43: =VLOOKUP(A43,počty!$J$6:$AP$163,6,0) ->  | E43: =VLOOKUP(A43,počty!$J$6:$AP$163,7,0) ->  | F43: =VLOOKUP(A43,počty!$J$6:$AP$163,8,0) ->  | G43: =VLOOKUP(A43,počty!$J$6:$AP$163,9,0) ->  | H43: =VLOOKUP(A43,počty!$J$6:$AP$163,11,0) ->  | I43: =VLOOKUP(A43,počty!$J$6:$AP$163,17,0) ->  | J43: =VLOOKUP(A43,počty!$J$6:$AP$163,18,0) ->  | K43: =VLOOKUP(A43,počty!$J$6:$AP$163,19,0) ->  | L43: =VLOOKUP(A43,počty!$J$6:$AP$163,20,0) -> 
A44: -32 | B44: 38 | C44: =VLOOKUP(A44,počty!$J$6:$AP$163,5,0) ->  | D44: =VLOOKUP(A44,počty!$J$6:$AP$163,6,0) ->  | E44: =VLOOKUP(A44,počty!$J$6:$AP$163,7,0) ->  | F44: =VLOOKUP(A44,počty!$J$6:$AP$163,8,0) ->  | G44: =VLOOKUP(A44,počty!$J$6:$AP$163,9,0) ->  | H44: =VLOOKUP(A44,počty!$J$6:$AP$163,11,0) ->  | I44: =VLOOKUP(A44,počty!$J$6:$AP$163,17,0) ->  | J44: =VLOOKUP(A44,počty!$J$6:$AP$163,18,0) ->  | K44: =VLOOKUP(A44,počty!$J$6:$AP$163,19,0) ->  | L44: =VLOOKUP(A44,počty!$J$6:$AP$163,20,0) -> 
A45: -33 | B45: 39 | C45: =VLOOKUP(A45,počty!$J$6:$AP$163,5,0) ->  | D45: =VLOOKUP(A45,počty!$J$6:$AP$163,6,0) ->  | E45: =VLOOKUP(A45,počty!$J$6:$AP$163,7,0) ->  | F45: =VLOOKUP(A45,počty!$J$6:$AP$163,8,0) ->  | G45: =VLOOKUP(A45,počty!$J$6:$AP$163,9,0) ->  | H45: =VLOOKUP(A45,počty!$J$6:$AP$163,11,0) ->  | I45: =VLOOKUP(A45,počty!$J$6:$AP$163,17,0) ->  | J45: =VLOOKUP(A45,počty!$J$6:$AP$163,18,0) ->  | K45: =VLOOKUP(A45,počty!$J$6:$AP$163,19,0) ->  | L45: =VLOOKUP(A45,počty!$J$6:$AP$163,20,0) -> 
A46: -34 | B46: 40 | C46: =VLOOKUP(A46,počty!$J$6:$AP$163,5,0) ->  | D46: =VLOOKUP(A46,počty!$J$6:$AP$163,6,0) ->  | E46: =VLOOKUP(A46,počty!$J$6:$AP$163,7,0) ->  | F46: =VLOOKUP(A46,počty!$J$6:$AP$163,8,0) ->  | G46: =VLOOKUP(A46,počty!$J$6:$AP$163,9,0) ->  | H46: =VLOOKUP(A46,počty!$J$6:$AP$163,11,0) ->  | I46: =VLOOKUP(A46,počty!$J$6:$AP$163,17,0) ->  | J46: =VLOOKUP(A46,počty!$J$6:$AP$163,18,0) ->  | K46: =VLOOKUP(A46,počty!$J$6:$AP$163,19,0) ->  | L46: =VLOOKUP(A46,počty!$J$6:$AP$163,20,0) -> 
A47: =+A46-1 -> -35 | B47: 41 | C47: =VLOOKUP(A47,počty!$J$6:$AP$163,5,0) ->  | D47: =VLOOKUP(A47,počty!$J$6:$AP$163,6,0) ->  | E47: =VLOOKUP(A47,počty!$J$6:$AP$163,7,0) ->  | F47: =VLOOKUP(A47,počty!$J$6:$AP$163,8,0) ->  | G47: =VLOOKUP(A47,počty!$J$6:$AP$163,9,0) ->  | H47: =VLOOKUP(A47,počty!$J$6:$AP$163,11,0) ->  | I47: =VLOOKUP(A47,počty!$J$6:$AP$163,17,0) ->  | J47: =VLOOKUP(A47,počty!$J$6:$AP$163,18,0) ->  | K47: =VLOOKUP(A47,počty!$J$6:$AP$163,19,0) ->  | L47: =VLOOKUP(A47,počty!$J$6:$AP$163,20,0) -> 
A48: -36 | B48: 42 | C48: =VLOOKUP(A48,počty!$J$6:$AP$163,5,0) ->  | D48: =VLOOKUP(A48,počty!$J$6:$AP$163,6,0) ->  | E48: =VLOOKUP(A48,počty!$J$6:$AP$163,7,0) ->  | F48: =VLOOKUP(A48,počty!$J$6:$AP$163,8,0) ->  | G48: =VLOOKUP(A48,počty!$J$6:$AP$163,9,0) ->  | H48: =VLOOKUP(A48,počty!$J$6:$AP$163,11,0) ->  | I48: =VLOOKUP(A48,počty!$J$6:$AP$163,17,0) ->  | J48: =VLOOKUP(A48,počty!$J$6:$AP$163,18,0) ->  | K48: =VLOOKUP(A48,počty!$J$6:$AP$163,19,0) ->  | L48: =VLOOKUP(A48,počty!$J$6:$AP$163,20,0) -> 
A49: -37 | B49: 43 | C49: =VLOOKUP(A49,počty!$J$6:$AP$163,5,0) ->  | D49: =VLOOKUP(A49,počty!$J$6:$AP$163,6,0) ->  | E49: =VLOOKUP(A49,počty!$J$6:$AP$163,7,0) ->  | F49: =VLOOKUP(A49,počty!$J$6:$AP$163,8,0) ->  | G49: =VLOOKUP(A49,počty!$J$6:$AP$163,9,0) ->  | H49: =VLOOKUP(A49,počty!$J$6:$AP$163,11,0) ->  | I49: =VLOOKUP(A49,počty!$J$6:$AP$163,17,0) ->  | J49: =VLOOKUP(A49,počty!$J$6:$AP$163,18,0) ->  | K49: =VLOOKUP(A49,počty!$J$6:$AP$163,19,0) ->  | L49: =VLOOKUP(A49,počty!$J$6:$AP$163,20,0) -> 
A50: -38 | B50: 44 | C50: =VLOOKUP(A50,počty!$J$6:$AP$163,5,0) ->  | D50: =VLOOKUP(A50,počty!$J$6:$AP$163,6,0) ->  | E50: =VLOOKUP(A50,počty!$J$6:$AP$163,7,0) ->  | F50: =VLOOKUP(A50,počty!$J$6:$AP$163,8,0) ->  | G50: =VLOOKUP(A50,počty!$J$6:$AP$163,9,0) ->  | H50: =VLOOKUP(A50,počty!$J$6:$AP$163,11,0) ->  | I50: =VLOOKUP(A50,počty!$J$6:$AP$163,17,0) ->  | J50: =VLOOKUP(A50,počty!$J$6:$AP$163,18,0) ->  | K50: =VLOOKUP(A50,počty!$J$6:$AP$163,19,0) ->  | L50: =VLOOKUP(A50,počty!$J$6:$AP$163,20,0) -> 
A51: -39 | B51: 45 | C51: =VLOOKUP(A51,počty!$J$6:$AP$163,5,0) ->  | D51: =VLOOKUP(A51,počty!$J$6:$AP$163,6,0) ->  | E51: =VLOOKUP(A51,počty!$J$6:$AP$163,7,0) ->  | F51: =VLOOKUP(A51,počty!$J$6:$AP$163,8,0) ->  | G51: =VLOOKUP(A51,počty!$J$6:$AP$163,9,0) ->  | H51: =VLOOKUP(A51,počty!$J$6:$AP$163,11,0) ->  | I51: =VLOOKUP(A51,počty!$J$6:$AP$163,17,0) ->  | J51: =VLOOKUP(A51,počty!$J$6:$AP$163,18,0) ->  | K51: =VLOOKUP(A51,počty!$J$6:$AP$163,19,0) ->  | L51: =VLOOKUP(A51,počty!$J$6:$AP$163,20,0) -> 
A52: -40 | B52: 46 | C52: =VLOOKUP(A52,počty!$J$6:$AP$163,5,0) ->  | D52: =VLOOKUP(A52,počty!$J$6:$AP$163,6,0) ->  | E52: =VLOOKUP(A52,počty!$J$6:$AP$163,7,0) ->  | F52: =VLOOKUP(A52,počty!$J$6:$AP$163,8,0) ->  | G52: =VLOOKUP(A52,počty!$J$6:$AP$163,9,0) ->  | H52: =VLOOKUP(A52,počty!$J$6:$AP$163,11,0) ->  | I52: =VLOOKUP(A52,počty!$J$6:$AP$163,17,0) ->  | J52: =VLOOKUP(A52,počty!$J$6:$AP$163,18,0) ->  | K52: =VLOOKUP(A52,počty!$J$6:$AP$163,19,0) ->  | L52: =VLOOKUP(A52,počty!$J$6:$AP$163,20,0) -> 
A53: -41 | B53: 47 | C53: =VLOOKUP(A53,počty!$J$6:$AP$163,5,0) ->  | D53: =VLOOKUP(A53,počty!$J$6:$AP$163,6,0) ->  | E53: =VLOOKUP(A53,počty!$J$6:$AP$163,7,0) ->  | F53: =VLOOKUP(A53,počty!$J$6:$AP$163,8,0) ->  | G53: =VLOOKUP(A53,počty!$J$6:$AP$163,9,0) ->  | H53: =VLOOKUP(A53,počty!$J$6:$AP$163,11,0) ->  | I53: =VLOOKUP(A53,počty!$J$6:$AP$163,17,0) ->  | J53: =VLOOKUP(A53,počty!$J$6:$AP$163,18,0) ->  | K53: =VLOOKUP(A53,počty!$J$6:$AP$163,19,0) ->  | L53: =VLOOKUP(A53,počty!$J$6:$AP$163,20,0) -> 
A54: -42 | B54: 48 | C54: =VLOOKUP(A54,počty!$J$6:$AP$163,5,0) ->  | D54: =VLOOKUP(A54,počty!$J$6:$AP$163,6,0) ->  | E54: =VLOOKUP(A54,počty!$J$6:$AP$163,7,0) ->  | F54: =VLOOKUP(A54,počty!$J$6:$AP$163,8,0) ->  | G54: =VLOOKUP(A54,počty!$J$6:$AP$163,9,0) ->  | H54: =VLOOKUP(A54,počty!$J$6:$AP$163,11,0) ->  | I54: =VLOOKUP(A54,počty!$J$6:$AP$163,17,0) ->  | J54: =VLOOKUP(A54,počty!$J$6:$AP$163,18,0) ->  | K54: =VLOOKUP(A54,počty!$J$6:$AP$163,19,0) ->  | L54: =VLOOKUP(A54,počty!$J$6:$AP$163,20,0) -> 
A55: -43 | B55: 49 | C55: =VLOOKUP(A55,počty!$J$6:$AP$163,5,0) ->  | D55: =VLOOKUP(A55,počty!$J$6:$AP$163,6,0) ->  | E55: =VLOOKUP(A55,počty!$J$6:$AP$163,7,0) ->  | F55: =VLOOKUP(A55,počty!$J$6:$AP$163,8,0) ->  | G55: =VLOOKUP(A55,počty!$J$6:$AP$163,9,0) ->  | H55: =VLOOKUP(A55,počty!$J$6:$AP$163,11,0) ->  | I55: =VLOOKUP(A55,počty!$J$6:$AP$163,17,0) ->  | J55: =VLOOKUP(A55,počty!$J$6:$AP$163,18,0) ->  | K55: =VLOOKUP(A55,počty!$J$6:$AP$163,19,0) ->  | L55: =VLOOKUP(A55,počty!$J$6:$AP$163,20,0) -> 
A56: -44 | B56: 50 | C56: =VLOOKUP(A56,počty!$J$6:$AP$163,5,0) ->  | D56: =VLOOKUP(A56,počty!$J$6:$AP$163,6,0) ->  | E56: =VLOOKUP(A56,počty!$J$6:$AP$163,7,0) ->  | F56: =VLOOKUP(A56,počty!$J$6:$AP$163,8,0) ->  | G56: =VLOOKUP(A56,počty!$J$6:$AP$163,9,0) ->  | H56: =VLOOKUP(A56,počty!$J$6:$AP$163,11,0) ->  | I56: =VLOOKUP(A56,počty!$J$6:$AP$163,17,0) ->  | J56: =VLOOKUP(A56,počty!$J$6:$AP$163,18,0) ->  | K56: =VLOOKUP(A56,počty!$J$6:$AP$163,19,0) ->  | L56: =VLOOKUP(A56,počty!$J$6:$AP$163,20,0) -> 
A57: -45 | B57: 51 | C57: =VLOOKUP(A57,počty!$J$6:$AP$163,5,0) ->  | D57: =VLOOKUP(A57,počty!$J$6:$AP$163,6,0) ->  | E57: =VLOOKUP(A57,počty!$J$6:$AP$163,7,0) ->  | F57: =VLOOKUP(A57,počty!$J$6:$AP$163,8,0) ->  | G57: =VLOOKUP(A57,počty!$J$6:$AP$163,9,0) ->  | H57: =VLOOKUP(A57,počty!$J$6:$AP$163,11,0) ->  | I57: =VLOOKUP(A57,počty!$J$6:$AP$163,17,0) ->  | J57: =VLOOKUP(A57,počty!$J$6:$AP$163,18,0) ->  | K57: =VLOOKUP(A57,počty!$J$6:$AP$163,19,0) ->  | L57: =VLOOKUP(A57,počty!$J$6:$AP$163,20,0) -> 
A58: -46 | B58: 52 | C58: =VLOOKUP(A58,počty!$J$6:$AP$163,5,0) ->  | D58: =VLOOKUP(A58,počty!$J$6:$AP$163,6,0) ->  | E58: =VLOOKUP(A58,počty!$J$6:$AP$163,7,0) ->  | F58: =VLOOKUP(A58,počty!$J$6:$AP$163,8,0) ->  | G58: =VLOOKUP(A58,počty!$J$6:$AP$163,9,0) ->  | H58: =VLOOKUP(A58,počty!$J$6:$AP$163,11,0) ->  | I58: =VLOOKUP(A58,počty!$J$6:$AP$163,17,0) ->  | J58: =VLOOKUP(A58,počty!$J$6:$AP$163,18,0) ->  | K58: =VLOOKUP(A58,počty!$J$6:$AP$163,19,0) ->  | L58: =VLOOKUP(A58,počty!$J$6:$AP$163,20,0) -> 
A59: -47 | B59: 53 | C59: =VLOOKUP(A59,počty!$J$6:$AP$163,5,0) ->  | D59: =VLOOKUP(A59,počty!$J$6:$AP$163,6,0) ->  | E59: =VLOOKUP(A59,počty!$J$6:$AP$163,7,0) ->  | F59: =VLOOKUP(A59,počty!$J$6:$AP$163,8,0) ->  | G59: =VLOOKUP(A59,počty!$J$6:$AP$163,9,0) ->  | H59: =VLOOKUP(A59,počty!$J$6:$AP$163,11,0) ->  | I59: =VLOOKUP(A59,počty!$J$6:$AP$163,17,0) ->  | J59: =VLOOKUP(A59,počty!$J$6:$AP$163,18,0) ->  | K59: =VLOOKUP(A59,počty!$J$6:$AP$163,19,0) ->  | L59: =VLOOKUP(A59,počty!$J$6:$AP$163,20,0) -> 
A60: =+A59-1 -> -48 | B60: 54 | C60: =VLOOKUP(A60,počty!$J$6:$AP$163,5,0) ->  | D60: =VLOOKUP(A60,počty!$J$6:$AP$163,6,0) ->  | E60: =VLOOKUP(A60,počty!$J$6:$AP$163,7,0) ->  | F60: =VLOOKUP(A60,počty!$J$6:$AP$163,8,0) ->  | G60: =VLOOKUP(A60,počty!$J$6:$AP$163,9,0) ->  | H60: =VLOOKUP(A60,počty!$J$6:$AP$163,11,0) ->  | I60: =VLOOKUP(A60,počty!$J$6:$AP$163,17,0) ->  | J60: =VLOOKUP(A60,počty!$J$6:$AP$163,18,0) ->  | K60: =VLOOKUP(A60,počty!$J$6:$AP$163,19,0) ->  | L60: =VLOOKUP(A60,počty!$J$6:$AP$163,20,0) -> 
A61: -49 | B61: 55 | C61: =VLOOKUP(A61,počty!$J$6:$AP$163,5,0) ->  | D61: =VLOOKUP(A61,počty!$J$6:$AP$163,6,0) ->  | E61: =VLOOKUP(A61,počty!$J$6:$AP$163,7,0) ->  | F61: =VLOOKUP(A61,počty!$J$6:$AP$163,8,0) ->  | G61: =VLOOKUP(A61,počty!$J$6:$AP$163,9,0) ->  | H61: =VLOOKUP(A61,počty!$J$6:$AP$163,11,0) ->  | I61: =VLOOKUP(A61,počty!$J$6:$AP$163,17,0) ->  | J61: =VLOOKUP(A61,počty!$J$6:$AP$163,18,0) ->  | K61: =VLOOKUP(A61,počty!$J$6:$AP$163,19,0) ->  | L61: =VLOOKUP(A61,počty!$J$6:$AP$163,20,0) -> 
A62: -50 | B62: 56 | C62: =VLOOKUP(A62,počty!$J$6:$AP$163,5,0) ->  | D62: =VLOOKUP(A62,počty!$J$6:$AP$163,6,0) ->  | E62: =VLOOKUP(A62,počty!$J$6:$AP$163,7,0) ->  | F62: =VLOOKUP(A62,počty!$J$6:$AP$163,8,0) ->  | G62: =VLOOKUP(A62,počty!$J$6:$AP$163,9,0) ->  | H62: =VLOOKUP(A62,počty!$J$6:$AP$163,11,0) ->  | I62: =VLOOKUP(A62,počty!$J$6:$AP$163,17,0) ->  | J62: =VLOOKUP(A62,počty!$J$6:$AP$163,18,0) ->  | K62: =VLOOKUP(A62,počty!$J$6:$AP$163,19,0) ->  | L62: =VLOOKUP(A62,počty!$J$6:$AP$163,20,0) -> 
A63: -51 | B63: 57 | C63: =VLOOKUP(A63,počty!$J$6:$AP$163,5,0) ->  | D63: =VLOOKUP(A63,počty!$J$6:$AP$163,6,0) ->  | E63: =VLOOKUP(A63,počty!$J$6:$AP$163,7,0) ->  | F63: =VLOOKUP(A63,počty!$J$6:$AP$163,8,0) ->  | G63: =VLOOKUP(A63,počty!$J$6:$AP$163,9,0) ->  | H63: =VLOOKUP(A63,počty!$J$6:$AP$163,11,0) ->  | I63: =VLOOKUP(A63,počty!$J$6:$AP$163,17,0) ->  | J63: =VLOOKUP(A63,počty!$J$6:$AP$163,18,0) ->  | K63: =VLOOKUP(A63,počty!$J$6:$AP$163,19,0) ->  | L63: =VLOOKUP(A63,počty!$J$6:$AP$163,20,0) -> 
A64: -52 | B64: 58 | C64: =VLOOKUP(A64,počty!$J$6:$AP$163,5,0) ->  | D64: =VLOOKUP(A64,počty!$J$6:$AP$163,6,0) ->  | E64: =VLOOKUP(A64,počty!$J$6:$AP$163,7,0) ->  | F64: =VLOOKUP(A64,počty!$J$6:$AP$163,8,0) ->  | G64: =VLOOKUP(A64,počty!$J$6:$AP$163,9,0) ->  | H64: =VLOOKUP(A64,počty!$J$6:$AP$163,11,0) ->  | I64: =VLOOKUP(A64,počty!$J$6:$AP$163,17,0) ->  | J64: =VLOOKUP(A64,počty!$J$6:$AP$163,18,0) ->  | K64: =VLOOKUP(A64,počty!$J$6:$AP$163,19,0) ->  | L64: =VLOOKUP(A64,počty!$J$6:$AP$163,20,0) -> 
A65: -53 | B65: 59 | C65: =VLOOKUP(A65,počty!$J$6:$AP$163,5,0) ->  | D65: =VLOOKUP(A65,počty!$J$6:$AP$163,6,0) ->  | E65: =VLOOKUP(A65,počty!$J$6:$AP$163,7,0) ->  | F65: =VLOOKUP(A65,počty!$J$6:$AP$163,8,0) ->  | G65: =VLOOKUP(A65,počty!$J$6:$AP$163,9,0) ->  | H65: =VLOOKUP(A65,počty!$J$6:$AP$163,11,0) ->  | I65: =VLOOKUP(A65,počty!$J$6:$AP$163,17,0) ->  | J65: =VLOOKUP(A65,počty!$J$6:$AP$163,18,0) ->  | K65: =VLOOKUP(A65,počty!$J$6:$AP$163,19,0) ->  | L65: =VLOOKUP(A65,počty!$J$6:$AP$163,20,0) -> 
A66: -54 | B66: 60 | C66: =VLOOKUP(A66,počty!$J$6:$AP$163,5,0) ->  | D66: =VLOOKUP(A66,počty!$J$6:$AP$163,6,0) ->  | E66: =VLOOKUP(A66,počty!$J$6:$AP$163,7,0) ->  | F66: =VLOOKUP(A66,počty!$J$6:$AP$163,8,0) ->  | G66: =VLOOKUP(A66,počty!$J$6:$AP$163,9,0) ->  | H66: =VLOOKUP(A66,počty!$J$6:$AP$163,11,0) ->  | I66: =VLOOKUP(A66,počty!$J$6:$AP$163,17,0) ->  | J66: =VLOOKUP(A66,počty!$J$6:$AP$163,18,0) ->  | K66: =VLOOKUP(A66,počty!$J$6:$AP$163,19,0) ->  | L66: =VLOOKUP(A66,počty!$J$6:$AP$163,20,0) -> 

Sheet STY
A1: =+hlavicka!C11 -> Žáci U10M 2017-2016 | C1: =CONCATENATE("K ",hlavicka!C6) -> K 13 | D1: A | E1: KOLO | F1: 1 | H1: =+A1 -> Žáci U10M 2017-2016 | J1: =+C1 -> K 13 | K1: B | L1: KOLO | M1: =++F1 -> 1 | O1: =+A1 -> Žáci U10M 2017-2016 | Q1: =+C1 -> K 13 | R1: C | S1: KOLO | T1: =+F1 -> 1 | V1: =+A1 -> Žáci U10M 2017-2016 | X1: =+C1 -> K 13 | Y1: D | Z1: KOLO | AA1: =+F1 -> 1 | AC1: =+A1 -> Žáci U10M 2017-2016 | AE1: =+C1 -> K 13 | AF1: E | AG1: KOLO | AH1: =+F1 -> 1 | AJ1: =+A1 -> Žáci U10M 2017-2016 | AL1: =+C1 -> K 13 | AM1: X | AN1: KOLO | AO1: =+F1 -> 1
A2: Start. | B2: SRÁŽKY | F2: Body | H2: Start. | I2: SRÁŽKY | M2: Body | O2: Start. | P2: SRÁŽKY | T2: Body | V2: Start. | W2: SRÁŽKY | AA2: Body | AC2: Start. | AD2: SRÁŽKY | AH2: Body | AJ2: Start. | AK2: SRÁŽKY | AO2: Body
A3: číslo | B3: Let | C3: Doskok | D3: Odjezd | E3: Celkem | F3: celkem | H3: číslo | I3: Let | J3: Doskok | K3: Odjezd | L3: Celkem | M3: celkem | O3: číslo | P3: Let | Q3: Doskok | R3: Odjezd | S3: Celkem | T3: celkem | V3: číslo | W3: Let | X3: Doskok | Y3: Odjezd | Z3: Celkem | AA3: celkem | AC3: číslo | AD3: Let | AE3: Doskok | AF3: Odjezd | AG3: Celkem | AH3: celkem | AJ3: číslo | AK3: Let | AL3: Doskok | AM3: Odjezd | AN3: Celkem | AO3: celkem
A4: =+start!B6 -> 13 | H4: =+A4 -> 13 | O4: =+H4 -> 13 | V4: =+O4 -> 13 | AC4: =+V4 -> 13 | AJ4: =+AC4 -> 13
A5: =+start!B7 -> 22 | H5: =+A5 -> 22 | O5: =+H5 -> 22 | V5: =+O5 -> 22 | AC5: =+V5 -> 22 | AJ5: =+AC5 -> 22
A6: =+start!B8 -> 23 | H6: =+A6 -> 23 | O6: =+H6 -> 23 | V6: =+O6 -> 23 | AC6: =+V6 -> 23 | AJ6: =+AC6 -> 23
A7: =+start!B9 -> 24 | H7: =+A7 -> 24 | O7: =+H7 -> 24 | V7: =+O7 -> 24 | AC7: =+V7 -> 24 | AJ7: =+AC7 -> 24
A8: =+start!B10 -> 25 | H8: =+A8 -> 25 | O8: =+H8 -> 25 | V8: =+O8 -> 25 | AC8: =+V8 -> 25 | AJ8: =+AC8 -> 25
A9: =+start!B11 -> 
A10: =+start!B12 -> 
A11: =+start!B13 -> 
A12: =+start!B14 -> 
A13: =+start!B15 -> 
A14: =+start!B16 -> 
A15: =+start!B17 -> 
A16: =+start!B18 -> 
A17: =+start!B19 -> 
A18: =+start!B20 -> 
A19: =+start!B21 -> 
A20: =+start!B22 -> 
A21: =+start!B23 -> 
A22: =+start!B24 -> 
A23: =+start!B25 -> 
A24: =+start!B26 -> 
A25: =+start!B27 -> 
A26: =+start!B28 -> 
A27: =+start!B29 -> 
A28: =+start!B30 -> 
A29: =+start!B31 -> 
A30: =+start!B32 -> 
A31: =+start!B33 -> 
A32: =+start!B34 -> 
A33: =+start!B35 -> 
A34: =+start!B36 -> 
A35: =+start!B37 -> 
A36: =+start!B38 -> 
A37: =+start!B39 -> 
A38: =+start!B40 -> 
A39: =+start!B41 -> 
A40: =+start!B42 -> 
A41: =+start!B43 -> 
A42: =+start!B44 -> 
A43: =+start!B45 -> 
A44: =+start!B46 -> 
A45: =+start!B47 -> 
A46: =+start!B48 -> 
A47: =+start!B49 -> 
A48: =+start!B50 -> 
A49: =+start!B51 -> 
A50: =+start!B52 -> 
A51: =+start!B53 -> 
A52: =+start!B54 -> 
A53: =+start!B55 -> 
A54: =+start!B56 -> 
A55: =+start!B57 -> 
A56: =+start!B58 -> 
A57: =+start!B59 -> 
A58: =+start!B60 -> 
A59: =+start!B61 -> 
A60: =+start!B62 -> 
A61: =+start!B63 -> 
A62: =+start!B64 -> 
A63: =+start!B65 -> 

Sheet STYobr
A1: =+hlavicka!C11 -> Žáci U10M 2017-2016 | C1: =CONCATENATE("K ",hlavicka!C6) -> K 13 | D1: A | E1: KOLO | F1: 2 | H1: =+A1 -> Žáci U10M 2017-2016 | J1: =+C1 -> K 13 | K1: B | L1: KOLO | M1: =+F1 -> 2 | O1: =+A1 -> Žáci U10M 2017-2016 | Q1: =+C1 -> K 13 | R1: C | S1: KOLO | T1: =+F1 -> 2 | V1: =+A1 -> Žáci U10M 2017-2016 | X1: =+C1 -> K 13 | Y1: D | Z1: KOLO | AA1: =+F1 -> 2 | AC1: =+A1 -> Žáci U10M 2017-2016 | AE1: =+C1 -> K 13 | AF1: E | AG1: KOLO | AH1: =+F1 -> 2 | AJ1: =+A1 -> Žáci U10M 2017-2016 | AL1: =+C1 -> K 13 | AM1: X | AN1: KOLO | AO1: =+F1 -> 2
A2: Start. | B2: SRÁŽKY | F2: Body | H2: Start. | I2: SRÁŽKY | M2: Body | O2: Start. | P2: SRÁŽKY | T2: Body | V2: Start. | W2: SRÁŽKY | AA2: Body | AC2: Start. | AD2: SRÁŽKY | AH2: Body | AJ2: Start. | AK2: SRÁŽKY | AO2: Body
A3: číslo | B3: Let | C3: Doskok | D3: Odjezd | E3: Celkem | F3: celkem | H3: číslo | I3: Let | J3: Doskok | K3: Odjezd | L3: Celkem | M3: celkem | O3: číslo | P3: Let | Q3: Doskok | R3: Odjezd | S3: Celkem | T3: celkem | V3: číslo | W3: Let | X3: Doskok | Y3: Odjezd | Z3: Celkem | AA3: celkem | AC3: číslo | AD3: Let | AE3: Doskok | AF3: Odjezd | AG3: Celkem | AH3: celkem | AJ3: číslo | AK3: Let | AL3: Doskok | AM3: Odjezd | AN3: Celkem | AO3: celkem
A4: =+obrac!C7 -> 23 | H4: =+A4 -> 23 | O4: =+H4 -> 23 | V4: =+O4 -> 23 | AC4: =+V4 -> 23 | AJ4: =+AC4 -> 23
A5: =+obrac!C8 -> 25 | H5: 25 | O5: 25 | V5: 25 | AC5: 25 | AJ5: 25
A6: =+obrac!C9 -> 24 | H6: 24 | O6: 24 | V6: 24 | AC6: 24 | AJ6: 24
A7: =+obrac!C10 -> 13 | H7: 13 | O7: 13 | V7: 13 | AC7: 13 | AJ7: 13
A8: =+obrac!C11 -> 22 | H8: 22 | O8: 22 | V8: 22 | AC8: 22 | AJ8: 22
A9: =+obrac!C12 -> 
A10: =+obrac!C13 -> 
A11: =+obrac!C14 -> 
A12: =+obrac!C15 -> 
A13: =+obrac!C16 -> 
A14: =+obrac!C17 -> 
A15: =+obrac!C18 -> 
A16: =+obrac!C19 -> 
A17: =+obrac!C20 -> 
A18: =+obrac!C21 -> 
A19: =+obrac!C22 -> 
A20: =+obrac!C23 -> 
A21: =+obrac!C24 -> 
A22: =+obrac!C25 -> 
A23: =+obrac!C26 -> 
A24: =+obrac!C27 -> 
A25: =+obrac!C28 ->  | H25: =+A25 ->  | O25: =+H25 ->  | V25: =+O25 ->  | AC25: =+V25 ->  | AJ25: =+AC25 -> 
A26: =+obrac!C29 -> 
A27: =+obrac!C30 -> 
A28: =+obrac!C31 -> 
A29: =+obrac!C32 -> 
A30: =+obrac!C33 -> 
A31: =+obrac!C34 -> 
A32: =+obrac!C35 -> 
A33: =+obrac!C36 -> 
A34: =+obrac!C37 -> 
A35: =+obrac!C38 -> 
A36: =+obrac!C39 -> 
A37: =+obrac!C40 -> 
A38: =+obrac!C41 -> 
A39: =+obrac!C42 -> 
A40: =+obrac!C43 -> 
A41: =+obrac!C44 -> 
A42: =+obrac!C45 -> 
A43: =+obrac!C46 -> 
A44: =+obrac!C47 -> 
A45: =+obrac!C48 -> 
A46: =+obrac!C49 -> 
A47: =+obrac!C50 -> 
A48: =+obrac!C51 -> 
A49: =+obrac!C52 -> 
A50: =+obrac!C53 -> 
A51: =+obrac!C54 -> 
A52: =+obrac!C55 -> 
A53: =+obrac!C56 -> 
A54: =+obrac!C57 -> 
A55: =+obrac!C58 -> 
A56: =+obrac!C59 -> 
A57: =+obrac!C60 -> 
A58: =+obrac!C61 -> 
A59: =+obrac!C62 -> 
A60: =+obrac!C63 -> 
A61: =+obrac!C64 -> 
A62: =+obrac!C65 -> 
A63: =+obrac!C66 -> 

Sheet sk SK
B1: výsledky skok. části severské kombinace | O1: =+hlavicka!C11 -> Žáci U10M 2017-2016
B2: =+SK!B2 -> Český pohár žactva v severské kombinaci - 2/SK | O2: =+vyslSL!Q2 -> dne: 21.11.2015
B3: =+vyslSL!B3 -> skok.můstek: K 13 | O3: =+vyslSL!Q3 -> LSK Lomnice
B4: =+vyslSL!B4 -> certifikát můstku č.135/C35/SL pl. do | H4: =+vyslSL!Q4 -> K = 60 b. +/- 6 b./m | O4: =CONCATENATE("trať ",hlavicka!C29,"km - ",hlavicka!C30,"bodů/min") -> trať 1km - 50bodů/min
B5: SOUTĚŽNÍ VÝBOR | H5: ROZHODČÍ STYLU
B6: =+hlavicka!B36 -> ŘZ | C6: =+hlavicka!C36 -> Ing. Stanislav Jirásek | F6: =+hlavicka!D36 -> CZE | H6: A | I6: =+hlavicka!C22 -> Čestmír Kožíšek st. | N6: =+hlavicka!D22 -> CZE
B7: =+hlavicka!B37 -> TD | C7: =+hlavicka!#REF! ->  | F7: =+hlavicka!D37 -> CZE | H7: B | I7: =+hlavicka!C23 -> Lukáš Doležal | N7: =+hlavicka!D23 -> CZE
B8: =+hlavicka!B38 -> ATD | C8: =+hlavicka!#REF! ->  | F8: =+hlavicka!D38 -> CZE | H8: C | I8: =+hlavicka!C24 -> Michal Šváb | N8: =+hlavicka!D24 -> CZE
B9: =+hlavicka!B39 -> ZRS | C9: =+hlavicka!C39 -> 0 | F9: =+hlavicka!D39 -> 0 | H9: D | I9: =+hlavicka!C25 -> 0 | N9: =+hlavicka!D25 -> CZE
B10: =+hlavicka!B40 -> ZZ | C10: =+hlavicka!C40 -> 0 | F10: =+hlavicka!D40 -> 0 | H10: E | I10: =+hlavicka!C26 -> 0 | N10: =+hlavicka!D26 -> CZE
B11: po | C11: st. | D11: jméno | E11: roč. | F11: skok | G11: stylové hodnocení | L11: body | O11: časová
B12: ř. | C12: č. | D12: klub | E12: stát | F12: m | G12: A | H12: B | I12: C | J12: D | K12: E | L12: m | M12: st. | N12: celk. | O12: ztráta
A13: 1 | B13: =VLOOKUP(A13,počty!$G$6:$BM$65,41,0) -> 1 | C13: =VLOOKUP(A13,počty!$G$6:$BM$65,8,0) -> 22 | D13: =VLOOKUP(A13,počty!$G$6:$BM$65,9,0) -> Sankot Antonín | E13: =VLOOKUP(A13,počty!$G$6:$BM$65,11,0) -> CZE | F13: =VLOOKUP(A13,počty!$G$6:$BM$65,14,0) -> 12 | G13: =VLOOKUP(A13,počty!$G$6:$BM$65,15,0) -> 14.5 | H13: =VLOOKUP(A13,počty!$G$6:$BM$65,16,0) -> 14 | I13: =VLOOKUP(A13,počty!$G$6:$BM$65,17,0) -> 13 | J13: =VLOOKUP(A13,počty!$G$6:$BM$65,18,0) -> 1 | K13: =VLOOKUP(A13,počty!$G$6:$BM$65,19,0) -> 20 | L13: =VLOOKUP(A13,počty!$G$6:$BM$65,20,0) -> 54 | M13: =VLOOKUP(A13,počty!$G$6:$BM$65,21,0) -> 41.5 | N13: =VLOOKUP(A13,počty!$G$6:$BM$65,22,0) -> 95.5 | O13: =VLOOKUP(A13,počty!$G$6:$BM$65,42,0) -> 00:00:00
A14: 2 | B14: =VLOOKUP(A14,počty!$G$6:$BM$65,41,0) -> 1 | C14: =VLOOKUP(A14,počty!$G$6:$BM$65,8,0) -> 13 | D14: =VLOOKUP(A14,počty!$G$6:$BM$65,9,0) -> Zapadlová Sára | E14: =VLOOKUP(A14,počty!$G$6:$BM$65,11,0) -> CZE | F14: =VLOOKUP(A14,počty!$G$6:$BM$65,14,0) -> 11.5 | G14: =VLOOKUP(A14,počty!$G$6:$BM$65,15,0) -> 15 | H14: =VLOOKUP(A14,počty!$G$6:$BM$65,16,0) -> 15 | I14: =VLOOKUP(A14,počty!$G$6:$BM$65,17,0) -> 14.5 | J14: =VLOOKUP(A14,počty!$G$6:$BM$65,18,0) -> 1 | K14: =VLOOKUP(A14,počty!$G$6:$BM$65,19,0) -> 20 | L14: =VLOOKUP(A14,počty!$G$6:$BM$65,20,0) -> 51 | M14: =VLOOKUP(A14,počty!$G$6:$BM$65,21,0) -> 44.5 | N14: =VLOOKUP(A14,počty!$G$6:$BM$65,22,0) -> 95.5 | O14: =VLOOKUP(A14,počty!$G$6:$BM$65,42,0) -> 00:00:00
A15: 3 | B15: =VLOOKUP(A15,počty!$G$6:$BM$65,41,0) -> 3 | C15: =VLOOKUP(A15,počty!$G$6:$BM$65,8,0) -> 24 | D15: =VLOOKUP(A15,počty!$G$6:$BM$65,9,0) -> Huráňová Karolína | E15: =VLOOKUP(A15,počty!$G$6:$BM$65,11,0) -> CZE | F15: =VLOOKUP(A15,počty!$G$6:$BM$65,14,0) -> 11.5 | G15: =VLOOKUP(A15,počty!$G$6:$BM$65,15,0) -> 14.5 | H15: =VLOOKUP(A15,počty!$G$6:$BM$65,16,0) -> 15 | I15: =VLOOKUP(A15,počty!$G$6:$BM$65,17,0) -> 13.5 | J15: =VLOOKUP(A15,počty!$G$6:$BM$65,18,0) -> 1 | K15: =VLOOKUP(A15,počty!$G$6:$BM$65,19,0) -> 20 | L15: =VLOOKUP(A15,počty!$G$6:$BM$65,20,0) -> 51 | M15: =VLOOKUP(A15,počty!$G$6:$BM$65,21,0) -> 43 | N15: =VLOOKUP(A15,počty!$G$6:$BM$65,22,0) -> 94 | O15: =VLOOKUP(A15,počty!$G$6:$BM$65,42,0) -> 00:00:01.800
A16: 4 | B16: =VLOOKUP(A16,počty!$G$6:$BM$65,41,0) -> 4 | C16: =VLOOKUP(A16,počty!$G$6:$BM$65,8,0) -> 25 | D16: =VLOOKUP(A16,počty!$G$6:$BM$65,9,0) -> Ježek Jakub | E16: =VLOOKUP(A16,počty!$G$6:$BM$65,11,0) -> CZE | F16: =VLOOKUP(A16,počty!$G$6:$BM$65,14,0) -> 11 | G16: =VLOOKUP(A16,počty!$G$6:$BM$65,15,0) -> 14.5 | H16: =VLOOKUP(A16,počty!$G$6:$BM$65,16,0) -> 14.5 | I16: =VLOOKUP(A16,počty!$G$6:$BM$65,17,0) -> 13 | J16: =VLOOKUP(A16,počty!$G$6:$BM$65,18,0) -> 1 | K16: =VLOOKUP(A16,počty!$G$6:$BM$65,19,0) -> 20 | L16: =VLOOKUP(A16,počty!$G$6:$BM$65,20,0) -> 48 | M16: =VLOOKUP(A16,počty!$G$6:$BM$65,21,0) -> 42 | N16: =VLOOKUP(A16,počty!$G$6:$BM$65,22,0) -> 90 | O16: =VLOOKUP(A16,počty!$G$6:$BM$65,42,0) -> 00:00:06.600
A17: 5 | B17: =VLOOKUP(A17,počty!$G$6:$BM$65,41,0) -> 5 | C17: =VLOOKUP(A17,počty!$G$6:$BM$65,8,0) -> 23 | D17: =VLOOKUP(A17,počty!$G$6:$BM$65,9,0) -> Břečka Matyáš | E17: =VLOOKUP(A17,počty!$G$6:$BM$65,11,0) -> CZE | F17: =VLOOKUP(A17,počty!$G$6:$BM$65,14,0) -> 11 | G17: =VLOOKUP(A17,počty!$G$6:$BM$65,15,0) -> 14.5 | H17: =VLOOKUP(A17,počty!$G$6:$BM$65,16,0) -> 14 | I17: =VLOOKUP(A17,počty!$G$6:$BM$65,17,0) -> 13 | J17: =VLOOKUP(A17,počty!$G$6:$BM$65,18,0) -> 1 | K17: =VLOOKUP(A17,počty!$G$6:$BM$65,19,0) -> 20 | L17: =VLOOKUP(A17,počty!$G$6:$BM$65,20,0) -> 48 | M17: =VLOOKUP(A17,počty!$G$6:$BM$65,21,0) -> 41.5 | N17: =VLOOKUP(A17,počty!$G$6:$BM$65,22,0) -> 89.5 | O17: =VLOOKUP(A17,počty!$G$6:$BM$65,42,0) -> 00:00:07.200
A18: 6 | B18: =VLOOKUP(A18,počty!$G$6:$BM$65,41,0) ->  | C18: =VLOOKUP(A18,počty!$G$6:$BM$65,8,0) ->  | D18: =VLOOKUP(A18,počty!$G$6:$BM$65,9,0) ->  | E18: =VLOOKUP(A18,počty!$G$6:$BM$65,11,0) ->  | F18: =VLOOKUP(A18,počty!$G$6:$BM$65,14,0) ->  | G18: =VLOOKUP(A18,počty!$G$6:$BM$65,15,0) ->  | H18: =VLOOKUP(A18,počty!$G$6:$BM$65,16,0) ->  | I18: =VLOOKUP(A18,počty!$G$6:$BM$65,17,0) ->  | J18: =VLOOKUP(A18,počty!$G$6:$BM$65,18,0) ->  | K18: =VLOOKUP(A18,počty!$G$6:$BM$65,19,0) ->  | L18: =VLOOKUP(A18,počty!$G$6:$BM$65,20,0) ->  | M18: =VLOOKUP(A18,počty!$G$6:$BM$65,21,0) ->  | N18: =VLOOKUP(A18,počty!$G$6:$BM$65,22,0) ->  | O18: =VLOOKUP(A18,počty!$G$6:$BM$65,42,0) -> 
A19: 7 | B19: =VLOOKUP(A19,počty!$G$6:$BM$65,41,0) ->  | C19: =VLOOKUP(A19,počty!$G$6:$BM$65,8,0) ->  | D19: =VLOOKUP(A19,počty!$G$6:$BM$65,9,0) ->  | E19: =VLOOKUP(A19,počty!$G$6:$BM$65,11,0) ->  | F19: =VLOOKUP(A19,počty!$G$6:$BM$65,14,0) ->  | G19: =VLOOKUP(A19,počty!$G$6:$BM$65,15,0) ->  | H19: =VLOOKUP(A19,počty!$G$6:$BM$65,16,0) ->  | I19: =VLOOKUP(A19,počty!$G$6:$BM$65,17,0) ->  | J19: =VLOOKUP(A19,počty!$G$6:$BM$65,18,0) ->  | K19: =VLOOKUP(A19,počty!$G$6:$BM$65,19,0) ->  | L19: =VLOOKUP(A19,počty!$G$6:$BM$65,20,0) ->  | M19: =VLOOKUP(A19,počty!$G$6:$BM$65,21,0) ->  | N19: =VLOOKUP(A19,počty!$G$6:$BM$65,22,0) ->  | O19: =VLOOKUP(A19,počty!$G$6:$BM$65,42,0) -> 
A20: 8 | B20: =VLOOKUP(A20,počty!$G$6:$BM$65,41,0) ->  | C20: =VLOOKUP(A20,počty!$G$6:$BM$65,8,0) ->  | D20: =VLOOKUP(A20,počty!$G$6:$BM$65,9,0) ->  | E20: =VLOOKUP(A20,počty!$G$6:$BM$65,11,0) ->  | F20: =VLOOKUP(A20,počty!$G$6:$BM$65,14,0) ->  | G20: =VLOOKUP(A20,počty!$G$6:$BM$65,15,0) ->  | H20: =VLOOKUP(A20,počty!$G$6:$BM$65,16,0) ->  | I20: =VLOOKUP(A20,počty!$G$6:$BM$65,17,0) ->  | J20: =VLOOKUP(A20,počty!$G$6:$BM$65,18,0) ->  | K20: =VLOOKUP(A20,počty!$G$6:$BM$65,19,0) ->  | L20: =VLOOKUP(A20,počty!$G$6:$BM$65,20,0) ->  | M20: =VLOOKUP(A20,počty!$G$6:$BM$65,21,0) ->  | N20: =VLOOKUP(A20,počty!$G$6:$BM$65,22,0) ->  | O20: =VLOOKUP(A20,počty!$G$6:$BM$65,42,0) -> 
A21: 9 | B21: =VLOOKUP(A21,počty!$G$6:$BM$65,41,0) ->  | C21: =VLOOKUP(A21,počty!$G$6:$BM$65,8,0) ->  | D21: =VLOOKUP(A21,počty!$G$6:$BM$65,9,0) ->  | E21: =VLOOKUP(A21,počty!$G$6:$BM$65,11,0) ->  | F21: =VLOOKUP(A21,počty!$G$6:$BM$65,14,0) ->  | G21: =VLOOKUP(A21,počty!$G$6:$BM$65,15,0) ->  | H21: =VLOOKUP(A21,počty!$G$6:$BM$65,16,0) ->  | I21: =VLOOKUP(A21,počty!$G$6:$BM$65,17,0) ->  | J21: =VLOOKUP(A21,počty!$G$6:$BM$65,18,0) ->  | K21: =VLOOKUP(A21,počty!$G$6:$BM$65,19,0) ->  | L21: =VLOOKUP(A21,počty!$G$6:$BM$65,20,0) ->  | M21: =VLOOKUP(A21,počty!$G$6:$BM$65,21,0) ->  | N21: =VLOOKUP(A21,počty!$G$6:$BM$65,22,0) ->  | O21: =VLOOKUP(A21,počty!$G$6:$BM$65,42,0) -> 
A22: 10 | B22: =VLOOKUP(A22,počty!$G$6:$BM$65,41,0) ->  | C22: =VLOOKUP(A22,počty!$G$6:$BM$65,8,0) ->  | D22: =VLOOKUP(A22,počty!$G$6:$BM$65,9,0) ->  | E22: =VLOOKUP(A22,počty!$G$6:$BM$65,11,0) ->  | F22: =VLOOKUP(A22,počty!$G$6:$BM$65,14,0) ->  | G22: =VLOOKUP(A22,počty!$G$6:$BM$65,15,0) ->  | H22: =VLOOKUP(A22,počty!$G$6:$BM$65,16,0) ->  | I22: =VLOOKUP(A22,počty!$G$6:$BM$65,17,0) ->  | J22: =VLOOKUP(A22,počty!$G$6:$BM$65,18,0) ->  | K22: =VLOOKUP(A22,počty!$G$6:$BM$65,19,0) ->  | L22: =VLOOKUP(A22,počty!$G$6:$BM$65,20,0) ->  | M22: =VLOOKUP(A22,počty!$G$6:$BM$65,21,0) ->  | N22: =VLOOKUP(A22,počty!$G$6:$BM$65,22,0) ->  | O22: =VLOOKUP(A22,počty!$G$6:$BM$65,42,0) -> 
A23: 11 | B23: =VLOOKUP(A23,počty!$G$6:$BM$65,41,0) ->  | C23: =VLOOKUP(A23,počty!$G$6:$BM$65,8,0) ->  | D23: =VLOOKUP(A23,počty!$G$6:$BM$65,9,0) ->  | E23: =VLOOKUP(A23,počty!$G$6:$BM$65,11,0) ->  | F23: =VLOOKUP(A23,počty!$G$6:$BM$65,14,0) ->  | G23: =VLOOKUP(A23,počty!$G$6:$BM$65,15,0) ->  | H23: =VLOOKUP(A23,počty!$G$6:$BM$65,16,0) ->  | I23: =VLOOKUP(A23,počty!$G$6:$BM$65,17,0) ->  | J23: =VLOOKUP(A23,počty!$G$6:$BM$65,18,0) ->  | K23: =VLOOKUP(A23,počty!$G$6:$BM$65,19,0) ->  | L23: =VLOOKUP(A23,počty!$G$6:$BM$65,20,0) ->  | M23: =VLOOKUP(A23,počty!$G$6:$BM$65,21,0) ->  | N23: =VLOOKUP(A23,počty!$G$6:$BM$65,22,0) ->  | O23: =VLOOKUP(A23,počty!$G$6:$BM$65,42,0) -> 
A24: 12 | B24: =VLOOKUP(A24,počty!$G$6:$BM$65,41,0) ->  | C24: =VLOOKUP(A24,počty!$G$6:$BM$65,8,0) ->  | D24: =VLOOKUP(A24,počty!$G$6:$BM$65,9,0) ->  | E24: =VLOOKUP(A24,počty!$G$6:$BM$65,11,0) ->  | F24: =VLOOKUP(A24,počty!$G$6:$BM$65,14,0) ->  | G24: =VLOOKUP(A24,počty!$G$6:$BM$65,15,0) ->  | H24: =VLOOKUP(A24,počty!$G$6:$BM$65,16,0) ->  | I24: =VLOOKUP(A24,počty!$G$6:$BM$65,17,0) ->  | J24: =VLOOKUP(A24,počty!$G$6:$BM$65,18,0) ->  | K24: =VLOOKUP(A24,počty!$G$6:$BM$65,19,0) ->  | L24: =VLOOKUP(A24,počty!$G$6:$BM$65,20,0) ->  | M24: =VLOOKUP(A24,počty!$G$6:$BM$65,21,0) ->  | N24: =VLOOKUP(A24,počty!$G$6:$BM$65,22,0) ->  | O24: =VLOOKUP(A24,počty!$G$6:$BM$65,42,0) -> 
A25: 13 | B25: =VLOOKUP(A25,počty!$G$6:$BM$65,41,0) ->  | C25: =VLOOKUP(A25,počty!$G$6:$BM$65,8,0) ->  | D25: =VLOOKUP(A25,počty!$G$6:$BM$65,9,0) ->  | E25: =VLOOKUP(A25,počty!$G$6:$BM$65,11,0) ->  | F25: =VLOOKUP(A25,počty!$G$6:$BM$65,14,0) ->  | G25: =VLOOKUP(A25,počty!$G$6:$BM$65,15,0) ->  | H25: =VLOOKUP(A25,počty!$G$6:$BM$65,16,0) ->  | I25: =VLOOKUP(A25,počty!$G$6:$BM$65,17,0) ->  | J25: =VLOOKUP(A25,počty!$G$6:$BM$65,18,0) ->  | K25: =VLOOKUP(A25,počty!$G$6:$BM$65,19,0) ->  | L25: =VLOOKUP(A25,počty!$G$6:$BM$65,20,0) ->  | M25: =VLOOKUP(A25,počty!$G$6:$BM$65,21,0) ->  | N25: =VLOOKUP(A25,počty!$G$6:$BM$65,22,0) ->  | O25: =VLOOKUP(A25,počty!$G$6:$BM$65,42,0) -> 
A26: 14 | B26: =VLOOKUP(A26,počty!$G$6:$BM$65,41,0) ->  | C26: =VLOOKUP(A26,počty!$G$6:$BM$65,8,0) ->  | D26: =VLOOKUP(A26,počty!$G$6:$BM$65,9,0) ->  | E26: =VLOOKUP(A26,počty!$G$6:$BM$65,11,0) ->  | F26: =VLOOKUP(A26,počty!$G$6:$BM$65,14,0) ->  | G26: =VLOOKUP(A26,počty!$G$6:$BM$65,15,0) ->  | H26: =VLOOKUP(A26,počty!$G$6:$BM$65,16,0) ->  | I26: =VLOOKUP(A26,počty!$G$6:$BM$65,17,0) ->  | J26: =VLOOKUP(A26,počty!$G$6:$BM$65,18,0) ->  | K26: =VLOOKUP(A26,počty!$G$6:$BM$65,19,0) ->  | L26: =VLOOKUP(A26,počty!$G$6:$BM$65,20,0) ->  | M26: =VLOOKUP(A26,počty!$G$6:$BM$65,21,0) ->  | N26: =VLOOKUP(A26,počty!$G$6:$BM$65,22,0) ->  | O26: =VLOOKUP(A26,počty!$G$6:$BM$65,42,0) -> 
A27: 15 | B27: =VLOOKUP(A27,počty!$G$6:$BM$65,41,0) ->  | C27: =VLOOKUP(A27,počty!$G$6:$BM$65,8,0) ->  | D27: =VLOOKUP(A27,počty!$G$6:$BM$65,9,0) ->  | E27: =VLOOKUP(A27,počty!$G$6:$BM$65,11,0) ->  | F27: =VLOOKUP(A27,počty!$G$6:$BM$65,14,0) ->  | G27: =VLOOKUP(A27,počty!$G$6:$BM$65,15,0) ->  | H27: =VLOOKUP(A27,počty!$G$6:$BM$65,16,0) ->  | I27: =VLOOKUP(A27,počty!$G$6:$BM$65,17,0) ->  | J27: =VLOOKUP(A27,počty!$G$6:$BM$65,18,0) ->  | K27: =VLOOKUP(A27,počty!$G$6:$BM$65,19,0) ->  | L27: =VLOOKUP(A27,počty!$G$6:$BM$65,20,0) ->  | M27: =VLOOKUP(A27,počty!$G$6:$BM$65,21,0) ->  | N27: =VLOOKUP(A27,počty!$G$6:$BM$65,22,0) ->  | O27: =VLOOKUP(A27,počty!$G$6:$BM$65,42,0) -> 
A28: 16 | B28: =VLOOKUP(A28,počty!$G$6:$BM$65,41,0) ->  | C28: =VLOOKUP(A28,počty!$G$6:$BM$65,8,0) ->  | D28: =VLOOKUP(A28,počty!$G$6:$BM$65,9,0) ->  | E28: =VLOOKUP(A28,počty!$G$6:$BM$65,11,0) ->  | F28: =VLOOKUP(A28,počty!$G$6:$BM$65,14,0) ->  | G28: =VLOOKUP(A28,počty!$G$6:$BM$65,15,0) ->  | H28: =VLOOKUP(A28,počty!$G$6:$BM$65,16,0) ->  | I28: =VLOOKUP(A28,počty!$G$6:$BM$65,17,0) ->  | J28: =VLOOKUP(A28,počty!$G$6:$BM$65,18,0) ->  | K28: =VLOOKUP(A28,počty!$G$6:$BM$65,19,0) ->  | L28: =VLOOKUP(A28,počty!$G$6:$BM$65,20,0) ->  | M28: =VLOOKUP(A28,počty!$G$6:$BM$65,21,0) ->  | N28: =VLOOKUP(A28,počty!$G$6:$BM$65,22,0) ->  | O28: =VLOOKUP(A28,počty!$G$6:$BM$65,42,0) -> 
A29: 17 | B29: =VLOOKUP(A29,počty!$G$6:$BM$65,41,0) ->  | C29: =VLOOKUP(A29,počty!$G$6:$BM$65,8,0) ->  | D29: =VLOOKUP(A29,počty!$G$6:$BM$65,9,0) ->  | E29: =VLOOKUP(A29,počty!$G$6:$BM$65,11,0) ->  | F29: =VLOOKUP(A29,počty!$G$6:$BM$65,14,0) ->  | G29: =VLOOKUP(A29,počty!$G$6:$BM$65,15,0) ->  | H29: =VLOOKUP(A29,počty!$G$6:$BM$65,16,0) ->  | I29: =VLOOKUP(A29,počty!$G$6:$BM$65,17,0) ->  | J29: =VLOOKUP(A29,počty!$G$6:$BM$65,18,0) ->  | K29: =VLOOKUP(A29,počty!$G$6:$BM$65,19,0) ->  | L29: =VLOOKUP(A29,počty!$G$6:$BM$65,20,0) ->  | M29: =VLOOKUP(A29,počty!$G$6:$BM$65,21,0) ->  | N29: =VLOOKUP(A29,počty!$G$6:$BM$65,22,0) ->  | O29: =VLOOKUP(A29,počty!$G$6:$BM$65,42,0) -> 
A30: 18 | B30: =VLOOKUP(A30,počty!$G$6:$BM$65,41,0) ->  | C30: =VLOOKUP(A30,počty!$G$6:$BM$65,8,0) ->  | D30: =VLOOKUP(A30,počty!$G$6:$BM$65,9,0) ->  | E30: =VLOOKUP(A30,počty!$G$6:$BM$65,11,0) ->  | F30: =VLOOKUP(A30,počty!$G$6:$BM$65,14,0) ->  | G30: =VLOOKUP(A30,počty!$G$6:$BM$65,15,0) ->  | H30: =VLOOKUP(A30,počty!$G$6:$BM$65,16,0) ->  | I30: =VLOOKUP(A30,počty!$G$6:$BM$65,17,0) ->  | J30: =VLOOKUP(A30,počty!$G$6:$BM$65,18,0) ->  | K30: =VLOOKUP(A30,počty!$G$6:$BM$65,19,0) ->  | L30: =VLOOKUP(A30,počty!$G$6:$BM$65,20,0) ->  | M30: =VLOOKUP(A30,počty!$G$6:$BM$65,21,0) ->  | N30: =VLOOKUP(A30,počty!$G$6:$BM$65,22,0) ->  | O30: =VLOOKUP(A30,počty!$G$6:$BM$65,42,0) -> 
A31: 19 | B31: =VLOOKUP(A31,počty!$G$6:$BM$65,41,0) ->  | C31: =VLOOKUP(A31,počty!$G$6:$BM$65,8,0) ->  | D31: =VLOOKUP(A31,počty!$G$6:$BM$65,9,0) ->  | E31: =VLOOKUP(A31,počty!$G$6:$BM$65,11,0) ->  | F31: =VLOOKUP(A31,počty!$G$6:$BM$65,14,0) ->  | G31: =VLOOKUP(A31,počty!$G$6:$BM$65,15,0) ->  | H31: =VLOOKUP(A31,počty!$G$6:$BM$65,16,0) ->  | I31: =VLOOKUP(A31,počty!$G$6:$BM$65,17,0) ->  | J31: =VLOOKUP(A31,počty!$G$6:$BM$65,18,0) ->  | K31: =VLOOKUP(A31,počty!$G$6:$BM$65,19,0) ->  | L31: =VLOOKUP(A31,počty!$G$6:$BM$65,20,0) ->  | M31: =VLOOKUP(A31,počty!$G$6:$BM$65,21,0) ->  | N31: =VLOOKUP(A31,počty!$G$6:$BM$65,22,0) ->  | O31: =VLOOKUP(A31,počty!$G$6:$BM$65,42,0) -> 
A32: 20 | B32: =VLOOKUP(A32,počty!$G$6:$BM$65,41,0) ->  | C32: =VLOOKUP(A32,počty!$G$6:$BM$65,8,0) ->  | D32: =VLOOKUP(A32,počty!$G$6:$BM$65,9,0) ->  | E32: =VLOOKUP(A32,počty!$G$6:$BM$65,11,0) ->  | F32: =VLOOKUP(A32,počty!$G$6:$BM$65,14,0) ->  | G32: =VLOOKUP(A32,počty!$G$6:$BM$65,15,0) ->  | H32: =VLOOKUP(A32,počty!$G$6:$BM$65,16,0) ->  | I32: =VLOOKUP(A32,počty!$G$6:$BM$65,17,0) ->  | J32: =VLOOKUP(A32,počty!$G$6:$BM$65,18,0) ->  | K32: =VLOOKUP(A32,počty!$G$6:$BM$65,19,0) ->  | L32: =VLOOKUP(A32,počty!$G$6:$BM$65,20,0) ->  | M32: =VLOOKUP(A32,počty!$G$6:$BM$65,21,0) ->  | N32: =VLOOKUP(A32,počty!$G$6:$BM$65,22,0) ->  | O32: =VLOOKUP(A32,počty!$G$6:$BM$65,42,0) -> 
A33: 21 | B33: =VLOOKUP(A33,počty!$G$6:$BM$65,41,0) ->  | C33: =VLOOKUP(A33,počty!$G$6:$BM$65,8,0) ->  | D33: =VLOOKUP(A33,počty!$G$6:$BM$65,9,0) ->  | E33: =VLOOKUP(A33,počty!$G$6:$BM$65,11,0) ->  | F33: =VLOOKUP(A33,počty!$G$6:$BM$65,14,0) ->  | G33: =VLOOKUP(A33,počty!$G$6:$BM$65,15,0) ->  | H33: =VLOOKUP(A33,počty!$G$6:$BM$65,16,0) ->  | I33: =VLOOKUP(A33,počty!$G$6:$BM$65,17,0) ->  | J33: =VLOOKUP(A33,počty!$G$6:$BM$65,18,0) ->  | K33: =VLOOKUP(A33,počty!$G$6:$BM$65,19,0) ->  | L33: =VLOOKUP(A33,počty!$G$6:$BM$65,20,0) ->  | M33: =VLOOKUP(A33,počty!$G$6:$BM$65,21,0) ->  | N33: =VLOOKUP(A33,počty!$G$6:$BM$65,22,0) ->  | O33: =VLOOKUP(A33,počty!$G$6:$BM$65,42,0) -> 
A34: 22 | B34: =VLOOKUP(A34,počty!$G$6:$BM$65,41,0) ->  | C34: =VLOOKUP(A34,počty!$G$6:$BM$65,8,0) ->  | D34: =VLOOKUP(A34,počty!$G$6:$BM$65,9,0) ->  | E34: =VLOOKUP(A34,počty!$G$6:$BM$65,11,0) ->  | F34: =VLOOKUP(A34,počty!$G$6:$BM$65,14,0) ->  | G34: =VLOOKUP(A34,počty!$G$6:$BM$65,15,0) ->  | H34: =VLOOKUP(A34,počty!$G$6:$BM$65,16,0) ->  | I34: =VLOOKUP(A34,počty!$G$6:$BM$65,17,0) ->  | J34: =VLOOKUP(A34,počty!$G$6:$BM$65,18,0) ->  | K34: =VLOOKUP(A34,počty!$G$6:$BM$65,19,0) ->  | L34: =VLOOKUP(A34,počty!$G$6:$BM$65,20,0) ->  | M34: =VLOOKUP(A34,počty!$G$6:$BM$65,21,0) ->  | N34: =VLOOKUP(A34,počty!$G$6:$BM$65,22,0) ->  | O34: =VLOOKUP(A34,počty!$G$6:$BM$65,42,0) -> 
A35: 23 | B35: =VLOOKUP(A35,počty!$G$6:$BM$65,41,0) ->  | C35: =VLOOKUP(A35,počty!$G$6:$BM$65,8,0) ->  | D35: =VLOOKUP(A35,počty!$G$6:$BM$65,9,0) ->  | E35: =VLOOKUP(A35,počty!$G$6:$BM$65,11,0) ->  | F35: =VLOOKUP(A35,počty!$G$6:$BM$65,14,0) ->  | G35: =VLOOKUP(A35,počty!$G$6:$BM$65,15,0) ->  | H35: =VLOOKUP(A35,počty!$G$6:$BM$65,16,0) ->  | I35: =VLOOKUP(A35,počty!$G$6:$BM$65,17,0) ->  | J35: =VLOOKUP(A35,počty!$G$6:$BM$65,18,0) ->  | K35: =VLOOKUP(A35,počty!$G$6:$BM$65,19,0) ->  | L35: =VLOOKUP(A35,počty!$G$6:$BM$65,20,0) ->  | M35: =VLOOKUP(A35,počty!$G$6:$BM$65,21,0) ->  | N35: =VLOOKUP(A35,počty!$G$6:$BM$65,22,0) ->  | O35: =VLOOKUP(A35,počty!$G$6:$BM$65,42,0) -> 

Sheet stběh
B1: STARTOVNÍ LISTINA - BĚH | K1: =+hlavicka!C11 -> Žáci U10M 2017-2016
B2: =+SK!B2 -> Český pohár žactva v severské kombinaci - 2/SK | K2: =+vyslSL!Q2 -> dne: 21.11.2015
A3: =+hlavicka!C32-5.77546296296296E-06 -> 00:59:58.501 | B3: =+vyslSL!B3 -> skok.můstek: K 13 | K3: =+vyslSL!Q3 -> LSK Lomnice
B4: =+vyslSL!B4 -> certifikát můstku č.135/C35/SL pl. do | F4: =+vyslSL!Q4 -> K = 60 b. +/- 6 b./m | K4: =CONCATENATE("trať ",hlavicka!C29,"km - ",hlavicka!C30,"bodů/min") -> trať 1km - 50bodů/min
B5: start. | C5: jméno | D5: klub | E5: stát | F5: roč. | G5: skoky | I5: ztráta | J5: použitá | K5: cílový
B6: číslo | G6: body | H6: poř. | I6: na vítěze | J6: spol. vlna | K6: čas
A7: 1 | B7: =VLOOKUP(A7,počty!$E$6:$BN$65,55,0) -> 20 | C7: =VLOOKUP(A7,počty!$E$6:$BN$65,11,0) -> Sankot Antonín | D7: =VLOOKUP(A7,počty!$E$6:$BN$65,12,0) -> Lyžařský sportovní klub Lomnice nad Popelkou | E7: =VLOOKUP(A7,počty!$E$6:$BN$65,13,0) -> CZE | F7: =VLOOKUP(A7,počty!$E$6:$BN$65,14,0) -> 2017 | G7: =VLOOKUP(A7,počty!$E$6:$BN$65,42,0) -> 95.5 | H7: =VLOOKUP(A7,počty!$E$6:$BN$65,43,0) -> 1 | I7: =VLOOKUP(A7,počty!$E$6:$BN$65,44,0) -> 00:00:00 | J7: =VLOOKUP(A7,počty!$E$6:$BN$65,56,0) -> 00:00:00
A8: 2 | B8: =VLOOKUP(A8,počty!$E$6:$BN$65,55,0) -> 21 | C8: =VLOOKUP(A8,počty!$E$6:$BN$65,11,0) -> Zapadlová Sára | D8: =VLOOKUP(A8,počty!$E$6:$BN$65,12,0) -> Lyžařský sportovní klub Lomnice nad Popelkou | E8: =VLOOKUP(A8,počty!$E$6:$BN$65,13,0) -> CZE | F8: =VLOOKUP(A8,počty!$E$6:$BN$65,14,0) -> 2016 | G8: =VLOOKUP(A8,počty!$E$6:$BN$65,42,0) -> 95.5 | H8: =VLOOKUP(A8,počty!$E$6:$BN$65,43,0) -> 1 | I8: =VLOOKUP(A8,počty!$E$6:$BN$65,44,0) -> 00:00:00 | J8: =VLOOKUP(A8,počty!$E$6:$BN$65,56,0) -> 00:00:00
A9: 3 | B9: =VLOOKUP(A9,počty!$E$6:$BN$65,55,0) -> 22 | C9: =VLOOKUP(A9,počty!$E$6:$BN$65,11,0) -> Huráňová Karolína | D9: =VLOOKUP(A9,počty!$E$6:$BN$65,12,0) -> Lyžařský sportovní klub Lomnice nad Popelkou | E9: =VLOOKUP(A9,počty!$E$6:$BN$65,13,0) -> CZE | F9: =VLOOKUP(A9,počty!$E$6:$BN$65,14,0) -> 2015 | G9: =VLOOKUP(A9,počty!$E$6:$BN$65,42,0) -> 94 | H9: =VLOOKUP(A9,počty!$E$6:$BN$65,43,0) -> 3 | I9: =VLOOKUP(A9,počty!$E$6:$BN$65,44,0) -> 00:00:01.800 | J9: =VLOOKUP(A9,počty!$E$6:$BN$65,56,0) -> 00:00:01.800
A10: 4 | B10: =VLOOKUP(A10,počty!$E$6:$BN$65,55,0) -> 23 | C10: =VLOOKUP(A10,počty!$E$6:$BN$65,11,0) -> Ježek Jakub | D10: =VLOOKUP(A10,počty!$E$6:$BN$65,12,0) -> Lyžařský sportovní klub Lomnice nad Popelkou | E10: =VLOOKUP(A10,počty!$E$6:$BN$65,13,0) -> CZE | F10: =VLOOKUP(A10,počty!$E$6:$BN$65,14,0) -> 2015 | G10: =VLOOKUP(A10,počty!$E$6:$BN$65,42,0) -> 90 | H10: =VLOOKUP(A10,počty!$E$6:$BN$65,43,0) -> 4 | I10: =VLOOKUP(A10,počty!$E$6:$BN$65,44,0) -> 00:00:06.600 | J10: =VLOOKUP(A10,počty!$E$6:$BN$65,56,0) -> 00:00:06.600
A11: 5 | B11: =VLOOKUP(A11,počty!$E$6:$BN$65,55,0) -> 24 | C11: =VLOOKUP(A11,počty!$E$6:$BN$65,11,0) -> Břečka Matyáš | D11: =VLOOKUP(A11,počty!$E$6:$BN$65,12,0) -> Lyžařský sportovní klub Lomnice nad Popelkou | E11: =VLOOKUP(A11,počty!$E$6:$BN$65,13,0) -> CZE | F11: =VLOOKUP(A11,počty!$E$6:$BN$65,14,0) -> 2014 | G11: =VLOOKUP(A11,počty!$E$6:$BN$65,42,0) -> 89.5 | H11: =VLOOKUP(A11,počty!$E$6:$BN$65,43,0) -> 5 | I11: =VLOOKUP(A11,počty!$E$6:$BN$65,44,0) -> 00:00:07.200 | J11: =VLOOKUP(A11,počty!$E$6:$BN$65,56,0) -> 00:00:07.200
A12: 6 | B12: =VLOOKUP(A12,počty!$E$6:$BN$65,55,0) ->  | C12: =VLOOKUP(A12,počty!$E$6:$BN$65,11,0) ->  | D12: =VLOOKUP(A12,počty!$E$6:$BN$65,12,0) ->  | E12: =VLOOKUP(A12,počty!$E$6:$BN$65,13,0) ->  | F12: =VLOOKUP(A12,počty!$E$6:$BN$65,14,0) ->  | G12: =VLOOKUP(A12,počty!$E$6:$BN$65,42,0) ->  | H12: =VLOOKUP(A12,počty!$E$6:$BN$65,43,0) ->  | I12: =VLOOKUP(A12,počty!$E$6:$BN$65,44,0) ->  | J12: =VLOOKUP(A12,počty!$E$6:$BN$65,56,0) -> 
A13: 7 | B13: =VLOOKUP(A13,počty!$E$6:$BN$65,55,0) ->  | C13: =VLOOKUP(A13,počty!$E$6:$BN$65,11,0) ->  | D13: =VLOOKUP(A13,počty!$E$6:$BN$65,12,0) ->  | E13: =VLOOKUP(A13,počty!$E$6:$BN$65,13,0) ->  | F13: =VLOOKUP(A13,počty!$E$6:$BN$65,14,0) ->  | G13: =VLOOKUP(A13,počty!$E$6:$BN$65,42,0) ->  | H13: =VLOOKUP(A13,počty!$E$6:$BN$65,43,0) ->  | I13: =VLOOKUP(A13,počty!$E$6:$BN$65,44,0) ->  | J13: =VLOOKUP(A13,počty!$E$6:$BN$65,56,0) -> 
A14: 8 | B14: =VLOOKUP(A14,počty!$E$6:$BN$65,55,0) ->  | C14: =VLOOKUP(A14,počty!$E$6:$BN$65,11,0) ->  | D14: =VLOOKUP(A14,počty!$E$6:$BN$65,12,0) ->  | E14: =VLOOKUP(A14,počty!$E$6:$BN$65,13,0) ->  | F14: =VLOOKUP(A14,počty!$E$6:$BN$65,14,0) ->  | G14: =VLOOKUP(A14,počty!$E$6:$BN$65,42,0) ->  | H14: =VLOOKUP(A14,počty!$E$6:$BN$65,43,0) ->  | I14: =VLOOKUP(A14,počty!$E$6:$BN$65,44,0) ->  | J14: =VLOOKUP(A14,počty!$E$6:$BN$65,56,0) -> 
A15: 9 | B15: =VLOOKUP(A15,počty!$E$6:$BN$65,55,0) ->  | C15: =VLOOKUP(A15,počty!$E$6:$BN$65,11,0) ->  | D15: =VLOOKUP(A15,počty!$E$6:$BN$65,12,0) ->  | E15: =VLOOKUP(A15,počty!$E$6:$BN$65,13,0) ->  | F15: =VLOOKUP(A15,počty!$E$6:$BN$65,14,0) ->  | G15: =VLOOKUP(A15,počty!$E$6:$BN$65,42,0) ->  | H15: =VLOOKUP(A15,počty!$E$6:$BN$65,43,0) ->  | I15: =VLOOKUP(A15,počty!$E$6:$BN$65,44,0) ->  | J15: =VLOOKUP(A15,počty!$E$6:$BN$65,56,0) -> 
A16: 10 | B16: =VLOOKUP(A16,počty!$E$6:$BN$65,55,0) ->  | C16: =VLOOKUP(A16,počty!$E$6:$BN$65,11,0) ->  | D16: =VLOOKUP(A16,počty!$E$6:$BN$65,12,0) ->  | E16: =VLOOKUP(A16,počty!$E$6:$BN$65,13,0) ->  | F16: =VLOOKUP(A16,počty!$E$6:$BN$65,14,0) ->  | G16: =VLOOKUP(A16,počty!$E$6:$BN$65,42,0) ->  | H16: =VLOOKUP(A16,počty!$E$6:$BN$65,43,0) ->  | I16: =VLOOKUP(A16,počty!$E$6:$BN$65,44,0) ->  | J16: =VLOOKUP(A16,počty!$E$6:$BN$65,56,0) -> 
A17: 11 | B17: =VLOOKUP(A17,počty!$E$6:$BN$65,55,0) ->  | C17: =VLOOKUP(A17,počty!$E$6:$BN$65,11,0) ->  | D17: =VLOOKUP(A17,počty!$E$6:$BN$65,12,0) ->  | E17: =VLOOKUP(A17,počty!$E$6:$BN$65,13,0) ->  | F17: =VLOOKUP(A17,počty!$E$6:$BN$65,14,0) ->  | G17: =VLOOKUP(A17,počty!$E$6:$BN$65,42,0) ->  | H17: =VLOOKUP(A17,počty!$E$6:$BN$65,43,0) ->  | I17: =VLOOKUP(A17,počty!$E$6:$BN$65,44,0) ->  | J17: =VLOOKUP(A17,počty!$E$6:$BN$65,56,0) -> 
A18: 12 | B18: =VLOOKUP(A18,počty!$E$6:$BN$65,55,0) ->  | C18: =VLOOKUP(A18,počty!$E$6:$BN$65,11,0) ->  | D18: =VLOOKUP(A18,počty!$E$6:$BN$65,12,0) ->  | E18: =VLOOKUP(A18,počty!$E$6:$BN$65,13,0) ->  | F18: =VLOOKUP(A18,počty!$E$6:$BN$65,14,0) ->  | G18: =VLOOKUP(A18,počty!$E$6:$BN$65,42,0) ->  | H18: =VLOOKUP(A18,počty!$E$6:$BN$65,43,0) ->  | I18: =VLOOKUP(A18,počty!$E$6:$BN$65,44,0) ->  | J18: =VLOOKUP(A18,počty!$E$6:$BN$65,56,0) -> 
A19: 13 | B19: =VLOOKUP(A19,počty!$E$6:$BN$65,55,0) ->  | C19: =VLOOKUP(A19,počty!$E$6:$BN$65,11,0) ->  | D19: =VLOOKUP(A19,počty!$E$6:$BN$65,12,0) ->  | E19: =VLOOKUP(A19,počty!$E$6:$BN$65,13,0) ->  | F19: =VLOOKUP(A19,počty!$E$6:$BN$65,14,0) ->  | G19: =VLOOKUP(A19,počty!$E$6:$BN$65,42,0) ->  | H19: =VLOOKUP(A19,počty!$E$6:$BN$65,43,0) ->  | I19: =VLOOKUP(A19,počty!$E$6:$BN$65,44,0) ->  | J19: =VLOOKUP(A19,počty!$E$6:$BN$65,56,0) -> 
A20: 14 | B20: =VLOOKUP(A20,počty!$E$6:$BN$65,55,0) ->  | C20: =VLOOKUP(A20,počty!$E$6:$BN$65,11,0) ->  | D20: =VLOOKUP(A20,počty!$E$6:$BN$65,12,0) ->  | E20: =VLOOKUP(A20,počty!$E$6:$BN$65,13,0) ->  | F20: =VLOOKUP(A20,počty!$E$6:$BN$65,14,0) ->  | G20: =VLOOKUP(A20,počty!$E$6:$BN$65,42,0) ->  | H20: =VLOOKUP(A20,počty!$E$6:$BN$65,43,0) ->  | I20: =VLOOKUP(A20,počty!$E$6:$BN$65,44,0) ->  | J20: =VLOOKUP(A20,počty!$E$6:$BN$65,56,0) -> 
A21: 15 | B21: =VLOOKUP(A21,počty!$E$6:$BN$65,55,0) ->  | C21: =VLOOKUP(A21,počty!$E$6:$BN$65,11,0) ->  | D21: =VLOOKUP(A21,počty!$E$6:$BN$65,12,0) ->  | E21: =VLOOKUP(A21,počty!$E$6:$BN$65,13,0) ->  | F21: =VLOOKUP(A21,počty!$E$6:$BN$65,14,0) ->  | G21: =VLOOKUP(A21,počty!$E$6:$BN$65,42,0) ->  | H21: =VLOOKUP(A21,počty!$E$6:$BN$65,43,0) ->  | I21: =VLOOKUP(A21,počty!$E$6:$BN$65,44,0) ->  | J21: =VLOOKUP(A21,počty!$E$6:$BN$65,56,0) -> 
A22: 16 | B22: =VLOOKUP(A22,počty!$E$6:$BN$65,55,0) ->  | C22: =VLOOKUP(A22,počty!$E$6:$BN$65,11,0) ->  | D22: =VLOOKUP(A22,počty!$E$6:$BN$65,12,0) ->  | E22: =VLOOKUP(A22,počty!$E$6:$BN$65,13,0) ->  | F22: =VLOOKUP(A22,počty!$E$6:$BN$65,14,0) ->  | G22: =VLOOKUP(A22,počty!$E$6:$BN$65,42,0) ->  | H22: =VLOOKUP(A22,počty!$E$6:$BN$65,43,0) ->  | I22: =VLOOKUP(A22,počty!$E$6:$BN$65,44,0) ->  | J22: =VLOOKUP(A22,počty!$E$6:$BN$65,56,0) -> 
A23: 17 | B23: =VLOOKUP(A23,počty!$E$6:$BN$65,55,0) ->  | C23: =VLOOKUP(A23,počty!$E$6:$BN$65,11,0) ->  | D23: =VLOOKUP(A23,počty!$E$6:$BN$65,12,0) ->  | E23: =VLOOKUP(A23,počty!$E$6:$BN$65,13,0) ->  | F23: =VLOOKUP(A23,počty!$E$6:$BN$65,14,0) ->  | G23: =VLOOKUP(A23,počty!$E$6:$BN$65,42,0) ->  | H23: =VLOOKUP(A23,počty!$E$6:$BN$65,43,0) ->  | I23: =VLOOKUP(A23,počty!$E$6:$BN$65,44,0) ->  | J23: =VLOOKUP(A23,počty!$E$6:$BN$65,56,0) -> 
A24: 18 | B24: =VLOOKUP(A24,počty!$E$6:$BN$65,55,0) ->  | C24: =VLOOKUP(A24,počty!$E$6:$BN$65,11,0) ->  | D24: =VLOOKUP(A24,počty!$E$6:$BN$65,12,0) ->  | E24: =VLOOKUP(A24,počty!$E$6:$BN$65,13,0) ->  | F24: =VLOOKUP(A24,počty!$E$6:$BN$65,14,0) ->  | G24: =VLOOKUP(A24,počty!$E$6:$BN$65,42,0) ->  | H24: =VLOOKUP(A24,počty!$E$6:$BN$65,43,0) ->  | I24: =VLOOKUP(A24,počty!$E$6:$BN$65,44,0) ->  | J24: =VLOOKUP(A24,počty!$E$6:$BN$65,56,0) -> 
A25: 19 | B25: =VLOOKUP(A25,počty!$E$6:$BN$65,55,0) ->  | C25: =VLOOKUP(A25,počty!$E$6:$BN$65,11,0) ->  | D25: =VLOOKUP(A25,počty!$E$6:$BN$65,12,0) ->  | E25: =VLOOKUP(A25,počty!$E$6:$BN$65,13,0) ->  | F25: =VLOOKUP(A25,počty!$E$6:$BN$65,14,0) ->  | G25: =VLOOKUP(A25,počty!$E$6:$BN$65,42,0) ->  | H25: =VLOOKUP(A25,počty!$E$6:$BN$65,43,0) ->  | I25: =VLOOKUP(A25,počty!$E$6:$BN$65,44,0) ->  | J25: =VLOOKUP(A25,počty!$E$6:$BN$65,56,0) -> 
A26: 20 | B26: =VLOOKUP(A26,počty!$E$6:$BN$65,55,0) ->  | C26: =VLOOKUP(A26,počty!$E$6:$BN$65,11,0) ->  | D26: =VLOOKUP(A26,počty!$E$6:$BN$65,12,0) ->  | E26: =VLOOKUP(A26,počty!$E$6:$BN$65,13,0) ->  | F26: =VLOOKUP(A26,počty!$E$6:$BN$65,14,0) ->  | G26: =VLOOKUP(A26,počty!$E$6:$BN$65,42,0) ->  | H26: =VLOOKUP(A26,počty!$E$6:$BN$65,43,0) ->  | I26: =VLOOKUP(A26,počty!$E$6:$BN$65,44,0) ->  | J26: =VLOOKUP(A26,počty!$E$6:$BN$65,56,0) -> 
A27: 21 | B27: =VLOOKUP(A27,počty!$E$6:$BN$65,55,0) ->  | C27: =VLOOKUP(A27,počty!$E$6:$BN$65,11,0) ->  | D27: =VLOOKUP(A27,počty!$E$6:$BN$65,12,0) ->  | E27: =VLOOKUP(A27,počty!$E$6:$BN$65,13,0) ->  | F27: =VLOOKUP(A27,počty!$E$6:$BN$65,14,0) ->  | G27: =VLOOKUP(A27,počty!$E$6:$BN$65,42,0) ->  | H27: =VLOOKUP(A27,počty!$E$6:$BN$65,43,0) ->  | I27: =VLOOKUP(A27,počty!$E$6:$BN$65,44,0) ->  | J27: =VLOOKUP(A27,počty!$E$6:$BN$65,56,0) -> 
A28: 22 | B28: =VLOOKUP(A28,počty!$E$6:$BN$65,55,0) ->  | C28: =VLOOKUP(A28,počty!$E$6:$BN$65,11,0) ->  | D28: =VLOOKUP(A28,počty!$E$6:$BN$65,12,0) ->  | E28: =VLOOKUP(A28,počty!$E$6:$BN$65,13,0) ->  | F28: =VLOOKUP(A28,počty!$E$6:$BN$65,14,0) ->  | G28: =VLOOKUP(A28,počty!$E$6:$BN$65,42,0) ->  | H28: =VLOOKUP(A28,počty!$E$6:$BN$65,43,0) ->  | I28: =VLOOKUP(A28,počty!$E$6:$BN$65,44,0) ->  | J28: =VLOOKUP(A28,počty!$E$6:$BN$65,56,0) -> 
A29: 23 | B29: =VLOOKUP(A29,počty!$E$6:$BN$65,55,0) ->  | C29: =VLOOKUP(A29,počty!$E$6:$BN$65,11,0) ->  | D29: =VLOOKUP(A29,počty!$E$6:$BN$65,12,0) ->  | E29: =VLOOKUP(A29,počty!$E$6:$BN$65,13,0) ->  | F29: =VLOOKUP(A29,počty!$E$6:$BN$65,14,0) ->  | G29: =VLOOKUP(A29,počty!$E$6:$BN$65,42,0) ->  | H29: =VLOOKUP(A29,počty!$E$6:$BN$65,43,0) ->  | I29: =VLOOKUP(A29,počty!$E$6:$BN$65,44,0) ->  | J29: =VLOOKUP(A29,počty!$E$6:$BN$65,56,0) -> 
A30: 24 | B30: =VLOOKUP(A30,počty!$E$6:$BN$65,55,0) ->  | C30: =VLOOKUP(A30,počty!$E$6:$BN$65,11,0) ->  | D30: =VLOOKUP(A30,počty!$E$6:$BN$65,12,0) ->  | E30: =VLOOKUP(A30,počty!$E$6:$BN$65,13,0) ->  | F30: =VLOOKUP(A30,počty!$E$6:$BN$65,14,0) ->  | G30: =VLOOKUP(A30,počty!$E$6:$BN$65,42,0) ->  | H30: =VLOOKUP(A30,počty!$E$6:$BN$65,43,0) ->  | I30: =VLOOKUP(A30,počty!$E$6:$BN$65,44,0) ->  | J30: =VLOOKUP(A30,počty!$E$6:$BN$65,56,0) -> 
A31: 25 | B31: =VLOOKUP(A31,počty!$E$6:$BN$65,55,0) ->  | C31: =VLOOKUP(A31,počty!$E$6:$BN$65,11,0) ->  | D31: =VLOOKUP(A31,počty!$E$6:$BN$65,12,0) ->  | E31: =VLOOKUP(A31,počty!$E$6:$BN$65,13,0) ->  | F31: =VLOOKUP(A31,počty!$E$6:$BN$65,14,0) ->  | G31: =VLOOKUP(A31,počty!$E$6:$BN$65,42,0) ->  | H31: =VLOOKUP(A31,počty!$E$6:$BN$65,43,0) ->  | I31: =VLOOKUP(A31,počty!$E$6:$BN$65,44,0) ->  | J31: =VLOOKUP(A31,počty!$E$6:$BN$65,56,0) -> 
A32: 26 | B32: =VLOOKUP(A32,počty!$E$6:$BN$65,55,0) ->  | C32: =VLOOKUP(A32,počty!$E$6:$BN$65,11,0) ->  | D32: =VLOOKUP(A32,počty!$E$6:$BN$65,12,0) ->  | E32: =VLOOKUP(A32,počty!$E$6:$BN$65,13,0) ->  | F32: =VLOOKUP(A32,počty!$E$6:$BN$65,14,0) ->  | G32: =VLOOKUP(A32,počty!$E$6:$BN$65,42,0) ->  | H32: =VLOOKUP(A32,počty!$E$6:$BN$65,43,0) ->  | I32: =VLOOKUP(A32,počty!$E$6:$BN$65,44,0) ->  | J32: =VLOOKUP(A32,počty!$E$6:$BN$65,56,0) -> 
